Workbook

Sheet Assumptions and Notes
C2: Crane Beam 2010 v1.0-MODIFIED
C3: Crane Beam is an educational tool to aid in Crane Runway Beam Design in accordance with AISC ASD and AISC LRFD. This tool is a companion to AISC Design Guide #7: Industrial Buildings, Roofs to Column Anchorage. The tool should be used only in conjunction with these detailed guidelines. The design procedures for AISC ASD 1989 and AISC LRFD 1999 are contained in the design guide. This version of Crane Beam includes design procedures for the 2005 and 2010 AISC Specifications. The design procedures in this tool for the 2005 and 2010 AISC Specifications are updates to the design guide procedures.
C5: NOTES ON THE DESIGN PROCEDURE
C6: Bending Moments
C7: For bending in about the X axis, note that the self-weight of the crane beam and the crane rail is calculated at the beam midspan where it is maximum and added to the maximum moment from the crane loads, even though the maximum moment from the crane loads may not be at the beam midspan. This is a conservative approach and is rarely a significant change in the calculated moment.
C9: Beam Deflections
C10: Deflection calculated at midspan (may not be location of maximum deflection)
C12: Design of Wide-Flange Beams
C13: The design procedures are limited to beams with compact or noncompact flanges and to beams with compact webs.
C14: Bending about Y-axis: Section 18.1, Item 5 defines St as the section modulus of the top half of the section about the Y-axis and therefore St should be taken as one-half the total Sy of the shape. As a conservative simplification in this tool, St is calculated as the elastic section modulus of the top flange only.
C16: Design of Wide-Flange Beams with Channel Caps
C17: The design procedures are limited to: composite sections with compact or noncompact webs (per Case 16 of Table B4.1b for singly-symmetric I-Shapes in AISC 2010).
C18: 1) Composite sections with compact or noncompact webs (per Case 16 of Table B4.1b for singly-symmetric I-Shapes in AISC 2010).
C19: 2) Channels with compact or noncompact webs (per Case 18 of Table B4.1b with the web treated as cover plate with effective width taken as the wide-flange section flange width, i.e. between welds in AISC 2010)
C20: 3) Wide-flange sections and channels with compact flanges (per Case 1 of Table B4.1b for in AISC 2010).
C22: Web sidesway buckling
C23: Web sidesway buckling is evaluated considering only the resistance of the wide flange beam for both wide-flange beams and wide-flange beams with channel caps. It is assumed that the compression flange not restrained against rotation when evaluating AISC Section J10.4b.
C25: Shear in the X-X axis
C26: The vertical shear strength of the beam, is evaluated considering only the resistance of the wide flange beam for both wide-flange beams and wide-flange beams with channel caps.
C28: Comparison of AISC 360-05 to AISC 360-10
C29: 1) Eq. F4-8 has been rearranged, but results remain unchanged (AISC 360-10 version is used in this spreadsheet).
C30: 2) Section F4-2 (calculation of the web plastification factor, Rpc) has a new condition for Iyc/Iy ≤ 0.23 in AISC 360-10. This will not apply for a wide-flange section with cap channel because the compression flange is stiffened. For the sections included in the design guide and in this tool, the values of Iyc/Iy range from 0.78 to 0.95. Therefore, this limit will not apply and there will be no difference in the design procedures in AISC 2005 versus AISC 2010.
C31: 3) There was a minor change in the length parameter, l , in Section J10.4 of AISC 360-05 to Lb in AISC 360-10. The nomenclature from AISC 360-10 is used in this tool. This change does not represent a technical change that will result in a difference between the design procedures.
C33: AISC Steel Design Guide #7: Industrial Buildings: Roofs to Anchor Rods, 2nd Edition
C34: The design procedure in this tool is based on the information in Section 18.1 and the accompanying design examples.
C35: The proposed load factors for LRFD design is discussed in section 13 "Crane Induced Loads and Load Combinations"
C36: Section 13.1 "Vertical Impact" lists appropriate values for the vertical impact factor for several crane types.
C37: Section 13.2 "Side-Thrust" lists appropriate values for side-thrust value for several crane types in Table 13.2.1.
C39: Additional Design Considerations
C40: In addition to the general crane beam design included in this tool, the following design checks MUST be made:
C41: Design for cyclic loading (Fatigue).
C42: Design of welds attaching cap channel to w shape beam.
C43: Design of crane beam end connections and bearing stiffeners.
C44: Design of crane rail attachment to crane beam.
C45: Design of crane lateral tie-backs.
C47: This tool was originally created by James M. Fisher, S.E., P.E. of Computerized Structural Design, Inc. in Milwaukee, WI. Neither Mr. Fisher nor CSD were involved in the creation of this modified version.
C48: The original authors of this spreadsheet disclaim any and all liability for the use, misuse, or abuse of any aspect of this spreadsheet or the data and calculations contained therein. The user assumes sole responsibility for the use of this spreadsheet and any calculations that may result as a consequence of that use.

Sheet Crane Beam Design
S1: Link cell: | T1: =VLOOKUP(DesignCode,T2:U7,2) -> 5
C2: CRANE BEAM DESIGN | S2: ASD: 1989 | T2: ASD: 1989 | U2: 0
C3: An Educational Tool to aid in Crane Runway Beam Design in accordance with AISC ASD and AISC LRFD. | S3: LRFD: 1999 | T3: LRFD: 1999 | U3: 1
C4: (Ref: AISC Steel Design Guide Series - Design Guide 7 "Industrial Buildings") | S4: ASD: 2005 | T4: ASD: 2005 | U4: 2
S5: LRFD: 2005 | T5: LRFD: 2005 | U5: 3
C6: Project Name: | E6: Crane Beam Example | S6: ASD: 2010 | T6: ASD: 2010 | U6: 4
C7: Project Description: | E7: Example 18.1.2 LRFD | S7: LRFD: 2010 | T7: LRFD: 2010 | U7: 5
C8: Company: | E8: AISC Steel Solutions Center
C9: Designed By: | E9: JRE | I9: Date: | J9: 2014-07-24
C11: SINGLE CRANE WITH TWO WHEELS PER ENDTRUCK | I11: P | J11: P
C12: Crane Data | J12: s
C13: Crane Capacity | F13: 20 | G13: Tons
C14: Bridge Weight | E14: Wt. b | F14: 57.2 | G14: kips
C15: Trolley + Hoist Weight | E15: Wt. t+h | F15: 10.6 | G15: kips
C16: Max. Wheel Load | E16: P | F16: 38.1 | G16: kips | J16: L
C17: Wheel Spacing | E17: s | F17: 12 | G17: ft.
C18: Vertical Impact | F18: 25 | G18: % (Input 25% for cab-operated cranes, 10% for pendant operated cranes)
C20: Crane Runway | S20: WC | T20: W
C21: Runway Span Length | E21: L | F21: 30 | G21: ft. | I21: Crane Rail Weight = | J21: 60.3 | K21: lb/yd | R21: 3rd | S21: W27x84 C15x33.9 | T21: W24x104
R22: 13th | S22: W30x116 C15x33.9 | T22: W24X229
C23: Runway Deflection Criteria | R23: 14th | S23: W27x94 C15x33.9 | T23: W24X146
C24: Vertical Deflection * | E24: L / | F24: 600 | G24: =L_sp*12/F24 -> 0.6 | H24: in. | I24: Ix req'd. = | J24: ='Loads and Deflection'!E38 -> 3371.298207 | K24: in.4
C25: Horizontal Deflection | E25: L / | F25: 400 | G25: =L_sp*12/F25 -> 0.9 | H25: in. | I25: Iy req'd. = | J25: ='Loads and Deflection'!L38 -> 149.2455724 | K25: in.4 | S25: W24X146
C26: * Does NOT include Vertical Impact or Girder and Rail Weight.
C28: Crane Runway Design | J28: ASD | K28: LRFD
C29: AISC Design Procedure | F29: LRFD: 2010 | I29: Dead | J29: 1 | K29: 1.2
I30: Live/Crane | J30: 1 | K30: 1.6
C31: Forces | J31: See Section 13 for recommended values | V31: WC | W31: W
C32: Max. Vertical Load | E32: P v | F32: =IF(BeamType="W",W32,V32) -> 69.05 | G32: kips / wheel (includes impact) | V32: =IF(F29="ASD: 1989",'Design Checks 1989 or 1999'!G20,IF(F29="LRFD: 1999",'Design Checks 1989 or 1999'!N20,IF(F29="ASD: 2005",'Design Checks 2005'!P_av,IF(F29="LRFD: 2005",'Design Checks 2005'!P_uv,IF(F29="ASD: 2010",P_av,IF(F29="LRFD: 2010",P_uv,0)))))) -> 69.05 | W32: =IF(F29="ASD: 1989",'Design Checks 1989 or 1999'!G20,IF(F29="LRFD: 1999",'Design Checks 1989 or 1999'!N20,IF(F29="ASD: 2005",'Design Checks 2005 W'!P_av,IF(F29="LRFD: 2005",'Design Checks 2005 W'!P_uv,IF(F29="ASD: 2010",'Design Checks 2010 W'!P_av,IF(F29="LRFD: 2010",'Design Checks 2010 W'!P_uv,0)))))) -> 69.05
C33: Max. Horizontal Load | E33: P h ** | F33: =IF(BeamType="W",W33,V33) -> 4.048 | G33: kips / wheel / side | V33: =IF(F29="ASD: 1989",'Design Checks 1989 or 1999'!G21,IF(F29="LRFD: 1999",'Design Checks 1989 or 1999'!N21,IF(F29="ASD: 2005",'Design Checks 2005'!P_ah,IF(F29="LRFD: 2005",'Design Checks 2005'!P_uh,IF(F29="ASD: 2010",P_ah,IF(F29="LRFD: 2010",P_uh,0)))))) -> 4.048 | W33: =IF(F29="ASD: 1989",'Design Checks 1989 or 1999'!G21,IF(F29="LRFD: 1999",'Design Checks 1989 or 1999'!N21,IF(F29="ASD: 2005",'Design Checks 2005 W'!P_ah,IF(F29="LRFD: 2005",'Design Checks 2005 W'!P_uh,IF(F29="ASD: 2010",'Design Checks 2010 W'!P_ah,IF(F29="LRFD: 2010",'Design Checks 2010 W'!P_uh,0)))))) -> 4.048
C34: ** Total Horizontal Force is 20% of the sum of weights of the lifted load and crane trolley, exclusive of other parts of crane.
C35: Bending Moment | E35: Mx | F35: =IF(BeamType="W",W35,V35) -> 685.3035 | G35: kip-ft. (includes impact and girder and rail weight) | V35: =IF(F29="ASD: 1989",'Design Checks 1989 or 1999'!G27,IF(F29="LRFD: 1999",'Design Checks 1989 or 1999'!N27,IF(F29="ASD: 2005",'Design Checks 2005'!M_ax,IF(F29="LRFD: 2005",'Design Checks 2005'!M_ux,IF(F29="ASD: 2010",M_ax,IF(F29="LRFD: 2010",M_ux,0)))))) -> 685.3035 | W35: =IF(F29="ASD: 1989",'Design Checks 1989 or 1999'!G27,IF(F29="LRFD: 1999",'Design Checks 1989 or 1999'!N27,IF(F29="ASD: 2005",'Design Checks 2005 W'!M_ax,IF(F29="LRFD: 2005",'Design Checks 2005 W'!M_ux,IF(F29="ASD: 2010",'Design Checks 2010 W'!M_ax,IF(F29="LRFD: 2010",'Design Checks 2010 W'!M_ux,0)))))) -> 685.3035
C36: Bending Moment | E36: My | F36: =IF(BeamType="W",W36,V36) -> 38.8608 | G36: kip-ft. | V36: =IF(F29="ASD: 1989",'Design Checks 1989 or 1999'!G28,IF(F29="LRFD: 1999",'Design Checks 1989 or 1999'!N28,IF(F29="ASD: 2005",'Design Checks 2005'!M_ay,IF(F29="LRFD: 2005",'Design Checks 2005'!M_uy,IF(F29="ASD: 2010",'Design Checks 2010'!M_ay,IF(F29="LRFD: 2010",M_uy,0)))))) -> 38.8608 | W36: =IF(F29="ASD: 1989",'Design Checks 1989 or 1999'!G28,IF(F29="LRFD: 1999",'Design Checks 1989 or 1999'!N28,IF(F29="ASD: 2005",'Design Checks 2005 W'!M_ay,IF(F29="LRFD: 2005",'Design Checks 2005 W'!M_uy,IF(F29="ASD: 2010",'Design Checks 2005 W'!M_ay,IF(F29="LRFD: 2010",'Design Checks 2005 W'!M_uy,0)))))) -> 38.8608
C37: Shear | E37: Vx | F37: =IF(BeamType="W",W37,V37) -> 113.4698 | G37: kips | V37: =IF(F29="ASD: 1989",'Design Checks 1989 or 1999'!G29,IF(F29="LRFD: 1999",'Design Checks 1989 or 1999'!N29,IF(F29="ASD: 2005",'Design Checks 2005'!V_ax,IF(F29="LRFD: 2005",'Design Checks 2005'!V_ux,IF(F29="ASD: 2010",'Design Checks 2010'!V_ax,IF(F29="LRFD: 2010",V_ux,0)))))) -> 113.4698 | W37: =IF(F29="ASD: 1989",'Design Checks 1989 or 1999'!G29,IF(F29="LRFD: 1999",'Design Checks 1989 or 1999'!N29,IF(F29="ASD: 2005",'Design Checks 2005 W'!V_ax,IF(F29="LRFD: 2005",'Design Checks 2005 W'!V_ux,IF(F29="ASD: 2010",'Design Checks 2010 W'!V_ax,IF(F29="LRFD: 2010",'Design Checks 2010 W'!V_ux,0)))))) -> 113.4698
S38: Link cell: | T38: 0
C39: Crane Runway Beam | R39: 0 | S39: W Shape | T39: W | U39: 0
C40: Crane Beam Type *** | F40: =INDEX(S39:T42,T38+1,2) -> W | R40: 1 | S40: W Shape + Cap Channel | T40: WC | U40: 1
C41: *** W indicates W Shape and WC indicates W Shape + Cap Channel | R41: 2 | S41: Custom W Shape | T41: W | U41: 2
C42: Crane Beam Designation | F42: =IF(ShapeType<=1,Shape_Name,IF(ShapeType=2,'Custom Section Properties'!E6,'Custom Section Properties'!E29)) -> W24X146 | I42: =IF(ShapeType>1,"User Defined Properties",VLOOKUP(T48,'Crane Beam Design'!R49:S51,2,FALSE)&" Member Properties") -> AISC 14th Edition Member Properties | R42: 3 | S42: Custom W Shape + Cap Channel | T42: WC | U42: 3
C43: Beam Weight | E43: Wt. | F43: =IF(BeamType="W",'Section Properties'!F8,'Section Properties'!F30) -> 146 | G43: lb/ft
C44: Yield Stress | E44: Fy | F44: 50 | G44: ksi | S44: Link cell: | T44: 2
S45: Fy = 36 ksi | T45: 36
C46: Deflection Checks | S46: Fy = 50 ksi | T46: 50
C47: Vertical - Moment of Inertia X-X | H47: Ix = | I47: ='Loads and Deflection'!I29 -> 4580 | J47: in.4 | K47: =IF(I47>=J24," o.k."," n.g.") -> o.k.
C48: Horizontal - Top Flange Moment of Inertia Y-Y | H48: Iy top = | I48: ='Loads and Deflection'!I30 -> 194.9909175 | J48: in.4 | K48: =IF(I48>=J25," o.k."," n.g.") -> o.k. | S48: Link cell: | T48: 2
R49: 0 | S49: AISC LRFD 3rd Edition | T49: 0
C50: Summary Stress Checks | R50: 1 | S50: AISC 13th Edition | T50: 1
C51: Check Bending about the X-X Axis | H51: CSR = | I51: =IF(BeamType="W",W55,V55) -> 0.6414246514 | J51: =IF(I51<=1," o.k."," n.g.") -> o.k. | R51: 2 | S51: AISC 14th Edition | T51: 2
C52: Check Bending about the Y-Y Axis in the top flange | H52: CSR = | I52: =IF(BeamType="W",W56,V56) -> 0.2285254338 | J52: =IF(I52<=1," o.k."," n.g.") -> o.k.
C53: Check Biaxial Bending in the top flange | H53: CSR = | I53: =IF(BeamType="W",W57,V57) -> 0.8699500851 | J53: =IF(I53<=1," o.k."," n.g.") -> o.k.
C54: Check Shear about the X-X Axis | H54: CSR = | I54: =IF(BeamType="W",W58,V58) -> 0.2355855912 | J54: =IF(I54<=1," o.k."," n.g.") -> o.k. | V54: WC | W54: W
C55: Check Web Sidesway Buckling | H55: CSR = | I55: =IF(BeamType="W",W59,V59) -> 0.1943818089 | J55: =IF(I55="N/A","",IF(I55<=1," o.k."," n.g.")) -> o.k. | S55: Check Bending about the X-X Axis | V55: =IF(F29="ASD: 1989",MAX('Design Checks 1989 or 1999'!G66,'Design Checks 1989 or 1999'!G52),IF(F29="LRFD: 1999",'Design Checks 1989 or 1999'!N69,IF(F29="ASD: 2005",'Design Checks 2005 or 2010'!G55,IF(F29="LRFD: 2005",'Design Checks 2005 or 2010'!N55,IF(F29="ASD: 2010",'Design Checks 2005 or 2010'!G55,IF(F29="LRFD: 2010",'Design Checks 2005 or 2010'!N55,0)))))) -> 0.6192236472 | W55: =IF(F29="ASD: 1989",MAX('Design Checks 1989 or 1999'!G66,'Design Checks 1989 or 1999'!G52),IF(F29="LRFD: 1999",'Design Checks 1989 or 1999'!N69,IF(F29="ASD: 2005",'Design Checks 2005 or 2010 W'!G41,IF(F29="LRFD: 2005",'Design Checks 2005 or 2010 W'!N41,IF(F29="ASD: 2010",'Design Checks 2005 or 2010 W'!G41,IF(F29="LRFD: 2010",'Design Checks 2005 or 2010 W'!N41,0)))))) -> 0.6414246514
C56: =IF(F29="ASD: 1989"," OPTIONAL LRFD Web Sidesway Buckling","") ->  | H56: =IF(F29="ASD: 1989","CSR = ","") ->  | I56: =IF(F29="ASD: 1989",'Design Checks 1989 or 1999'!G105,"") ->  | J56: =IF(I56="N/A","",IF(F29="ASD: 1989",IF(I56<=1," o.k."," n.g."),"")) ->  | S56: Check Bending about the Y-Y Axis in the top flange | V56: =IF(F29="ASD: 1989",'Design Checks 1989 or 1999'!G77,IF(F29="LRFD: 1999",'Design Checks 1989 or 1999'!N76,IF(F29="ASD: 2005",'Design Checks 2005 or 2010'!G61,IF(F29="LRFD: 2005",'Design Checks 2005 or 2010'!N61,IF(F29="ASD: 2010",'Design Checks 2005 or 2010'!G61,IF(F29="LRFD: 2010",'Design Checks 2005 or 2010'!N61,0)))))) -> 0.1492672668 | W56: =IF(F29="ASD: 1989",'Design Checks 1989 or 1999'!G77,IF(F29="LRFD: 1999",'Design Checks 1989 or 1999'!N76,IF(F29="ASD: 2005",'Design Checks 2005 or 2010 W'!G46,IF(F29="LRFD: 2005",'Design Checks 2005 or 2010 W'!N46,IF(F29="ASD: 2010",'Design Checks 2005 or 2010 W'!G46,IF(F29="LRFD: 2010",'Design Checks 2005 or 2010 W'!N46,0)))))) -> 0.2285254338
C57: GENERAL NOTES | S57: Check Biaxial Bending in the top flange | V57: =IF(F29="ASD: 1989",'Design Checks 1989 or 1999'!G81,IF(F29="LRFD: 1999",'Design Checks 1989 or 1999'!N81,IF(F29="ASD: 2005",'Design Checks 2005 or 2010'!G66,IF(F29="LRFD: 2005",'Design Checks 2005 or 2010'!N66,IF(F29="ASD: 2010",'Design Checks 2005 or 2010'!G66,IF(F29="LRFD: 2010",'Design Checks 2005 or 2010'!N66,0)))))) -> 0.768490914 | W57: =IF(F29="ASD: 1989",'Design Checks 1989 or 1999'!G81,IF(F29="LRFD: 1999",'Design Checks 1989 or 1999'!N81,IF(F29="ASD: 2005",'Design Checks 2005 or 2010 W'!G50,IF(F29="LRFD: 2005",'Design Checks 2005 or 2010 W'!N50,IF(F29="ASD: 2010",'Design Checks 2005 or 2010 W'!G50,IF(F29="LRFD: 2010",'Design Checks 2005 or 2010 W'!N50,0)))))) -> 0.8699500851
C58: This program is applicable to only rolled W shapes (with compact or noncompact flanges and compact webs) and W shapes with Channel Caps (where W shape has compact webs and compact or noncompact flanges and channel cap has compact or noncompact web when treated as a flange cover plate). | S58: Check Shear about the X-X Axis | V58: =IF(F29="ASD: 1989",'Design Checks 1989 or 1999'!G92,IF(F29="LRFD: 1999",'Design Checks 1989 or 1999'!N91,IF(F29="ASD: 2005",'Design Checks 2005 or 2010'!G78,IF(F29="LRFD: 2005",'Design Checks 2005 or 2010'!N78,IF(F29="ASD: 2010",'Design Checks 2005 or 2010'!G78,IF(F29="LRFD: 2010",'Design Checks 2005 or 2010'!N78,0)))))) -> 0.2869529373 | W58: =IF(F29="ASD: 1989",'Design Checks 1989 or 1999'!G92,IF(F29="LRFD: 1999",'Design Checks 1989 or 1999'!N91,IF(F29="ASD: 2005",'Design Checks 2005 or 2010 W'!G62,IF(F29="LRFD: 2005",'Design Checks 2005 or 2010 W'!N62,IF(F29="ASD: 2010",'Design Checks 2005 or 2010 W'!G62,IF(F29="LRFD: 2010",'Design Checks 2005 or 2010 W'!N62,0)))))) -> 0.2355855912
S59: Check Web Sidesway Buckling | V59: =IF(F29="ASD: 1989",'Design Checks 1989 or 1999'!G98,IF(F29="LRFD: 1999",'Design Checks 1989 or 1999'!N100,IF(F29="ASD: 2005",'Design Checks 2005 or 2010'!G89,IF(F29="LRFD: 2005",'Design Checks 2005 or 2010'!N89,IF(F29="ASD: 2010",'Design Checks 2005 or 2010'!G89,IF(F29="LRFD: 2010",'Design Checks 2005 or 2010'!N89,0)))))) -> 0.544639585 | W59: =IF(F29="ASD: 1989",'Design Checks 1989 or 1999'!G98,IF(F29="LRFD: 1999",'Design Checks 1989 or 1999'!N100,IF(F29="ASD: 2005",'Design Checks 2005 or 2010 W'!G73,IF(F29="LRFD: 2005",'Design Checks 2005 or 2010 W'!N73,IF(F29="ASD: 2010",'Design Checks 2005 or 2010 W'!G73,IF(F29="LRFD: 2010",'Design Checks 2005 or 2010 W'!N73,0)))))) -> 0.1943818089
C60: In addition to the general crane beam design above, the following design checks MUST be made:
C61: Design for cyclic loading (Fatigue).
C62: Design of welds attaching cap channel to w shape beam.
C63: Design of crane beam end connections and bearing stiffeners.
C64: Design of crane rail attachment to crane beam.
C65: Design of crane lateral tie-backs.

Sheet Loads and Deflection
C2: CRANE BEAM LOADS: ASCE 7 | J2: ='Crane Beam Design'!E6 -> Crane Beam Example
J3: ='Crane Beam Design'!E7 -> Example 18.1.2 LRFD
C4: Crane Runway Beam | F4: =Shape_Name -> W24X146 | H4: =Wt_CB -> 146 | I4: plf | J4: ='Crane Beam Design'!E8 -> AISC Steel Solutions Center
E5: ='Crane Beam Design'!T48 -> 2 | F5: =IF(ShapeType>1,"User Defined Properties",VLOOKUP(E5,'Crane Beam Design'!R49:S51,2,FALSE)&" Member Properties") -> AISC 14th Edition Member Properties | J5: ='Crane Beam Design'!E9 -> JRE | N5: Date: | O5: ='Crane Beam Design'!J9 -> 2014-07-24
C7: SINGLE CRANE WITH TWO WHEELS PER ENDTRUCK
C8: Crane Data
C9: Crane Capacity | E9: Capacity | F9: =Capacity -> 20 | G9: Tons
C10: Bridge Weight | E10: W_bridge | F10: =W_bridge -> 57.2 | G10: kips
C11: Trolley + Hoist Weight | E11: W_t_h | F11: =W_t_h -> 10.6 | G11: kips
C12: Max. Wheel Load | E12: P_max | F12: =P_max -> 38.1 | G12: kips
C13: Wheel Spacing | E13: S_wheel | F13: =S_wheel -> 12 | G13: ft.
C14: Vertical Impact | E14: f_impact | F14: =f_impact/100 -> 0.25
C16: Crane Runway | S16: WC | T16: W
C17: Runway Span Length | E17: L_sp | F17: =L_sp -> 30 | G17: ft. | S17: W27x84 C15x33.9 | T17: W24x131
C18: Crane Rail Weight | E18: W_rail | F18: =W_rail -> 60.3 | G18: lb/yd
C20: ASD DESIGN | J20: LRFD DESIGN
C21: Design Loads | J21: Design Loads
C22: Max. Vertical Wheel Load * | F22: Pav = | G22: =P_max*(1+(f_impact/100)) -> 47.625 | H22: kips / wheel | J22: Max. Vertical Wheel Load * | M22: Puv = | N22: =((Live_LRFD*(P_max-(W_bridge/4)))+(Dead_LRFD*(W_bridge/4)))*(1+(f_impact/100)) -> 69.05 | O22: kips / wheel
C23: Max. Horizontal Wheel Load ** | F23: Pah = | G23: =Live_ASD*(0.2*((Capacity*2)+W_t_h)/4) -> 2.53 | H23: kips / wheel / side | J23: Max. Horizontal Wheel Load ** | M23: Puh = | N23: =Live_LRFD*(0.2*((Capacity*2)+W_t_h)/4) -> 4.048 | O23: kips / wheel / side
C24: * Includes impact. | J24: * Includes impact.
C25: ** Total Horizontal Force, P h, is 20% of the sum of weights of the lifted load | J25: ** Total Horizontal Force, P h, is 20% of the sum of weights of the lifted load
C26: and crane trolley, exclusive of other parts of crane. | J26: and crane trolley, exclusive of other parts of crane.
C28: Deflection Checks
C29: Vertical - Moment of Inertia X-X | H29: Ix = | I29: =IF(BeamType="W",'Section Properties'!$F$15,'Section Properties'!$F$36) -> 4580 | J29: in.4 | K29: =IF(I29>=E38," o.k."," n.g.") -> o.k.
C30: Horizontal - Top Flange Moment of Inertia Y-Y | H30: Iy top = | I30: =IF(BeamType="W",I_top_wf,I_yc) -> 194.9909175 | J30: in.4 | K30: =IF(I30>=L38," o.k."," n.g.") -> o.k.
C32: The maximum deflection is calculated at the midspan of the beam for three conditions: 1) The center of the wheel loads located at midspan of the beam 2) One wheel load at midspan (applies only when the wheel spacing is greater than one-half the girder span) 3) One wheel load at midspan with the other wheel load at the wheel spacing away from the midspan (applies only when the wheel spacing is less than one-half the girder span) The deflection at midspan is taken as the maximum of the calculated deflections.
C34: Runway Deflection Criteria
C35: Vertical Deflection * | J35: Horizontal Deflection **
D36: P = | E36: =P_max -> 38.1 | F36: kips | G36: (max wheel load) | K36: P = | L36: =(0.2*((Capacity*2)+W_t_h)/4) -> 2.53 | M36: kips | N36: (total horizontal force)
C37: Limits | E37: ='Crane Beam Design'!G24 -> 0.6 | F37: in. | G37: ="L/"&'Crane Beam Design'!F24 -> L/600 | J37: Limits | L37: ='Crane Beam Design'!G25 -> 0.9 | M37: in. | N37: ="L/"&'Crane Beam Design'!F25 -> L/400
D38: Ix req'd. = | E38: =MAX((P_Dv*((L_sp-S_wheel)/2)*((3*(L_sp^2))-(4*(((L_sp-S_wheel)/2)^2)))*1728)/(24*29000*E37),IF(S_wheel>L_sp/2,(P_Dv*(L_sp^3)*1728)/(48*29000*E37),((P_Dv*(L_sp^3)*1728)/(48*29000*E37))+((P_Dv*(L_sp-((L_sp/2)+S_wheel))*(L_sp/2)*((L_sp^2)-((L_sp-((L_sp/2)+S_wheel))^2)-((L_sp/2)^2))*1728)/(6*29000*E37*L_sp)))) -> 3371.298207 | F38: in.4 | K38: Iy req'd. = | L38: =MAX((P_Dh*((L_sp-S_wheel)/2)*((3*(L_sp^2))-(4*(((L_sp-S_wheel)/2)^2)))*1728)/(24*29000*L37),IF(S_wheel>L_sp/2,(P_Dh*(L_sp^3)*1728)/(48*29000*L37),((P_Dh*(L_sp^3)*1728)/(48*29000*L37))+((P_Dh*(L_sp-((L_sp/2)+S_wheel))*(L_sp/2)*((L_sp^2)-((L_sp-((L_sp/2)+S_wheel))^2)-((L_sp/2)^2))*1728)/(6*29000*L37*L_sp)))) -> 149.2455724 | M38: in.4
C39: Maximum | D39: Dmax_v = | E39: =MAX(IF(S_wheel<L_sp,F40,0),IF(S_wheel>L_sp/2,F41,F42)) -> 0.4416547869 | F39: in. | G39: ="L/"&ROUND((L_sp*12)/E39,0) -> L/815 | J39: Maximum | K39: Dmax_h = | L39: =MAX(IF(S_wheel<L_sp,M40,0),IF(S_wheel>L_sp/2,M41,M42)) -> 0.6888578037 | M39: in. | N39: ="L/"&ROUND((L_sp*12)/L39,0) -> L/523
D40: Condition 1 | E40: D1_v = | F40: =(P_Dv*((L_sp-S_wheel)/2)*((3*(L_sp^2))-(4*(((L_sp-S_wheel)/2)^2)))*1728)/(24*29000*I29) -> 0.4416547869 | G40: in. | H40: =IF(S_wheel>L_sp,"N/A","") ->  | K40: Condition 1 | L40: D1_v = | M40: =(P_Dh*((L_sp-S_wheel)/2)*((3*(L_sp^2))-(4*(((L_sp-S_wheel)/2)^2)))*1728)/(24*29000*I30) -> 0.6888578037 | N40: in. | O40: =IF(S_wheel>L_sp,"N/A","") -> 
D41: Condition 2 | E41: D2_v = | F41: =(P_Dv*(L_sp^3)*1728)/(48*29000*I29) -> 0.2788224665 | G41: in. | H41: =IF(S_wheel<=L_sp/2,"N/A","") -> N/A | K41: Condition 2 | L41: D2_v = | M41: =(P_Dh*(L_sp^3)*1728)/(48*29000*I30) -> 0.4348849771 | N41: in. | O41: =IF(S_wheel<=L_sp/2,"N/A","") -> N/A
D42: Condition 3 | E42: D3_v = | F42: =((P_Dv*(L_sp^3)*1728)/(48*29000*I29))+((P_Dv*(L_sp-((L_sp/2)+S_wheel))*(L_sp/2)*((L_sp^2)-((L_sp-((L_sp/2)+S_wheel))^2)-((L_sp/2)^2))*1728)/(6*29000*I29*L_sp)) -> 0.3613539166 | G42: in. | H42: =IF(S_wheel>L_sp/2,"N/A","") ->  | K42: Condition 3 | L42: D3_v = | M42: =((P_Dh*(L_sp^3)*1728)/(48*29000*I30))+((P_Dh*(L_sp-((L_sp/2)+S_wheel))*(L_sp/2)*((L_sp^2)-((L_sp-((L_sp/2)+S_wheel))^2)-((L_sp/2)^2))*1728)/(6*29000*I30*L_sp)) -> 0.5636109303 | N42: in. | O42: =IF(S_wheel>L_sp/2,"N/A","") -> 
C43: * Does NOT include Vertical Impact or Girder and Rail Weight. | K43: ** Total Horizontal Force is 20% of the sum of weights of the lifted load
K44: and crane trolley, exclusive of other parts of crane.
C45: Maximum Bending Moments and Beam Shears
G47: The moment is maximum under the load closest to the midspan when that load is at X = 0.5*(L_sp - S_wheel/2) from the beam end. See Table 3-23, Case 44 from the AISC Steel Construction Manual. When S_wheel > (2-√(2)*L_sp, the maximum moment occurs with one load at midspan and the other off span. This applies to bending moments about both the X and Y axes. P for bending about the X axis is Pav for ASD and Puv for LRFD. P for bending about the Y axis is Pah for ASD and Puh for LRFD.
G48: For bending in about the X axis, note that the self-weight of the crane beam and the crane rail is calculated at the beam midspan where it is maximum and added to the maximum moment from the crane loads, even though the maximum moment from the crane loads may not be at the beam midspan. This is a conservative approach and is rarely a significant change in the calculated moment.
G49: Maximum shear at the beam end occurs when one wheel is adjacent to the support. If the wheel spacing is smaller than the beam span the other wheel load will contribute to the shear as well.
C50: ASD DESIGN | J50: LRFD DESIGN
C51: Design Forces | J51: Design Forces
C52: Bending Moment X-X Axis *** | F52: Max = | G52: =(IF(S_wheel<((2-SQRT(2))*L_sp),(P_av/(2*L_sp))*((L_sp-(S_wheel/2))^2),P_av*L_sp/4))+((Dead_ASD*(Wt_CB+(W_rail/3))*(L_sp^2))/8000) -> 475.88625 | H52: kip-ft. | J52: Bending Moment X-X Axis *** | M52: Mux = | N52: =(IF(S_wheel<((2-SQRT(2))*L_sp),(P_uv/(2*L_sp))*((L_sp-(S_wheel/2))^2),P_uv*L_sp/4))+((Dead_LRFD*(Wt_CB+(W_rail/3))*(L_sp^2))/8000) -> 685.3035 | O52: kip-ft.
C53: Bending Moment Y-Y Axis | F53: May = | G53: =IF(S_wheel<((2-SQRT(2))*L_sp),(P_ah/(2*L_sp))*((L_sp-(S_wheel/2))^2),P_ah*L_sp/4) -> 24.288 | H53: kip-ft. | J53: Bending Moment Y-Y Axis | M53: Muy = | N53: =IF(S_wheel<((2-SQRT(2))*L_sp),(P_uh/(2*L_sp))*((L_sp-(S_wheel/2))^2),P_uh*L_sp/4) -> 38.8608 | O53: kip-ft.
C54: Shear X-X Axis *** | F54: Vax = | G54: =IF(S_wheel<L_sp,(P_av*(2-(S_wheel/L_sp))),P_av)+(Dead_ASD*((Wt_CB+(W_rail/3))*L_sp)/2000) -> 78.6915 | H54: kips | J54: Shear X-X Axis *** | M54: Vux = | N54: =IF(S_wheel<L_sp,(P_uv*(2-(S_wheel/L_sp))),P_uv)+(Dead_LRFD*((Wt_CB+(W_rail/3))*L_sp)/2000) -> 113.4698 | O54: kips
C55: *** Includes impact and girder and rail weight. | J55: *** Includes impact and girder and rail weight.

Sheet Design Checks 1989 or 1999 (hidden)
C2: CRANE BEAM DESIGN CHECKS | J2: ='Crane Beam Design'!E6 -> Crane Beam Example
J3: ='Crane Beam Design'!E7 -> Example 18.1.2 LRFD
C4: Crane Runway Beam | F4: =IF(ShapeType<2,IF('Crane Beam Design'!F40="W",'Section Properties'!E6,IF('Crane Beam Design'!F40="WC",'Section Properties'!E28,0)),IF('Crane Beam Design'!F40="W",Shape_W_cust,IF('Crane Beam Design'!F40="WC",Shape_WC_cust,0))) -> W24X146 | J4: ='Crane Beam Design'!E8 -> AISC Steel Solutions Center
E5: ='Crane Beam Design'!T48 -> 2 | F5: =IF(ShapeType>1,"User Defined Properties",VLOOKUP(E5,'Crane Beam Design'!R49:S51,2,FALSE)&" Member Properties") -> AISC 14th Edition Member Properties | J5: ='Crane Beam Design'!E9 -> JRE | N5: Date: | O5: ='Crane Beam Design'!J9 -> 2014-07-24
C6: SECTION PROPERTIES
C7: Total Section Weight | E7: Wt. | F7: =IF('Crane Beam Design'!F40="W",'Section Properties'!F8,IF('Crane Beam Design'!F40="WC",'Section Properties'!F30,0)) -> 146 | G7: plf | H7: Moment of Inertia | J7: Iy | K7: =IF('Crane Beam Design'!F40="W",'Section Properties'!F19,IF('Crane Beam Design'!F40="WC",'Section Properties'!F41,0)) -> 391 | L7: in.4 | M7: Area | O7: A top | P7: =IF('Crane Beam Design'!F40="W",'Section Properties'!K15,IF('Crane Beam Design'!F40="WC",'Section Properties'!K36,0)) -> 14.061 | Q7: in.2
C8: Cross-sectional Area | E8: A | F8: =IF('Crane Beam Design'!F40="W",'Section Properties'!F9,IF('Crane Beam Design'!F40="WC",'Section Properties'!F31,0)) -> 43 | G8: in.2 | H8: Section Modulus | J8: Sy | K8: =IF('Crane Beam Design'!F40="W",'Section Properties'!F20,IF('Crane Beam Design'!F40="WC",'Section Properties'!F42,0)) -> 60.5 | L8: in.3 | M8: Depth / Flange Area | O8: d / Af top | P8: =IF('Crane Beam Design'!F40="W",'Section Properties'!K16,IF('Crane Beam Design'!F40="WC",'Section Properties'!K37,0)) -> 1.756631819
C9: Total Depth | E9: d total | F9: =IF('Crane Beam Design'!F40="W",'Section Properties'!F10,IF('Crane Beam Design'!F40="WC",'Section Properties'!F32,0)) -> 24.7 | G9: in. | H9: Radius of Gyration | J9: ry | K9: =IF('Crane Beam Design'!F40="W",'Section Properties'!F21,IF('Crane Beam Design'!F40="WC",'Section Properties'!F43,0)) -> 3.01 | L9: in. | M9: Radius of Gyration | O9: rT top | P9: =IF('Crane Beam Design'!F40="W",'Section Properties'!K17,IF('Crane Beam Design'!F40="WC",'Section Properties'!K38,0)) -> 3.438365825 | Q9: in.
C10: Distance to N. A. | E10: y 2 | F10: =IF('Crane Beam Design'!F40="W",F9/2,IF('Crane Beam Design'!F40="WC",'Section Properties'!F33,0)) -> 12.35 | G10: in. | H10: Plastic Modulus | J10: Zy | K10: =IF('Crane Beam Design'!F40="W",'Section Properties'!F22,IF('Crane Beam Design'!F40="WC",'Section Properties'!F44,0)) -> 93.2 | L10: in.3 | M10: Moment of Inertia | O10: It | P10: =IF('Crane Beam Design'!F40="W",'Section Properties'!K18,IF('Crane Beam Design'!F40="WC",'Section Properties'!K39,0)) -> 194.9909175 | Q10: in.4
C11: Distance to N. A. | E11: y 1 | F11: =IF('Crane Beam Design'!F40="W",F9/2,IF('Crane Beam Design'!F40="WC",'Section Properties'!F34,0)) -> 12.35 | G11: in. | H11: W Depth | J11: d | K11: =IF('Crane Beam Design'!F40="W",'Section Properties'!F57,IF('Crane Beam Design'!F40="WC",'Section Properties'!F86,0)) -> 24.7 | L11: in. | M11: Section Modulus | O11: St | P11: =IF('Crane Beam Design'!F40="W",'Section Properties'!K19,IF('Crane Beam Design'!F40="WC",'Section Properties'!K40,0)) -> 30.23115 | Q11: in.3
C12: Moment of Inertia | E12: Ix | F12: =IF('Crane Beam Design'!F40="W",'Section Properties'!F15,IF('Crane Beam Design'!F40="WC",'Section Properties'!F36,0)) -> 4580 | G12: in.4 | H12: W Web Thickness | J12: tw | K12: =IF('Crane Beam Design'!F40="W",'Section Properties'!F59,IF('Crane Beam Design'!F40="WC",'Section Properties'!F87,0)) -> 0.65 | L12: in. | M12: Plastic Modulus | O12: Zt | P12: =IF('Crane Beam Design'!F40="W",'Section Properties'!K20,IF('Crane Beam Design'!F40="WC",'Section Properties'!K41,0)) -> 45.346725 | Q12: in.3
C13: Section Modulus | E13: S2 | F13: =IF('Crane Beam Design'!F40="W",'Section Properties'!F16,IF('Crane Beam Design'!F40="WC",'Section Properties'!F37,0)) -> 371 | G13: in.3 | H13: W Flange Width | J13: bf | K13: =IF('Crane Beam Design'!F40="W",'Section Properties'!F60,IF('Crane Beam Design'!F40="WC",'Section Properties'!F88,0)) -> 12.9 | L13: in. | M13: Radius of Gyration | O13: ry top | P13: =IF('Crane Beam Design'!F40="W",'Section Properties'!K21,IF('Crane Beam Design'!F40="WC",'Section Properties'!K42,0)) -> 3.723909236 | Q13: in.
E14: S1 | F14: =IF('Crane Beam Design'!F40="W",F13,IF('Crane Beam Design'!F40="WC",'Section Properties'!F38,0)) -> 371 | G14: in.3 | H14: W Flange Thickness | J14: tf | K14: =IF('Crane Beam Design'!F40="W",'Section Properties'!F61,IF('Crane Beam Design'!F40="WC",'Section Properties'!F89,0)) -> 1.09 | L14: in. | M14: Torsional Constant | O14: J | P14: =IF('Crane Beam Design'!F40="W",'Section Properties'!K22,IF('Crane Beam Design'!F40="WC",'Section Properties'!K43,0)) -> 13.4 | Q14: in.4
C15: Radius of Gyration | E15: rx | F15: =IF('Crane Beam Design'!F40="W",'Section Properties'!F17,IF('Crane Beam Design'!F40="WC",'Section Properties'!F39,0)) -> 10.3 | G15: in. | H15: W Web Depth | J15: h | K15: =IF('Crane Beam Design'!F40="W",'Section Properties'!F58,IF('Crane Beam Design'!F40="WC",'Section Properties'!F95,0)) -> 21.52 | L15: in. | M15: Warping Constant | O15: Cw | P15: =IF('Crane Beam Design'!F40="W",'Section Properties'!K23,IF('Crane Beam Design'!F40="WC",'Section Properties'!K44,0)) -> 54600 | Q15: in.6
C16: Plastic Modulus | E16: Zx | F16: =IF('Crane Beam Design'!F40="W",'Section Properties'!F18,IF('Crane Beam Design'!F40="WC",'Section Properties'!F40,0)) -> 418 | G16: in.3
C18: ASD DESIGN: ASD 1989 | J18: LRFD DESIGN: LRFD 1999
C19: Design Loads | J19: Design Loads
C20: Max. Vertical Wheel Load * | F20: P v = | G20: =P_max*(1+(f_impact/100)) -> 47.625 | H20: kips / wheel | J20: Max. Vertical Wheel Load * | M20: Pu v = | N20: =((1.6*('Crane Beam Design'!F16-('Crane Beam Design'!F14/4)))+(1.2*('Crane Beam Design'!F14/4)))*(1+('Crane Beam Design'!F18/100)) -> 69.05 | O20: kips / wheel
C21: Max. Horizontal Wheel Load ** | F21: P h = | G21: =(0.2*((Capacity*2)+W_t_h)/4) -> 2.53 | H21: kips / wheel / side | J21: Max. Horizontal Wheel Load ** | M21: Pu h = | N21: =1.6*(0.2*(('Crane Beam Design'!F13*2)+'Crane Beam Design'!F15)/4) -> 4.048 | O21: kips / wheel / side
C22: * Includes impact. | J22: * Includes impact.
C23: ** Total Horizontal Force, P h, is 20% of the sum of weights of the lifted load | J23: ** Total Horizontal Force, P h, is 20% of the sum of weights of the lifted load
C24: and crane trolley, exclusive of other parts of crane. | J24: and crane trolley, exclusive of other parts of crane.
C26: Design Forces | J26: Design Forces
C27: Bending Moment X-X Axis *** | F27: Mx = | G27: =(IF(S_wheel<((2-SQRT(2))*L_sp),(G20/(2*L_sp))*((L_sp-(S_wheel/2))^2),G20*L_sp/4))+((Dead_ASD*(Wt_CB+(W_rail/3))*(L_sp^2))/8000) -> 475.88625 | H27: kip-ft. | J27: Bending Moment X-X Axis *** | M27: Mux = | N27: =(IF(S_wheel<((2-SQRT(2))*L_sp),(N20/(2*L_sp))*((L_sp-(S_wheel/2))^2),N20*L_sp/4))+((Dead_LRFD*(Wt_CB+(W_rail/3))*(L_sp^2))/8000) -> 685.3035 | O27: kip-ft.
C28: Bending Moment Y-Y Axis | F28: My = | G28: =IF(S_wheel<((2-SQRT(2))*L_sp),(G21/(2*L_sp))*((L_sp-(S_wheel/2))^2),G21*L_sp/4) -> 24.288 | H28: kip-ft. | J28: Bending Moment Y-Y Axis | M28: Muy = | N28: =IF(S_wheel<((2-SQRT(2))*L_sp),(N21/(2*L_sp))*((L_sp-(S_wheel/2))^2),N21*L_sp/4) -> 38.8608 | O28: kip-ft.
C29: Shear X-X Axis *** | F29: Vx = | G29: =IF(S_wheel<L_sp,(G20*(2-(S_wheel/L_sp))),G20)+(Dead_ASD*((Wt_CB+(W_rail/3))*L_sp)/2000) -> 78.6915 | H29: kips | J29: Shear X-X Axis *** | M29: Vux = | N29: =IF(S_wheel<L_sp,(N20*(2-(S_wheel/L_sp))),N20)+(Dead_LRFD*((Wt_CB+(W_rail/3))*L_sp)/2000) -> 113.4698 | O29: kips
C30: *** Includes impact and girder and rail weight. | J30: *** Includes impact and girder and rail weight.
C32: Check Local Buckling | J32: Check Local Buckling
C33: UNSTIFFENED ELEMENTS | G33: =IF('Crane Beam Design'!F40="W",IF(G34<=G36,"compact",IF(AND(G34>G36,G34<=G37),"noncompact","slender")),IF(AND(G34<=G36,G35<=G36),"compact",IF(AND(OR(G34>G36,G35>G36),G34<=G37,G35<=G37),"noncompact","slender"))) -> compact | J33: UNSTIFFENED ELEMENTS | N33: =IF('Crane Beam Design'!F40="W",IF(N34<=N36,"compact",IF(AND(N34>N36,N34<=N37),"noncompact","slender")),IF(AND(N34<=N36,N35<=N36),"compact",IF(AND(OR(N34>N36,N35>N36),N34<=N37,N35<=N37),"noncompact","slender"))) -> compact
C34: Flanges of W-Shape | F34: (b/t)w = | G34: =IF('Crane Beam Design'!F40="W",'Section Properties'!F65,IF('Crane Beam Design'!F40="WC",'Section Properties'!F93,0)) -> 5.92 | J34: Flanges of W-Shape | M34: l = (b/t)w = | N34: =IF('Crane Beam Design'!F40="W",'Section Properties'!F65,IF('Crane Beam Design'!F40="WC",'Section Properties'!F93,0)) -> 5.92
C35: Flanges of Channel | F35: (b/t)c = | G35: =IF('Crane Beam Design'!F40="W","N/A",'Section Properties'!K93) -> N/A | J35: Flanges of Channel | M35: l = (b/t)c = | N35: =IF('Crane Beam Design'!F40="W","N/A",'Section Properties'!K93) -> N/A
F36: Compact Limit lp = 0.38(E/Fy)1/2 = | G36: =0.38*SQRT(29000/'Crane Beam Design'!$F$44) -> 9.15161188 | M36: Compact Limit lp = 0.38(E/Fy)1/2 = | N36: =0.38*SQRT(29000/'Crane Beam Design'!$F$44) -> 9.15161188
F37: Noncompact Limit lr =1.0(E/Fy)1/2 = | G37: =1*SQRT(29000/$N$51) -> 26.92582404 | M37: Noncompact Limit lr = 1.0(E/Fy)1/2 = | N37: =1*SQRT(29000/$N$51) -> 26.92582404
C38: STIFFENED ELEMENTS | G38: =IF('Crane Beam Design'!F40="W",IF(G39<=G40,"compact",IF(AND(G39<=G41),"noncompact","slender")),IF(AND(G39<=G40,G42<=G43),"compact",IF(AND(G39<=G41,G42<=G44),"noncompact","slender"))) -> compact | J38: STIFFENED ELEMENTS | N38: =IF('Crane Beam Design'!F40="W",IF(N39<=N40,"compact",IF(AND(N39<=N41),"noncompact","slender")),IF(AND(N39<=N40,N42<=N43),"compact",IF(AND(N39<=N41,N42<=N44),"noncompact","slender"))) -> compact
C39: Web of W-Shape | F39: (h/t)w = | G39: =IF('Crane Beam Design'!F40="W",'Section Properties'!F66,IF('Crane Beam Design'!F40="WC",'Section Properties'!F94,0)) -> 38 | J39: Web of W-Shape | M39: l = (h/t)w = | N39: =IF('Crane Beam Design'!F40="W",'Section Properties'!F66,IF('Crane Beam Design'!F40="WC",'Section Properties'!F94,0)) -> 38
F40: Compact Limit 640/(Fy)1/2 = | G40: =640/SQRT('Crane Beam Design'!F44) -> 90.50966799 | M40: Compact Limit lp = 3.76(E/Fy)1/2 = | N40: =3.76*SQRT(29000/'Crane Beam Design'!$F$44) -> 90.55279123
F41: Noncompact Limit 970/(Fy)1/2 = | G41: =970/SQRT('Crane Beam Design'!F44) -> 137.1787156 | M41: Noncompact Limit lr = 5.70(E/Fy)1/2 = | N41: =IF('Crane Beam Design'!F40="W",5.7*SQRT(29000/'Crane Beam Design'!F44),1.49*SQRT(29000/'Crane Beam Design'!F44)*(1+(2.83*IF('Section Properties'!F45<0.75,0.75,IF('Section Properties'!F45>1.5,1.5,'Section Properties'!F45))))) -> 137.2741782 | O41: =IF('Crane Beam Design'!F40="W",""," use (AISC EQ. A-B5-2)") -> 
C42: Web of Channel | F42: (h/t)c = | G42: =IF('Crane Beam Design'!F40="W","N/A",('Section Properties'!K86-(2*'Section Properties'!K90))/'Section Properties'!K87) -> N/A | J42: Web of Channel | M42: l = (h/t)w = | N42: =IF('Crane Beam Design'!F40="W","N/A",('Section Properties'!K86-(2*'Section Properties'!K90))/'Section Properties'!K87) -> N/A
F43: Compact Limit 190/(Fy)1/2 = | G43: =190/SQRT('Crane Beam Design'!F44) -> 26.87005769 | M43: Compact Limit lp = 1.12(E/Fy)1/2 = | N43: =1.12*SQRT(29000/'Crane Beam Design'!F44) -> 26.97317186
F44: Noncompact Limit 238/(Fy)1/2 = | G44: =238/SQRT('Crane Beam Design'!F44) -> 33.65828278 | M44: Noncompact Limit lr = 1.40(E/Fy)1/2 = | N44: =1.4*SQRT(29000/'Crane Beam Design'!F44) -> 33.71646482
C46: Check Bending about the X-X Axis | J46: Check Bending about the X-X Axis
C47: Actual Unbraced Length | F47: Lb = | G47: ='Crane Beam Design'!F21*12 -> 360 | H47: in. | J47: Actual Unbraced Length | M47: Lb = | N47: ='Crane Beam Design'!F21*12 -> 360 | O47: in.
J48: Determine Limiting Lateral Unbraced Lengths
C49: TENSION | J49: AISC EQ. F1-4 | M49: Lp = | N49: =1.76*P13*SQRT(29000/'Crane Beam Design'!F44) -> 157.8431546 | O49: in.
C50: Actual Bending | F50: fbx t = | G50: =G27*12/F14 -> 15.39254717 | H50: ksi | J50: Compressive Residual Stress | M50: Fr = | N50: =IF('Crane Beam Design'!F40="W",10,16.5) -> 10 | O50: ksi
C51: Allow. Bending | F51: Fbx t = | G51: =0.6*'Crane Beam Design'!F44 -> 30 | H51: ksi | J51: FL = ( Fy - Fr ) | M51: FL = | N51: ='Crane Beam Design'!F44-N50 -> 40 | O51: ksi
F52: fbx t / Fbx t = | G52: =G50/G51 -> 0.5130849057 | H52: =IF(G52<=1," o.k."," n.g.") -> o.k. | J52: Limiting Buckling Moment | M52: Mr = S2 FL = | N52: =N51*F13 -> 14840 | O52: kip-in.
J53: =IF('Crane Beam Design'!F40="W","AISC EQ. F1-6","AISC Table A-F1.1") -> AISC EQ. F1-6 | M53: Lr = | N53: =IF('Crane Beam Design'!F40="W",(K9*((PI()/F13)*SQRT(29000*11200*P14*F8/2))/N51)*SQRT(1+SQRT(1+(((4*P15/K7)*((F13/(11200*P14))^2))*(N51^2)))),IF('Crane Beam Design'!F40="WC",SQRT(((2*N52*(2.25*K15*((2*P10/K7)-1)*SQRT(K7/P14))/(PI()*29000*SQRT(K7*P14*11200/29000)))+1+SQRT((((2*N52*(2.25*K15*((2*P10/K7)-1)*SQRT(K7/P14))/(PI()*29000*SQRT(K7*P14*11200/29000)))+1)^2)+(4*((N52^2)*(25*(K15^2)*((1-(P10/K7))*(P10/P14)))/((PI()*29000*SQRT(K7*P14*11200/29000))^2)))))/(2*(N52^2)/((PI()*29000*SQRT(K7*P14*11200/29000))^2))),0)) -> 366.843724 | O53: in.
C54: COMPRESSION | J54: Bending Coefficient | M54: Cb = | N54: 1
C55: Actual Bending | F55: fbx c = | G55: =G27*12/F13 -> 15.39254717 | H55: ksi | J55: YIELDING Lb < Lp
F56: 76bf / SQRT(Fy) = | G56: =(76*IF('Crane Beam Design'!F40="W",'Section Properties'!F60,'Section Properties'!K86))/SQRT('Crane Beam Design'!F44) -> 138.6494977 | H56: in. | J56: Plastic Moment | M56: Mpx = | N56: =MIN('Crane Beam Design'!F44*F16,1.5*'Crane Beam Design'!F44*MIN(F13,F14)) -> 20900 | O56: kip-in.
F57: 20,000 / (d/Af) SQRT(Fy) = | G57: =20000/(IF('Crane Beam Design'!F40="W",'Section Properties'!K16,'Section Properties'!K37)*'Crane Beam Design'!F44) -> 227.708502 | J57: AISC EQ. F1-1 | M57: Mnx = | N57: =N56 -> 20900 | O57: kip-in.
C58: AISC EQ. F1-2 | F58: Lc = | G58: =MIN((76*IF('Crane Beam Design'!F40="W",'Section Properties'!F60,'Section Properties'!K86))/SQRT('Crane Beam Design'!F44),20000/(IF('Crane Beam Design'!F40="W",'Section Properties'!K16,'Section Properties'!K37)*'Crane Beam Design'!F44)) -> 138.6494977 | H58: in. | J58: LATERAL-TORSIONAL BUCKLING Lb < Lr
F59: L/ rT = | G59: =('Crane Beam Design'!F21*12/'Design Checks 1989 or 1999'!P9) -> 104.700901 | J59: AISC EQ. F1-7 | M59: Mrx = | N59: =MIN(N51*F13,'Crane Beam Design'!F44*F14) -> 14840 | O59: kip-in.
C60: Bending Coefficient | F60: Cb = | G60: 1 | J60: AISC EQ. F1-2 | M60: Mnx = | N60: =MIN(N54*(N56-((N56-N59)*((N47-N49)/(N53-N49)))),N56) -> 15038.43471 | O60: kip-in.
C61: AISC EQ. F1-1 | F61: Fbx = | G61: =IF('Crane Beam Design'!F40="W",IF(AND(G34<=G36,G39<=G40,G47<=G58),0.66*'Crane Beam Design'!F44,0),IF(AND(G34<=G36,G35<=G36,G39<=G40,G42<=G43,G47<=G58),0.66*'Crane Beam Design'!F44,0)) -> 0 | H61: ksi | J61: LATERAL-TORSIONAL BUCKLING Lb > Lr
C62: AISC EQ. F1-3 | F62: Fbx = | G62: =IF('Crane Beam Design'!F40="W",IF(AND(G34>G36,G34<=G37,G39<=G40,G47<=G58),'Crane Beam Design'!F44*(0.79-(0.002*'Section Properties'!F65*SQRT('Crane Beam Design'!F44))),0),IF(AND(OR(G34>G36,G35>G36),G34<=G37,G35<=G37,G39<=G40,G42<=G43,G47<=G58),'Crane Beam Design'!F44*(0.79-(0.002*MAX('Section Properties'!F93,'Section Properties'!K93)*SQRT('Crane Beam Design'!F44))),0)) -> 0 | H62: ksi | J62: Factor | M62: B1 = | N62: =2.25*((2*P10/K7)-1)*(K15/N47)*SQRT(K7/P14) -> -0.001891906504
C63: AISC EQ. F1-5 | F63: Fbx = | G63: =IF('Crane Beam Design'!F40="W",IF(AND(OR(G34>G36,G39>G40),G34<=G37,G39<=G41,G47<=G56),0.6*'Crane Beam Design'!F44,0),IF(AND(OR(G34>G36,G35>G36,G39>G40,G42>G43),G34<=G37,G35<=G37,G39<=G41,G42<=G44,G47<=G56),0.6*'Crane Beam Design'!F44,0)) -> 0 | H63: ksi | J63: Factor | M63: B2 = | N63: =25*(1-(P10/K7))*(P10/P14)*((K15/N47)^2) -> 0.6516712537
C64: Max. AISC EQ. F1-6, F1-7, or F1-8 | F64: Fbx = | G64: =IF(G47>G58,MAX(IF(G59>SQRT((102000*G60)/'Crane Beam Design'!F44),IF(G59<=SQRT((510000*G60)/'Crane Beam Design'!F44),MIN(((2/3)-('Crane Beam Design'!F44*(G59^2)/(1530000*G60)))*'Crane Beam Design'!F44,0.6*'Crane Beam Design'!F44),MIN((170000*G60)/(G59^2),0.6*'Crane Beam Design'!F44)),0.6*'Crane Beam Design'!F44),MIN((12000*G60)/('Crane Beam Design'!F21*12*'Design Checks 1989 or 1999'!P8),0.6*'Crane Beam Design'!F44)),0) -> 18.9757085 | H64: ksi | J64: =IF('Crane Beam Design'!F40="W","AISC EQ. F1-13","AISC Table A-F1.1") -> AISC EQ. F1-13 | M64: Mcrx = | N64: =IF('Crane Beam Design'!F40="W",((N54*F13*((PI()/F13)*SQRT(29000*11200*P14*F8/2))*SQRT(2))/(N47/K9))*SQRT(1+(((((PI()/F13)*SQRT(29000*11200*P14*F8/2))^2)*((4*P15/K7)*((F13/(11200*P14))^2)))/(2*((N47/K9)^2)))),((PI()*29000*SQRT(K7*P14*11200/29000))/N47)*N54*(N62+SQRT(1+N63+(N62^2)))) -> 15247.92787 | O64: kip-in.
C65: Allow. Bending | F65: Fbx c = | G65: =MAX(G61,G62,G63,G64) -> 18.9757085 | H65: ksi | J65: AISC EQ. F1-12 | M65: Mnx = | N65: =MIN(N64,N56) -> 15247.92787 | O65: kip-in.
F66: fbx c / Fbx c = | G66: =G55/G65 -> 0.8111711438 | H66: =IF(G66<=1," o.k."," n.g.") -> o.k. | J66: Nominal Flexural Strength | M66: Mnx = | N66: =IF('Crane Beam Design'!F40="W",IF(AND(N34<=N36,N39<=N40,N47<=N49),N57,IF(AND(OR(N34>N36,N39>N40),N34<=N37,N39<=N41,N47<=N53),N60,N65)),IF(AND(N34<=N36,N35<=N36,N39<=N40,N42<=N43,N47<=N49),N57,IF(AND(OR(N34>N36,N35>N36,N39>N40,N42>N43),N34<=N37,N35<=N37,N39<=N41,N42<=N44,N47<=N53),N60,N65))) -> 15247.92787 | O66: kip-in.
M67: or Mnx = | N67: =IF(N47<=N49,N57,IF(N47<=N53,N60,N65))/12 -> 1253.202892 | O67: kip-ft.
J68: Flexural Design Strength | M68: fMnx = | N68: =0.9*IF(N47<=N49,N57,IF(N47<=N53,N60,N65))/12 -> 1127.882603 | O68: kip-ft. ( f = 0.90 )
M69: Mux / fMnx = | N69: =N27/N68 -> 0.6076018001 | O69: =IF(N69<=1," o.k."," n.g.") -> o.k.
C71: Check Bending about the Y-Y Axis in the top flange | J71: Check Bending about the Y-Y Axis in the top flange
C72: COMPRESSION | J72: Plastic Moment | M72: Mpy = | N72: ='Crane Beam Design'!F44*P12 -> 2267.33625 | O72: kip-in.
C73: Actual Bending | F73: fby c = | G73: =G28*12/P11 -> 9.640916737 | H73: ksi | M73: Mny = | N73: =IF('Crane Beam Design'!F40="W",IF(N34<=N36,N72,'Crane Beam Design'!F44*P11),IF(AND(N34<=N36,N35<=N36),N72,'Crane Beam Design'!F44*P11)) -> 2267.33625 | O73: kip-in.
C74: AISC EQ. F2-1 | F74: Fby = | G74: =IF('Crane Beam Design'!F40="W",IF(G34<=G36,0.75*'Crane Beam Design'!F44,0),IF(AND(G34<=G36,G35<=G36),0.75*'Crane Beam Design'!F44,0)) -> 37.5 | H74: ksi | M74: or Mny = | N74: =N73/12 -> 188.9446875 | O74: kip-ft.
C75: AISC EQ. F2-2 | F75: Fby = | G75: =IF('Crane Beam Design'!F40="W",IF(AND(G34>G36,G34<=G37),0.6*'Crane Beam Design'!F44,0),IF(AND(OR(G34>G36,G35>G36),G34<=G37,G35<=G37),0.6*'Crane Beam Design'!F44,0)) -> 0 | H75: ksi | J75: Flexural Design Strength | M75: fMny = | N75: =0.9*N74 -> 170.0502187 | O75: kip-ft. ( f = 0.90 )
C76: Allow. Bending | F76: Fby c = | G76: =MAX(G74,G75) -> 37.5 | H76: ksi | M76: Muy / fMny = | N76: =N28/N75 -> 0.2285254338 | O76: =IF(N76<=1," o.k."," n.g.") -> o.k.
F77: fby c / Fby c = | G77: =G73/G76 -> 0.257091113 | H77: =IF(G77<=1," o.k."," n.g.") -> o.k.
C79: Check Biaxial Bending in the top flange | J79: Check Biaxial Bending in the top flange
C80: COMBINED BENDING | J80: COMBINED BENDING
C81: AISC EQ. H1-3 | F81: fbx / Fbx + fby / Fby = | G81: =(G55/G65)+(G73/G76) -> 1.068262257 | H81: =IF(AND(G52<=1,G66<=1,G77<=1,G81<=1)," o.k."," n.g.") -> n.g. | J81: AISC EQ. H1-1b | M81: Mux / fMnx + Muy / fMny = | N81: =(N27/N68)+(N28/N75) -> 0.8361272338 | O81: =IF(AND(N69<=1,N76<=1,N81<=1)," o.k."," n.g.") -> o.k.
C83: Check Shear about the X-X Axis | J83: Check Shear about the X-X Axis
C84: Actual Shear | F84: fv = | G84: =G29/(K11*K12) -> 4.90137029 | H84: ksi | J84: Clear distance between stiffeners | M84: a = | N84: ='Crane Beam Design'!F21*12 -> 360 | O84: in.
C85: Clear distance between stiffeners | F85: a = | G85: ='Crane Beam Design'!F21*12 -> 360 | H85: in. | M85: a/h = | N85: =N84/K15 -> 16.72862454
F86: a/h = | G86: =G85/K15 -> 16.72862454 | M86: kv = | N86: =IF(OR(N85>3,N85>(260/(K15/K12))^2),5,5+(5/(N85^2))) -> 5
F87: kv = | G87: =IF(G86<=1,4+(5.34/(G86^2)),5.34+(4/(G86^2))) -> 5.354293531 | J87: AISC EQ. A-F2-1 | M87: Vnx = | N87: =IF(K15/K12<=1.1*SQRT((N86*29000)/'Crane Beam Design'!F44),0.6*'Crane Beam Design'!F44*(K11*K12),0) -> 481.65 | O87: kip
F88: Cv = | G88: =IF((45000*G87)/('Crane Beam Design'!F44*((K15/K12)^2))<=0.8,(45000*G87)/('Crane Beam Design'!F44*((K15/K12)^2)),(190/(K15/K12))*SQRT(G87/'Crane Beam Design'!F44)) -> 1.877979194 | J88: AISC EQ. A-F2-2 | M88: Vnx = | N88: =IF(AND(K15/K12>1.1*SQRT((N86*29000)/'Crane Beam Design'!F44),K15/K12<=1.37*SQRT((N86*29000)/'Crane Beam Design'!F44)),(0.6*'Crane Beam Design'!F44*(K11*K12)*(1.1*SQRT((N86*29000)/'Crane Beam Design'!F44)))/(K15/K12),0) -> 0 | O88: kip
C89: AISC EQ. F4-1 | F89: Fv = | G89: =IF(K15/K12<=380/SQRT('Crane Beam Design'!F44),0.4*'Crane Beam Design'!F44,0) -> 20 | H89: ksi | J89: AISC EQ. A-F2-3 | M89: Vnx = | N89: =IF(K15/K12>1.37*SQRT((N86*29000)/'Crane Beam Design'!F44),((K11*K12)*0.91*29000*N86)/((K15/K12)^2),0) -> 0 | O89: kip
C90: AISC EQ. F4-2 | F90: Fv = | G90: =IF(K15/K12>380/SQRT('Crane Beam Design'!F44),MIN((G88/2.89)*'Crane Beam Design'!F44,0.4*'Crane Beam Design'!F44),0) -> 0 | H90: ksi | J90: Shear Design Strength | M90: fVnx = | N90: =0.9*MAX(N87,N88,N89) -> 433.485 | O90: kip-ft. ( f = 0.90 )
C91: Allow. Shear | F91: Fv = | G91: =MAX(G89,G90) -> 20 | H91: ksi | M91: Vux / fVnx = | N91: =N29/N90 -> 0.261761768 | O91: =IF(N91<=1," o.k."," n.g.") -> o.k.
F92: fv / Fv = | G92: =G84/G91 -> 0.2450685145 | H92: =IF(G92<=1," o.k."," n.g.") -> o.k.
C94: Check Web Sidesway Buckling | J94: Check Web Sidesway Buckling
C95: AISC EQ. K1-7 | J95: AISC EQ. K1-7
F96: (h/tw) / (L/bf) = | G96: =(K15/K12)/('Crane Beam Design'!F21*12/K13) -> 1.186358974 | H96: =IF(G96<=1.7," < 1.7"," > 1.7") -> < 1.7 | M96: (h/tw) / (L/bf) = | N96: =(K15/K12)/('Crane Beam Design'!F21*12/K13) -> 1.186358974 | O96: =IF(N96<=1.7," < 1.7"," > 1.7") -> < 1.7
C97: Max. Concentrated Load | F97: R allow = | G97: =IF((K15/K12)/('Crane Beam Design'!F21*12/K13)<1.7,(6800*(K12^3)/(K11-(2*K14)))*0.4*(((K15/K12)/('Crane Beam Design'!F21*12/K13))^3),"N/A") -> 55.3845903 | H97: kips | M97: Cr = | N97: =(IF(N27*12<('Crane Beam Design'!F44*MIN(F13,F14)),960000,480000)) -> 960000
F98: Pv / Rallow = | G98: =IF(G96<1.7,G20/G97,"N/A") -> 0.8598962228 | H98: =IF(G96<1.7,IF(G98<=1," o.k."," n.g."),"") -> o.k. | J98: Nominal Strength of Web | M98: Rn = | N98: =IF((K15/K12)/('Crane Beam Design'!F21*12/K13)<=1.7,(((IF(N27*12<('Crane Beam Design'!F44*MIN(F13,F14)),960000,480000))*(K12^3)*K14)/(K15^2))*0.4*(((K15/K12)/('Crane Beam Design'!F21*12/K13))^3),"N/A") -> 414.439955 | O98: kips
J99: Design Strength of Web | M99: fRn = | N99: =IF((K15/K12)/('Crane Beam Design'!F21*12/K13)<=1.7,0.85*(((IF(N27*12<('Crane Beam Design'!F44*MIN(F13,F14)),960000,480000))*(K12^3)*K14)/(K15^2))*0.4*(((K15/K12)/('Crane Beam Design'!F21*12/K13))^3),"N/A") -> 352.2739618 | O99: kips ( f = 0.85 )
C100: OPTIONAL LRFD Sidesway Buckling check | M100: Puv / fRn = | N100: =IF(N96<1.7,N20/N99,"N/A") -> 0.1960122163 | O100: =IF(N96<1.7,IF(N100<=1," o.k."," n.g."),"") -> o.k.
C101: AISC LRFD EQ. K1-7
F102: (h/tw) / (L/bf) = | G102: =(K15/K12)/('Crane Beam Design'!F21*12/K13) -> 1.186358974 | H102: =IF(G102<=1.7," < 1.7"," > 1.7") -> < 1.7
F103: Cr = | G103: =(IF(MAX(G50,G55+G73)<=0.6*'Crane Beam Design'!F44,960000,480000)) -> 960000
C104: Max. Concentrated Load | F104: R allow = | G104: =IF((K15/K12)/('Crane Beam Design'!F21*12/K13)<=1.7,0.85*((G103*(K12^3)*K14)/(K15^2))*0.4*(((K15/K12)/('Crane Beam Design'!F21*12/K13))^3)/1.6,"N/A") -> 220.1712261 | H104: kips
F105: Pv / Rallow = | G105: =IF(G102<1.7,G20/G104,"N/A") -> 0.2163089194 | H105: =IF(G102<1.7,IF(G105<=1," o.k."," n.g."),"") -> o.k.

Sheet Design Checks 2005 or 2010 (hidden)
C2: ="CRANE BEAM DESIGN CHECKS: AISC 360" & IF(OR(DesignCode="LRFD: 2005",DesignCode="ASD: 2005"),"-05","-10") -> CRANE BEAM DESIGN CHECKS: AISC 360-10 | J2: ='Crane Beam Design'!E6 -> Crane Beam Example
J3: ='Crane Beam Design'!E7 -> Example 18.1.2 LRFD
C4: Crane Runway Beam | F4: =IF(ShapeType<2,Shape_Name_WC,Shape_WC_cust) -> W27x94 C15x33.9 | J4: ='Crane Beam Design'!E8 -> AISC Steel Solutions Center
E5: ='Crane Beam Design'!T48 -> 2 | F5: =IF(ShapeType>1,"User Defined Properties",VLOOKUP(E5,'Crane Beam Design'!R49:S51,2,FALSE)&" Member Properties") -> AISC 14th Edition Member Properties | J5: ='Crane Beam Design'!E9 -> JRE | N5: Date: | O5: ='Crane Beam Design'!J9 -> 2014-07-24
C7: ASD DESIGN | J7: LRFD DESIGN
C8: Design Loads | J8: Design Loads
C9: Max. Vertical Wheel Load * | F9: Pav = | G9: ='Loads and Deflection'!P_av -> 47.625 | H9: kips / wheel | J9: Max. Vertical Wheel Load * | M9: Puv = | N9: ='Loads and Deflection'!P_uv -> 69.05 | O9: kips / wheel
C10: Max. Horizontal Wheel Load ** | F10: Pah = | G10: ='Loads and Deflection'!P_ah -> 2.53 | H10: kips / wheel / side | J10: Max. Horizontal Wheel Load ** | M10: Puh = | N10: ='Loads and Deflection'!P_uh -> 4.048 | O10: kips / wheel / side
C11: * Includes impact. | J11: * Includes impact.
C12: ** Total Horizontal Force, P h, is 20% of the sum of weights of the lifted load | J12: ** Total Horizontal Force, P h, is 20% of the sum of weights of the lifted load
C13: and crane trolley, exclusive of other parts of crane. | J13: and crane trolley, exclusive of other parts of crane.
C15: Design Forces | J15: Design Forces
C16: Bending Moment X-X Axis *** | F16: Max = | G16: ='Loads and Deflection'!M_ax -> 475.88625 | H16: kip-ft. | J16: Bending Moment X-X Axis *** | M16: Mux = | N16: ='Loads and Deflection'!M_ux -> 685.3035 | O16: kip-ft.
C17: Bending Moment Y-Y Axis | F17: May = | G17: ='Loads and Deflection'!M_ay -> 24.288 | H17: kip-ft. | J17: Bending Moment Y-Y Axis | M17: Muy = | N17: ='Loads and Deflection'!M_uy -> 38.8608 | O17: kip-ft.
C18: Shear X-X Axis *** | F18: Vax = | G18: ='Loads and Deflection'!V_ax -> 78.6915 | H18: kips | J18: Shear X-X Axis *** | M18: Vux = | N18: ='Loads and Deflection'!V_ux -> 113.4698 | O18: kips
C19: *** Includes impact and girder and rail weight. | J19: *** Includes impact and girder and rail weight.
C21: Check Local Buckling
C22: UNSTIFFENED ELEMENTS | J22: STIFFENED ELEMENTS
C23: Flanges of W-Shape (Case 1) | F23: l = (bf/2tf)w = | G23: =b_2tf_wf -> 6.7 | H23: =IF(G23<=G24,"compact",IF(G23<=G25,"noncompact","slender")) -> compact | J23: Web of Composite Section (Case 16) | N23: l = hc/tw = | O23: =hc_tw -> 35.34693878 | P23: =IF(O23<=O24,"compact",IF(O23<=O25,"noncompact","slender")) -> compact
F24: Compact Limit lr = 0.38√(E/Fy) = | G24: =0.38*SQRT(29000/Fy) -> 9.15161188 | N24: Compact Limit lp = (hc/hp)(E/Fy)/[0.54(Mp/My) - 0.09]2 ≤ lr = | O24: =MIN((hc/hp)*SQRT(29000/Fy)/(0.54*M_p_CB/M_y - 0.09)^2,O25) -> 137.2741782 | P24: =IF(P23="slender",TRUE, FALSE) -> FALSE
F25: Noncompact Limit lr = 1.0√(E/Fy) = | G25: =1*SQRT(29000/Fy) -> 24.08318916 | N25: Noncompact Limit lr = 5.70√(E/Fy) = | O25: =5.7*SQRT(29000/Fy) -> 137.2741782
C26: Flanges of Channel (Case 1) | F26: l = (bf/tf)c = | G26: =bf_tf_ch -> 5.230769231 | H26: =IF(G26<=G27,"compact",IF(G26<=G28,"noncompact","slender")) -> compact | J26: Web of Channel (Case 18) | N26: l = bf_wf/tw_ch = | O26: =b_f_wf/t_w_ch -> 25 | P26: =IF(O26<=O27,"compact",IF(O26<=O28,"noncompact","slender")) -> compact
F27: Compact Limit lr = 0.38√(E/Fy) = | G27: =0.38*SQRT(29000/Fy) -> 9.15161188 | N27: Compact Limit lp = 1.12√(E/Fy) = | O27: =1.12*SQRT(29000/Fy) -> 26.97317186 | P27: =IF(P26="slender",TRUE, FALSE) -> FALSE
F28: Noncompact Limit lr = 1.0√(E/Fy) = | G28: =1*SQRT(29000/Fy) -> 24.08318916 | J28: =AND(P27=FALSE,P24=FALSE) -> TRUE | N28: Noncompact Limit lr = 1.40√(E/Fy) = | O28: =1.4*SQRT(29000/Fy) -> 33.71646482
B29: =IF(OR(H23<>"Compact",H26<>"Compact"),TRUE, FALSE) -> FALSE | C29: =IF(B29,"The channel or beam flange is not compact. The section is out-of-scope!","Width-to-thickness ratios are within scope.") -> Width-to-thickness ratios are within scope. | J29: =IF(J28,"Width-to-thickness ratios are within scope.","") & IF(P27,"The channel web is slender. The section is out-of-scope!","") & IF(P24," The compsite section web is slender. The section is out-of-scope!","") -> Width-to-thickness ratios are within scope.
C31: Check Bending about the X-X Axis
C32: Plastic Moment | F32: Mp = | G32: =MIN(Z_x*Fy, 1.6*S_xc*Fy)/12 -> 1487.5 | H32: kip-ft. | J32: Yield Moment | M32: My = | N32: =MIN(S_xc, S_xt)*Fy/12 -> 1116.666667 | O32: kip-ft.
C33: COMPRESSION FLANGE YIELDING
C34: =IF(P23="compact","Web plastification factor (F4-9a)","Web plastification factor (F4-9b)") -> Web plastification factor (F4-9a) | F34: Rpc = | G34: =IF(N34<=0.23,1,IF(P23="compact",M_p_CB*12/M_yc,MIN(M_p_CB*12/M_yc-(M_p_CB*12/M_yc-1)*(O23- O24)/(O25 - O24), M_p_CB*12/M_yc))) -> 0.8206896552 | M34: Iyc/Iy = | N34: =I_yc/I_y -> 0.858959757
C35: Yield moment (compression) | F35: Myc = | G35: =S_xc*Fy -> 21750 | H35: kip-in.
C36: AISC EQ. F4-1 | F36: Mnx = RpcMyc = | G36: =M_yc*R_pc -> 17850 | H36: kip-in.
C37: LATERAL-TORSIONAL BUCKLING
C38: Actual Unbraced Length | F38: Lb = | G38: =L_sp*12 -> 360 | H38: in.
C39: Bending Coefficient | F39: Cb = | G39: 1 | I39: =IF(L_b<=L_p,FALSE,IF(L_b<=L_r,TRUE,FALSE)) -> TRUE | J39: LATERAL-TORSIONAL BUCKLING Lp < Lb < Lr
C40: AISC EQ. F4-7 | F40: Lp = | G40: =1.1*r_t*SQRT(29000/Fy) -> 118.1420588 | H40: in. | J40: AISC EQ. F4-2 | M40: Mnx = | N40: =MIN(C_b*(R_pc*M_yc-(R_pc*M_yc-F_L*S_xc)*(L_b - L_p)/(L_r - L_p)), R_pc*M_yc) -> 14756.18711 | O40: kip-in.
F41: Sxt/Sxc = | G41: =S_xt/S_xc -> 0.616091954 | H41: ksi | I41: =IF(L_b<=L_p,FALSE,IF(L_b<=L_r,FALSE,TRUE)) -> FALSE | J41: LATERAL-TORSIONAL BUCKLING Lb > Lr
C42: =IF(G41<0.7,"AISC EQ. F4-6b","AISC EQ. F4-6a") -> AISC EQ. F4-6b | F42: FL = | G42: =IF(G41<0.7,MAX(Fy*G41,0.5*Fy),0.7*Fy) -> 30.8045977 | H42: ksi | J42: AISC EQ. F4-5 | M42: Fcr = | N42: =MIN(C_b*PI()^2*29000/(L_b/r_t)^2*SQRT(1+0.078*J_CB/(S_xc*h_0)*(L_b/r_t)^2),Fy) -> 48.61813968 | O42: ksi
C43: AISC EQ. F4-8 | F43: Lr = | G43: =1.95*r_t*(29000/F_L)*SQRT((J_CB/(S_xc*h_0)+SQRT((J_CB/(S_xc*h_0))^2 + 6.76*(F_L/29000)^2))) -> 466.0195408 | H43: in. | J43: AISC EQ. F4-3 | M43: Mnx = | N43: =MIN(F_cr*S_xc,R_pc*M_yc) -> 17850 | O43: kip-in.
C44: Nominal flexural strength for LTB | F44: Mn_LTB = | G44: =IF(L_b<=L_p,G36,IF(L_b<=L_r,N40,N43)) -> 14756.18711 | H44: kip-in.
C45: COMPRESSION FLANGE LOCAL BUCKLING
C46: =IF(AND(H23="Compact",H26="Compact"),IF(P26="Compact","Compression elements are compact, local buckling does not apply.","WF and channel flanges are compact and channel web is noncompact. Eq. F4-13 applies."),"Out of scope") -> Compression elements are compact, local buckling does not apply.
C47: =IF(AND(H23="Compact",H26="Compact",P26="Compact"),"AISC EQ. F4-1",IF(DesignCode="LRFD: 2005","AISC EQ. F4-12","AISC EQ. F4-13")) -> AISC EQ. F4-1 | F47: Mnx = | G47: =IF(P26="compact",R_pc*M_yc,(R_pc*M_yc - (R_pc*M_yc - F_L*S_xc)*(O26 -O27)/(O28 - O27))) -> 17850 | H47: kip-in.
C48: TENSION FLANGE YIELDING
C49: Yield moment (tension) | F49: Myt = | G49: =S_xt*Fy -> 13400 | H49: kip-in. | M49: Sxt/Sxc = | N49: =S_xt/S_xc -> 0.616091954 | O49: ksi
C50: =IF(P23="compact","AISC EQ. F4-16a","AISC EQ. F4-16b") -> AISC EQ. F4-16a | F50: Rpt = | G50: =IF(P23="compact",M_p_CB*12/M_yt,MIN(M_p_CB*12/M_yt-(M_p_CB*12/M_yt-1)*(O23- O24)/(O25 - O24), M_p_CB*12/M_yt)) -> 1.332089552
C51: AISC EQ. F4-15 | F51: Mnx = RptMyt | G51: =R_pt*M_yt -> 17850 | H51: kip-in.
C52: Nominal Flexural Strength | F52: Mnx = | G52: =MIN(G51,G47,G44,G36)/12 -> 1229.682259 | H52: kip-ft.
C53: ASD | J53: LRFD
C54: Alllowable Flexural Strength | F54: Mcx = Mnx/W = | G54: =M_nx/1.67 -> 736.3366821 | H54: kip-ft. ( W = 1.67 ) | J54: Flexural Design Strength | M54: Mcx = fMnx = | N54: =0.9*M_nx -> 1106.714033 | O54: kip-ft. ( f = 0.90 )
F55: Mrx / Mcx = | G55: =M_ax/Mnx_Omega -> 0.6462889349 | H55: =IF(G55<=1," o.k."," n.g.") -> o.k. | M55: Mrx / Mcx = | N55: =M_ux/fM_nx -> 0.6192236472 | O55: =IF(N55<=1," o.k."," n.g.") -> o.k.
C57: Check Bending about the Y-Y Axis in the top flange (channel + top flange)
C58: Plastic Moment (F2-1) | F58: Mny = Mpy = | G58: =Fy*Z_top -> 3471.25 | H58: kip-in.
C59: ASD | J59: LRFD
C60: Allowable Flexural Strength | F60: Mcy = Mny/W = | G60: =(M_ny/12)/1.67 -> 173.2160679 | H60: kip-ft. ( W = 1.67 ) | J60: Flexural Design Strength | M60: Mcy = fMny = | N60: =0.9*M_ny/12 -> 260.34375 | O60: kip-ft. ( f = 0.90 )
F61: Mry / Mcy = | G61: =M_ay/Mny_Omega -> 0.1402179388 | H61: =IF(G61<=1," o.k."," n.g.") -> o.k. | M61: Mry / Mcy = | N61: =M_uy/fM_ny -> 0.1492672668 | O61: =IF(N61<=1," o.k."," n.g.") -> o.k.
C63: Check Biaxial Bending in the top flange
C64: ASD | J64: LRFD
C65: COMBINED BENDING | J65: COMBINED BENDING
C66: AISC EQ. H1-1b | F66: Mrx / Mcx + Mry / Mcy = | G66: =(M_ax/Mnx_Omega)+(M_ay/Mny_Omega) -> 0.7865068737 | H66: =IF(AND(G55<=1,G61<=1,G66<=1)," o.k."," n.g.") -> o.k. | J66: AISC EQ. H1-1b | M66: Mrx / Mcx + Mry / Mcy = | N66: =(M_ux/fM_nx)+(M_uy/fM_ny) -> 0.768490914 | O66: =IF(AND(N55<=1,N61<=1,N66<=1)," o.k."," n.g.") -> o.k.
C68: Check Shear about the X-X Axis
C69: Evaluate using the shear strength of the WF beam alone | I69: =IF(G70<=G71,FALSE,TRUE) -> FALSE | J69: Buckling coefficient (G2.1b(i)) | M69: kv = | N69: 5 | O69: no transverse stiffeners
F70: h/tw = | G70: =h_tw_wf -> 49.5 | M70: 1.10√(kvE/Fy) = | N70: =1.1*SQRT(k_v*29000/Fy) -> 59.23681288
F71: 2.24√(E/Fy) = | G71: =2.24*SQRT(29000/Fy) -> 53.94634371 | M71: 1.37√(kvE/Fy) = | N71: =1.37*SQRT(k_v*29000/Fy) -> 73.77675786
C72: =IF(G70<=G71,"Shear coefficient: AISC EQ. G2-2",IF(G70<=N70,"Shear coefficient: AISC EQ. G2-3",IF(G70<=N71,"Shear coefficient: AISC EQ. G2-4","Shear coefficient: AISC EQ. G2-5"))) -> Shear coefficient: AISC EQ. G2-2 | F72: Cv = | G72: =IF(OR(G70<=G71,G70<=N70),1,IF(G70<=N71,N70/G70,1.51*29000*k_v/(G70^2*Fy))) -> 1
C73: Shear area | F73: Aw = | G73: =d_wf*t_w_wf -> 13.181 | H73: in.2
C74: AISC EQ. G2-1 | F74: Vnx = | G74: =0.6*Fy*A_w*C_v -> 395.43 | H74: kips
C75: ASD | J75: LRFD
C76: Factor of safety for shear | F76: Wv = | G76: =IF(G70>G71,1.67,1.5) -> 1.5 | J76: Resistance factor for shear | M76: fv = | N76: =IF(G70>G71,0.9,1) -> 1
C77: Allowable Shear Strength | F77: Vcx = Vnx/W = | G77: =Vnx/G76 -> 263.62 | H77: kips | J77: Shear Design Strength | M77: Vcx = fVnx = | N77: =phi_v*Vnx -> 395.43 | O77: kips
F78: Vr / Vcx = | G78: =V_ax/G77 -> 0.2985035278 | H78: =IF(G78<=1," o.k."," n.g.") -> o.k. | M78: Vr / Vcx = | N78: =V_ux/N77 -> 0.2869529373 | O78: =IF(N78<=1," o.k."," n.g.") -> o.k.
C80: Check Web Sidesway Buckling
C81: AISC Section J10.4b for compression flange not restrained against rotation
F82: (h/tw) / (Lb/bf) = | G82: =h_tw_wf/(L_b/b_f_wf) -> 1.375 | H82: =IF(G82<=1.7," ≤ 1.7 use EQ. J10-7"," > 1.7") -> ≤ 1.7 use EQ. J10-7
F83: My = | G83: =MIN(S_xt,S_xc)*Fy/12 -> 1116.666667 | H83: kip-ft.
C84: ASD | J84: LRFD
C85: Buckling coefficient | F85: Cr = | G85: =(IF(1.5*M_ax<(M_y),960000,480000)) -> 960000 | H85: ksi for 1.5Ma > My | J85: Buckling coefficient | M85: Cr = | N85: =(IF(M_ux<(M_y),960000,480000)) -> 960000 | O85: ksi for Mu > My
C86: Nominal Strength of Web | F86: Rn = | G86: =IF(G82<=1.7,C_r_ASD*t_w_wf^3*t_f_wf/h_wf^2*(0.4*(G82)^3),"N/A") -> 149.154223 | H86: kips | J86: Nominal Strength of Web | M86: Rn = | N86: =IF(G82<=1.7,C_r_LRFD*t_w_wf^3*t_f_wf/h_wf^2*(0.4*(G82)^3),"N/A") -> 149.154223 | O86: kips
C87: Factor of safety | F87: W = | G87: 1.76 | J87: Resistance factor | M87: f = | N87: 0.85
C88: Available Strength of Web | F88: Rc = Rn/W = | G88: =IF(G82<=1.7,G86/G87,"N/A") -> 84.74671762 | H88: kips | J88: Design Strength of Web | M88: Rc = fRn = | N88: =IF(G82<=1.7,N87*R_n,"N/A") -> 126.7810896 | O88: kips
F89: Pr / Rc = | G89: =IF(G82<=1.7,P_av/G88,"N/A") -> 0.5619686678 | H89: =IF(G82<1.7,IF(G89<=1," o.k."," n.g."),"") -> o.k. | M89: Pr / Rc = | N89: =IF(N82<=1.7,P_uv/N88,"N/A") -> 0.544639585 | O89: =IF(N82<1.7,IF(N89<=1," o.k."," n.g."),"") -> o.k.

Sheet Design Checks 2005 or 2010 W
C2: ="CRANE BEAM DESIGN CHECKS: AISC 360" & IF(OR(DesignCode="LRFD: 2005",DesignCode="ASD: 2005"),"-05","-10") -> CRANE BEAM DESIGN CHECKS: AISC 360-10 | J2: ='Crane Beam Design'!E6 -> Crane Beam Example
J3: ='Crane Beam Design'!E7 -> Example 18.1.2 LRFD
C4: Crane Runway Beam | F4: =Shape_Name_W -> W24X146 | J4: ='Crane Beam Design'!E8 -> AISC Steel Solutions Center
E5: ='Crane Beam Design'!T48 -> 2 | F5: =VLOOKUP(E5,'Crane Beam Design'!R49:S51,2,FALSE)&" Member Properties" -> AISC 14th Edition Member Properties | J5: ='Crane Beam Design'!E9 -> JRE | N5: Date: | O5: ='Crane Beam Design'!J9 -> 2014-07-24 | S5: =Fy -> 50
C7: ASD DESIGN | J7: LRFD DESIGN | S7: =Sx_wf -> 371
C8: Design Loads | J8: Design Loads
C9: Max. Vertical Wheel Load * | F9: Pav = | G9: ='Loads and Deflection'!P_av -> 47.625 | H9: kips / wheel | J9: Max. Vertical Wheel Load * | M9: Puv = | N9: ='Loads and Deflection'!P_uv -> 69.05 | O9: kips / wheel
C10: Max. Horizontal Wheel Load ** | F10: Pah = | G10: ='Loads and Deflection'!P_ah -> 2.53 | H10: kips / wheel / side | J10: Max. Horizontal Wheel Load ** | M10: Puh = | N10: ='Loads and Deflection'!P_uh -> 4.048 | O10: kips / wheel / side
C11: * Includes impact. | J11: * Includes impact.
C12: ** Total Horizontal Force, P h, is 20% of the sum of weights of the lifted load | J12: ** Total Horizontal Force, P h, is 20% of the sum of weights of the lifted load
C13: and crane trolley, exclusive of other parts of crane. | J13: and crane trolley, exclusive of other parts of crane.
C15: Design Forces | J15: Design Forces
C16: Bending Moment X-X Axis *** | F16: Max = | G16: ='Loads and Deflection'!M_ax -> 475.88625 | H16: kip-ft. | J16: Bending Moment X-X Axis *** | M16: Mux = | N16: ='Loads and Deflection'!M_ux -> 685.3035 | O16: kip-ft.
C17: Bending Moment Y-Y Axis | F17: May = | G17: ='Loads and Deflection'!M_ay -> 24.288 | H17: kip-ft. | J17: Bending Moment Y-Y Axis | M17: Muy = | N17: ='Loads and Deflection'!M_uy -> 38.8608 | O17: kip-ft.
C18: Shear X-X Axis *** | F18: Vax = | G18: ='Loads and Deflection'!V_ax -> 78.6915 | H18: kips | J18: Shear X-X Axis *** | M18: Vux = | N18: ='Loads and Deflection'!V_ux -> 113.4698 | O18: kips
C19: *** Includes impact and girder and rail weight. | J19: *** Includes impact and girder and rail weight.
C20: Check Local Buckling
C21: UNSTIFFENED ELEMENTS | J21: STIFFENED ELEMENTS
C22: Flanges of W-Shape | F22: l = (bf/2tf)w = | G22: =bf_to_2tf -> 5.92 | H22: =IF(G22<=G23,"compact",IF(AND(G22>G23,G22<=G24),"noncompact","slender")) -> compact | J22: Web of W-Shape | M22: l = h/tw = | N22: =h_to_tw_wf -> 33.2 | O22: =IF(N22<=N23,"compact",IF(AND(N22<=N24),"noncompact","slender")) -> compact
F23: Compact Limit lr = 0.38√(E/Fy) = | G23: =0.38*SQRT(29000/Fy) -> 9.15161188 | H23: =IF(H22="slender",FALSE,TRUE) -> TRUE | M23: Compact Limit lp = 3.76√(E/Fy) = | N23: =3.76*SQRT(29000/Fy) -> 90.55279123 | O23: =IF(O22="compact",TRUE,FALSE) -> TRUE | P23: =AND(H23,O23) -> TRUE
F24: Noncompact Limit lr = 1.0√(E/Fy) = | G24: =1*SQRT(29000/Fy) -> 24.08318916 | M24: Noncompact Limit lr = 5.70√(E/Fy) = | N24: =5.7*SQRT(29000/Fy) -> 137.2741782
C25: =IF(AND(H23,O23),"Width-to-thickness ratios are within scope.","") & IF(H23=FALSE,"The WF flange is slender. The section is out-of-scope!","") & IF(O23=FALSE," The WF web not compact. The section is out-of-scope!","") -> Width-to-thickness ratios are within scope.
C26: Check Bending about the X-X Axis
C27: YIELDING Lb < Lp
C28: AISC EQ. F2-1 | F28: Mp = | G28: =Zx_wf*Fy -> 20900 | H28: kip-in.
C29: LATERAL-TORSIONAL BUCKLING | I29: =IF(L_b<=L_p,FALSE,IF(L_b<=L_r,TRUE,FALSE)) -> TRUE | J29: LATERAL-TORSIONAL BUCKLING Lp < Lb < Lr
C30: Actual Unbraced Length | F30: Lb = | G30: =L_sp*12 -> 360 | H30: in. | J30: AISC EQ. F2-2 | M30: Mnx = | N30: =MIN(C_b*(Mp_wf-(Mp_wf-0.7*Fy*Sx_wf)*(L_b - L_p)/(L_r - L_p)), Mp_wf) -> 14245.44563 | O30: kip-in.
C31: Bending Coefficient | F31: Cb = | G31: 1 | I31: =IF(L_b<=L_p,FALSE,IF(L_b<=L_r,FALSE,TRUE)) -> FALSE | J31: LATERAL-TORSIONAL BUCKLING Lb > Lr
C32: AISC EQ. F2-5 | F32: Lp = | G32: =1.76*ry_wf*SQRT(29000/Fy) -> 127.5831029 | H32: in. | J32: AISC EQ. F2-4 | M32: Fcr = | N32: =MIN(C_b*PI()^2*29000/(L_b/rts_wf)^2*SQRT(1+0.078*(J_wf*c_wf)/(Sx_wf*h0_wf)*(L_b/rts_wf)^2),Fy) -> 41.18074757 | O32: ksi
F33: c = | G33: 1 | J33: AISC EQ. F2-3 | M33: Mnx = | N33: =MIN(F_cr*Sx_wf,Mp_wf) -> 15278.05735 | O33: kip-in.
C34: AISC EQ. F2-6 | F34: Lr = | G34: =1.95*rts_wf*(29000/(0.7*Fy))*SQRT(((J_wf*c_wf)/(Sx_wf*h0_wf)+SQRT(((J_wf*c_wf)/(Sx_wf*h0_wf))^2 + 6.76*((0.7*Fy)/29000)^2))) -> 404.0223112 | H34: in. | M34: Mn_LTB = | N34: =IF(L_b<=L_p,Mp_wf,IF(L_b<=L_r,N30,N33)) -> 14245.44563 | O34: kip-in.
C35: COMPRESSION FLANGE LOCAL BUCKLING
C36: =IF(H22="compact","Compression elements are compact, local buckling does not apply","Calculate compression flange buckling of noncompact flanges") -> Compression elements are compact, local buckling does not apply
C37: AISC EQ. F3-2 | F37: Mnx = | G37: =IF(H22="compact",Mp_wf,(Mp_wf - (Mp_wf - 0.7*Fy*Sx_wf)*(G22 -G23)/(G24 - G23))) -> 20900 | H37: kip-in.
C38: Nominal Flexural Strength | F38: Mnx = | G38: =MIN(N34,G37,Mp_wf)/12 -> 1187.12047 | H38: kip-ft.
C39: ASD | J39: LRFD
C40: Alllowable Moment Strength | F40: Mcx = Mnx/W = | G40: =M_nx/1.67 -> 710.8505806 | H40: kip-ft. ( W = 1.67) | J40: Flexural Design Strength | M40: Mcx = fMnx = | N40: =0.9*M_nx -> 1068.408423 | O40: kip-ft. ( f = 0.90 )
F41: Mrx / Mcx = | G41: =M_ax/Mnx_Omega -> 0.6694603099 | H41: =IF(G41<=1," o.k."," n.g.") -> o.k. | M41: Mrx / Mcx = | N41: =M_ux/fM_nx -> 0.6414246514 | O41: =IF(N41<=1," o.k."," n.g.") -> o.k.
C42: Check Bending about the Y-Y Axis in the top flange
C43: Plastic Moment (F2-1) * | F43: Mny = Mpy = | G43: =Fy*Zt_wf -> 2267.33625 | H43: kip-in.
C44: ASD | J44: LRFD
C45: Flexural Design Strength | F45: Mcy = Mny/W = | G45: =(M_ny/12)/1.67 -> 113.1405314 | H45: kip-ft. ( W = 1.67) | J45: Flexural Design Strength | M45: Mcy = fMny = | N45: =0.9*M_ny/12 -> 170.0502187 | O45: kip-ft. ( f = 0.90 )
F46: Mry / Mcy = | G46: =M_ay/Mny_Omega -> 0.2146710793 | H46: =IF(G46<=1," o.k."," n.g.") -> o.k. | M46: Mry / Mcy = | N46: =M_uy/fM_ny -> 0.2285254338 | O46: =IF(N46<=1," o.k."," n.g.") -> o.k.
C47: * As a conservative simplification the section properties of the top flange are used
C48: Check Biaxial Bending in the top flange
C49: COMBINED BENDING | J49: COMBINED BENDING
C50: AISC EQ. H1-1b | F50: Mrx / Mcx + Mry / Mcy = | G50: =(M_ax/Mnx_Omega)+(M_ay/Mny_Omega) -> 0.8841313893 | H50: =IF(AND(G41<=1,G46<=1,G50<=1)," o.k."," n.g.") -> o.k. | J50: AISC EQ. H1-1b | M50: Mrx / Mcx + Mry / Mcy = | N50: =(M_ux/fM_nx)+(M_uy/fM_ny) -> 0.8699500851 | O50: =IF(AND(N41<=1,N46<=1,N50<=1)," o.k."," n.g.") -> o.k.
C52: Check Shear about the X-X Axis
C53: Evaluate using the shear strength of the WF beam alone | I53: =IF(G54<=G55,FALSE,TRUE) -> FALSE | J53: Buckling coefficient (G2.1b(i)) | M53: kv = | N53: 5 | O53: no transverse stiffeners
F54: h/tw = | G54: =h_to_tw_wf -> 33.2 | M54: 1.10√(kvE/Fy) = | N54: =1.1*SQRT(k_v*29000/Fy) -> 59.23681288
F55: 2.24√(E/Fy) = | G55: =2.24*SQRT(29000/Fy) -> 53.94634371 | M55: 1.37√(kvE/Fy) = | N55: =1.37*SQRT(k_v*29000/Fy) -> 73.77675786
C56: =IF(G54<=G55,"Shear coefficient: AISC EQ. G2-2",IF(G54<=N54,"Shear coefficient: AISC EQ. G2-3",IF(G54<=N55,"Shear coefficient: AISC EQ. G2-4","Shear coefficient: AISC EQ. G2-5"))) -> Shear coefficient: AISC EQ. G2-2 | F56: Cv = | G56: =IF(OR(G54<=G55,G54<=N54),1,IF(G54<=N55,N54/G54,1.51*29000*k_v/(G54^2*Fy))) -> 1
C57: Shear area | F57: Aw = | G57: =dwf*tw_wf -> 16.055 | H57: in.2
C58: AISC EQ. G2-1 | F58: Vnx = | G58: =0.6*Fy*A_w*C_v -> 481.65 | H58: kips
C59: ASD | J59: LRFD
C60: Factor of safety for shear | F60: Wv = | G60: =IF(G54>G55,1.67,1.5) -> 1.5 | J60: Resistance factor for shear | M60: fv = | N60: =IF(G54>G55,0.9,1) -> 1
C61: Shear Design Strength | F61: Vcx = Vnx/W = | G61: =Vnx/G60 -> 321.1 | H61: kips | J61: Shear Design Strength | M61: Vcx = fVnx = | N61: =phi_v*Vnx -> 481.65 | O61: kips
F62: Vr / Vcx = | G62: =V_ax/G61 -> 0.2450685145 | H62: =IF(G62<=1," o.k."," n.g.") -> o.k. | M62: Vr / Vcx = | N62: =V_ux/N61 -> 0.2355855912 | O62: =IF(N62<=1," o.k."," n.g.") -> o.k.
C64: Check Web Sidesway Buckling
C65: AISC Section J10.4(b) for compression flange not restrained against rotation
F66: (h/tw) / (L/bf) = | G66: =h_to_tw_wf/(L_b/bf_wf) -> 1.189666667 | H66: =IF(G66<=1.7," ≤ 1.7 use EQ. J10-7"," > 1.7") -> ≤ 1.7 use EQ. J10-7
F67: My = | G67: =Fy*Sx_wf/12 -> 1545.833333 | H67: kip-in.
C68: ASD | J68: LRFD
F69: Cr = | G69: =(IF(1.5*M_ax<(M_y),960000,480000)) -> 960000 | H69: ksi for 1.5Ma > My | M69: Cr = | N69: =(IF(M_ux<(M_y),960000,480000)) -> 960000 | O69: ksi for Mu > My
C70: Factor of safety | F70: W = | G70: 1.76 | J70: Resistance factor | M70: f = | N70: 0.85
C71: Nominal Strength of Web | F71: Rn = | G71: =IF(G66<=1.7,C_r*tw_wf^3*tf_wf/hwf^2*(0.4*(G66)^3),"N/A") -> 417.9161342 | H71: kips | J71: Nominal Strength of Web | M71: Rn = | N71: =IF(G66<=1.7,C_r*tw_wf^3*tf_wf/hwf^2*(0.4*(G66)^3),"N/A") -> 417.9161342 | O71: kips
C72: Available Strength of Web | F72: Rc = Rn/W = | G72: =IF(G66<=1.7,G71/G70,"N/A") -> 237.452349 | H72: kips | J72: Available Strength of Web | M72: Rc = fRn = | N72: =IF(G66<=1.7,N70*N71,"N/A") -> 355.2287141 | O72: kips
F73: Pr / Rc = | G73: =IF(G66<=1.7,P_av/G72,"N/A") -> 0.2005665566 | H73: =IF(G66<1.7,IF(G73<=1," o.k."," n.g."),"") -> o.k. | M73: Pr / Rc = | N73: =IF(G66<=1.7,P_uv/N72,"N/A") -> 0.1943818089 | O73: =IF(G66<1.7,IF(N73<=1," o.k."," n.g."),"") -> o.k.

Sheet Design Checks 2005 (hidden)
C2: CRANE BEAM DESIGN CHECKS: AISC 360-05 | J2: ='Crane Beam Design'!E6 -> Crane Beam Example
J3: ='Crane Beam Design'!E7 -> Example 18.1.2 LRFD
C4: Crane Runway Beam | F4: =IF(ShapeType<2,Shape_Name_WC,Shape_WC_cust) -> W27x94 C15x33.9 | J4: ='Crane Beam Design'!E8 -> AISC Steel Solutions Center
E5: ='Crane Beam Design'!T48 -> 2 | F5: =IF(ShapeType>1,"User Defined Properties",VLOOKUP(E5,'Crane Beam Design'!R49:S51,2,FALSE)&" Member Properties") -> AISC 14th Edition Member Properties | J5: ='Crane Beam Design'!E9 -> JRE | N5: Date: | O5: ='Crane Beam Design'!J9 -> 2014-07-24
C7: ASD DESIGN | J7: LRFD DESIGN
C8: Design Loads | J8: Design Loads
C9: Max. Vertical Wheel Load * | F9: Pav = | G9: ='Loads and Deflection'!P_av -> 47.625 | H9: kips / wheel | J9: Max. Vertical Wheel Load * | M9: Puv = | N9: ='Loads and Deflection'!P_uv -> 69.05 | O9: kips / wheel
C10: Max. Horizontal Wheel Load ** | F10: Pah = | G10: ='Loads and Deflection'!P_ah -> 2.53 | H10: kips / wheel / side | J10: Max. Horizontal Wheel Load ** | M10: Puh = | N10: ='Loads and Deflection'!P_uh -> 4.048 | O10: kips / wheel / side
C11: * Includes impact. | J11: * Includes impact.
C12: ** Total Horizontal Force, P h, is 20% of the sum of weights of the lifted load | J12: ** Total Horizontal Force, P h, is 20% of the sum of weights of the lifted load
C13: and crane trolley, exclusive of other parts of crane. | J13: and crane trolley, exclusive of other parts of crane.
C15: Design Forces | J15: Design Forces
C16: Bending Moment X-X Axis *** | F16: Max = | G16: ='Loads and Deflection'!M_ax -> 475.88625 | H16: kip-ft. | J16: Bending Moment X-X Axis *** | M16: Mux = | N16: ='Loads and Deflection'!M_ux -> 685.3035 | O16: kip-ft.
C17: Bending Moment Y-Y Axis | F17: May = | G17: ='Loads and Deflection'!M_ay -> 24.288 | H17: kip-ft. | J17: Bending Moment Y-Y Axis | M17: Muy = | N17: ='Loads and Deflection'!M_uy -> 38.8608 | O17: kip-ft.
C18: Shear X-X Axis *** | F18: Vax = | G18: ='Loads and Deflection'!V_ax -> 78.6915 | H18: kips | J18: Shear X-X Axis *** | M18: Vux = | N18: ='Loads and Deflection'!V_ux -> 113.4698 | O18: kips
C19: *** Includes impact and girder and rail weight. | J19: *** Includes impact and girder and rail weight.
C21: Check Local Buckling
C22: UNSTIFFENED ELEMENTS | J22: STIFFENED ELEMENTS
C23: Flanges of W-Shape (Case 1) | F23: l = (bf/2tf)w = | G23: =b_2tf_wf -> 6.7 | H23: =IF(G23<=G24,"compact",IF(G23<=G25,"noncompact","slender")) -> compact | J23: Web of Composite Section (Case 16) | N23: l = hc/tw = | O23: =hc_tw -> 35.34693878 | P23: =IF(O23<=O24,"compact",IF(O23<=O25,"noncompact","slender")) -> compact
F24: Compact Limit lr = 0.38√(E/Fy) = | G24: =0.38*SQRT(29000/Fy) -> 9.15161188 | N24: Compact Limit lp = (hc/hp)(E/Fy)/[0.54(Mp/My) - 0.09]2 ≤ lr = | O24: =MIN((hc/hp)*SQRT(29000/Fy)/(0.54*M_p_CB/M_y_CB - 0.09)^2,O25) -> 137.2741782 | P24: =IF(P23="slender",TRUE, FALSE) -> FALSE
F25: Noncompact Limit lr = 1.0√(E/Fy) = | G25: =1*SQRT(29000/Fy) -> 24.08318916 | N25: Noncompact Limit lr = 5.70√(E/Fy) = | O25: =5.7*SQRT(29000/Fy) -> 137.2741782
C26: Flanges of Channel (Case 1) | F26: l = (bf/tf)c = | G26: =bf_tf_ch -> 5.230769231 | H26: =IF(G26<=G27,"compact",IF(G26<=G28,"noncompact","slender")) -> compact | J26: Web of Channel (Case 18) | N26: l = bf_wf/tw_ch = | O26: =b_f_wf/t_w_ch -> 25 | P26: =IF(O26<=O27,"compact",IF(O26<=O28,"noncompact","slender")) -> compact
F27: Compact Limit lr = 0.38√(E/Fy) = | G27: =0.38*SQRT(29000/Fy) -> 9.15161188 | N27: Compact Limit lp = 1.12√(E/Fy) = | O27: =1.12*SQRT(29000/Fy) -> 26.97317186 | P27: =IF(P26="slender",TRUE, FALSE) -> FALSE
F28: Noncompact Limit lr = 1.0√(E/Fy) = | G28: =1*SQRT(29000/Fy) -> 24.08318916 | J28: =AND(P27=FALSE,P24=FALSE) -> TRUE | N28: Noncompact Limit lr = 1.40√(E/Fy) = | O28: =1.4*SQRT(29000/Fy) -> 33.71646482
B29: =IF(OR(H23<>"Compact",H26<>"Compact"),TRUE, FALSE) -> FALSE | C29: =IF(B29,"The channel or beam flange is not compact. The section is out-of-scope!","Width-to-thickness ratios are within scope.") -> Width-to-thickness ratios are within scope. | J29: =IF(J28,"Width-to-thickness ratios are within scope.","") & IF(P27,"The channel web is slender. The section is out-of-scope!","") & IF(P24," The compsite section web is slender. The section is out-of-scope!","") -> Width-to-thickness ratios are within scope.
C31: Check Bending about the X-X Axis | J31: Check Bending about the X-X Axis
C32: Plastic Moment | F32: Mp = | G32: =MIN(Z_x*Fy, 1.6*S_xc*Fy)/12 -> 1487.5 | H32: kip-ft. | J32: Plastic Moment | M32: Mp = | N32: =MIN(Z_x*Fy, 1.6*S_xc*Fy)/12 -> 1487.5 | O32: kip-ft.
C33: Yield Moment | F33: My = | G33: =MIN(S_xc, S_xt)*Fy/12 -> 1116.666667 | H33: kip-ft. | J33: Yield Moment | M33: My = | N33: =MIN(S_xc, S_xt)*Fy/12 -> 1116.666667 | O33: kip-ft.
C34: Actual Unbraced Length | F34: Lb = | G34: =L_sp*12 -> 360 | H34: in. | J34: Actual Unbraced Length | M34: Lb = | N34: =L_sp*12 -> 360 | O34: in.
C35: Determine Limiting Lateral Unbraced Lengths | J35: Determine Limiting Lateral Unbraced Lengths
C36: AISC EQ. F4-7 | F36: Lp = | G36: =1.1*r_t*SQRT(29000/Fy) -> 118.1420588 | H36: in. | J36: AISC EQ. F4-7 | M36: Lp = | N36: =1.1*r_t*SQRT(29000/Fy) -> 118.1420588 | O36: in.
F37: Sxt/Sxc = | G37: =S_xt/S_xc -> 0.616091954 | H37: ksi | M37: Sxt/Sxc = | N37: =S_xt/S_xc -> 0.616091954 | O37: ksi
C38: =IF(G37<0.7,"AISC EQ. F4-6b","AISC EQ. F4-6a") -> AISC EQ. F4-6b | F38: FL = | G38: =IF(G37<0.7,MAX(Fy*G37,0.5*Fy),0.7*Fy) -> 30.8045977 | H38: ksi | J38: =IF(N37<0.7,"AISC EQ. F4-6b","AISC EQ. F4-6a") -> AISC EQ. F4-6b | M38: FL = | N38: =IF(N37<0.7,MAX(Fy*N37,0.5*Fy),0.7*Fy) -> 30.8045977 | O38: ksi
C40: AISC EQ. F4-8 | F40: Lr = | G40: =1.95*r_t*(29000/F_L)*SQRT((J_CB/(S_xc*h_0)+SQRT((J_CB/(S_xc*h_0))^2 + 6.76*(F_L/29000)^2))) -> 466.0195408 | H40: in. | J40: AISC EQ. F4-8 | M40: Lr = | N40: =1.95*r_t*(29000/F_L)*SQRT((J_CB/(S_xc*h_0)+SQRT((J_CB/(S_xc*h_0))^2 + 6.76*(F_L/29000)^2))) -> 466.0195408 | O40: in.
C41: Bending Coefficient | F41: Cb = | G41: 1 | J41: Bending Coefficient | M41: Cb = | N41: 1
C42: COMPRESSION FLANGE YIELDING Lb < Lp | J42: COMPRESSION FLANGE YIELDING Lb < Lp
F43: Iyc/Iy = | G43: =I_yc/I_y -> 0.858959757 | M43: Iyc/Iy = | N43: =I_yc/I_y -> 0.858959757
C44: =IF(P23="compact","Web plastification factor (F4-9a)","Web plastification factor (F4-9b)") -> Web plastification factor (F4-9a) | F44: Rpc = | G44: =IF(G43<=0.23,1,IF(P23="compact",M_p_CB*12/M_yc,MIN(M_p_CB*12/M_yc-(M_p_CB*12/M_yc-1)*(O23- O24)/(O25 - O24), M_p_CB*12/M_yc))) -> 0.8206896552 | J44: =IF(P23="compact","Web plastification factor (F4-9a)","Web plastification factor (F4-9b)") -> Web plastification factor (F4-9a) | M44: Rpc = | N44: =IF(N43<=0.23,1,IF(P23="compact",M_p_CB*12/M_yc,MIN(M_p_CB*12/M_yc-(M_p_CB*12/M_yc-1)*(O23- O24)/(O25 - O24), M_p_CB*12/M_yc))) -> 0.8206896552
C45: Yield moment (compression) | F45: Myc = | G45: =S_xc*Fy -> 21750 | H45: kip-in. | J45: Yield moment (compression) | M45: Myc = | N45: =S_xc*Fy -> 21750 | O45: kip-in.
C46: AISC EQ. F4-1 | F46: Mnx = RpcMyc = | G46: =M_yc*R_pc -> 17850 | H46: kip-in. | J46: AISC EQ. F4-1 | M46: Mnx = RpcMyc | N46: =M_yc*R_pc -> 17850 | O46: kip-in.
C47: LATERAL-TORSIONAL BUCKLING Lp < Lb < Lr | J47: LATERAL-TORSIONAL BUCKLING Lp < Lb < Lr
C48: AISC EQ. F4-2 | F48: Mnx = | G48: =MIN(C_b*(R_pc*M_yc-(R_pc*M_yc-F_L*S_xc)*(L_b - L_p)/(L_r - L_p)), R_pc*M_yc) -> 14756.18711 | H48: kip-in. | J48: AISC EQ. F4-2 | M48: Mnx = | N48: =MIN(C_b*(R_pc*M_yc-(R_pc*M_yc-F_L*S_xc)*(L_b - L_p)/(L_r - L_p)), R_pc*M_yc) -> 14756.18711 | O48: kip-in.
C49: LATERAL-TORSIONAL BUCKLING Lb > Lr | J49: LATERAL-TORSIONAL BUCKLING Lb > Lr
C50: AISC EQ. F4-5 | F50: Fcr = | G50: =MIN(C_b*PI()^2*29000/(L_b/r_t)^2*SQRT(1+0.078*J_CB/(S_xc*h_0)*(L_b/r_t)^2),Fy) -> 48.61813968 | H50: ksi | J50: AISC EQ. F4-5 | M50: Fcr = | N50: =MIN(C_b*PI()^2*29000/(L_b/r_t)^2*SQRT(1+0.078*J_CB/(S_xc*h_0)*(L_b/r_t)^2),Fy) -> 48.61813968 | O50: ksi
C51: AISC EQ. F4-3 | F51: Mnx = | G51: =MIN(F_cr*S_xc,R_pc*M_yc) -> 17850 | H51: kip-in. | J51: AISC EQ. F4-3 | M51: Mnx = | N51: =MIN(F_cr*S_xc,R_pc*M_yc) -> 17850 | O51: kip-in.
F52: Mn_LTB = | G52: =IF(L_b<=L_p,G46,IF(L_b<=L_r,G48,G51)) -> 14756.18711 | H52: kip-in. | M52: Mn_LTB = | N52: =IF(L_b<=L_p,N46,IF(L_b<=L_r,N48,N51)) -> 14756.18711 | O52: kip-in.
C53: COMPRESSION FLANGE LOCAL BUCKLING | J53: COMPRESSION FLANGE LOCAL BUCKLING
C54: =IF(AND(H23="Compact",H26="Compact"),IF(P26="Compact","Compression elements are compact, local buckling does not apply.","WF and channel flanges are compact and channel web is noncompact. Eq. F4-13 applies."),"Out of scope") -> Compression elements are compact, local buckling does not apply. | J54: =IF(AND(H23="Compact",H26="Compact"),IF(P26="Compact","Compression elements are compact, local buckling does not apply.","WF and channel flanges are compact and channel web is noncompact. Eq. F4-13 applies."),"Out of scope") -> Compression elements are compact, local buckling does not apply.
C55: =IF(AND(H23="Compact",H26="Compact",P26="Compact"),"AISC EQ. F4-1",IF(DesignCode="LRFD: 2005","AISC EQ. F4-12","AISC EQ. F4-13")) -> AISC EQ. F4-1 | F55: Mnx = | G55: =IF(P26="compact",R_pc*M_yc,(R_pc*M_yc - (R_pc*M_yc - F_L*S_xc)*(O26 -O27)/(O28 - O27))) -> 17850 | H55: kip-in. | J55: AISC EQ. F4-13 | M55: Mnx = | N55: =IF(P26="compact",R_pc*M_yc,(R_pc*M_yc - (R_pc*M_yc - F_L*S_xc)*(O26 -O27)/(O28 - O27))) -> 17850 | O55: kip-in.
C57: TENSION FLANGE YIELDING | J57: TENSION FLANGE YIELDING
F58: Sxt/Sxc = | G58: =S_xt/S_xc -> 0.616091954 | H58: ksi | M58: Sxt/Sxc = | N58: =S_xt/S_xc -> 0.616091954 | O58: ksi
C59: Yield moment (tension) | F59: Myt = | G59: =S_xt*Fy -> 13400 | H59: kip-in. | J59: Yield moment (tension) | M59: Myt = | N59: =S_xt*Fy -> 13400 | O59: kip-in.
C60: =IF(P23="compact","AISC EQ. F4-16a","AISC EQ. F4-16b") -> AISC EQ. F4-16a | F60: Rpt = | G60: =IF(P23="compact",M_p_CB*12/M_yt,MIN(M_p_CB*12/M_yt-(M_p_CB*12/M_yt-1)*(O23- O24)/(O25 - O24), M_p_CB*12/M_yt)) -> 1.332089552 | J60: =IF(P23="compact","AISC EQ. F4-16a","AISC EQ. F4-16b") -> AISC EQ. F4-16a | M60: Rpt = | N60: =IF(P23="compact",M_p_CB*12/M_yt,MIN(M_p_CB*12/M_yt-(M_p_CB*12/M_yt-1)*(O23- O24)/(O25 - O24), M_p_CB*12/M_yt)) -> 1.332089552
C61: AISC EQ. F4-15 | F61: Mnx = RptMyt | G61: =R_pt*M_yt -> 17850 | H61: kip-in. | J61: AISC EQ. F4-15 | M61: Mnx = RptMyt | N61: =R_pt*M_yt -> 17850 | O61: kip-in.
C63: Nominal Flexural Design Strength | F63: Mnx = | G63: =MIN(G61,G55,G52,G46)/12 -> 1229.682259 | H63: kip-ft. | J63: Nominal Flexural Design Strength | M63: Mnx = | N63: =MIN(N61,N55,N52,N46)/12 -> 1229.682259 | O63: kip-ft.
C64: Alllowable Moment Strength | F64: Mcx = Mnx/W = | G64: =G63/1.67 -> 736.3366821 | H64: kip-ft. ( W = 1.67 ) | J64: Flexural Design Strength | M64: Mcx = fMnx = | N64: =0.9*N63 -> 1106.714033 | O64: kip-ft. ( f = 0.90 )
F65: Mrx / Mcx = | G65: =M_ax/Mnx_Omega -> 0.6462889349 | H65: =IF(G65<=1," o.k."," n.g.") -> o.k. | M65: Mrx / Mcx = | N65: =M_ux/fM_nx -> 0.6192236472 | O65: =IF(N65<=1," o.k."," n.g.") -> o.k.
C67: Check Bending about the Y-Y Axis in the top flange (channel + top flange) | J67: Check Bending about the Y-Y Axis in the top flange (channel + top flange)
C68: Plastic Moment (F2-1) | F68: Mpy = | G68: =Fy*Z_top -> 3471.25 | H68: kip-in. | J68: Plastic Moment (F2-1) | M68: Mpy = | N68: =Fy*Z_top -> 3471.25 | O68: kip-in.
C69: Flexural Design Strength | F69: Mcy = Mny/W = | G69: =(G68/12)/1.67 -> 173.2160679 | H69: kip-ft. ( W = 1.67 ) | J69: Flexural Design Strength | M69: Mcy = fMny = | N69: =0.9*N68/12 -> 260.34375 | O69: kip-ft. ( f = 0.90 )
F70: Mry / Mcy = | G70: =M_ay/Mny_Omega -> 0.1402179388 | H70: =IF(G70<=1," o.k."," n.g.") -> o.k. | M70: Mry / Mcy = | N70: =M_uy/fM_ny -> 0.1492672668 | O70: =IF(N70<=1," o.k."," n.g.") -> o.k.
C72: Check Biaxial Bending in the top flange | J72: Check Biaxial Bending in the top flange
C73: COMBINED BENDING | J73: COMBINED BENDING
C74: AISC EQ. H1-1b | F74: Mrx / Mcx + Mry / Mcy = | G74: =(M_ax/Mnx_Omega)+(M_ay/Mny_Omega) -> 0.7865068737 | H74: =IF(AND(G65<=1,G70<=1,G74<=1)," o.k."," n.g.") -> o.k. | J74: AISC EQ. H1-1b | M74: Mrx / Mcx + Mry / Mcy = | N74: =(M_ux/fM_nx)+(M_uy/fM_ny) -> 0.768490914 | O74: =IF(AND(N65<=1,N70<=1,N74<=1)," o.k."," n.g.") -> o.k.
C76: Check Shear about the X-X Axis | J76: Check Shear about the X-X Axis
C77: Evaluate using the shear strength of the WF beam alone | J77: Evaluate using the shear strength of the WF beam alone
F78: h/tw = | G78: =h_tw_wf -> 49.5 | M78: h/tw = | N78: =h_tw_wf -> 49.5
F79: 2.24√(E/Fy) = | G79: =2.24*SQRT(29000/Fy) -> 53.94634371 | M79: 2.24√(E/Fy) = | N79: =2.24*SQRT(29000/Fy) -> 53.94634371
C80: Buckling coefficient (G2.1b(i)) | F80: kv = | G80: 5 | H80: no transverse stiffeners | J80: Buckling coefficient (G2.1b(i)) | M80: kv = | N80: 5 | O80: no transverse stiffeners
F81: 1.10√(kvE/Fy) = | G81: =1.1*SQRT(k_v_ASD*29000/Fy) -> 59.23681288 | M81: 1.10√(kvE/Fy) = | N81: =1.1*SQRT(k_v*29000/Fy) -> 59.23681288
F82: 1.37√(kvE/Fy) = | G82: =1.37*SQRT(k_v_ASD*29000/Fy) -> 73.77675786 | M82: 1.37√(kvE/Fy) = | N82: =1.37*SQRT(k_v*29000/Fy) -> 73.77675786
C83: =IF(G78<=G79,"Shear coefficient: AISC EQ. G2-2",IF(G78<=G81,"Shear coefficient: AISC EQ. G2-3",IF(G78<=G82,"Shear coefficient: AISC EQ. G2-4","Shear coefficient: AISC EQ. G2-5"))) -> Shear coefficient: AISC EQ. G2-2 | F83: Cv = | G83: =IF(OR(G78<=G79,G78<=G81),1,IF(G78<=G82,G81/G78,1.51*29000*k_v/(G78^2*Fy))) -> 1 | J83: =IF(N78<=N79,"Shear coefficient: AISC EQ. G2-2",IF(N78<=N81,"Shear coefficient: AISC EQ. G2-3",IF(N78<=N82,"Shear coefficient: AISC EQ. G2-4","Shear coefficient: AISC EQ. G2-5"))) -> Shear coefficient: AISC EQ. G2-2 | M83: Cv = | N83: =IF(OR(N78<=N79,N78<=N81),1,IF(N78<=N82,N81/N78,1.51*29000*k_v/(N78^2*Fy))) -> 1
C84: Factor of safety for shear | F84: Wv = | G84: =IF(G78>G79,1.67,1.5) -> 1.5 | J84: Resistance factor for shear | M84: fv = | N84: =IF(N78>N79,0.9,1) -> 1
C85: Shear area | F85: Aw = | G85: =d_wf*t_w_wf -> 13.181 | H85: in.2 | J85: Shear area | M85: Aw = | N85: =d_wf*t_w_wf -> 13.181 | O85: in.2
C86: AISC EQ. G2-1 | F86: Vnx = | G86: =0.6*Fy*A_w*C_v -> 395.43 | H86: kips | J86: AISC EQ. G2-1 | M86: Vnx = | N86: =0.6*Fy*A_w*C_v -> 395.43 | O86: kips
C87: Shear Design Strength | F87: Vcx = Vnx/W = | G87: =G86/G84 -> 263.62 | H87: kips | J87: Shear Design Strength | M87: Vcx = fVnx = | N87: =phi_v*Vnx -> 395.43 | O87: kips
F88: Vr / Vcx = | G88: =V_ax/G87 -> 0.2985035278 | H88: =IF(G88<=1," o.k."," n.g.") -> o.k. | M88: Vr / Vcx = | N88: =V_ux/N87 -> 0.2869529373 | O88: =IF(N88<=1," o.k."," n.g.") -> o.k.
C90: Check Web Sidesway Buckling | J90: Check Web Sidesway Buckling
C91: AISC Section J10.4b for compression flange not restrained against rotation | J91: AISC Section J10.4b for compression flange not restrained against rotation
F92: (h/tw) / (L/bf) = | G92: =h_tw_wf/(L_b/b_f_wf) -> 1.375 | H92: =IF(G92<=1.7," ≤ 1.7 use EQ. J10-7"," > 1.7") -> ≤ 1.7 use EQ. J10-7 | M92: (h/tw) / (L/bf) = | N92: =h_tw_wf/(L_b/b_f_wf) -> 1.375 | O92: =IF(N92<=1.7," ≤ 1.7 use EQ. J10-7"," > 1.7") -> ≤ 1.7 use EQ. J10-7
F93: My = | G93: =MIN(S_xt,S_xc)*Fy/12 -> 1116.666667 | H93: kip-ft. | M93: My = | N93: =MIN(S_xt,S_xc)*Fy/12 -> 1116.666667 | O93: kip-ft.
F94: Cr = | G94: =(IF(1.5*M_ax<(M_y),960000,480000)) -> 960000 | H94: ksi for 1.5Ma > My | M94: Cr = | N94: =(IF(M_ux<(M_y),960000,480000)) -> 960000 | O94: ksi for Mu > My
C95: Factor of safety | F95: W = | G95: 1.76 | J95: Resistance factor | M95: f = | N95: 0.85
C96: Nominal Strength of Web | F96: Rn = | G96: =IF(G92<=1.7,C_r*t_w_wf^3*t_f_wf/h_wf^2*(0.4*(G92)^3),"N/A") -> 149.154223 | H96: kips | J96: Nominal Strength of Web | M96: Rn = | N96: =IF(N92<=1.7,C_r*t_w_wf^3*t_f_wf/h_wf^2*(0.4*(N92)^3),"N/A") -> 149.154223 | O96: kips
C97: Available Strength of Web | F97: Rc = Rn/W = | G97: =IF(G92<=1.7,G96/G95,"N/A") -> 84.74671762 | H97: kips | J97: Available Strength of Web | M97: Rc = fRn = | N97: =IF(N92<=1.7,N95*N96,"N/A") -> 126.7810896 | O97: kips
F98: Pr / Rc = | G98: =IF(G92<=1.7,P_av/G97,"N/A") -> 0.5619686678 | H98: =IF(G92<1.7,IF(G98<=1," o.k."," n.g."),"") -> o.k. | M98: Pr / Rc = | N98: =IF(N92<=1.7,P_uv/N97,"N/A") -> 0.544639585 | O98: =IF(N92<1.7,IF(N98<=1," o.k."," n.g."),"") -> o.k.

Sheet Design Checks 2010 (hidden)
C2: CRANE BEAM DESIGN CHECKS: AISC 360-10 | J2: ='Crane Beam Design'!E6 -> Crane Beam Example
J3: ='Crane Beam Design'!E7 -> Example 18.1.2 LRFD
C4: Crane Runway Beam | F4: =IF(ShapeType<2,Shape_Name_WC,Shape_WC_cust) -> W27x94 C15x33.9 | J4: ='Crane Beam Design'!E8 -> AISC Steel Solutions Center
E5: ='Crane Beam Design'!T48 -> 2 | F5: =IF(ShapeType>1,"User Defined Properties",VLOOKUP(E5,'Crane Beam Design'!R49:S51,2,FALSE)&" Member Properties") -> AISC 14th Edition Member Properties | J5: ='Crane Beam Design'!E9 -> JRE | N5: Date: | O5: ='Crane Beam Design'!J9 -> 2014-07-24
C7: ASD DESIGN | J7: LRFD DESIGN
C8: Design Loads | J8: Design Loads
C9: Max. Vertical Wheel Load * | F9: Pav = | G9: ='Loads and Deflection'!P_av -> 47.625 | H9: kips / wheel | J9: Max. Vertical Wheel Load * | M9: Puv = | N9: ='Loads and Deflection'!P_uv -> 69.05 | O9: kips / wheel
C10: Max. Horizontal Wheel Load ** | F10: Pah = | G10: ='Loads and Deflection'!P_ah -> 2.53 | H10: kips / wheel / side | J10: Max. Horizontal Wheel Load ** | M10: Puh = | N10: ='Loads and Deflection'!P_uh -> 4.048 | O10: kips / wheel / side
C11: * Includes impact. | J11: * Includes impact.
C12: ** Total Horizontal Force, P h, is 20% of the sum of weights of the lifted load | J12: ** Total Horizontal Force, P h, is 20% of the sum of weights of the lifted load
C13: and crane trolley, exclusive of other parts of crane. | J13: and crane trolley, exclusive of other parts of crane.
C15: Design Forces | J15: Design Forces
C16: Bending Moment X-X Axis *** | F16: Max = | G16: ='Loads and Deflection'!M_ax -> 475.88625 | H16: kip-ft. | J16: Bending Moment X-X Axis *** | M16: Mux = | N16: ='Loads and Deflection'!M_ux -> 685.3035 | O16: kip-ft.
C17: Bending Moment Y-Y Axis | F17: May = | G17: ='Loads and Deflection'!M_ay -> 24.288 | H17: kip-ft. | J17: Bending Moment Y-Y Axis | M17: Muy = | N17: ='Loads and Deflection'!M_uy -> 38.8608 | O17: kip-ft.
C18: Shear X-X Axis *** | F18: Vax = | G18: ='Loads and Deflection'!V_ax -> 78.6915 | H18: kips | J18: Shear X-X Axis *** | M18: Vux = | N18: ='Loads and Deflection'!V_ux -> 113.4698 | O18: kips
C19: *** Includes impact and girder and rail weight. | J19: *** Includes impact and girder and rail weight.
C21: Check Local Buckling | J21: Check Local Buckling
C22: UNSTIFFENED ELEMENTS | J22: UNSTIFFENED ELEMENTS | S22: LIMITED TO BEAMS WITH COMPACT or NONCOMPACT WEBS
C23: Flanges of W-Shape | F23: l = (bf/2tf)w = | G23: =b_2tf_wf -> 6.7 | H23: =IF(G23<=G25,"compact",IF(G23<=G26,"noncompact","slender")) -> compact | J23: Flanges of W-Shape | M23: l = (bf/2tf)w = | N23: =b_2tf_wf -> 6.7 | O23: =IF(N23<=N25,"compact",IF(N23<=N26,"noncompact","slender")) -> compact
C24: Flanges of Channel | F24: l = (bf/tf)c = | G24: =bf_tf_ch -> 5.230769231 | H24: =IF(G24<=G25,"compact",IF(G24<=G26,"noncompact","slender")) -> compact | J24: Flanges of Channel | M24: l = (bf/tf)c = | N24: =bf_tf_ch -> 5.230769231 | O24: =IF(N24<=N25,"compact",IF(N24<=N26,"noncompact","slender")) -> compact
F25: Compact Limit lr = 0.38√(E/Fy) = | G25: =0.38*SQRT(29000/Fy) -> 9.15161188 | M25: Compact Limit lr = 0.38√(E/Fy) = | N25: =0.38*SQRT(29000/Fy) -> 9.15161188
F26: Noncompact Limit lr = 1.0√(E/Fy) = | G26: =1*SQRT(29000/Fy) -> 24.08318916 | M26: Noncompact Limit lr = 1.0√(E/Fy) = | N26: =1*SQRT(29000/Fy) -> 24.08318916
C27: STIFFENED ELEMENTS | J27: STIFFENED ELEMENTS
C28: Web of Composite Section | F28: l = hc/tw = | G28: =hc_tw -> 35.34693878 | H28: =IF(G28<=G29,"compact",IF(G28<=G30,"noncompact","slender")) -> compact | J28: Web of Composite Section | M28: l = hc/tw = | N28: =hc_tw -> 35.34693878 | O28: =IF(N28<=N29,"compact",IF(N28<=N30,"noncompact","slender")) -> compact
F29: Compact Limit lp (Case 16) = | G29: =MIN((hc/hp)*SQRT(29000/Fy)/(0.54*M_p_CB/M_y_CB - 0.09)^2,G30) -> 137.2741782 | M29: Compact Limit lp (Case 16) = | N29: =MIN((hc/hp)*SQRT(29000/Fy)/(0.54*M_p_CB/M_y_CB - 0.09)^2,N30) -> 137.2741782
F30: Noncompact Limit lr = 5.70√(E/Fy) = | G30: =5.7*SQRT(29000/Fy) -> 137.2741782 | M30: Noncompact Limit lr = 5.70√(E/Fy) = | N30: =5.7*SQRT(29000/Fy) -> 137.2741782
C31: Web of Channel | F31: l = bf_wf/tw_ch = | G31: =b_f_wf/t_w_ch -> 25 | H31: =IF(G31<=G32,"compact",IF(G31<=G33,"noncompact","slender")) -> compact | J31: Web of Channel | M31: l = bf_wf/tw_ch = | N31: =b_f_wf/t_w_ch -> 25 | O31: =IF(N31<=N32,"compact",IF(N31<=N33,"noncompact","slender")) -> compact | S31: LIMITED TO CHANNELS WITH COMPACT or NONCOMPACT WEBS
F32: Compact Limit lp = 1.12√(E/Fy) = | G32: =1.12*SQRT(29000/Fy) -> 26.97317186 | M32: Compact Limit lp = 1.12√(E/Fy) = | N32: =1.12*SQRT(29000/Fy) -> 26.97317186
F33: Noncompact Limit lr = 1.40√(E/Fy) = | G33: =1.4*SQRT(29000/Fy) -> 33.71646482 | M33: Noncompact Limit lr = 1.40√(E/Fy) = | N33: =1.4*SQRT(29000/Fy) -> 33.71646482
C34: =IF(OR(H23<>"Compact",H24<>"Compact"),"The channel or beam flange is not compact. The section is out-of-scope","") ->  | J34: =IF(OR(O23<>"Compact",O24<>"Compact"),"The channel or beam flange is not compact. The section is out-of-scope","") -> 
C35: Check Bending about the X-X Axis | J35: Check Bending about the X-X Axis
C36: Plastic Moment | F36: Mp = | G36: =MIN(Z_x*Fy, 1.6*S_xc*Fy)/12 -> 1487.5 | H36: kip-ft. | J36: Plastic Moment | M36: Mp = | N36: =MIN(Z_x*Fy, 1.6*S_xc*Fy)/12 -> 1487.5 | O36: kip-ft.
C37: Yield Moment | F37: My = | G37: =MIN(S_xc, S_xt)*Fy/12 -> 1116.666667 | H37: kip-ft. | J37: Yield Moment | M37: My = | N37: =MIN(S_xc, S_xt)*Fy/12 -> 1116.666667 | O37: kip-ft.
C38: Actual Unbraced Length | F38: Lb = | G38: =L_sp*12 -> 360 | H38: in. | J38: Actual Unbraced Length | M38: Lb = | N38: =L_sp*12 -> 360 | O38: in.
C39: Determine Limiting Lateral Unbraced Lengths | J39: Determine Limiting Lateral Unbraced Lengths
C40: AISC EQ. F4-7 | F40: Lp = | G40: =1.1*r_t*SQRT(29000/Fy) -> 118.1420588 | H40: in. | J40: AISC EQ. F4-7 | M40: Lp = | N40: =1.1*r_t*SQRT(29000/Fy) -> 118.1420588 | O40: in.
F41: Sxt/Sxc = | G41: =S_xt/S_xc -> 0.616091954 | H41: ksi | M41: Sxt/Sxc = | N41: =S_xt/S_xc -> 0.616091954 | O41: ksi
C42: =IF(G41<0.7,"AISC EQ. F4-6b","AISC EQ. F4-6a") -> AISC EQ. F4-6b | F42: FL = | G42: =IF(G41<0.7,MAX(Fy*G41,0.5*Fy),0.7*Fy) -> 30.8045977 | H42: ksi | J42: =IF(N41<0.7,"AISC EQ. F4-6b","AISC EQ. F4-6a") -> AISC EQ. F4-6b | M42: FL = | N42: =IF(N41<0.7,MAX(Fy*N41,0.5*Fy),0.7*Fy) -> 30.8045977 | O42: ksi
C44: AISC EQ. F4-8 | F44: Lr = | G44: =1.95*r_t*(29000/F_L)*SQRT((J_CB/(S_xc*h_0)+SQRT((J_CB/(S_xc*h_0))^2 + 6.76*(F_L/29000)^2))) -> 466.0195408 | H44: in. | J44: AISC EQ. F4-8 | M44: Lr = | N44: =1.95*r_t*(29000/F_L)*SQRT((J_CB/(S_xc*h_0)+SQRT((J_CB/(S_xc*h_0))^2 + 6.76*(F_L/29000)^2))) -> 466.0195408 | O44: in.
C45: Bending Coefficient | F45: Cb = | G45: 1 | J45: Bending Coefficient | M45: Cb = | N45: 1
C46: COMPRESSION FLANGE YIELDING Lb < Lp | J46: COMPRESSION FLANGE YIELDING Lb < Lp
F47: Iyc/Iy = | G47: =I_yc/I_y -> 0.858959757 | M47: Iyc/Iy = | N47: =I_yc/I_y -> 0.858959757
C48: =IF(H28="compact","Web plastification factor (F4-9a)","Web plastification factor (F4-9b)") -> Web plastification factor (F4-9a) | F48: Rpc = | G48: =IF(G47<=0.23,1,IF(H28="compact",M_p_CB*12/M_yc,MIN(M_p_CB*12/M_yc-(M_p_CB*12/M_yc-1)*(G28- G29)/(G30 - G29), M_p_CB*12/M_yc))) -> 0.8206896552 | J48: =IF(O28="compact","Web plastification factor (F4-9a)","Web plastification factor (F4-9b)") -> Web plastification factor (F4-9a) | M48: Rpc = | N48: =IF(N47<=0.23,1,IF(O28="compact",M_p_CB*12/M_yc,MIN(M_p_CB*12/M_yc-(M_p_CB*12/M_yc-1)*(N28- N29)/(N30 - N29), M_p_CB*12/M_yc))) -> 0.8206896552
C49: Yield moment (compression) | F49: Myc = | G49: =S_xc*Fy -> 21750 | H49: kip-in. | J49: Yield moment (compression) | M49: Myc = | N49: =S_xc*Fy -> 21750 | O49: kip-in.
C50: AISC EQ. F4-1 | F50: Mnx = RpcMyc | G50: =M_yc*R_pc -> 17850 | H50: kip-in. | J50: AISC EQ. F4-1 | M50: Mnx = RpcMyc | N50: =M_yc*R_pc -> 17850 | O50: kip-in.
C51: LATERAL-TORSIONAL BUCKLING Lp < Lb < Lr | J51: LATERAL-TORSIONAL BUCKLING Lp < Lb < Lr
C52: AISC EQ. F4-2 | F52: Mnx = | G52: =MIN(C_b*(R_pc*M_yc-(R_pc*M_yc-F_L*S_xc)*(L_b - L_p)/(L_r - L_p)), R_pc*M_yc) -> 14756.18711 | H52: kip-in. | J52: AISC EQ. F4-2 | M52: Mnx = | N52: =MIN(C_b*(R_pc*M_yc-(R_pc*M_yc-F_L*S_xc)*(L_b - L_p)/(L_r - L_p)), R_pc*M_yc) -> 14756.18711 | O52: kip-in.
C53: LATERAL-TORSIONAL BUCKLING Lb > Lr | J53: LATERAL-TORSIONAL BUCKLING Lb > Lr
C54: AISC EQ. F4-5 | F54: Fcr = | G54: =MIN(C_b*PI()^2*29000/(L_b/r_t)^2*SQRT(1+0.078*J_CB/(S_xc*h_0)*(L_b/r_t)^2),Fy) -> 48.61813968 | H54: ksi | J54: AISC EQ. F4-5 | M54: Fcr = | N54: =MIN(C_b*PI()^2*29000/(L_b/r_t)^2*SQRT(1+0.078*J_CB/(S_xc*h_0)*(L_b/r_t)^2),Fy) -> 48.61813968 | O54: ksi
C55: AISC EQ. F4-3 | F55: Mnx = | G55: =MIN(F_cr*S_xc,R_pc*M_yc) -> 17850 | H55: kip-in. | J55: AISC EQ. F4-3 | M55: Mnx = | N55: =MIN(F_cr*S_xc,R_pc*M_yc) -> 17850 | O55: kip-in.
F56: Mn_LTB = | G56: =IF(L_b<=L_p,G50,IF(L_b<=L_r,G52,G55)) -> 14756.18711 | H56: kip-in. | M56: Mn_LTB = | N56: =IF(L_b<=L_p,N50,IF(L_b<=L_r,N52,N55)) -> 14756.18711 | O56: kip-in.
C57: COMPRESSION FLANGE LOCAL BUCKLING | J57: COMPRESSION FLANGE LOCAL BUCKLING
C58: =IF(AND(H23="Compact",H24="Compact"),IF(H31="Compact","Compression elements are compact, local buckling does not apply.","WF and channel flanges are compact and channel web is noncompact. Eq. F4-13 applies."),"Out of scope") -> Compression elements are compact, local buckling does not apply. | J58: =IF(AND(O23="Compact",O24="Compact"),IF(O31="Compact","Compression elements are compact, local buckling does not apply.","WF and channel flanges are compact and channel web is noncompact. Eq. F4-13 applies."),"Out of scope") -> Compression elements are compact, local buckling does not apply.
C59: AISC EQ. F4-13 | F59: Mnx = | G59: =IF(H31="compact",R_pc*M_yc,(R_pc*M_yc - (R_pc*M_yc - F_L*S_xc)*(G31 -G32)/(G33 - G32))) -> 17850 | H59: kip-in. | J59: AISC EQ. F4-13 | M59: Mnx = | N59: =IF(O31="compact",R_pc*M_yc,(R_pc*M_yc - (R_pc*M_yc - F_L*S_xc)*(N31 -N32)/(N33 - N32))) -> 17850 | O59: kip-in.
C60: TENSION FLANGE YIELDING | J60: TENSION FLANGE YIELDING
F61: Sxt/Sxc = | G61: =S_xt/S_xc -> 0.616091954 | H61: ksi | M61: Sxt/Sxc = | N61: =S_xt/S_xc -> 0.616091954 | O61: ksi
C62: Yield moment (tension) | F62: Myt = | G62: =S_xt*Fy -> 13400 | H62: kip-in. | J62: Yield moment (tension) | M62: Myt = | N62: =S_xt*Fy -> 13400 | O62: kip-in.
C63: =IF(H28="compact","AISC EQ. F4-16a","AISC EQ. F4-16b") -> AISC EQ. F4-16a | F63: Rpt = | G63: =IF(H28="compact",M_p_CB*12/M_yt,MIN(M_p_CB*12/M_yt-(M_p_CB*12/M_yt-1)*(G28- G29)/(G30 - G29), M_p_CB*12/M_yt)) -> 1.332089552 | J63: =IF(O28="compact","AISC EQ. F4-16a","AISC EQ. F4-16b") -> AISC EQ. F4-16a | M63: Rpt = | N63: =IF(O28="compact",M_p_CB*12/M_yt,MIN(M_p_CB*12/M_yt-(M_p_CB*12/M_yt-1)*(N28- N29)/(N30 - N29), M_p_CB*12/M_yt)) -> 1.332089552
C64: AISC EQ. F4-15 | F64: Mnx = RptMyt | G64: =R_pt*M_yt -> 17850 | H64: kip-in. | J64: AISC EQ. F4-15 | M64: Mnx = RptMyt | N64: =R_pt*M_yt -> 17850 | O64: kip-in.
C66: Nominal Flexural Design Strength | F66: Mnx = | G66: =MIN(G64,G59,G56,G50)/12 -> 1229.682259 | H66: kip-ft. | J66: Nominal Flexural Design Strength | M66: Mnx = | N66: =MIN(N64,N59,N56,N50)/12 -> 1229.682259 | O66: kip-ft.
C67: Alllowable Moment Strength | F67: Mcx = Mnx/W = | G67: =G66/1.67 -> 736.3366821 | H67: kip-ft. ( W = 1.67 ) | J67: Flexural Design Strength | M67: Mcx = fMnx = | N67: =0.9*N66 -> 1106.714033 | O67: kip-ft. ( f = 0.90 )
F68: Mrx / Mcx = | G68: =M_ax/Mnx_Omega -> 0.6462889349 | H68: =IF(G68<=1," o.k."," n.g.") -> o.k. | M68: Mrx / Mcx = | N68: =M_ux/fM_nx -> 0.6192236472 | O68: =IF(N68<=1," o.k."," n.g.") -> o.k.
C70: Check Bending about the Y-Y Axis in the top flange (channel + top flange) | J70: Check Bending about the Y-Y Axis in the top flange (channel + top flange)
C71: Plastic Moment (F2-1) | F71: Mpy = | G71: =Fy*Z_top -> 3471.25 | H71: kip-in. | J71: Plastic Moment (F2-1) | M71: Mpy = | N71: =Fy*Z_top -> 3471.25 | O71: kip-in.
C72: Flexural Design Strength | F72: Mcy = Mny/W = | G72: =(G71/12)/1.67 -> 173.2160679 | H72: kip-ft. ( W = 1.67 ) | J72: Flexural Design Strength | M72: Mcy = fMny = | N72: =0.9*N71/12 -> 260.34375 | O72: kip-ft. ( f = 0.90 )
F73: Mry / Mcy = | G73: =M_ay/Mny_Omega -> 0.1402179388 | H73: =IF(G73<=1," o.k."," n.g.") -> o.k. | M73: Mry / Mcy = | N73: =M_uy/fM_ny -> 0.1492672668 | O73: =IF(N73<=1," o.k."," n.g.") -> o.k.
C75: Check Biaxial Bending in the top flange | J75: Check Biaxial Bending in the top flange
C76: COMBINED BENDING | J76: COMBINED BENDING
C77: AISC EQ. H1-1b | F77: Mrx / Mcx + Mry / Mcy = | G77: =(M_ax/Mnx_Omega)+(M_ay/Mny_Omega) -> 0.7865068737 | H77: =IF(AND(G68<=1,G73<=1,G77<=1)," o.k."," n.g.") -> o.k. | J77: AISC EQ. H1-1b | M77: Mrx / Mcx + Mry / Mcy = | N77: =(M_ux/fM_nx)+(M_uy/fM_ny) -> 0.768490914 | O77: =IF(AND(N68<=1,N73<=1,N77<=1)," o.k."," n.g.") -> o.k.
C79: Check Shear about the X-X Axis | J79: Check Shear about the X-X Axis
C80: Evaluate using the shear strength of the WF beam alone | J80: Evaluate using the shear strength of the WF beam alone
F81: h/tw = | G81: =h_tw_wf -> 49.5 | M81: h/tw = | N81: =h_tw_wf -> 49.5
F82: 2.24√(E/Fy) = | G82: =2.24*SQRT(29000/Fy) -> 53.94634371 | M82: 2.24√(E/Fy) = | N82: =2.24*SQRT(29000/Fy) -> 53.94634371
C83: Buckling coefficient (G2.1b(i)) | F83: kv = | G83: 5 | H83: no transverse stiffeners | J83: Buckling coefficient (G2.1b(i)) | M83: kv = | N83: 5 | O83: no transverse stiffeners
F84: 1.10√(kvE/Fy) = | G84: =1.1*SQRT(k_v_ASD*29000/Fy) -> 59.23681288 | M84: 1.10√(kvE/Fy) = | N84: =1.1*SQRT(k_v*29000/Fy) -> 59.23681288
F85: 1.37√(kvE/Fy) = | G85: =1.37*SQRT(k_v_ASD*29000/Fy) -> 73.77675786 | M85: 1.37√(kvE/Fy) = | N85: =1.37*SQRT(k_v*29000/Fy) -> 73.77675786
C86: =IF(G81<=G82,"Shear coefficient: AISC EQ. G2-2",IF(G81<=G84,"Shear coefficient: AISC EQ. G2-3",IF(G81<=G85,"Shear coefficient: AISC EQ. G2-4","Shear coefficient: AISC EQ. G2-5"))) -> Shear coefficient: AISC EQ. G2-2 | F86: Cv = | G86: =IF(OR(G81<=G82,G81<=G84),1,IF(G81<=G85,G84/G81,1.51*29000*k_v/(G81^2*Fy))) -> 1 | J86: =IF(N81<=N82,"Shear coefficient: AISC EQ. G2-2",IF(N81<=N84,"Shear coefficient: AISC EQ. G2-3",IF(N81<=N85,"Shear coefficient: AISC EQ. G2-4","Shear coefficient: AISC EQ. G2-5"))) -> Shear coefficient: AISC EQ. G2-2 | M86: Cv = | N86: =IF(OR(N81<=N82,N81<=N84),1,IF(N81<=N85,N84/N81,1.51*29000*k_v/(N81^2*Fy))) -> 1
C87: Factor of safety for shear | F87: Wv = | G87: =IF(G81>G82,1.67,1.5) -> 1.5 | J87: Resistance factor for shear | M87: fv = | N87: =IF(N81>N82,0.9,1) -> 1
C88: Shear area | F88: Aw = | G88: =d_wf*t_w_wf -> 13.181 | H88: in.2 | J88: Shear area | M88: Aw = | N88: =d_wf*t_w_wf -> 13.181 | O88: in.2
C89: AISC EQ. G2-1 | F89: Vnx = | G89: =0.6*Fy*A_w*C_v -> 395.43 | H89: kips | J89: AISC EQ. G2-1 | M89: Vnx = | N89: =0.6*Fy*A_w*C_v -> 395.43 | O89: kips
C90: Shear Design Strength | F90: Vcx = Vnx/W = | G90: =G89/G87 -> 263.62 | H90: kips | J90: Shear Design Strength | M90: Vcx = fVnx = | N90: =phi_v*Vnx -> 395.43 | O90: kips
F91: Vr / Vcx = | G91: =V_ax/G90 -> 0.2985035278 | H91: =IF(G91<=1," o.k."," n.g.") -> o.k. | M91: Vr / Vcx = | N91: =V_ux/N90 -> 0.2869529373 | O91: =IF(N91<=1," o.k."," n.g.") -> o.k.
C93: Check Web Sidesway Buckling | J93: Check Web Sidesway Buckling
C94: AISC Section J10.4(b) for compression flange not restrained against rotation | J94: AISC Section J10.4(b) for compression flange not restrained against rotation
F95: (h/tw) / (L/bf) = | G95: =h_tw_wf/(L_b/b_f_wf) -> 1.375 | H95: =IF(G95<=1.7," ≤ 1.7 use EQ. J10-7"," > 1.7") -> ≤ 1.7 use EQ. J10-7 | M95: (h/tw) / (L/bf) = | N95: =h_tw_wf/(L_b/b_f_wf) -> 1.375 | O95: =IF(N95<=1.7," ≤ 1.7 use EQ. J10-7"," > 1.7") -> ≤ 1.7 use EQ. J10-7
F96: My = | G96: =MIN(S_xt,S_xc)*Fy/12 -> 1116.666667 | H96: kip-ft. | M96: My = | N96: =MIN(S_xt,S_xc)*Fy/12 -> 1116.666667 | O96: kip-ft.
F97: Cr = | G97: =(IF(1.5*M_ax<(Fy*MIN(S_xc,S_xt)),960000,480000)) -> 960000 | H97: ksi for 1.5Ma > My | M97: Cr = | N97: =(IF(M_ux<(Fy*MIN(S_xc,S_xt)),960000,480000)) -> 960000 | O97: ksi for Mu > My
C98: Factor of safety | F98: W = | G98: 1.76 | J98: Resistance factor | M98: f = | N98: 0.85
C99: Nominal Strength of Web | F99: Rn = | G99: =IF(G95<=1.7,C_r*t_w_wf^3*t_f_wf/h_wf^2*(0.4*(G95)^3),"N/A") -> 149.154223 | H99: kips | J99: Nominal Strength of Web | M99: Rn = | N99: =IF(N95<=1.7,C_r*t_w_wf^3*t_f_wf/h_wf^2*(0.4*(N95)^3),"N/A") -> 149.154223 | O99: kips
C100: Available Strength of Web | F100: Rc = Rn/W = | G100: =IF(G95<=1.7,G99/G98,"N/A") -> 84.74671762 | H100: kips | J100: Available Strength of Web | M100: Rc = fRn = | N100: =IF(N95<=1.7,N98*N99,"N/A") -> 126.7810896 | O100: kips
F101: Pr / Rc = | G101: =IF(G95<=1.7,P_av/G100,"N/A") -> 0.5619686678 | H101: =IF(G95<1.7,IF(G101<=1," o.k."," n.g."),"") -> o.k. | M101: Pr / Rc = | N101: =IF(N95<=1.7,P_uv/N100,"N/A") -> 0.544639585 | O101: =IF(N95<1.7,IF(N101<=1," o.k."," n.g."),"") -> o.k.

Sheet Design Checks 2005 W (hidden)
C2: CRANE BEAM DESIGN CHECKS: AISC 360-05 | J2: ='Crane Beam Design'!E6 -> Crane Beam Example
J3: ='Crane Beam Design'!E7 -> Example 18.1.2 LRFD
C4: Crane Runway Beam | F4: =Shape_Name_W -> W24X146 | J4: ='Crane Beam Design'!E8 -> AISC Steel Solutions Center
E5: ='Crane Beam Design'!T48 -> 2 | F5: =VLOOKUP(E5,'Crane Beam Design'!R49:S51,2,FALSE)&" Member Properties" -> AISC 14th Edition Member Properties | J5: ='Crane Beam Design'!E9 -> JRE | N5: Date: | O5: ='Crane Beam Design'!J9 -> 2014-07-24
C7: ASD DESIGN | J7: LRFD DESIGN
C8: Design Loads | J8: Design Loads
C9: Max. Vertical Wheel Load * | F9: Pav = | G9: ='Loads and Deflection'!P_av -> 47.625 | H9: kips / wheel | J9: Max. Vertical Wheel Load * | M9: Puv = | N9: ='Loads and Deflection'!P_uv -> 69.05 | O9: kips / wheel | S9: =Fy -> 50
C10: Max. Horizontal Wheel Load ** | F10: Pah = | G10: ='Loads and Deflection'!P_ah -> 2.53 | H10: kips / wheel / side | J10: Max. Horizontal Wheel Load ** | M10: Puh = | N10: ='Loads and Deflection'!P_uh -> 4.048 | O10: kips / wheel / side | S10: =Sx_wf -> 371
C11: * Includes impact. | J11: * Includes impact.
C12: ** Total Horizontal Force, P h, is 20% of the sum of weights of the lifted load | J12: ** Total Horizontal Force, P h, is 20% of the sum of weights of the lifted load
C13: and crane trolley, exclusive of other parts of crane. | J13: and crane trolley, exclusive of other parts of crane.
C15: Design Forces | J15: Design Forces
C16: Bending Moment X-X Axis *** | F16: Max = | G16: ='Loads and Deflection'!M_ax -> 475.88625 | H16: kip-ft. | J16: Bending Moment X-X Axis *** | M16: Mux = | N16: ='Loads and Deflection'!M_ux -> 685.3035 | O16: kip-ft.
C17: Bending Moment Y-Y Axis | F17: May = | G17: ='Loads and Deflection'!M_ay -> 24.288 | H17: kip-ft. | J17: Bending Moment Y-Y Axis | M17: Muy = | N17: ='Loads and Deflection'!M_uy -> 38.8608 | O17: kip-ft.
C18: Shear X-X Axis *** | F18: Vax = | G18: ='Loads and Deflection'!V_ax -> 78.6915 | H18: kips | J18: Shear X-X Axis *** | M18: Vux = | N18: ='Loads and Deflection'!V_ux -> 113.4698 | O18: kips
C19: *** Includes impact and girder and rail weight. | J19: *** Includes impact and girder and rail weight.
C21: Check Local Buckling | J21: Check Local Buckling
C22: UNSTIFFENED ELEMENTS | J22: UNSTIFFENED ELEMENTS | S22: LIMITED TO BEAMS WITH COMPACT or NONCOMPACT FLANGES
C23: Flanges of W-Shape | F23: l = (bf/2tf)w = | G23: =bf_to_2tf -> 5.92 | H23: =IF(G23<=G24,"compact",IF(AND(G23>G24,G23<=G25),"noncompact","slender")) -> compact | J23: Flanges of W-Shape | M23: l = (bf/2tf)w = | N23: =bf_to_2tf -> 5.92 | O23: =IF(N23<=N24,"compact",IF(AND(N23>N24,N23<=N25),"noncompact","slender")) -> compact
F24: Compact Limit lr = 0.38√(E/Fy) = | G24: =0.38*SQRT(29000/Fy) -> 9.15161188 | M24: Compact Limit lr = 0.38√(E/Fy) = | N24: =0.38*SQRT(29000/Fy) -> 9.15161188
F25: Noncompact Limit lr = 1.0√(E/Fy) = | G25: =1*SQRT(29000/Fy) -> 24.08318916 | M25: Noncompact Limit lr = 1.0√(E/Fy) = | N25: =1*SQRT(29000/Fy) -> 24.08318916
C26: STIFFENED ELEMENTS | J26: STIFFENED ELEMENTS
C27: Web of W-Shape | F27: l = h/tw = | G27: =h_to_tw_wf -> 33.2 | H27: =IF(G27<=G28,"compact",IF(AND(G27<=G29),"noncompact","slender")) -> compact | J27: Web of W-Shape | M27: l = h/tw = | N27: =h_to_tw_wf -> 33.2 | O27: =IF(N27<=N28,"compact",IF(AND(N27<=N29),"noncompact","slender")) -> compact | S27: LIMITED TO BEAMS WITH COMPACT WEBS
F28: Compact Limit lp = 3.76√(E/Fy) = | G28: =3.76*SQRT(29000/Fy) -> 90.55279123 | M28: Compact Limit lp = 3.76√(E/Fy) = | N28: =3.76*SQRT(29000/Fy) -> 90.55279123
F29: Noncompact Limit lr = 5.70√(E/Fy) = | G29: =5.7*SQRT(29000/Fy) -> 137.2741782 | M29: Noncompact Limit lr = 5.70√(E/Fy) = | N29: =5.7*SQRT(29000/Fy) -> 137.2741782
C31: Check Bending about the X-X Axis | J31: Check Bending about the X-X Axis
C32: Actual Unbraced Length | F32: Lb = | G32: =L_sp*12 -> 360 | H32: in. | J32: Actual Unbraced Length | M32: Lb = | N32: =L_sp*12 -> 360 | O32: in.
C33: Determine Limiting Lateral Unbraced Lengths | J33: Determine Limiting Lateral Unbraced Lengths
C34: AISC EQ. F2-5 | F34: Lp = | G34: =1.76*ry_wf*SQRT(29000/Fy) -> 127.5831029 | H34: in. | J34: AISC EQ. F2-5 | M34: Lp = | N34: =1.76*ry_wf*SQRT(29000/Fy) -> 127.5831029 | O34: in.
F35: c = | G35: 1 | M35: c = | N35: 1
C36: AISC EQ. F2-6 | F36: Lr = | G36: =1.95*rts_wf*(29000/(0.7*Fy))*SQRT(((J_wf*c_wf)/(Sx_wf*h0_wf)+SQRT(((J_wf*c_wf)/(Sx_wf*h0_wf))^2 + 6.76*((0.7*Fy)/29000)^2))) -> 404.0223112 | H36: in. | J36: AISC EQ. F2-6 | M36: Lr = | N36: =1.95*rts_wf*(29000/(0.7*Fy))*SQRT(((J_wf*c_wf)/(Sx_wf*h0_wf)+SQRT(((J_wf*c_wf)/(Sx_wf*h0_wf))^2 + 6.76*((0.7*Fy)/29000)^2))) -> 404.0223112 | O36: in.
C37: Bending Coefficient | F37: Cb = | G37: 1 | J37: Bending Coefficient | M37: Cb = | N37: 1
C38: YIELDING Lb < Lp | J38: YIELDING Lb < Lp
C39: AISC EQ. F2-1 | F39: Mp = | G39: =Zx_wf*Fy -> 20900 | H39: kip-in. | J39: AISC EQ. F2-1 | M39: Mp = | N39: =Zx_wf*Fy -> 20900 | O39: kip-in.
C40: LATERAL-TORSIONAL BUCKLING Lp < Lb < Lr | J40: LATERAL-TORSIONAL BUCKLING Lp < Lb < Lr
C41: AISC EQ. F2-2 | F41: Mnx = | G41: =MIN(C_b*(Mp_wf-(Mp_wf-0.7*Fy*Sx_wf)*(L_b - L_p)/(L_r - L_p)), Mp_wf) -> 14245.44563 | H41: kip-in. | J41: AISC EQ. F2-2 | M41: Mnx = | N41: =MIN(C_b*(Mp_wf-(Mp_wf-0.7*Fy*Sx_wf)*(L_b - L_p)/(L_r - L_p)), Mp_wf) -> 14245.44563 | O41: kip-in.
C42: LATERAL-TORSIONAL BUCKLING Lb > Lr | J42: LATERAL-TORSIONAL BUCKLING Lb > Lr
C43: AISC EQ. F2-4 | F43: Fcr = | G43: =MIN(C_b*PI()^2*29000/(L_b/rts_wf)^2*SQRT(1+0.078*(J_wf*c_wf)/(Sx_wf*h0_wf)*(L_b/rts_wf)^2),Fy) -> 41.18074757 | H43: ksi | J43: AISC EQ. F2-4 | M43: Fcr = | N43: =MIN(C_b*PI()^2*29000/(L_b/rts_wf)^2*SQRT(1+0.078*(J_wf*c_wf)/(Sx_wf*h0_wf)*(L_b/rts_wf)^2),Fy) -> 41.18074757 | O43: ksi
C44: AISC EQ. F2-3 | F44: Mnx = | G44: =MIN(F_cr*Sx_wf,Mp_wf) -> 15278.05735 | H44: kip-in. | J44: AISC EQ. F2-3 | M44: Mnx = | N44: =MIN(F_cr*Sx_wf,Mp_wf) -> 15278.05735 | O44: kip-in.
F45: Mn_LTB = | G45: =IF(L_b<=L_p,Mp_wf,IF(L_b<=L_r,G41,G44)) -> 14245.44563 | H45: kip-in. | M45: Mn_LTB = | N45: =IF(L_b<=L_p,Mp_wf,IF(L_b<=L_r,N41,N44)) -> 14245.44563 | O45: kip-in.
C46: COMPRESSION FLANGE LOCAL BUCKLING | J46: COMPRESSION FLANGE LOCAL BUCKLING
C47: =IF(H23="compact","Compression elements are compact, local buckling does not apply","Calculate compression flange buckling fo noncompact flanges") -> Compression elements are compact, local buckling does not apply | J47: =IF(O23="compact","Compression elements are compact, local buckling does not apply","Calculate compression flange buckling fo noncompact flanges") -> Compression elements are compact, local buckling does not apply
C48: AISC EQ. F3-2 | F48: Mnx = | G48: =IF(H23="compact",Mp_wf,(Mp_wf - (Mp_wf - 0.7*Fy*Sx_wf)*(G23 -G24)/(G25 - G24))) -> 20900 | H48: kip-in. | J48: AISC EQ. F3-2 | M48: Mnx = | N48: =IF(O23="compact",Mp_wf,(Mp_wf - (Mp_wf - 0.7*Fy*Sx_wf)*(N23 -N24)/(N25 - N24))) -> 20900 | O48: kip-in.
C50: Nominal Flexural Design Strength | F50: Mnx = | G50: =MIN(G45,G48,Mp_wf)/12 -> 1187.12047 | H50: kip-ft. | J50: Nominal Flexural Design Strength | M50: Mnx = | N50: =MIN(N45,N48,Mp_wf)/12 -> 1187.12047 | O50: kip-ft.
C51: Alllowable Moment Strength | F51: Mcx = Mnx/W = | G51: =G50/1.67 -> 710.8505806 | H51: kip-ft. ( W = 1.67) | J51: Flexural Design Strength | M51: Mcx = fMnx = | N51: =0.9*N50 -> 1068.408423 | O51: kip-ft. ( f = 0.90 )
F52: Mrx / Mcx = | G52: =M_ax/Mnx_Omega -> 0.6694603099 | H52: =IF(G52<=1," o.k."," n.g.") -> o.k. | M52: Mrx / Mcx = | N52: =M_ux/fM_nx -> 0.6414246514 | O52: =IF(N52<=1," o.k."," n.g.") -> o.k.
C54: Check Bending about the Y-Y Axis in the top flange | J54: Check Bending about the Y-Y Axis in the top flange
C55: Plastic Moment (F2-1) * | F55: Mpy = | G55: =Fy*Zt_wf -> 2267.33625 | H55: kip-in. | J55: Plastic Moment (F2-1) * | M55: Mpy = | N55: =Fy*Zt_wf -> 2267.33625 | O55: kip-in.
C56: Flexural Design Strength | F56: Mcy = Mny/W = | G56: =(G55/12)/1.67 -> 113.1405314 | H56: kip-ft. ( W = 1.67) | J56: Flexural Design Strength | M56: Mcy = fMny = | N56: =0.9*N55/12 -> 170.0502187 | O56: kip-ft. ( f = 0.90 )
F57: Mry / Mcy = | G57: =M_ay/Mny_Omega -> 0.2146710793 | H57: =IF(G57<=1," o.k."," n.g.") -> o.k. | M57: Mry / Mcy = | N57: =M_uy/fM_ny -> 0.2285254338 | O57: =IF(N57<=1," o.k."," n.g.") -> o.k.
C58: * As a conservative simplification the section properties of the top flange are used | J58: * As a conservative simplification the section properties of the top flange are used
C59: Check Biaxial Bending in the top flange | J59: Check Biaxial Bending in the top flange
C60: COMBINED BENDING | J60: COMBINED BENDING
C61: AISC EQ. H1-1b | F61: Mrx / Mcx + Mry / Mcy = | G61: =(M_ax/Mnx_Omega)+(M_ay/Mny_Omega) -> 0.8841313893 | H61: =IF(AND(G52<=1,G57<=1,G61<=1)," o.k."," n.g.") -> o.k. | J61: AISC EQ. H1-1b | M61: Mrx / Mcx + Mry / Mcy = | N61: =(M_ux/fM_nx)+(M_uy/fM_ny) -> 0.8699500851 | O61: =IF(AND(N52<=1,N57<=1,N61<=1)," o.k."," n.g.") -> o.k.
C63: Check Shear about the X-X Axis | J63: Check Shear about the X-X Axis
C64: Evaluate using the shear strength of the WF beam alone | J64: Evaluate using the shear strength of the WF beam alone
F65: h/tw = | G65: =h_to_tw_wf -> 33.2 | M65: h/tw = | N65: =h_to_tw_wf -> 33.2
F66: 2.24√(E/Fy) = | G66: =2.24*SQRT(29000/Fy) -> 53.94634371 | M66: 2.24√(E/Fy) = | N66: =2.24*SQRT(29000/Fy) -> 53.94634371
C67: Buckling coefficient (G2.1b(i)) | F67: kv = | G67: 5 | H67: no transverse stiffeners | J67: Buckling coefficient (G2.1b(i)) | M67: kv = | N67: 5 | O67: no transverse stiffeners
F68: 1.10√(kvE/Fy) = | G68: =1.1*SQRT(k_v_ASD*29000/Fy) -> 59.23681288 | M68: 1.10√(kvE/Fy) = | N68: =1.1*SQRT(k_v*29000/Fy) -> 59.23681288
F69: 1.37√(kvE/Fy) = | G69: =1.37*SQRT(k_v_ASD*29000/Fy) -> 73.77675786 | M69: 1.37√(kvE/Fy) = | N69: =1.37*SQRT(k_v*29000/Fy) -> 73.77675786
C70: =IF(G65<=G66,"Shear coefficient: AISC EQ. G2-2",IF(G65<=G68,"Shear coefficient: AISC EQ. G2-3",IF(G65<=G69,"Shear coefficient: AISC EQ. G2-4","Shear coefficient: AISC EQ. G2-5"))) -> Shear coefficient: AISC EQ. G2-2 | F70: Cv = | G70: =IF(OR(G65<=G66,G65<=G68),1,IF(G65<=G69,G68/G65,1.51*29000*k_v/(G65^2*Fy))) -> 1 | J70: =IF(N65<=N66,"Shear coefficient: AISC EQ. G2-2",IF(N65<=N68,"Shear coefficient: AISC EQ. G2-3",IF(N65<=N69,"Shear coefficient: AISC EQ. G2-4","Shear coefficient: AISC EQ. G2-5"))) -> Shear coefficient: AISC EQ. G2-2 | M70: Cv = | N70: =IF(OR(N65<=N66,N65<=N68),1,IF(N65<=N69,N68/N65,1.51*29000*k_v/(N65^2*Fy))) -> 1
C71: Factor of safety for shear | F71: Wv = | G71: =IF(G65>G66,1.67,1.5) -> 1.5 | J71: Resistance factor for shear | M71: fv = | N71: =IF(N65>N66,0.9,1) -> 1
C72: Shear area | F72: Aw = | G72: =dwf*tw_wf -> 16.055 | H72: in.2 | J72: Shear area | M72: Aw = | N72: =dwf*tw_wf -> 16.055 | O72: in.2
C73: AISC EQ. G2-1 | F73: Vnx = | G73: =0.6*Fy*A_w*C_v -> 481.65 | H73: kips | J73: AISC EQ. G2-1 | M73: Vnx = | N73: =0.6*Fy*A_w*C_v -> 481.65 | O73: kips
C74: Shear Design Strength | F74: Vcx = Vnx/W = | G74: =G73/G71 -> 321.1 | H74: kips | J74: Shear Design Strength | M74: Vcx = fVnx = | N74: =phi_v*Vnx -> 481.65 | O74: kips
F75: Vr / Vcx = | G75: =V_ax/G74 -> 0.2450685145 | H75: =IF(G75<=1," o.k."," n.g.") -> o.k. | M75: Vr / Vcx = | N75: =V_ux/N74 -> 0.2355855912 | O75: =IF(N75<=1," o.k."," n.g.") -> o.k.
C77: Check Web Sidesway Buckling | J77: Check Web Sidesway Buckling
C78: AISC Section J10.4(b) for compression flange not restrained against rotation | J78: AISC Section J10.4(b) for compression flange not restrained against rotation
F79: (h/tw) / (L/bf) = | G79: =h_to_tw_wf/(L_b/bf_wf) -> 1.189666667 | H79: =IF(G79<=1.7," ≤ 1.7 use EQ. J10-7"," > 1.7") -> ≤ 1.7 use EQ. J10-7 | M79: (h/tw) / (L/bf) = | N79: =h_to_tw_wf/(L_b/bf_wf) -> 1.189666667 | O79: =IF(N79<=1.7," ≤ 1.7 use EQ. J10-7"," > 1.7") -> ≤ 1.7 use EQ. J10-7
F80: My = | G80: =Fy*Sx_wf/12 -> 1545.833333 | H80: kip-in. | M80: My = | N80: =Fy*Sx_wf/12 -> 1545.833333 | O80: kip-in.
F81: Cr = | G81: =(IF(1.5*M_ax<(M_y),960000,480000)) -> 960000 | H81: ksi for 1.5Ma > My | M81: Cr = | N81: =(IF(M_ux<(M_y),960000,480000)) -> 960000 | O81: ksi for Mu > My
C82: Factor of safety | F82: W = | G82: 1.76 | J82: Resistance factor | M82: f = | N82: 0.85
C83: Nominal Strength of Web | F83: Rn = | G83: =IF(G79<=1.7,C_r*tw_wf^3*tf_wf/hwf^2*(0.4*(G79)^3),"N/A") -> 417.9161342 | H83: kips | J83: Nominal Strength of Web | M83: Rn = | N83: =IF(N79<=1.7,C_r*tw_wf^3*tf_wf/hwf^2*(0.4*(N79)^3),"N/A") -> 417.9161342 | O83: kips
C84: Available Strength of Web | F84: Rc = Rn/W = | G84: =IF(G79<=1.7,G83/1.76,"N/A") -> 237.452349 | H84: kips | J84: Available Strength of Web | M84: Rc = fRn = | N84: =IF(N79<=1.7,0.85*N83,"N/A") -> 355.2287141 | O84: kips
F85: Pr / Rc = | G85: =IF(G79<=1.7,P_av/G84,"N/A") -> 0.2005665566 | H85: =IF(G79<1.7,IF(G85<=1," o.k."," n.g."),"") -> o.k. | M85: Pr / Rc = | N85: =IF(N79<=1.7,P_uv/N84,"N/A") -> 0.1943818089 | O85: =IF(N79<1.7,IF(N85<=1," o.k."," n.g."),"") -> o.k.

Sheet Design Checks 2010 W (hidden)
C2: CRANE BEAM DESIGN CHECKS: AISC 360-10 | J2: ='Crane Beam Design'!E6 -> Crane Beam Example
J3: ='Crane Beam Design'!E7 -> Example 18.1.2 LRFD
C4: Crane Runway Beam | F4: =Shape_Name_W -> W24X146 | J4: ='Crane Beam Design'!E8 -> AISC Steel Solutions Center
E5: ='Crane Beam Design'!T48 -> 2 | F5: =VLOOKUP(E5,'Crane Beam Design'!R49:S51,2,FALSE)&" Member Properties" -> AISC 14th Edition Member Properties | J5: ='Crane Beam Design'!E9 -> JRE | N5: Date: | O5: ='Crane Beam Design'!J9 -> 2014-07-24 | S5: =Fy -> 50
C7: ASD DESIGN | J7: LRFD DESIGN | S7: =Sx_wf -> 371
C8: Design Loads | J8: Design Loads
C9: Max. Vertical Wheel Load * | F9: Pav = | G9: ='Loads and Deflection'!P_av -> 47.625 | H9: kips / wheel | J9: Max. Vertical Wheel Load * | M9: Puv = | N9: ='Loads and Deflection'!P_uv -> 69.05 | O9: kips / wheel
C10: Max. Horizontal Wheel Load ** | F10: Pah = | G10: ='Loads and Deflection'!P_ah -> 2.53 | H10: kips / wheel / side | J10: Max. Horizontal Wheel Load ** | M10: Puh = | N10: ='Loads and Deflection'!P_uh -> 4.048 | O10: kips / wheel / side
C11: * Includes impact. | J11: * Includes impact.
C12: ** Total Horizontal Force, P h, is 20% of the sum of weights of the lifted load | J12: ** Total Horizontal Force, P h, is 20% of the sum of weights of the lifted load
C13: and crane trolley, exclusive of other parts of crane. | J13: and crane trolley, exclusive of other parts of crane.
C15: Design Forces | J15: Design Forces
C16: Bending Moment X-X Axis *** | F16: Max = | G16: ='Loads and Deflection'!M_ax -> 475.88625 | H16: kip-ft. | J16: Bending Moment X-X Axis *** | M16: Mux = | N16: ='Loads and Deflection'!M_ux -> 685.3035 | O16: kip-ft.
C17: Bending Moment Y-Y Axis | F17: May = | G17: ='Loads and Deflection'!M_ay -> 24.288 | H17: kip-ft. | J17: Bending Moment Y-Y Axis | M17: Muy = | N17: ='Loads and Deflection'!M_uy -> 38.8608 | O17: kip-ft.
C18: Shear X-X Axis *** | F18: Vax = | G18: ='Loads and Deflection'!V_ax -> 78.6915 | H18: kips | J18: Shear X-X Axis *** | M18: Vux = | N18: ='Loads and Deflection'!V_ux -> 113.4698 | O18: kips
C19: *** Includes impact and girder and rail weight. | J19: *** Includes impact and girder and rail weight.
C21: Check Local Buckling | J21: Check Local Buckling
C22: UNSTIFFENED ELEMENTS | J22: UNSTIFFENED ELEMENTS | S22: LIMITED TO BEAMS WITH COMPACT or NONCOMPACT FLANGES
C23: Flanges of W-Shape | F23: l = (bf/2tf)w = | G23: =bf_to_2tf -> 5.92 | H23: =IF(G23<=G24,"compact",IF(AND(G23>G24,G23<=G25),"noncompact","slender")) -> compact | J23: Flanges of W-Shape | M23: l = (bf/2tf)w = | N23: =bf_to_2tf -> 5.92 | O23: =IF(N23<=N24,"compact",IF(AND(N23>N24,N23<=N25),"noncompact","slender")) -> compact
F24: Compact Limit lr = 0.38√(E/Fy) = | G24: =0.38*SQRT(29000/Fy) -> 9.15161188 | M24: Compact Limit lr = 0.38√(E/Fy) = | N24: =0.38*SQRT(29000/Fy) -> 9.15161188
F25: Noncompact Limit lr = 1.0√(E/Fy) = | G25: =1*SQRT(29000/Fy) -> 24.08318916 | M25: Noncompact Limit lr = 1.0√(E/Fy) = | N25: =1*SQRT(29000/Fy) -> 24.08318916
C26: STIFFENED ELEMENTS | J26: STIFFENED ELEMENTS
C27: Web of W-Shape | F27: l = h/tw = | G27: =h_to_tw_wf -> 33.2 | H27: =IF(G27<=G28,"compact",IF(AND(G27<=G29),"noncompact","slender")) -> compact | J27: Web of W-Shape | M27: l = h/tw = | N27: =h_to_tw_wf -> 33.2 | O27: =IF(N27<=N28,"compact",IF(AND(N27<=N29),"noncompact","slender")) -> compact | S27: LIMITED TO BEAMS WITH COMPACT WEBS
F28: Compact Limit lp = 3.76√(E/Fy) = | G28: =3.76*SQRT(29000/Fy) -> 90.55279123 | M28: Compact Limit lp = 3.76√(E/Fy) = | N28: =3.76*SQRT(29000/Fy) -> 90.55279123
F29: Noncompact Limit lr = 5.70√(E/Fy) = | G29: =5.7*SQRT(29000/Fy) -> 137.2741782 | M29: Noncompact Limit lr = 5.70√(E/Fy) = | N29: =5.7*SQRT(29000/Fy) -> 137.2741782
C31: Check Bending about the X-X Axis | J31: Check Bending about the X-X Axis
C32: Actual Unbraced Length | F32: Lb = | G32: =L_sp*12 -> 360 | H32: in. | J32: Actual Unbraced Length | M32: Lb = | N32: =L_sp*12 -> 360 | O32: in.
C33: Determine Limiting Lateral Unbraced Lengths | J33: Determine Limiting Lateral Unbraced Lengths
C34: AISC EQ. F2-5 | F34: Lp = | G34: =1.76*ry_wf*SQRT(29000/Fy) -> 127.5831029 | H34: in. | J34: AISC EQ. F2-5 | M34: Lp = | N34: =1.76*ry_wf*SQRT(29000/Fy) -> 127.5831029 | O34: in.
F35: c = | G35: 1 | M35: c = | N35: 1
C36: AISC EQ. F2-6 | F36: Lr = | G36: =1.95*rts_wf*(29000/(0.7*Fy))*SQRT(((J_wf*c_wf)/(Sx_wf*h0_wf)+SQRT(((J_wf*c_wf)/(Sx_wf*h0_wf))^2 + 6.76*((0.7*Fy)/29000)^2))) -> 404.0223112 | H36: in. | J36: AISC EQ. F2-6 | M36: Lr = | N36: =1.95*rts_wf*(29000/(0.7*Fy))*SQRT(((J_wf*c_wf)/(Sx_wf*h0_wf)+SQRT(((J_wf*c_wf)/(Sx_wf*h0_wf))^2 + 6.76*((0.7*Fy)/29000)^2))) -> 404.0223112 | O36: in.
C37: Bending Coefficient | F37: Cb = | G37: 1 | J37: Bending Coefficient | M37: Cb = | N37: 1
C38: YIELDING Lb < Lp | J38: YIELDING Lb < Lp
C39: AISC EQ. F2-1 | F39: Mp = | G39: =Zx_wf*Fy -> 20900 | H39: kip-in. | J39: AISC EQ. F2-1 | M39: Mp = | N39: =Zx_wf*Fy -> 20900 | O39: kip-in.
C40: LATERAL-TORSIONAL BUCKLING Lp < Lb < Lr | J40: LATERAL-TORSIONAL BUCKLING Lp < Lb < Lr
C41: AISC EQ. F2-2 | F41: Mnx = | G41: =MIN(C_b*(Mp_wf-(Mp_wf-0.7*Fy*Sx_wf)*(L_b - L_p)/(L_r - L_p)), Mp_wf) -> 14245.44563 | H41: kip-in. | J41: AISC EQ. F2-2 | M41: Mnx = | N41: =MIN(C_b*(Mp_wf-(Mp_wf-0.7*Fy*Sx_wf)*(L_b - L_p)/(L_r - L_p)), Mp_wf) -> 14245.44563 | O41: kip-in.
C42: LATERAL-TORSIONAL BUCKLING Lb > Lr | J42: LATERAL-TORSIONAL BUCKLING Lb > Lr
C43: AISC EQ. F2-4 | F43: Fcr = | G43: =MIN(C_b*PI()^2*29000/(L_b/rts_wf)^2*SQRT(1+0.078*(J_wf*c_wf)/(Sx_wf*h0_wf)*(L_b/rts_wf)^2),Fy) -> 41.18074757 | H43: ksi | J43: AISC EQ. F2-4 | M43: Fcr = | N43: =MIN(C_b*PI()^2*29000/(L_b/rts_wf)^2*SQRT(1+0.078*(J_wf*c_wf)/(Sx_wf*h0_wf)*(L_b/rts_wf)^2),Fy) -> 41.18074757 | O43: ksi
C44: AISC EQ. F2-3 | F44: Mnx = | G44: =MIN(F_cr*Sx_wf,Mp_wf) -> 15278.05735 | H44: kip-in. | J44: AISC EQ. F2-3 | M44: Mnx = | N44: =MIN(F_cr*Sx_wf,Mp_wf) -> 15278.05735 | O44: kip-in.
F45: Mn_LTB = | G45: =IF(L_b<=L_p,Mp_wf,IF(L_b<=L_r,G41,G44)) -> 14245.44563 | H45: kip-in. | M45: Mn_LTB = | N45: =IF(L_b<=L_p,Mp_wf,IF(L_b<=L_r,N41,N44)) -> 14245.44563 | O45: kip-in.
C46: COMPRESSION FLANGE LOCAL BUCKLING | J46: COMPRESSION FLANGE LOCAL BUCKLING
C47: =IF(H23="compact","Compression elements are compact, local buckling does not apply","Calculate compression flange buckling fo noncompact flanges") -> Compression elements are compact, local buckling does not apply | J47: =IF(O23="compact","Compression elements are compact, local buckling does not apply","Calculate compression flange buckling fo noncompact flanges") -> Compression elements are compact, local buckling does not apply
C48: AISC EQ. F3-2 | F48: Mnx = | G48: =IF(H23="compact",Mp_wf,(Mp_wf - (Mp_wf - 0.7*Fy*Sx_wf)*(G23 -G24)/(G25 - G24))) -> 20900 | H48: kip-in. | J48: AISC EQ. F3-2 | M48: Mnx = | N48: =IF(O23="compact",Mp_wf,(Mp_wf - (Mp_wf - 0.7*Fy*Sx_wf)*(N23 -N24)/(N25 - N24))) -> 20900 | O48: kip-in.
C50: Nominal Flexural Design Strength | F50: Mnx = | G50: =MIN(G45,G48,Mp_wf)/12 -> 1187.12047 | H50: kip-ft. | J50: Nominal Flexural Design Strength | M50: Mnx = | N50: =MIN(N45,N48,Mp_wf)/12 -> 1187.12047 | O50: kip-ft.
C51: Alllowable Moment Strength | F51: Mcx = Mnx/W = | G51: =G50/1.67 -> 710.8505806 | H51: kip-ft. ( W = 1.67) | J51: Flexural Design Strength | M51: Mcx = fMnx = | N51: =0.9*N50 -> 1068.408423 | O51: kip-ft. ( f = 0.90 )
F52: Mrx / Mcx = | G52: =M_ax/Mnx_Omega -> 0.6694603099 | H52: =IF(G52<=1," o.k."," n.g.") -> o.k. | M52: Mrx / Mcx = | N52: =M_ux/fM_nx -> 0.6414246514 | O52: =IF(N52<=1," o.k."," n.g.") -> o.k.
C54: Check Bending about the Y-Y Axis in the top flange | J54: Check Bending about the Y-Y Axis in the top flange
C55: Plastic Moment (F2-1) * | F55: Mpy = | G55: =Fy*Zt_wf -> 2267.33625 | H55: kip-in. | J55: Plastic Moment (F2-1) * | M55: Mpy = | N55: =Fy*Zt_wf -> 2267.33625 | O55: kip-in.
C56: Flexural Design Strength | F56: Mcy = Mny/W = | G56: =(G55/12)/1.67 -> 113.1405314 | H56: kip-ft. ( W = 1.67) | J56: Flexural Design Strength | M56: Mcy = fMny = | N56: =0.9*N55/12 -> 170.0502187 | O56: kip-ft. ( f = 0.90 )
F57: Mry / Mcy = | G57: =M_ay/Mny_Omega -> 0.2146710793 | H57: =IF(G57<=1," o.k."," n.g.") -> o.k. | M57: Mry / Mcy = | N57: =M_uy/fM_ny -> 0.2285254338 | O57: =IF(N57<=1," o.k."," n.g.") -> o.k.
C58: * As a conservative simplification the section properties of the top flange are used | J58: * As a conservative simplification the section properties of the top flange are used
C59: Check Biaxial Bending in the top flange | J59: Check Biaxial Bending in the top flange
C60: COMBINED BENDING | J60: COMBINED BENDING
C61: AISC EQ. H1-1b | F61: Mrx / Mcx + Mry / Mcy = | G61: =(M_ax/Mnx_Omega)+(M_ay/Mny_Omega) -> 0.8841313893 | H61: =IF(AND(G52<=1,G57<=1,G61<=1)," o.k."," n.g.") -> o.k. | J61: AISC EQ. H1-1b | M61: Mrx / Mcx + Mry / Mcy = | N61: =(M_ux/fM_nx)+(M_uy/fM_ny) -> 0.8699500851 | O61: =IF(AND(N52<=1,N57<=1,N61<=1)," o.k."," n.g.") -> o.k.
C63: Check Shear about the X-X Axis | J63: Check Shear about the X-X Axis
C64: Evaluate using the shear strength of the WF beam alone | J64: Evaluate using the shear strength of the WF beam alone
F65: h/tw = | G65: =h_to_tw_wf -> 33.2 | M65: h/tw = | N65: =h_to_tw_wf -> 33.2
F66: 2.24√(E/Fy) = | G66: =2.24*SQRT(29000/Fy) -> 53.94634371 | M66: 2.24√(E/Fy) = | N66: =2.24*SQRT(29000/Fy) -> 53.94634371
C67: Buckling coefficient (G2.1b(i)) | F67: kv = | G67: 5 | H67: no transverse stiffeners | J67: Buckling coefficient (G2.1b(i)) | M67: kv = | N67: 5 | O67: no transverse stiffeners
F68: 1.10√(kvE/Fy) = | G68: =1.1*SQRT(k_v_ASD*29000/Fy) -> 59.23681288 | M68: 1.10√(kvE/Fy) = | N68: =1.1*SQRT(k_v*29000/Fy) -> 59.23681288
F69: 1.37√(kvE/Fy) = | G69: =1.37*SQRT(k_v_ASD*29000/Fy) -> 73.77675786 | M69: 1.37√(kvE/Fy) = | N69: =1.37*SQRT(k_v*29000/Fy) -> 73.77675786
C70: =IF(G65<=G66,"Shear coefficient: AISC EQ. G2-2",IF(G65<=G68,"Shear coefficient: AISC EQ. G2-3",IF(G65<=G69,"Shear coefficient: AISC EQ. G2-4","Shear coefficient: AISC EQ. G2-5"))) -> Shear coefficient: AISC EQ. G2-2 | F70: Cv = | G70: =IF(OR(G65<=G66,G65<=G68),1,IF(G65<=G69,G68/G65,1.51*29000*k_v/(G65^2*Fy))) -> 1 | J70: =IF(N65<=N66,"Shear coefficient: AISC EQ. G2-2",IF(N65<=N68,"Shear coefficient: AISC EQ. G2-3",IF(N65<=N69,"Shear coefficient: AISC EQ. G2-4","Shear coefficient: AISC EQ. G2-5"))) -> Shear coefficient: AISC EQ. G2-2 | M70: Cv = | N70: =IF(OR(N65<=N66,N65<=N68),1,IF(N65<=N69,N68/N65,1.51*29000*k_v/(N65^2*Fy))) -> 1
C71: Factor of safety for shear | F71: Wv = | G71: =IF(G65>G66,1.67,1.5) -> 1.5 | J71: Resistance factor for shear | M71: fv = | N71: =IF(N65>N66,0.9,1) -> 1
C72: Shear area | F72: Aw = | G72: =dwf*tw_wf -> 16.055 | H72: in.2 | J72: Shear area | M72: Aw = | N72: =dwf*tw_wf -> 16.055 | O72: in.2
C73: AISC EQ. G2-1 | F73: Vnx = | G73: =0.6*Fy*A_w*C_v -> 481.65 | H73: kips | J73: AISC EQ. G2-1 | M73: Vnx = | N73: =0.6*Fy*A_w*C_v -> 481.65 | O73: kips
C74: Shear Design Strength | F74: Vcx = Vnx/W = | G74: =G73/G71 -> 321.1 | H74: kips | J74: Shear Design Strength | M74: Vcx = fVnx = | N74: =phi_v*Vnx -> 481.65 | O74: kips
F75: Vr / Vcx = | G75: =V_ax/G74 -> 0.2450685145 | H75: =IF(G75<=1," o.k."," n.g.") -> o.k. | M75: Vr / Vcx = | N75: =V_ux/N74 -> 0.2355855912 | O75: =IF(N75<=1," o.k."," n.g.") -> o.k.
C77: Check Web Sidesway Buckling | J77: Check Web Sidesway Buckling
C78: AISC Section J10.4(b) for compression flange not restrained against rotation | J78: AISC Section J10.4(b) for compression flange not restrained against rotation
F79: (h/tw) / (L/bf) = | G79: =h_to_tw_wf/(L_b/bf_wf) -> 1.189666667 | H79: =IF(G79<=1.7," ≤ 1.7 use EQ. J10-7"," > 1.7") -> ≤ 1.7 use EQ. J10-7 | M79: (h/tw) / (L/bf) = | N79: =h_to_tw_wf/(L_b/bf_wf) -> 1.189666667 | O79: =IF(N79<=1.7," ≤ 1.7 use EQ. J10-7"," > 1.7") -> ≤ 1.7 use EQ. J10-7
F80: My = | G80: =Fy*Sx_wf/12 -> 1545.833333 | H80: kip-in. | M80: My = | N80: =Fy*Sx_wf/12 -> 1545.833333 | O80: kip-in.
F81: Cr = | G81: =(IF(1.5*M_ax<(M_y),960000,480000)) -> 960000 | H81: ksi for 1.5Ma > My | M81: Cr = | N81: =(IF(M_ux<(M_y),960000,480000)) -> 960000 | O81: ksi for Mu > My
C82: Factor of safety | F82: W = | G82: 1.76 | J82: Resistance factor | M82: f = | N82: 0.85
C83: Nominal Strength of Web | F83: Rn = | G83: =IF(G79<=1.7,C_r*tw_wf^3*tf_wf/hwf^2*(0.4*(G79)^3),"N/A") -> 417.9161342 | H83: kips | J83: Nominal Strength of Web | M83: Rn = | N83: =IF(N79<=1.7,C_r*tw_wf^3*tf_wf/hwf^2*(0.4*(N79)^3),"N/A") -> 417.9161342 | O83: kips
C84: Available Strength of Web | F84: Rc = Rn/W = | G84: =IF(G79<=1.7,G83/G82,"N/A") -> 237.452349 | H84: kips | J84: Available Strength of Web | M84: Rc = fRn = | N84: =IF(N79<=1.7,N82*N83,"N/A") -> 355.2287141 | O84: kips
F85: Pr / Rc = | G85: =IF(G79<=1.7,P_av/G84,"N/A") -> 0.2005665566 | H85: =IF(G79<1.7,IF(G85<=1," o.k."," n.g."),"") -> o.k. | M85: Pr / Rc = | N85: =IF(N79<=1.7,P_uv/N84,"N/A") -> 0.1943818089 | O85: =IF(N79<1.7,IF(N85<=1," o.k."," n.g."),"") -> o.k.

Sheet Custom Section Properties (hidden)
C2: CUSTOM COMBINED SECTION PROPERTIES:
C4: W SHAPE BEAM | F4: Link cell: | G4: 105
C6: Design Section | E6: W30x116 (Modified)
L7: y 2
C8: Total Section Weight | E8: Wt. | F8: 131 | G8: plf
C9: Cross-sectional Area | E9: A | F9: 38.5 | G9: in.2 | H9: NA
C10: Total Depth | E10: d total | F10: 24.5 | G10: in.
C11: Web Depth | E11: h | F11: 21.58 | G11: in. | L11: y 1
C12: Distance to N. A. | E12: y 2 | F12: 12.25 | G12: in.
C13: Distance to N. A. | E13: y 1 | F13: 12.25 | G13: in.
C14: Moment of Inertia | E14: Ix | F14: 4020 | G14: in.4 | H14: Area Top | J14: A top | K14: 12.384 | L14: in.2
C15: Section Modulus | E15: Sx | F15: 329 | G15: in.3 | H15: Depth / Flange Area | J15: d / Af top | K15: 1.978359173
C16: Distance between flange centroids | E16: h0 | F16: =F10-F25 -> 23.54 | G16: in. | H16: Radius of Gyration | J16: rT top | K16: 3.423247278 | L16: in.
C17: Radius of Gyration | E17: rx | F17: 10.2 | G17: in. | H17: Moment of Inertia | J17: It | K17: 171.73512 | L17: in.4
C18: Plastic Modulus | E18: Zx | F18: 370 | G18: in.3 | H18: Section Modulus | J18: St | K18: 26.6256 | L18: in.3
C19: Moment of Inertia | E19: Iy | F19: 340 | G19: in.4 | H19: Plastic Modulus | J19: Zt | K19: 39.9384 | L19: in.3
C20: Section Modulus | E20: Sy | F20: 53 | G20: in.3 | H20: Radius of Gyration Top | J20: ry top | K20: 3.723909236 | L20: in.
C21: Radius of Gyration | E21: ry | F21: 2.97 | G21: in. | H21: Torsional Constant | J21: J | K21: 9.5 | L21: in.4
C22: Plastic Modulus | E22: Zy | F22: 81.5 | G22: in.3 | H22: Warping Constant | J22: Cw | K22: 47000 | L22: in.6
C23: Web Thickness | E23: tw | F23: 0.605 | G23: in. | H23: Compact Criteria | J23: bf / 2 tf | K23: 6.7
C24: Flange Width | E24: bf | F24: 12.9 | G24: in. | H24: Compact Criteria | J24: d / tw | K24: 40.49586777
C25: Flange Thickness | E25: tf | F25: 0.96 | G25: in. | H25: Compact Criteria | J25: h / tw | K25: 35.66942149
C27: W SHAPE BEAM + CAP CHANNEL | G27: 8
C29: Combined Section | E29: W30x116 C15x33.9 (Modified)
L30: y 2
C31: Total Section Weight | E31: Wt. | F31: 150 | G31: plf
C32: Cross-sectional Area | E32: A | F32: 44.1 | G32: in.2 | H32: NA
C33: Total Depth | E33: d total | F33: 30.4 | G33: in.
C34: Distance to N. A. | E34: y 2 | F34: 12.1 | G34: in. | L34: y 1
C35: Distance to N. A. | E35: y 1 | F35: 18.3 | G35: in.
C36: Web Depth | E36: h | F36: 27 | G36: in.
C37: Moment of Inertia | E37: Ix | F37: 6590 | G37: in.4 | H37: Area Top | J37: A top | K37: 18.875 | L37: in.2
C38: Section Modulus | E38: S2 | F38: 544 | G38: in.3 | H38: Depth / Flange Area | J38: d / Af top | K38: 1.610596026
E39: S1 | F39: 360 | G39: in.3 | H39: Radius of Gyration | J39: rT top | K39: 4.356716223 | L39: in.
C40: Radius of Gyration | E40: rx | F40: 12.2 | G40: in. | H40: Moment of Inertia | J40: It | K40: 396.9984375 | L40: in.4
C41: Plastic Modulus | E41: Zx | F41: 480 | G41: in.3 | H41: Section Modulus | J41: St | K41: 52.933125 | L41: in.3
C42: Moment of Inertia | E42: Iy | F42: 479 | G42: in.4 | H42: Plastic Modulus | J42: Zt | K42: 74.228125 | L42: in.3
C43: Section Modulus | E43: Sy | F43: 63.8 | G43: in.3 | H43: Radius of Gyration Top | J43: ry top | K43: 4.586178126 | L43: in.
C44: Radius of Gyration | E44: ry | F44: 3.29 | G44: in. | H44: Torsional Constant | J44: J | K44: 7.44 | L44: in.4
C45: Plastic Modulus | E45: Zy | F45: 100 | G45: in.3 | H45: Warping Constant | J45: Cw | K45: 0 | L45: in.6
C46: Depth | E46: h/hc | F46: 1.323529412 | H46: C Compact Criteria | J46: bf / tf | K46: 5.230769231
C47: W Depth | E47: d | F47: 30 | G47: in. | H47: C Depth | J47: d | K47: 15 | L47: in.
C48: W Web Thickness | E48: tw | F48: 0.565 | G48: in. | H48: C Web Thickness | J48: tw | K48: 0.4 | L48: in.
C49: W Flange Width | E49: bf | F49: 10.5 | G49: in. | H49: C Web Depth | J49: hc | K49: 12.125 | L49: in.
C50: W Flange Thickness | E50: tf | F50: 0.85 | G50: in.
C51: W Compact Criteria | E51: bf / 2 tf | F51: 6.17
C52: W Compact Criteria | E52: d / tw | F52: 53.09734513

Sheet AISC LRFD 3 (hidden)
A1: AISC LRFD 3rd Edition Table 1-1
A2: W-Shapes Dimensions and Properties
A4: Type | B4: EDI_Std_Nomenclature | C4: AISC_Manual_Label | D4: T_F | E4: W | F4: A | G4: d | H4: Ht | I4: OD | J4: bf | K4: b | L4: ID | M4: tw | N4: tf | O4: t | P4: tnom | Q4: tdes | R4: kdes | S4: kdet | T4: x | U4: y | V4: e0 | W4: xp | X4: yp | Y4: bf/2tf | Z4: b_t | AA4: h/tw | AB4: h_t | AC4: D_t | AD4: Fy3p | AE4: X1 | AF4: X2 x 106 | AG4: Ix | AH4: Zx | AI4: Sx | AJ4: rx | AK4: Iy | AL4: Zy | AM4: Sy | AN4: ry | AO4: rz | AP4: J | AQ4: Cw | AR4: C | AS4: Wno | AT4: Sw | AU4: Qf | AV4: Qw | AW4: ro | AX4: H | AY4: tan_alpha | AZ4: Qs
C5: 1 | D5: =C5+1 -> 2 | E5: =D5+1 -> 3 | F5: 4 | G5: 5 | H5: 6 | I5: 7 | J5: 8 | K5: 9 | L5: 10 | M5: 11 | N5: 12 | O5: 13 | P5: 14 | Q5: 15 | R5: 16 | S5: 17 | T5: 18 | U5: 19 | V5: 20 | W5: 21 | X5: 22 | Y5: 23 | Z5: 24 | AA5: 25 | AB5: 26 | AC5: 27 | AD5: 28 | AE5: 29 | AF5: 30 | AG5: 31 | AH5: 32 | AI5: 33 | AJ5: 34 | AK5: 35 | AL5: 36 | AM5: 37 | AN5: 38 | AO5: 39 | AP5: 40 | AQ5: 41 | AR5: 42 | AS5: 43 | AT5: 44 | AU5: 45 | AV5: 46 | AW5: 47 | AX5: 48 | AY5: 49 | AZ5: 50
A6: W | B6: W44x335 | C6: W44x335 | D6: 3 | E6: 335 | F6: 98.3 | G6: 44 | H6: 0 | I6: 0 | J6: 16 | K6: 0 | L6: 0 | M6: 1.02 | N6: 1.77 | O6: 0 | P6: 0 | Q6: 0 | R6: 2.56 | S6: 2.625 | T6: 0 | U6: 0 | V6: 0 | W6: 0 | X6: 0 | Y6: 4.51 | Z6: 0 | AA6: 38.1 | AB6: 0 | AC6: 0 | AD6: 44.3 | AE6: 2430 | AF6: 5110 | AG6: 31100 | AH6: 1620 | AI6: 1410 | AJ6: 17.8 | AK6: 1200 | AL6: 236 | AM6: 151 | AN6: 3.5 | AO6: 0 | AP6: 74.4 | AQ6: 536000 | AR6: 0 | AS6: 168 | AT6: 1190 | AU6: 279 | AV6: 805 | AW6: 0 | AX6: 0 | AY6: 0 | AZ6: 0
A7: W | B7: W44x290 | C7: W44x290 | D7: 3 | E7: 290 | F7: 85.8 | G7: 43.6 | H7: 0 | I7: 0 | J7: 15.8 | K7: 0 | L7: 0 | M7: 0.87 | N7: 1.58 | O7: 0 | P7: 0 | Q7: 0 | R7: 2.37 | S7: 2.4375 | T7: 0 | U7: 0 | V7: 0 | W7: 0 | X7: 0 | Y7: 5.01 | Z7: 0 | AA7: 44.7 | AB7: 0 | AC7: 0 | AD7: 32.2 | AE7: 2150 | AF7: 8170 | AG7: 27100 | AH7: 1420 | AI7: 1240 | AJ7: 17.8 | AK7: 1050 | AL7: 206 | AM7: 132 | AN7: 3.49 | AO7: 0 | AP7: 51.5 | AQ7: 464000 | AR7: 0 | AS7: 166 | AT7: 1040 | AU7: 248 | AV7: 704 | AW7: 0 | AX7: 0 | AY7: 0 | AZ7: 0
A8: W | B8: W44x262 | C8: W44x262 | D8: 3 | E8: 262 | F8: 77.2 | G8: 43.3 | H8: 0 | I8: 0 | J8: 15.8 | K8: 0 | L8: 0 | M8: 0.79 | N8: 1.42 | O8: 0 | P8: 0 | Q8: 0 | R8: 2.21 | S8: 2.25 | T8: 0 | U8: 0 | V8: 0 | W8: 0 | X8: 0 | Y8: 5.55 | Z8: 0 | AA8: 49.2 | AB8: 0 | AC8: 0 | AD8: 26.6 | AE8: 1930 | AF8: 12300 | AG8: 24200 | AH8: 1270 | AI8: 1120 | AJ8: 17.7 | AK8: 927 | AL8: 183 | AM8: 118 | AN8: 3.46 | AO8: 0 | AP8: 37.7 | AQ8: 407000 | AR8: 0 | AS8: 165 | AT8: 922 | AU8: 222 | AV8: 630 | AW8: 0 | AX8: 0 | AY8: 0 | AZ8: 0
A9: W | B9: W44x230 | C9: W44x230 | D9: 3 | E9: 230 | F9: 67.7 | G9: 42.9 | H9: 0 | I9: 0 | J9: 15.8 | K9: 0 | L9: 0 | M9: 0.71 | N9: 1.22 | O9: 0 | P9: 0 | Q9: 0 | R9: 2.01 | S9: 2.0625 | T9: 0 | U9: 0 | V9: 0 | W9: 0 | X9: 0 | Y9: 6.45 | Z9: 0 | AA9: 54.8 | AB9: 0 | AC9: 0 | AD9: 21.5 | AE9: 1690 | AF9: 21100 | AG9: 20800 | AH9: 1100 | AI9: 971 | AJ9: 17.5 | AK9: 796 | AL9: 157 | AM9: 101 | AN9: 3.43 | AO9: 0 | AP9: 24.9 | AQ9: 346000 | AR9: 0 | AS9: 164 | AT9: 789 | AU9: 191 | AV9: 546 | AW9: 0 | AX9: 0 | AY9: 0 | AZ9: 0
A10: W | B10: W40x593 | C10: W40x593 | D10: 4 | E10: 593 | F10: 174 | G10: 43 | H10: 0 | I10: 0 | J10: 16.7 | K10: 0 | L10: 0 | M10: 1.79 | N10: 3.23 | O10: 0 | P10: 0 | Q10: 0 | R10: 4.41 | S10: 4.5 | T10: 0 | U10: 0 | V10: 0 | W10: 0 | X10: 0 | Y10: 2.58 | Z10: 0 | AA10: 19.1 | AB10: 0 | AC10: 0 | AD10: 0 | AE10: 4760 | AF10: 348 | AG10: 50400 | AH10: 2760 | AI10: 2340 | AJ10: 17 | AK10: 2520 | AL10: 481 | AM10: 302 | AN10: 3.8 | AO10: 0 | AP10: 445 | AQ10: 996000 | AR10: 0 | AS10: 166 | AT10: 2240 | AU10: 478 | AV10: 1370 | AW10: 0 | AX10: 0 | AY10: 0 | AZ10: 0
A11: W | B11: W40x503 | C11: W40x503 | D11: 4 | E11: 503 | F11: 148 | G11: 42.1 | H11: 0 | I11: 0 | J11: 16.4 | K11: 0 | L11: 0 | M11: 1.54 | N11: 2.76 | O11: 0 | P11: 0 | Q11: 0 | R11: 3.94 | S11: 4 | T11: 0 | U11: 0 | V11: 0 | W11: 0 | X11: 0 | Y11: 2.97 | Z11: 0 | AA11: 22.2 | AB11: 0 | AC11: 0 | AD11: 0 | AE11: 4110 | AF11: 620 | AG11: 41700 | AH11: 2320 | AI11: 1980 | AJ11: 16.8 | AK11: 2050 | AL11: 395 | AM11: 250 | AN11: 3.72 | AO11: 0 | AP11: 279 | AQ11: 791000 | AR11: 0 | AS11: 161 | AT11: 1830 | AU11: 403 | AV11: 1150 | AW11: 0 | AX11: 0 | AY11: 0 | AZ11: 0
A12: W | B12: W40x431 | C12: W40x431 | D12: 4 | E12: 431 | F12: 127 | G12: 41.3 | H12: 0 | I12: 0 | J12: 16.2 | K12: 0 | L12: 0 | M12: 1.34 | N12: 2.36 | O12: 0 | P12: 0 | Q12: 0 | R12: 3.54 | S12: 3.625 | T12: 0 | U12: 0 | V12: 0 | W12: 0 | X12: 0 | Y12: 3.44 | Z12: 0 | AA12: 25.5 | AB12: 0 | AC12: 0 | AD12: 0 | AE12: 3550 | AF12: 1100 | AG12: 34800 | AH12: 1960 | AI12: 1690 | AJ12: 16.6 | AK12: 1690 | AL12: 328 | AM12: 208 | AN12: 3.65 | AO12: 0 | AP12: 177 | AQ12: 639000 | AR12: 0 | AS12: 158 | AT12: 1510 | AU12: 342 | AV12: 968 | AW12: 0 | AX12: 0 | AY12: 0 | AZ12: 0
A13: W | B13: W40x397 | C13: W40x397 | D13: 4 | E13: 397 | F13: 117 | G13: 41 | H13: 0 | I13: 0 | J13: 16.1 | K13: 0 | L13: 0 | M13: 1.22 | N13: 2.2 | O13: 0 | P13: 0 | Q13: 0 | R13: 3.38 | S13: 3.5 | T13: 0 | U13: 0 | V13: 0 | W13: 0 | X13: 0 | Y13: 3.66 | Z13: 0 | AA13: 28 | AB13: 0 | AC13: 0 | AD13: 0 | AE13: 3310 | AF13: 1440 | AG13: 32000 | AH13: 1800 | AI13: 1560 | AJ13: 16.6 | AK13: 1540 | AL13: 300 | AM13: 191 | AN13: 3.64 | AO13: 0 | AP13: 142 | AQ13: 578000 | AR13: 0 | AS13: 156 | AT13: 1380 | AU13: 318 | AV13: 891 | AW13: 0 | AX13: 0 | AY13: 0 | AZ13: 0
A14: W | B14: W40x372 | C14: W40x372 | D14: 4 | E14: 372 | F14: 109 | G14: 40.6 | H14: 0 | I14: 0 | J14: 16.1 | K14: 0 | L14: 0 | M14: 1.16 | N14: 2.05 | O14: 0 | P14: 0 | Q14: 0 | R14: 3.23 | S14: 3.3125 | T14: 0 | U14: 0 | V14: 0 | W14: 0 | X14: 0 | Y14: 3.92 | Z14: 0 | AA14: 29.5 | AB14: 0 | AC14: 0 | AD14: 0 | AE14: 3080 | AF14: 1880 | AG14: 29600 | AH14: 1680 | AI14: 1460 | AJ14: 16.5 | AK14: 1420 | AL14: 278 | AM14: 177 | AN14: 3.6 | AO14: 0 | AP14: 116 | AQ14: 528000 | AR14: 0 | AS14: 155 | AT14: 1270 | AU14: 295 | AV14: 829 | AW14: 0 | AX14: 0 | AY14: 0 | AZ14: 0
A15: W | B15: W40x362 | C15: W40x362 | D15: 4 | E15: 362 | F15: 107 | G15: 40.6 | H15: 0 | I15: 0 | J15: 16 | K15: 0 | L15: 0 | M15: 1.12 | N15: 2.01 | O15: 0 | P15: 0 | Q15: 0 | R15: 3.19 | S15: 3.25 | T15: 0 | U15: 0 | V15: 0 | W15: 0 | X15: 0 | Y15: 3.99 | Z15: 0 | AA15: 30.5 | AB15: 0 | AC15: 0 | AD15: 0 | AE15: 3040 | AF15: 2010 | AG15: 28900 | AH15: 1640 | AI15: 1420 | AJ15: 16.5 | AK15: 1380 | AL15: 270 | AM15: 173 | AN15: 3.6 | AO15: 0 | AP15: 109 | AQ15: 512000 | AR15: 0 | AS15: 154 | AT15: 1240 | AU15: 289 | AV15: 807 | AW15: 0 | AX15: 0 | AY15: 0 | AZ15: 0
A16: W | B16: W40x324 | C16: W40x324 | D16: 3 | E16: 324 | F16: 95.3 | G16: 40.2 | H16: 0 | I16: 0 | J16: 15.9 | K16: 0 | L16: 0 | M16: 1 | N16: 1.81 | O16: 0 | P16: 0 | Q16: 0 | R16: 2.99 | S16: 3.0625 | T16: 0 | U16: 0 | V16: 0 | W16: 0 | X16: 0 | Y16: 4.4 | Z16: 0 | AA16: 34.2 | AB16: 0 | AC16: 0 | AD16: 55.1 | AE16: 2720 | AF16: 3050 | AG16: 25600 | AH16: 1460 | AI16: 1280 | AJ16: 16.4 | AK16: 1220 | AL16: 239 | AM16: 153 | AN16: 3.58 | AO16: 0 | AP16: 79.4 | AQ16: 449000 | AR16: 0 | AS16: 153 | AT16: 1100 | AU16: 259 | AV16: 719 | AW16: 0 | AX16: 0 | AY16: 0 | AZ16: 0
A17: W | B17: W40x297 | C17: W40x297 | D17: 3 | E17: 297 | F17: 87.4 | G17: 39.8 | H17: 0 | I17: 0 | J17: 15.8 | K17: 0 | L17: 0 | M17: 0.93 | N17: 1.65 | O17: 0 | P17: 0 | Q17: 0 | R17: 2.83 | S17: 2.9375 | T17: 0 | U17: 0 | V17: 0 | W17: 0 | X17: 0 | Y17: 4.8 | Z17: 0 | AA17: 36.8 | AB17: 0 | AC17: 0 | AD17: 47.7 | AE17: 2500 | AF17: 4250 | AG17: 23200 | AH17: 1330 | AI17: 1170 | AJ17: 16.3 | AK17: 1090 | AL17: 215 | AM17: 138 | AN17: 3.54 | AO17: 0 | AP17: 61.2 | AQ17: 397000 | AR17: 0 | AS17: 151 | AT17: 986 | AU17: 235 | AV17: 654 | AW17: 0 | AX17: 0 | AY17: 0 | AZ17: 0
A18: W | B18: W40x277 | C18: W40x277 | D18: 3 | E18: 277 | F18: 81.4 | G18: 39.7 | H18: 0 | I18: 0 | J18: 15.8 | K18: 0 | L18: 0 | M18: 0.83 | N18: 1.58 | O18: 0 | P18: 0 | Q18: 0 | R18: 2.76 | S18: 2.875 | T18: 0 | U18: 0 | V18: 0 | W18: 0 | X18: 0 | Y18: 5.03 | Z18: 0 | AA18: 41.2 | AB18: 0 | AC18: 0 | AD18: 38 | AE18: 2360 | AF18: 5280 | AG18: 21900 | AH18: 1250 | AI18: 1100 | AJ18: 16.4 | AK18: 1040 | AL18: 204 | AM18: 132 | AN18: 3.58 | AO18: 0 | AP18: 51.5 | AQ18: 378000 | AR18: 0 | AS18: 151 | AT18: 940 | AU18: 225 | AV18: 614 | AW18: 0 | AX18: 0 | AY18: 0 | AZ18: 0
A19: W | B19: W40x249 | C19: W40x249 | D19: 2 | E19: 249 | F19: 73.3 | G19: 39.4 | H19: 0 | I19: 0 | J19: 15.8 | K19: 0 | L19: 0 | M19: 0.75 | N19: 1.42 | O19: 0 | P19: 0 | Q19: 0 | R19: 2.6 | S19: 2.6875 | T19: 0 | U19: 0 | V19: 0 | W19: 0 | X19: 0 | Y19: 5.55 | Z19: 0 | AA19: 45.6 | AB19: 0 | AC19: 0 | AD19: 31 | AE19: 2130 | AF19: 7800 | AG19: 19600 | AH19: 1120 | AI19: 993 | AJ19: 16.3 | AK19: 926 | AL19: 182 | AM19: 118 | AN19: 3.55 | AO19: 0 | AP19: 38.1 | AQ19: 334000 | AR19: 0 | AS19: 149 | AT19: 836 | AU19: 202 | AV19: 550 | AW19: 0 | AX19: 0 | AY19: 0 | AZ19: 0
A20: W | B20: W40x215 | C20: W40x215 | D20: 2 | E20: 215 | F20: 63.4 | G20: 39 | H20: 0 | I20: 0 | J20: 15.8 | K20: 0 | L20: 0 | M20: 0.65 | N20: 1.22 | O20: 0 | P20: 0 | Q20: 0 | R20: 2.4 | S20: 2.5 | T20: 0 | U20: 0 | V20: 0 | W20: 0 | X20: 0 | Y20: 6.45 | Z20: 0 | AA20: 52.6 | AB20: 0 | AC20: 0 | AD20: 23.3 | AE20: 1850 | AF20: 13600 | AG20: 16700 | AH20: 964 | AI20: 859 | AJ20: 16.2 | AK20: 796 | AL20: 156 | AM20: 101 | AN20: 3.54 | AO20: 0 | AP20: 24.8 | AQ20: 284000 | AR20: 0 | AS20: 149 | AT20: 714 | AU20: 174 | AV20: 471 | AW20: 0 | AX20: 0 | AY20: 0 | AZ20: 0
A21: W | B21: W40x199 | C21: W40x199 | D21: 2 | E21: 199 | F21: 58.5 | G21: 38.7 | H21: 0 | I21: 0 | J21: 15.8 | K21: 0 | L21: 0 | M21: 0.65 | N21: 1.07 | O21: 0 | P21: 0 | Q21: 0 | R21: 2.25 | S21: 2.3125 | T21: 0 | U21: 0 | V21: 0 | W21: 0 | X21: 0 | Y21: 7.39 | Z21: 0 | AA21: 52.6 | AB21: 0 | AC21: 0 | AD21: 23.3 | AE21: 1700 | AF21: 20000 | AG21: 14900 | AH21: 869 | AI21: 770 | AJ21: 16 | AK21: 695 | AL21: 137 | AM21: 88.2 | AN21: 3.45 | AO21: 0 | AP21: 18.3 | AQ21: 246000 | AR21: 0 | AS21: 148 | AT21: 621 | AU21: 151 | AV21: 424 | AW21: 0 | AX21: 0 | AY21: 0 | AZ21: 0
A22: W | B22: W40x392 | C22: W40x392 | D22: 4 | E22: 392 | F22: 115 | G22: 41.6 | H22: 0 | I22: 0 | J22: 12.4 | K22: 0 | L22: 0 | M22: 1.42 | N22: 2.52 | O22: 0 | P22: 0 | Q22: 0 | R22: 3.7 | S22: 3.8125 | T22: 0 | U22: 0 | V22: 0 | W22: 0 | X22: 0 | Y22: 2.45 | Z22: 0 | AA22: 24.1 | AB22: 0 | AC22: 0 | AD22: 0 | AE22: 3910 | AF22: 852 | AG22: 29900 | AH22: 1710 | AI22: 1440 | AJ22: 16.1 | AK22: 803 | AL22: 212 | AM22: 130 | AN22: 2.64 | AO22: 0 | AP22: 172 | AQ22: 306000 | AR22: 0 | AS22: 121 | AT22: 940 | AU22: 269 | AV22: 845 | AW22: 0 | AX22: 0 | AY22: 0 | AZ22: 0
A23: W | B23: W40x331 | C23: W40x331 | D23: 3 | E23: 331 | F23: 97.5 | G23: 40.8 | H23: 0 | I23: 0 | J23: 12.2 | K23: 0 | L23: 0 | M23: 1.22 | N23: 2.13 | O23: 0 | P23: 0 | Q23: 0 | R23: 3.31 | S23: 3.375 | T23: 0 | U23: 0 | V23: 0 | W23: 0 | X23: 0 | Y23: 2.86 | Z23: 0 | AA23: 28 | AB23: 0 | AC23: 0 | AD23: 0 | AE23: 3360 | AF23: 1550 | AG23: 24700 | AH23: 1430 | AI23: 1210 | AJ23: 15.9 | AK23: 644 | AL23: 172 | AM23: 106 | AN23: 2.57 | AO23: 0 | AP23: 106 | AQ23: 241000 | AR23: 0 | AS23: 118 | AT23: 760 | AU23: 225 | AV23: 704 | AW23: 0 | AX23: 0 | AY23: 0 | AZ23: 0
A24: W | B24: W40x327 | C24: W40x327 | D24: 3 | E24: 327 | F24: 96 | G24: 40.8 | H24: 0 | I24: 0 | J24: 12.1 | K24: 0 | L24: 0 | M24: 1.18 | N24: 2.13 | O24: 0 | P24: 0 | Q24: 0 | R24: 3.31 | S24: 3.375 | T24: 0 | U24: 0 | V24: 0 | W24: 0 | X24: 0 | Y24: 2.85 | Z24: 0 | AA24: 29 | AB24: 0 | AC24: 0 | AD24: 0 | AE24: 3320 | AF24: 1620 | AG24: 24500 | AH24: 1410 | AI24: 1200 | AJ24: 16 | AK24: 640 | AL24: 170 | AM24: 105 | AN24: 2.58 | AO24: 0 | AP24: 103 | AQ24: 239000 | AR24: 0 | AS24: 117 | AT24: 757 | AU24: 225 | AV24: 696 | AW24: 0 | AX24: 0 | AY24: 0 | AZ24: 0
A25: W | B25: W40x278 | C25: W40x278 | D25: 3 | E25: 278 | F25: 81.8 | G25: 40.2 | H25: 0 | I25: 0 | J25: 12 | K25: 0 | L25: 0 | M25: 1.02 | N25: 1.81 | O25: 0 | P25: 0 | Q25: 0 | R25: 2.99 | S25: 3.0625 | T25: 0 | U25: 0 | V25: 0 | W25: 0 | X25: 0 | Y25: 3.31 | Z25: 0 | AA25: 33.5 | AB25: 0 | AC25: 0 | AD25: 57.3 | AE25: 2860 | AF25: 2910 | AG25: 20500 | AH25: 1190 | AI25: 1020 | AJ25: 15.8 | AK25: 521 | AL25: 140 | AM25: 87.1 | AN25: 2.52 | AO25: 0 | AP25: 64.7 | AQ25: 192000 | AR25: 0 | AS25: 115 | AT25: 622 | AU25: 190 | AV25: 586 | AW25: 0 | AX25: 0 | AY25: 0 | AZ25: 0
A26: W | B26: W40x264 | C26: W40x264 | D26: 2 | E26: 264 | F26: 77.6 | G26: 40 | H26: 0 | I26: 0 | J26: 11.9 | K26: 0 | L26: 0 | M26: 0.96 | N26: 1.73 | O26: 0 | P26: 0 | Q26: 0 | R26: 2.91 | S26: 3 | T26: 0 | U26: 0 | V26: 0 | W26: 0 | X26: 0 | Y26: 3.45 | Z26: 0 | AA26: 35.6 | AB26: 0 | AC26: 0 | AD26: 50.8 | AE26: 2720 | AF26: 3500 | AG26: 19400 | AH26: 1130 | AI26: 971 | AJ26: 15.8 | AK26: 493 | AL26: 132 | AM26: 82.6 | AN26: 2.52 | AO26: 0 | AP26: 56.1 | AQ26: 181000 | AR26: 0 | AS26: 114 | AT26: 589 | AU26: 182 | AV26: 555 | AW26: 0 | AX26: 0 | AY26: 0 | AZ26: 0
A27: W | B27: W40x235 | C27: W40x235 | D27: 2 | E27: 235 | F27: 69 | G27: 39.7 | H27: 0 | I27: 0 | J27: 11.9 | K27: 0 | L27: 0 | M27: 0.83 | N27: 1.58 | O27: 0 | P27: 0 | Q27: 0 | R27: 2.76 | S27: 2.875 | T27: 0 | U27: 0 | V27: 0 | W27: 0 | X27: 0 | Y27: 3.77 | Z27: 0 | AA27: 41.2 | AB27: 0 | AC27: 0 | AD27: 38 | AE27: 2440 | AF27: 5200 | AG27: 17400 | AH27: 1010 | AI27: 875 | AJ27: 15.9 | AK27: 444 | AL27: 118 | AM27: 74.6 | AN27: 2.54 | AO27: 0 | AP27: 41.3 | AQ27: 161000 | AR27: 0 | AS27: 113 | AT27: 530 | AU27: 166 | AV27: 495 | AW27: 0 | AX27: 0 | AY27: 0 | AZ27: 0
A28: W | B28: W40x211 | C28: W40x211 | D28: 2 | E28: 211 | F28: 62 | G28: 39.4 | H28: 0 | I28: 0 | J28: 11.8 | K28: 0 | L28: 0 | M28: 0.75 | N28: 1.42 | O28: 0 | P28: 0 | Q28: 0 | R28: 2.6 | S28: 2.6875 | T28: 0 | U28: 0 | V28: 0 | W28: 0 | X28: 0 | Y28: 4.17 | Z28: 0 | AA28: 45.6 | AB28: 0 | AC28: 0 | AD28: 31 | AE28: 2210 | AF28: 7680 | AG28: 15500 | AH28: 906 | AI28: 786 | AJ28: 15.8 | AK28: 390 | AL28: 105 | AM28: 66.1 | AN28: 2.51 | AO28: 0 | AP28: 30.4 | AQ28: 140000 | AR28: 0 | AS28: 112 | AT28: 468 | AU28: 148 | AV28: 442 | AW28: 0 | AX28: 0 | AY28: 0 | AZ28: 0
A29: W | B29: W40x183 | C29: W40x183 | D29: 2 | E29: 183 | F29: 53.8 | G29: 39 | H29: 0 | I29: 0 | J29: 11.8 | K29: 0 | L29: 0 | M29: 0.65 | N29: 1.22 | O29: 0 | P29: 0 | Q29: 0 | R29: 2.4 | S29: 2.5 | T29: 0 | U29: 0 | V29: 0 | W29: 0 | X29: 0 | Y29: 4.84 | Z29: 0 | AA29: 52.6 | AB29: 0 | AC29: 0 | AD29: 23.3 | AE29: 1920 | AF29: 13300 | AG29: 13300 | AH29: 783 | AI29: 683 | AJ29: 15.7 | AK29: 336 | AL29: 89.6 | AM29: 56.9 | AN29: 2.5 | AO29: 0 | AP29: 20 | AQ29: 120000 | AR29: 0 | AS29: 111 | AT29: 402 | AU29: 129 | AV29: 381 | AW29: 0 | AX29: 0 | AY29: 0 | AZ29: 0
A30: W | B30: W40x167 | C30: W40x167 | D30: 2 | E30: 167 | F30: 49.2 | G30: 38.6 | H30: 0 | I30: 0 | J30: 11.8 | K30: 0 | L30: 0 | M30: 0.65 | N30: 1.02 | O30: 0 | P30: 0 | Q30: 0 | R30: 2.21 | S30: 2.3125 | T30: 0 | U30: 0 | V30: 0 | W30: 0 | X30: 0 | Y30: 5.76 | Z30: 0 | AA30: 52.6 | AB30: 0 | AC30: 0 | AD30: 23.3 | AE30: 1750 | AF30: 20700 | AG30: 11600 | AH30: 693 | AI30: 600 | AJ30: 15.3 | AK30: 283 | AL30: 76 | AM30: 47.9 | AN30: 2.4 | AO30: 0 | AP30: 14 | AQ30: 99800 | AR30: 0 | AS30: 111 | AT30: 336 | AU30: 107 | AV30: 336 | AW30: 0 | AX30: 0 | AY30: 0 | AZ30: 0
A31: W | B31: W40x149 | C31: W40x149 | D31: 2 | E31: 149 | F31: 43.8 | G31: 38.2 | H31: 0 | I31: 0 | J31: 11.8 | K31: 0 | L31: 0 | M31: 0.63 | N31: 0.83 | O31: 0 | P31: 0 | Q31: 0 | R31: 2.01 | S31: 2.125 | T31: 0 | U31: 0 | V31: 0 | W31: 0 | X31: 0 | Y31: 7.11 | Z31: 0 | AA31: 54.3 | AB31: 0 | AC31: 0 | AD31: 21.9 | AE31: 1580 | AF31: 33400 | AG31: 9800 | AH31: 598 | AI31: 513 | AJ31: 15 | AK31: 229 | AL31: 62.2 | AM31: 38.8 | AN31: 2.29 | AO31: 0 | AP31: 9.36 | AQ31: 80000 | AR31: 0 | AS31: 110 | AT31: 270 | AU31: 86.7 | AV31: 288 | AW31: 0 | AX31: 0 | AY31: 0 | AZ31: 0
A32: W | B32: W36x798 | C32: W36x798 | D32: 4 | E32: 798 | F32: 235 | G32: 42 | H32: 0 | I32: 0 | J32: 18 | K32: 0 | L32: 0 | M32: 2.38 | N32: 4.29 | O32: 0 | P32: 0 | Q32: 0 | R32: 5.24 | S32: 5.5625 | T32: 0 | U32: 0 | V32: 0 | W32: 0 | X32: 0 | Y32: 2.1 | Z32: 0 | AA32: 13.2 | AB32: 0 | AC32: 0 | AD32: 0 | AE32: 6670 | AF32: 91.2 | AG32: 62600 | AH32: 3580 | AI32: 2980 | AJ32: 16.3 | AK32: 4200 | AL32: 743 | AM32: 467 | AN32: 4.23 | AO32: 0 | AP32: 1050 | AQ32: 1490000 | AR32: 0 | AS32: 169 | AT32: 3270 | AU32: 631 | AV32: 1790 | AW32: 0 | AX32: 0 | AY32: 0 | AZ32: 0
A33: W | B33: W36x650 | C33: W36x650 | D33: 4 | E33: 650 | F33: 191 | G33: 40.5 | H33: 0 | I33: 0 | J33: 17.6 | K33: 0 | L33: 0 | M33: 1.97 | N33: 3.54 | O33: 0 | P33: 0 | Q33: 0 | R33: 4.49 | S33: 4.8125 | T33: 0 | U33: 0 | V33: 0 | W33: 0 | X33: 0 | Y33: 2.48 | Z33: 0 | AA33: 16 | AB33: 0 | AC33: 0 | AD33: 0 | AE33: 5560 | AF33: 182 | AG33: 48900 | AH33: 2860 | AI33: 2420 | AJ33: 16 | AK33: 3230 | AL33: 580 | AM33: 367 | AN33: 4.11 | AO33: 0 | AP33: 591 | AQ33: 1100000 | AR33: 0 | AS33: 162 | AT33: 2520 | AU33: 510 | AV33: 1420 | AW33: 0 | AX33: 0 | AY33: 0 | AZ33: 0
A34: W | B34: W36x527 | C34: W36x527 | D34: 4 | E34: 527 | F34: 155 | G34: 39.2 | H34: 0 | I34: 0 | J34: 17.2 | K34: 0 | L34: 0 | M34: 1.61 | N34: 2.91 | O34: 0 | P34: 0 | Q34: 0 | R34: 3.86 | S34: 4.1875 | T34: 0 | U34: 0 | V34: 0 | W34: 0 | X34: 0 | Y34: 2.96 | Z34: 0 | AA34: 19.6 | AB34: 0 | AC34: 0 | AD34: 0 | AE34: 4620 | AF34: 374 | AG34: 38300 | AH34: 2280 | AI34: 1950 | AJ34: 15.7 | AK34: 2490 | AL34: 454 | AM34: 289 | AN34: 4.01 | AO34: 0 | AP34: 327 | AQ34: 820000 | AR34: 0 | AS34: 156 | AT34: 1960 | AU34: 412 | AV34: 1130 | AW34: 0 | AX34: 0 | AY34: 0 | AZ34: 0
A35: W | B35: W36x439 | C35: W36x439 | D35: 4 | E35: 439 | F35: 129 | G35: 38.3 | H35: 0 | I35: 0 | J35: 17 | K35: 0 | L35: 0 | M35: 1.36 | N35: 2.44 | O35: 0 | P35: 0 | Q35: 0 | R35: 3.39 | S35: 3.6875 | T35: 0 | U35: 0 | V35: 0 | W35: 0 | X35: 0 | Y35: 3.48 | Z35: 0 | AA35: 23.1 | AB35: 0 | AC35: 0 | AD35: 0 | AE35: 3900 | AF35: 721 | AG35: 31000 | AH35: 1870 | AI35: 1620 | AJ35: 15.5 | AK35: 1990 | AL35: 367 | AM35: 235 | AN35: 3.93 | AO35: 0 | AP35: 193 | AQ35: 638000 | AR35: 0 | AS35: 152 | AT35: 1570 | AU35: 341 | AV35: 931 | AW35: 0 | AX35: 0 | AY35: 0 | AZ35: 0
A36: W | B36: W36x393 | C36: W36x393 | D36: 4 | E36: 393 | F36: 116 | G36: 37.8 | H36: 0 | I36: 0 | J36: 16.8 | K36: 0 | L36: 0 | M36: 1.22 | N36: 2.2 | O36: 0 | P36: 0 | Q36: 0 | R36: 3.15 | S36: 3.4375 | T36: 0 | U36: 0 | V36: 0 | W36: 0 | X36: 0 | Y36: 3.82 | Z36: 0 | AA36: 25.8 | AB36: 0 | AC36: 0 | AD36: 0 | AE36: 3530 | AF36: 1070 | AG36: 27500 | AH36: 1670 | AI36: 1450 | AJ36: 15.4 | AK36: 1750 | AL36: 325 | AM36: 208 | AN36: 3.9 | AO36: 0 | AP36: 141 | AQ36: 554000 | AR36: 0 | AS36: 150 | AT36: 1390 | AU36: 306 | AV36: 829 | AW36: 0 | AX36: 0 | AY36: 0 | AZ36: 0
A37: W | B37: W36x359 | C37: W36x359 | D37: 4 | E37: 359 | F37: 105 | G37: 37.4 | H37: 0 | I37: 0 | J37: 16.7 | K37: 0 | L37: 0 | M37: 1.12 | N37: 2.01 | O37: 0 | P37: 0 | Q37: 0 | R37: 2.96 | S37: 3.25 | T37: 0 | U37: 0 | V37: 0 | W37: 0 | X37: 0 | Y37: 4.16 | Z37: 0 | AA37: 28.1 | AB37: 0 | AC37: 0 | AD37: 0 | AE37: 3230 | AF37: 1490 | AG37: 24800 | AH37: 1510 | AI37: 1320 | AJ37: 15.3 | AK37: 1570 | AL37: 292 | AM37: 188 | AN37: 3.86 | AO37: 0 | AP37: 108 | AQ37: 492000 | AR37: 0 | AS37: 148 | AT37: 1240 | AU37: 278 | AV37: 751 | AW37: 0 | AX37: 0 | AY37: 0 | AZ37: 0
A38: W | B38: W36x328 | C38: W36x328 | D38: 4 | E38: 328 | F38: 96.4 | G38: 37.1 | H38: 0 | I38: 0 | J38: 16.6 | K38: 0 | L38: 0 | M38: 1.02 | N38: 1.85 | O38: 0 | P38: 0 | Q38: 0 | R38: 2.8 | S38: 3.125 | T38: 0 | U38: 0 | V38: 0 | W38: 0 | X38: 0 | Y38: 4.49 | Z38: 0 | AA38: 30.9 | AB38: 0 | AC38: 0 | AD38: 0 | AE38: 2980 | AF38: 2050 | AG38: 22500 | AH38: 1380 | AI38: 1210 | AJ38: 15.3 | AK38: 1420 | AL38: 265 | AM38: 171 | AN38: 3.84 | AO38: 0 | AP38: 84.1 | AQ38: 441000 | AR38: 0 | AS38: 147 | AT38: 1130 | AU38: 254 | AV38: 684 | AW38: 0 | AX38: 0 | AY38: 0 | AZ38: 0
A39: W | B39: W36x300 | C39: W36x300 | D39: 3 | E39: 300 | F39: 88.3 | G39: 36.7 | H39: 0 | I39: 0 | J39: 16.7 | K39: 0 | L39: 0 | M39: 0.945 | N39: 1.68 | O39: 0 | P39: 0 | Q39: 0 | R39: 2.63 | S39: 2.9375 | T39: 0 | U39: 0 | V39: 0 | W39: 0 | X39: 0 | Y39: 4.96 | Z39: 0 | AA39: 33.3 | AB39: 0 | AC39: 0 | AD39: 58 | AE39: 2720 | AF39: 2930 | AG39: 20300 | AH39: 1260 | AI39: 1110 | AJ39: 15.2 | AK39: 1300 | AL39: 241 | AM39: 156 | AN39: 3.83 | AO39: 0 | AP39: 64.2 | AQ39: 399000 | AR39: 0 | AS39: 146 | AT39: 1020 | AU39: 231 | AV39: 622 | AW39: 0 | AX39: 0 | AY39: 0 | AZ39: 0
A40: W | B40: W36x280 | C40: W36x280 | D40: 3 | E40: 280 | F40: 82.4 | G40: 36.5 | H40: 0 | I40: 0 | J40: 16.6 | K40: 0 | L40: 0 | M40: 0.885 | N40: 1.57 | O40: 0 | P40: 0 | Q40: 0 | R40: 2.52 | S40: 2.8125 | T40: 0 | U40: 0 | V40: 0 | W40: 0 | X40: 0 | Y40: 5.29 | Z40: 0 | AA40: 35.6 | AB40: 0 | AC40: 0 | AD40: 50.9 | AE40: 2560 | AF40: 3730 | AG40: 18900 | AH40: 1170 | AI40: 1030 | AJ40: 15.1 | AK40: 1200 | AL40: 223 | AM40: 144 | AN40: 3.81 | AO40: 0 | AP40: 52.6 | AQ40: 366000 | AR40: 0 | AS40: 145 | AT40: 944 | AU40: 216 | AV40: 579 | AW40: 0 | AX40: 0 | AY40: 0 | AZ40: 0
A41: W | B41: W36x260 | C41: W36x260 | D41: 3 | E41: 260 | F41: 76.5 | G41: 36.3 | H41: 0 | I41: 0 | J41: 16.6 | K41: 0 | L41: 0 | M41: 0.84 | N41: 1.44 | O41: 0 | P41: 0 | Q41: 0 | R41: 2.39 | S41: 2.6875 | T41: 0 | U41: 0 | V41: 0 | W41: 0 | X41: 0 | Y41: 5.75 | Z41: 0 | AA41: 37.5 | AB41: 0 | AC41: 0 | AD41: 45.8 | AE41: 2370 | AF41: 5100 | AG41: 17300 | AH41: 1080 | AI41: 953 | AJ41: 15 | AK41: 1090 | AL41: 204 | AM41: 132 | AN41: 3.78 | AO41: 0 | AP41: 41.5 | AQ41: 330000 | AR41: 0 | AS41: 144 | AT41: 858 | AU41: 197 | AV41: 532 | AW41: 0 | AX41: 0 | AY41: 0 | AZ41: 0
A42: W | B42: W36x245 | C42: W36x245 | D42: 3 | E42: 245 | F42: 72.1 | G42: 36.1 | H42: 0 | I42: 0 | J42: 16.5 | K42: 0 | L42: 0 | M42: 0.8 | N42: 1.35 | O42: 0 | P42: 0 | Q42: 0 | R42: 2.3 | S42: 2.625 | T42: 0 | U42: 0 | V42: 0 | W42: 0 | X42: 0 | Y42: 6.11 | Z42: 0 | AA42: 39.4 | AB42: 0 | AC42: 0 | AD42: 41.6 | AE42: 2230 | AF42: 6430 | AG42: 16100 | AH42: 1010 | AI42: 895 | AJ42: 15 | AK42: 1010 | AL42: 190 | AM42: 123 | AN42: 3.75 | AO42: 0 | AP42: 34.6 | AQ42: 305000 | AR42: 0 | AS42: 143 | AT42: 799 | AU42: 184 | AV42: 498 | AW42: 0 | AX42: 0 | AY42: 0 | AZ42: 0
A43: W | B43: W36x230 | C43: W36x230 | D43: 3 | E43: 230 | F43: 67.6 | G43: 35.9 | H43: 0 | I43: 0 | J43: 16.5 | K43: 0 | L43: 0 | M43: 0.76 | N43: 1.26 | O43: 0 | P43: 0 | Q43: 0 | R43: 2.21 | S43: 2.5 | T43: 0 | U43: 0 | V43: 0 | W43: 0 | X43: 0 | Y43: 6.54 | Z43: 0 | AA43: 41.4 | AB43: 0 | AC43: 0 | AD43: 37.5 | AE43: 2100 | AF43: 8190 | AG43: 15000 | AH43: 943 | AI43: 837 | AJ43: 14.9 | AK43: 940 | AL43: 176 | AM43: 114 | AN43: 3.73 | AO43: 0 | AP43: 28.6 | AQ43: 282000 | AR43: 0 | AS43: 143 | AT43: 740 | AU43: 171 | AV43: 465 | AW43: 0 | AX43: 0 | AY43: 0 | AZ43: 0
A44: W | B44: W36x256 | C44: W36x256 | D44: 3 | E44: 256 | F44: 75.4 | G44: 37.4 | H44: 0 | I44: 0 | J44: 12.2 | K44: 0 | L44: 0 | M44: 0.96 | N44: 1.73 | O44: 0 | P44: 0 | Q44: 0 | R44: 2.48 | S44: 2.625 | T44: 0 | U44: 0 | V44: 0 | W44: 0 | X44: 0 | Y44: 3.53 | Z44: 0 | AA44: 33.8 | AB44: 0 | AC44: 0 | AD44: 56.3 | AE44: 2830 | AF44: 2910 | AG44: 16800 | AH44: 1040 | AI44: 895 | AJ44: 14.9 | AK44: 528 | AL44: 137 | AM44: 86.5 | AN44: 2.65 | AO44: 0 | AP44: 52.9 | AQ44: 168000 | AR44: 0 | AS44: 109 | AT44: 576 | AU44: 174 | AV44: 516 | AW44: 0 | AX44: 0 | AY44: 0 | AZ44: 0
A45: W | B45: W36x232 | C45: W36x232 | D45: 3 | E45: 232 | F45: 68.1 | G45: 37.1 | H45: 0 | I45: 0 | J45: 12.1 | K45: 0 | L45: 0 | M45: 0.87 | N45: 1.57 | O45: 0 | P45: 0 | Q45: 0 | R45: 2.32 | S45: 2.4375 | T45: 0 | U45: 0 | V45: 0 | W45: 0 | X45: 0 | Y45: 3.86 | Z45: 0 | AA45: 37.3 | AB45: 0 | AC45: 0 | AD45: 46.2 | AE45: 2570 | AF45: 4200 | AG45: 15000 | AH45: 936 | AI45: 809 | AJ45: 14.8 | AK45: 468 | AL45: 122 | AM45: 77.2 | AN45: 2.62 | AO45: 0 | AP45: 39.6 | AQ45: 148000 | AR45: 0 | AS45: 108 | AT45: 512 | AU45: 157 | AV45: 464 | AW45: 0 | AX45: 0 | AY45: 0 | AZ45: 0
A46: W | B46: W36x210 | C46: W36x210 | D46: 2 | E46: 210 | F46: 61.8 | G46: 36.7 | H46: 0 | I46: 0 | J46: 12.2 | K46: 0 | L46: 0 | M46: 0.83 | N46: 1.36 | O46: 0 | P46: 0 | Q46: 0 | R46: 2.11 | S46: 2.3125 | T46: 0 | U46: 0 | V46: 0 | W46: 0 | X46: 0 | Y46: 4.48 | Z46: 0 | AA46: 39.1 | AB46: 0 | AC46: 0 | AD46: 42.1 | AE46: 2320 | AF46: 6560 | AG46: 13200 | AH46: 833 | AI46: 719 | AJ46: 14.6 | AK46: 411 | AL46: 107 | AM46: 67.5 | AN46: 2.58 | AO46: 0 | AP46: 28 | AQ46: 128000 | AR46: 0 | AS46: 108 | AT46: 446 | AU46: 136 | AV46: 412 | AW46: 0 | AX46: 0 | AY46: 0 | AZ46: 0
A47: W | B47: W36x194 | C47: W36x194 | D47: 2 | E47: 194 | F47: 57 | G47: 36.5 | H47: 0 | I47: 0 | J47: 12.1 | K47: 0 | L47: 0 | M47: 0.765 | N47: 1.26 | O47: 0 | P47: 0 | Q47: 0 | R47: 2.01 | S47: 2.1875 | T47: 0 | U47: 0 | V47: 0 | W47: 0 | X47: 0 | Y47: 4.81 | Z47: 0 | AA47: 42.4 | AB47: 0 | AC47: 0 | AD47: 35.7 | AE47: 2140 | AF47: 8850 | AG47: 12100 | AH47: 767 | AI47: 664 | AJ47: 14.6 | AK47: 375 | AL47: 97.7 | AM47: 61.9 | AN47: 2.56 | AO47: 0 | AP47: 22.2 | AQ47: 116000 | AR47: 0 | AS47: 107 | AT47: 407 | AU47: 126 | AV47: 379 | AW47: 0 | AX47: 0 | AY47: 0 | AZ47: 0
A48: W | B48: W36x182 | C48: W36x182 | D48: 2 | E48: 182 | F48: 53.6 | G48: 36.3 | H48: 0 | I48: 0 | J48: 12.1 | K48: 0 | L48: 0 | M48: 0.725 | N48: 1.18 | O48: 0 | P48: 0 | Q48: 0 | R48: 1.93 | S48: 2.125 | T48: 0 | U48: 0 | V48: 0 | W48: 0 | X48: 0 | Y48: 5.12 | Z48: 0 | AA48: 44.8 | AB48: 0 | AC48: 0 | AD48: 32.1 | AE48: 2020 | AF48: 11200 | AG48: 11300 | AH48: 718 | AI48: 623 | AJ48: 14.5 | AK48: 347 | AL48: 90.7 | AM48: 57.6 | AN48: 2.55 | AO48: 0 | AP48: 18.5 | AQ48: 107000 | AR48: 0 | AS48: 106 | AT48: 378 | AU48: 118 | AV48: 355 | AW48: 0 | AX48: 0 | AY48: 0 | AZ48: 0
A49: W | B49: W36x170 | C49: W36x170 | D49: 2 | E49: 170 | F49: 50.1 | G49: 36.2 | H49: 0 | I49: 0 | J49: 12 | K49: 0 | L49: 0 | M49: 0.68 | N49: 1.1 | O49: 0 | P49: 0 | Q49: 0 | R49: 1.85 | S49: 2 | T49: 0 | U49: 0 | V49: 0 | W49: 0 | X49: 0 | Y49: 5.47 | Z49: 0 | AA49: 47.7 | AB49: 0 | AC49: 0 | AD49: 28.2 | AE49: 1900 | AF49: 14500 | AG49: 10500 | AH49: 668 | AI49: 581 | AJ49: 14.5 | AK49: 320 | AL49: 83.8 | AM49: 53.2 | AN49: 2.53 | AO49: 0 | AP49: 15.1 | AQ49: 98400 | AR49: 0 | AS49: 105 | AT49: 349 | AU49: 109 | AV49: 330 | AW49: 0 | AX49: 0 | AY49: 0 | AZ49: 0
A50: W | B50: W36x160 | C50: W36x160 | D50: 2 | E50: 160 | F50: 47 | G50: 36 | H50: 0 | I50: 0 | J50: 12 | K50: 0 | L50: 0 | M50: 0.65 | N50: 1.02 | O50: 0 | P50: 0 | Q50: 0 | R50: 1.77 | S50: 1.9375 | T50: 0 | U50: 0 | V50: 0 | W50: 0 | X50: 0 | Y50: 5.88 | Z50: 0 | AA50: 49.9 | AB50: 0 | AC50: 0 | AD50: 25.8 | AE50: 1780 | AF50: 18600 | AG50: 9760 | AH50: 624 | AI50: 542 | AJ50: 14.4 | AK50: 295 | AL50: 77.3 | AM50: 49.1 | AN50: 2.5 | AO50: 0 | AP50: 12.4 | AQ50: 90300 | AR50: 0 | AS50: 105 | AT50: 321 | AU50: 101 | AV50: 308 | AW50: 0 | AX50: 0 | AY50: 0 | AZ50: 0
A51: W | B51: W36x150 | C51: W36x150 | D51: 2 | E51: 150 | F51: 44.2 | G51: 35.9 | H51: 0 | I51: 0 | J51: 12 | K51: 0 | L51: 0 | M51: 0.625 | N51: 0.94 | O51: 0 | P51: 0 | Q51: 0 | R51: 1.69 | S51: 1.875 | T51: 0 | U51: 0 | V51: 0 | W51: 0 | X51: 0 | Y51: 6.37 | Z51: 0 | AA51: 51.9 | AB51: 0 | AC51: 0 | AD51: 23.9 | AE51: 1680 | AF51: 24200 | AG51: 9040 | AH51: 581 | AI51: 504 | AJ51: 14.3 | AK51: 270 | AL51: 70.9 | AM51: 45.1 | AN51: 2.47 | AO51: 0 | AP51: 10.1 | AQ51: 82300 | AR51: 0 | AS51: 105 | AT51: 294 | AU51: 93.1 | AV51: 287 | AW51: 0 | AX51: 0 | AY51: 0 | AZ51: 0
A52: W | B52: W36x135 | C52: W36x135 | D52: 2 | E52: 135 | F52: 39.7 | G52: 35.6 | H52: 0 | I52: 0 | J52: 12 | K52: 0 | L52: 0 | M52: 0.6 | N52: 0.79 | O52: 0 | P52: 0 | Q52: 0 | R52: 1.54 | S52: 1.6875 | T52: 0 | U52: 0 | V52: 0 | W52: 0 | X52: 0 | Y52: 7.56 | Z52: 0 | AA52: 54.1 | AB52: 0 | AC52: 0 | AD52: 22 | AE52: 1520 | AF52: 37900 | AG52: 7800 | AH52: 509 | AI52: 439 | AJ52: 14 | AK52: 225 | AL52: 59.7 | AM52: 37.7 | AN52: 2.38 | AO52: 0 | AP52: 7 | AQ52: 68000 | AR52: 0 | AS52: 104 | AT52: 245 | AU52: 77.9 | AV52: 251 | AW52: 0 | AX52: 0 | AY52: 0 | AZ52: 0
A53: W | B53: W33x387 | C53: W33x387 | D53: 4 | E53: 387 | F53: 114 | G53: 36 | H53: 0 | I53: 0 | J53: 16.2 | K53: 0 | L53: 0 | M53: 1.26 | N53: 2.28 | O53: 0 | P53: 0 | Q53: 0 | R53: 3.07 | S53: 3.1875 | T53: 0 | U53: 0 | V53: 0 | W53: 0 | X53: 0 | Y53: 3.55 | Z53: 0 | AA53: 23.7 | AB53: 0 | AC53: 0 | AD53: 0 | AE53: 3850 | AF53: 752 | AG53: 24300 | AH53: 1560 | AI53: 1350 | AJ53: 14.6 | AK53: 1620 | AL53: 312 | AM53: 200 | AN53: 3.77 | AO53: 0 | AP53: 148 | AQ53: 459000 | AR53: 0 | AS53: 136 | AT53: 1260 | AU53: 287 | AV53: 777 | AW53: 0 | AX53: 0 | AY53: 0 | AZ53: 0
A54: W | B54: W33x354 | C54: W33x354 | D54: 4 | E54: 354 | F54: 104 | G54: 35.6 | H54: 0 | I54: 0 | J54: 16.1 | K54: 0 | L54: 0 | M54: 1.16 | N54: 2.09 | O54: 0 | P54: 0 | Q54: 0 | R54: 2.88 | S54: 2.9375 | T54: 0 | U54: 0 | V54: 0 | W54: 0 | X54: 0 | Y54: 3.85 | Z54: 0 | AA54: 25.7 | AB54: 0 | AC54: 0 | AD54: 0 | AE54: 3530 | AF54: 1040 | AG54: 22000 | AH54: 1420 | AI54: 1240 | AJ54: 14.5 | AK54: 1460 | AL54: 282 | AM54: 181 | AN54: 3.74 | AO54: 0 | AP54: 115 | AQ54: 409000 | AR54: 0 | AS54: 135 | AT54: 1130 | AU54: 261 | AV54: 706 | AW54: 0 | AX54: 0 | AY54: 0 | AZ54: 0
A55: W | B55: W33x318 | C55: W33x318 | D55: 4 | E55: 318 | F55: 93.6 | G55: 35.2 | H55: 0 | I55: 0 | J55: 16 | K55: 0 | L55: 0 | M55: 1.04 | N55: 1.89 | O55: 0 | P55: 0 | Q55: 0 | R55: 2.68 | S55: 2.75 | T55: 0 | U55: 0 | V55: 0 | W55: 0 | X55: 0 | Y55: 4.23 | Z55: 0 | AA55: 28.7 | AB55: 0 | AC55: 0 | AD55: 0 | AE55: 3210 | AF55: 1530 | AG55: 19500 | AH55: 1270 | AI55: 1110 | AJ55: 14.5 | AK55: 1290 | AL55: 250 | AM55: 161 | AN55: 3.71 | AO55: 0 | AP55: 84.4 | AQ55: 357000 | AR55: 0 | AS55: 133 | AT55: 1000 | AU55: 235 | AV55: 631 | AW55: 0 | AX55: 0 | AY55: 0 | AZ55: 0
A56: W | B56: W33x291 | C56: W33x291 | D56: 3 | E56: 291 | F56: 85.7 | G56: 34.8 | H56: 0 | I56: 0 | J56: 15.9 | K56: 0 | L56: 0 | M56: 0.96 | N56: 1.73 | O56: 0 | P56: 0 | Q56: 0 | R56: 2.52 | S56: 2.625 | T56: 0 | U56: 0 | V56: 0 | W56: 0 | X56: 0 | Y56: 4.6 | Z56: 0 | AA56: 31 | AB56: 0 | AC56: 0 | AD56: 0 | AE56: 2930 | AF56: 2150 | AG56: 17700 | AH56: 1160 | AI56: 1020 | AJ56: 14.4 | AK56: 1160 | AL56: 226 | AM56: 146 | AN56: 3.68 | AO56: 0 | AP56: 65.1 | AQ56: 318000 | AR56: 0 | AS56: 132 | AT56: 906 | AU56: 214 | AV56: 574 | AW56: 0 | AX56: 0 | AY56: 0 | AZ56: 0
A57: W | B57: W33x263 | C57: W33x263 | D57: 3 | E57: 263 | F57: 77.5 | G57: 34.5 | H57: 0 | I57: 0 | J57: 15.8 | K57: 0 | L57: 0 | M57: 0.87 | N57: 1.57 | O57: 0 | P57: 0 | Q57: 0 | R57: 2.36 | S57: 2.4375 | T57: 0 | U57: 0 | V57: 0 | W57: 0 | X57: 0 | Y57: 5.03 | Z57: 0 | AA57: 34.3 | AB57: 0 | AC57: 0 | AD57: 54.8 | AE57: 2680 | AF57: 3080 | AG57: 15900 | AH57: 1040 | AI57: 919 | AJ57: 14.3 | AK57: 1040 | AL57: 202 | AM57: 131 | AN57: 3.66 | AO57: 0 | AP57: 48.7 | AQ57: 282000 | AR57: 0 | AS57: 130 | AT57: 808 | AU57: 193 | AV57: 516 | AW57: 0 | AX57: 0 | AY57: 0 | AZ57: 0
A58: W | B58: W33x241 | C58: W33x241 | D58: 3 | E58: 241 | F58: 71 | G58: 34.2 | H58: 0 | I58: 0 | J58: 15.9 | K58: 0 | L58: 0 | M58: 0.83 | N58: 1.4 | O58: 0 | P58: 0 | Q58: 0 | R58: 2.19 | S58: 2.25 | T58: 0 | U58: 0 | V58: 0 | W58: 0 | X58: 0 | Y58: 5.66 | Z58: 0 | AA58: 35.9 | AB58: 0 | AC58: 0 | AD58: 49.9 | AE58: 2440 | AF58: 4510 | AG58: 14200 | AH58: 940 | AI58: 831 | AJ58: 14.1 | AK58: 933 | AL58: 182 | AM58: 118 | AN58: 3.62 | AO58: 0 | AP58: 36.2 | AQ58: 251000 | AR58: 0 | AS58: 130 | AT58: 721 | AU58: 172 | AV58: 466 | AW58: 0 | AX58: 0 | AY58: 0 | AZ58: 0
A59: W | B59: W33x221 | C59: W33x221 | D59: 3 | E59: 221 | F59: 65.2 | G59: 33.9 | H59: 0 | I59: 0 | J59: 15.8 | K59: 0 | L59: 0 | M59: 0.775 | N59: 1.27 | O59: 0 | P59: 0 | Q59: 0 | R59: 2.06 | S59: 2.125 | T59: 0 | U59: 0 | V59: 0 | W59: 0 | X59: 0 | Y59: 6.2 | Z59: 0 | AA59: 38.5 | AB59: 0 | AC59: 0 | AD59: 43.5 | AE59: 2250 | AF59: 6340 | AG59: 12900 | AH59: 857 | AI59: 759 | AJ59: 14.1 | AK59: 840 | AL59: 164 | AM59: 106 | AN59: 3.59 | AO59: 0 | AP59: 27.8 | AQ59: 224000 | AR59: 0 | AS59: 129 | AT59: 650 | AU59: 156 | AV59: 424 | AW59: 0 | AX59: 0 | AY59: 0 | AZ59: 0
A60: W | B60: W33x201 | C60: W33x201 | D60: 3 | E60: 201 | F60: 59.2 | G60: 33.7 | H60: 0 | I60: 0 | J60: 15.7 | K60: 0 | L60: 0 | M60: 0.715 | N60: 1.15 | O60: 0 | P60: 0 | Q60: 0 | R60: 1.94 | S60: 2 | T60: 0 | U60: 0 | V60: 0 | W60: 0 | X60: 0 | Y60: 6.85 | Z60: 0 | AA60: 41.7 | AB60: 0 | AC60: 0 | AD60: 37 | AE60: 2050 | AF60: 9180 | AG60: 11600 | AH60: 773 | AI60: 686 | AJ60: 14 | AK60: 749 | AL60: 147 | AM60: 95.2 | AN60: 3.56 | AO60: 0 | AP60: 20.8 | AQ60: 198000 | AR60: 0 | AS60: 128 | AT60: 580 | AU60: 141 | AV60: 383 | AW60: 0 | AX60: 0 | AY60: 0 | AZ60: 0
A61: W | B61: W33x169 | C61: W33x169 | D61: 3 | E61: 169 | F61: 49.5 | G61: 33.8 | H61: 0 | I61: 0 | J61: 11.5 | K61: 0 | L61: 0 | M61: 0.67 | N61: 1.22 | O61: 0 | P61: 0 | Q61: 0 | R61: 1.92 | S61: 2.125 | T61: 0 | U61: 0 | V61: 0 | W61: 0 | X61: 0 | Y61: 4.71 | Z61: 0 | AA61: 44.7 | AB61: 0 | AC61: 0 | AD61: 32.2 | AE61: 2160 | AF61: 8150 | AG61: 9290 | AH61: 629 | AI61: 549 | AJ61: 13.7 | AK61: 310 | AL61: 84.4 | AM61: 53.9 | AN61: 2.5 | AO61: 0 | AP61: 17.7 | AQ61: 82400 | AR61: 0 | AS61: 93.7 | AT61: 329 | AU61: 108 | AV61: 311 | AW61: 0 | AX61: 0 | AY61: 0 | AZ61: 0
A62: W | B62: W33x152 | C62: W33x152 | D62: 2 | E62: 152 | F62: 44.8 | G62: 33.5 | H62: 0 | I62: 0 | J62: 11.6 | K62: 0 | L62: 0 | M62: 0.635 | N62: 1.06 | O62: 0 | P62: 0 | Q62: 0 | R62: 1.76 | S62: 1.9375 | T62: 0 | U62: 0 | V62: 0 | W62: 0 | X62: 0 | Y62: 5.48 | Z62: 0 | AA62: 47.2 | AB62: 0 | AC62: 0 | AD62: 28.9 | AE62: 1940 | AF62: 12900 | AG62: 8160 | AH62: 559 | AI62: 487 | AJ62: 13.5 | AK62: 273 | AL62: 73.9 | AM62: 47.2 | AN62: 2.47 | AO62: 0 | AP62: 12.4 | AQ62: 71800 | AR62: 0 | AS62: 93.8 | AT62: 286 | AU62: 93.5 | AV62: 276 | AW62: 0 | AX62: 0 | AY62: 0 | AZ62: 0
A63: W | B63: W33x141 | C63: W33x141 | D63: 2 | E63: 141 | F63: 41.6 | G63: 33.3 | H63: 0 | I63: 0 | J63: 11.5 | K63: 0 | L63: 0 | M63: 0.605 | N63: 0.96 | O63: 0 | P63: 0 | Q63: 0 | R63: 1.66 | S63: 1.8125 | T63: 0 | U63: 0 | V63: 0 | W63: 0 | X63: 0 | Y63: 6.01 | Z63: 0 | AA63: 49.6 | AB63: 0 | AC63: 0 | AD63: 26.2 | AE63: 1800 | AF63: 17800 | AG63: 7450 | AH63: 514 | AI63: 448 | AJ63: 13.4 | AK63: 246 | AL63: 66.9 | AM63: 42.7 | AN63: 2.43 | AO63: 0 | AP63: 9.7 | AQ63: 64300 | AR63: 0 | AS63: 93.3 | AT63: 258 | AU63: 84.8 | AV63: 254 | AW63: 0 | AX63: 0 | AY63: 0 | AZ63: 0
A64: W | B64: W33x130 | C64: W33x130 | D64: 2 | E64: 130 | F64: 38.3 | G64: 33.1 | H64: 0 | I64: 0 | J64: 11.5 | K64: 0 | L64: 0 | M64: 0.58 | N64: 0.855 | O64: 0 | P64: 0 | Q64: 0 | R64: 1.56 | S64: 1.75 | T64: 0 | U64: 0 | V64: 0 | W64: 0 | X64: 0 | Y64: 6.73 | Z64: 0 | AA64: 51.7 | AB64: 0 | AC64: 0 | AD64: 24.1 | AE64: 1660 | AF64: 25100 | AG64: 6710 | AH64: 467 | AI64: 406 | AJ64: 13.2 | AK64: 218 | AL64: 59.5 | AM64: 37.9 | AN64: 2.39 | AO64: 0 | AP64: 7.37 | AQ64: 56600 | AR64: 0 | AS64: 92.8 | AT64: 228 | AU64: 75.3 | AV64: 230 | AW64: 0 | AX64: 0 | AY64: 0 | AZ64: 0
A65: W | B65: W33x118 | C65: W33x118 | D65: 2 | E65: 118 | F65: 34.7 | G65: 32.9 | H65: 0 | I65: 0 | J65: 11.5 | K65: 0 | L65: 0 | M65: 0.55 | N65: 0.74 | O65: 0 | P65: 0 | Q65: 0 | R65: 1.44 | S65: 1.625 | T65: 0 | U65: 0 | V65: 0 | W65: 0 | X65: 0 | Y65: 7.76 | Z65: 0 | AA65: 54.5 | AB65: 0 | AC65: 0 | AD65: 21.7 | AE65: 1510 | AF65: 37700 | AG65: 5900 | AH65: 415 | AI65: 359 | AJ65: 13 | AK65: 187 | AL65: 51.3 | AM65: 32.6 | AN65: 2.32 | AO65: 0 | AP65: 5.3 | AQ65: 48200 | AR65: 0 | AS65: 92.2 | AT65: 196 | AU65: 64.9 | AV65: 204 | AW65: 0 | AX65: 0 | AY65: 0 | AZ65: 0
A66: W | B66: W30x391 | C66: W30x391 | D66: 4 | E66: 391 | F66: 115 | G66: 33.2 | H66: 0 | I66: 0 | J66: 15.6 | K66: 0 | L66: 0 | M66: 1.36 | N66: 2.44 | O66: 0 | P66: 0 | Q66: 0 | R66: 3.23 | S66: 3.375 | T66: 0 | U66: 0 | V66: 0 | W66: 0 | X66: 0 | Y66: 3.19 | Z66: 0 | AA66: 19.7 | AB66: 0 | AC66: 0 | AD66: 0 | AE66: 4520 | AF66: 394 | AG66: 20700 | AH66: 1450 | AI66: 1250 | AJ66: 13.4 | AK66: 1550 | AL66: 310 | AM66: 198 | AN66: 3.67 | AO66: 0 | AP66: 173 | AQ66: 366000 | AR66: 0 | AS66: 120 | AT66: 1140 | AU66: 267 | AV66: 721 | AW66: 0 | AX66: 0 | AY66: 0 | AZ66: 0
A67: W | B67: W30x357 | C67: W30x357 | D67: 4 | E67: 357 | F67: 105 | G67: 32.8 | H67: 0 | I67: 0 | J67: 15.5 | K67: 0 | L67: 0 | M67: 1.24 | N67: 2.24 | O67: 0 | P67: 0 | Q67: 0 | R67: 3.03 | S67: 3.125 | T67: 0 | U67: 0 | V67: 0 | W67: 0 | X67: 0 | Y67: 3.45 | Z67: 0 | AA67: 21.6 | AB67: 0 | AC67: 0 | AD67: 0 | AE67: 4170 | AF67: 539 | AG67: 18700 | AH67: 1320 | AI67: 1140 | AJ67: 13.3 | AK67: 1390 | AL67: 279 | AM67: 179 | AN67: 3.64 | AO67: 0 | AP67: 134 | AQ67: 325000 | AR67: 0 | AS67: 118 | AT67: 1020 | AU67: 244 | AV67: 654 | AW67: 0 | AX67: 0 | AY67: 0 | AZ67: 0
A68: W | B68: W30x326 | C68: W30x326 | D68: 4 | E68: 326 | F68: 95.8 | G68: 32.4 | H68: 0 | I68: 0 | J68: 15.4 | K68: 0 | L68: 0 | M68: 1.14 | N68: 2.05 | O68: 0 | P68: 0 | Q68: 0 | R68: 2.84 | S68: 2.9375 | T68: 0 | U68: 0 | V68: 0 | W68: 0 | X68: 0 | Y68: 3.75 | Z68: 0 | AA68: 23.4 | AB68: 0 | AC68: 0 | AD68: 0 | AE68: 3820 | AF68: 749 | AG68: 16800 | AH68: 1190 | AI68: 1040 | AJ68: 13.2 | AK68: 1240 | AL68: 252 | AM68: 162 | AN68: 3.6 | AO68: 0 | AP68: 103 | AQ68: 286000 | AR68: 0 | AS68: 117 | AT68: 919 | AU68: 221 | AV68: 592 | AW68: 0 | AX68: 0 | AY68: 0 | AZ68: 0
A69: W | B69: W30x292 | C69: W30x292 | D69: 4 | E69: 292 | F69: 85.9 | G69: 32 | H69: 0 | I69: 0 | J69: 15.3 | K69: 0 | L69: 0 | M69: 1.02 | N69: 1.85 | O69: 0 | P69: 0 | Q69: 0 | R69: 2.64 | S69: 2.75 | T69: 0 | U69: 0 | V69: 0 | W69: 0 | X69: 0 | Y69: 4.12 | Z69: 0 | AA69: 26.2 | AB69: 0 | AC69: 0 | AD69: 0 | AE69: 3460 | AF69: 1110 | AG69: 14900 | AH69: 1060 | AI69: 930 | AJ69: 13.2 | AK69: 1100 | AL69: 223 | AM69: 144 | AN69: 3.58 | AO69: 0 | AP69: 75.2 | AQ69: 250000 | AR69: 0 | AS69: 115 | AT69: 812 | AU69: 199 | AV69: 528 | AW69: 0 | AX69: 0 | AY69: 0 | AZ69: 0
A70: W | B70: W30x261 | C70: W30x261 | D70: 3 | E70: 261 | F70: 76.9 | G70: 31.6 | H70: 0 | I70: 0 | J70: 15.2 | K70: 0 | L70: 0 | M70: 0.93 | N70: 1.65 | O70: 0 | P70: 0 | Q70: 0 | R70: 2.44 | S70: 2.5625 | T70: 0 | U70: 0 | V70: 0 | W70: 0 | X70: 0 | Y70: 4.59 | Z70: 0 | AA70: 28.7 | AB70: 0 | AC70: 0 | AD70: 0 | AE70: 3110 | AF70: 1680 | AG70: 13100 | AH70: 943 | AI70: 829 | AJ70: 13.1 | AK70: 959 | AL70: 196 | AM70: 127 | AN70: 3.53 | AO70: 0 | AP70: 54.1 | AQ70: 215000 | AR70: 0 | AS70: 114 | AT70: 710 | AU70: 176 | AV70: 468 | AW70: 0 | AX70: 0 | AY70: 0 | AZ70: 0
A71: W | B71: W30x235 | C71: W30x235 | D71: 3 | E71: 235 | F71: 69.2 | G71: 31.3 | H71: 0 | I71: 0 | J71: 15.1 | K71: 0 | L71: 0 | M71: 0.83 | N71: 1.5 | O71: 0 | P71: 0 | Q71: 0 | R71: 2.29 | S71: 2.375 | T71: 0 | U71: 0 | V71: 0 | W71: 0 | X71: 0 | Y71: 5.02 | Z71: 0 | AA71: 32.2 | AB71: 0 | AC71: 0 | AD71: 62.1 | AE71: 2830 | AF71: 2440 | AG71: 11700 | AH71: 847 | AI71: 748 | AJ71: 13 | AK71: 855 | AL71: 175 | AM71: 114 | AN71: 3.51 | AO71: 0 | AP71: 40.3 | AQ71: 190000 | AR71: 0 | AS71: 112 | AT71: 633 | AU71: 159 | AV71: 420 | AW71: 0 | AX71: 0 | AY71: 0 | AZ71: 0
A72: W | B72: W30x211 | C72: W30x211 | D72: 2 | E72: 211 | F72: 62.2 | G72: 30.9 | H72: 0 | I72: 0 | J72: 15.1 | K72: 0 | L72: 0 | M72: 0.775 | N72: 1.32 | O72: 0 | P72: 0 | Q72: 0 | R72: 2.1 | S72: 2.25 | T72: 0 | U72: 0 | V72: 0 | W72: 0 | X72: 0 | Y72: 5.74 | Z72: 0 | AA72: 34.5 | AB72: 0 | AC72: 0 | AD72: 54.1 | AE72: 2530 | AF72: 3840 | AG72: 10300 | AH72: 751 | AI72: 665 | AJ72: 12.9 | AK72: 757 | AL72: 155 | AM72: 100 | AN72: 3.49 | AO72: 0 | AP72: 28.4 | AQ72: 166000 | AR72: 0 | AS72: 112 | AT72: 556 | AU72: 140 | AV72: 372 | AW72: 0 | AX72: 0 | AY72: 0 | AZ72: 0
A73: W | B73: W30x191 | C73: W30x191 | D73: 2 | E73: 191 | F73: 56.3 | G73: 30.7 | H73: 0 | I73: 0 | J73: 15 | K73: 0 | L73: 0 | M73: 0.71 | N73: 1.19 | O73: 0 | P73: 0 | Q73: 0 | R73: 1.97 | S73: 2.0625 | T73: 0 | U73: 0 | V73: 0 | W73: 0 | X73: 0 | Y73: 6.35 | Z73: 0 | AA73: 37.7 | AB73: 0 | AC73: 0 | AD73: 45.4 | AE73: 2290 | AF73: 5660 | AG73: 9200 | AH73: 675 | AI73: 600 | AJ73: 12.8 | AK73: 673 | AL73: 138 | AM73: 89.5 | AN73: 3.46 | AO73: 0 | AP73: 21 | AQ73: 146000 | AR73: 0 | AS73: 111 | AT73: 494 | AU73: 125 | AV73: 334 | AW73: 0 | AX73: 0 | AY73: 0 | AZ73: 0
A74: W | B74: W30x173 | C74: W30x173 | D74: 2 | E74: 173 | F74: 51 | G74: 30.4 | H74: 0 | I74: 0 | J74: 15 | K74: 0 | L74: 0 | M74: 0.655 | N74: 1.07 | O74: 0 | P74: 0 | Q74: 0 | R74: 1.85 | S74: 2 | T74: 0 | U74: 0 | V74: 0 | W74: 0 | X74: 0 | Y74: 7.04 | Z74: 0 | AA74: 40.8 | AB74: 0 | AC74: 0 | AD74: 38.6 | AE74: 2090 | AF74: 8270 | AG74: 8230 | AH74: 607 | AI74: 541 | AJ74: 12.7 | AK74: 598 | AL74: 123 | AM74: 79.8 | AN74: 3.42 | AO74: 0 | AP74: 15.6 | AQ74: 129000 | AR74: 0 | AS74: 110 | AT74: 439 | AU74: 112 | AV74: 300 | AW74: 0 | AX74: 0 | AY74: 0 | AZ74: 0
A75: W | B75: W30x148 | C75: W30x148 | D75: 2 | E75: 148 | F75: 43.5 | G75: 30.7 | H75: 0 | I75: 0 | J75: 10.5 | K75: 0 | L75: 0 | M75: 0.65 | N75: 1.18 | O75: 0 | P75: 0 | Q75: 0 | R75: 1.83 | S75: 2.0625 | T75: 0 | U75: 0 | V75: 0 | W75: 0 | X75: 0 | Y75: 4.44 | Z75: 0 | AA75: 41.6 | AB75: 0 | AC75: 0 | AD75: 37.3 | AE75: 2310 | AF75: 6270 | AG75: 6680 | AH75: 500 | AI75: 436 | AJ75: 12.4 | AK75: 227 | AL75: 68 | AM75: 43.3 | AN75: 2.28 | AO75: 0 | AP75: 14.5 | AQ75: 49400 | AR75: 0 | AS75: 77.3 | AT75: 239 | AU75: 85.5 | AV75: 247 | AW75: 0 | AX75: 0 | AY75: 0 | AZ75: 0
A76: W | B76: W30x132 | C76: W30x132 | D76: 2 | E76: 132 | F76: 38.9 | G76: 30.3 | H76: 0 | I76: 0 | J76: 10.5 | K76: 0 | L76: 0 | M76: 0.615 | N76: 1 | O76: 0 | P76: 0 | Q76: 0 | R76: 1.65 | S76: 1.875 | T76: 0 | U76: 0 | V76: 0 | W76: 0 | X76: 0 | Y76: 5.27 | Z76: 0 | AA76: 43.9 | AB76: 0 | AC76: 0 | AD76: 33.4 | AE76: 2050 | AF76: 10500 | AG76: 5770 | AH76: 437 | AI76: 380 | AJ76: 12.2 | AK76: 196 | AL76: 58.4 | AM76: 37.2 | AN76: 2.25 | AO76: 0 | AP76: 9.72 | AQ76: 42100 | AR76: 0 | AS76: 77.3 | AT76: 204 | AU76: 72.8 | AV76: 216 | AW76: 0 | AX76: 0 | AY76: 0 | AZ76: 0
A77: W | B77: W30x124 | C77: W30x124 | D77: 2 | E77: 124 | F77: 36.5 | G77: 30.2 | H77: 0 | I77: 0 | J77: 10.5 | K77: 0 | L77: 0 | M77: 0.585 | N77: 0.93 | O77: 0 | P77: 0 | Q77: 0 | R77: 1.58 | S77: 1.8125 | T77: 0 | U77: 0 | V77: 0 | W77: 0 | X77: 0 | Y77: 5.65 | Z77: 0 | AA77: 46.2 | AB77: 0 | AC77: 0 | AD77: 30.2 | AE77: 1930 | AF77: 13500 | AG77: 5360 | AH77: 408 | AI77: 355 | AJ77: 12.1 | AK77: 181 | AL77: 54 | AM77: 34.4 | AN77: 2.23 | AO77: 0 | AP77: 7.99 | AQ77: 38700 | AR77: 0 | AS77: 76.9 | AT77: 188 | AU77: 67.5 | AV77: 202 | AW77: 0 | AX77: 0 | AY77: 0 | AZ77: 0
A78: W | B78: W30x116 | C78: W30x116 | D78: 2 | E78: 116 | F78: 34.2 | G78: 30 | H78: 0 | I78: 0 | J78: 10.5 | K78: 0 | L78: 0 | M78: 0.565 | N78: 0.85 | O78: 0 | P78: 0 | Q78: 0 | R78: 1.5 | S78: 1.75 | T78: 0 | U78: 0 | V78: 0 | W78: 0 | X78: 0 | Y78: 6.17 | Z78: 0 | AA78: 47.8 | AB78: 0 | AC78: 0 | AD78: 28.2 | AE78: 1800 | AF78: 17700 | AG78: 4930 | AH78: 378 | AI78: 329 | AJ78: 12 | AK78: 164 | AL78: 49.2 | AM78: 31.3 | AN78: 2.19 | AO78: 0 | AP78: 6.43 | AQ78: 34900 | AR78: 0 | AS78: 76.5 | AT78: 171 | AU78: 61.5 | AV78: 187 | AW78: 0 | AX78: 0 | AY78: 0 | AZ78: 0
A79: W | B79: W30x108 | C79: W30x108 | D79: 2 | E79: 108 | F79: 31.7 | G79: 29.8 | H79: 0 | I79: 0 | J79: 10.5 | K79: 0 | L79: 0 | M79: 0.545 | N79: 0.76 | O79: 0 | P79: 0 | Q79: 0 | R79: 1.41 | S79: 1.6875 | T79: 0 | U79: 0 | V79: 0 | W79: 0 | X79: 0 | Y79: 6.89 | Z79: 0 | AA79: 49.6 | AB79: 0 | AC79: 0 | AD79: 26.2 | AE79: 1680 | AF79: 24200 | AG79: 4470 | AH79: 346 | AI79: 299 | AJ79: 11.9 | AK79: 146 | AL79: 43.9 | AM79: 27.9 | AN79: 2.15 | AO79: 0 | AP79: 4.99 | AQ79: 30800 | AR79: 0 | AS79: 76.1 | AT79: 152 | AU79: 54.8 | AV79: 170 | AW79: 0 | AX79: 0 | AY79: 0 | AZ79: 0
A80: W | B80: W30x99 | C80: W30x99 | D80: 2 | E80: 99 | F80: 29.1 | G80: 29.7 | H80: 0 | I80: 0 | J80: 10.5 | K80: 0 | L80: 0 | M80: 0.52 | N80: 0.67 | O80: 0 | P80: 0 | Q80: 0 | R80: 1.32 | S80: 1.5625 | T80: 0 | U80: 0 | V80: 0 | W80: 0 | X80: 0 | Y80: 7.8 | Z80: 0 | AA80: 51.9 | AB80: 0 | AC80: 0 | AD80: 23.9 | AE80: 1560 | AF80: 34100 | AG80: 3990 | AH80: 312 | AI80: 269 | AJ80: 11.7 | AK80: 128 | AL80: 38.6 | AM80: 24.5 | AN80: 2.1 | AO80: 0 | AP80: 3.77 | AQ80: 26900 | AR80: 0 | AS80: 75.7 | AT80: 133 | AU80: 48.2 | AV80: 154 | AW80: 0 | AX80: 0 | AY80: 0 | AZ80: 0
A81: W | B81: W30x90 | C81: W30x90 | D81: 2 | E81: 90 | F81: 26.4 | G81: 29.5 | H81: 0 | I81: 0 | J81: 10.4 | K81: 0 | L81: 0 | M81: 0.47 | N81: 0.61 | O81: 0 | P81: 0 | Q81: 0 | R81: 1.26 | S81: 1.5 | T81: 0 | U81: 0 | V81: 0 | W81: 0 | X81: 0 | Y81: 8.52 | Z81: 0 | AA81: 57.5 | AB81: 0 | AC81: 0 | AD81: 19.5 | AE81: 1410 | AF81: 49600 | AG81: 3610 | AH81: 283 | AI81: 245 | AJ81: 11.7 | AK81: 115 | AL81: 34.7 | AM81: 22.1 | AN81: 2.09 | AO81: 0 | AP81: 2.84 | AQ81: 24000 | AR81: 0 | AS81: 75.2 | AT81: 119 | AU81: 43.8 | AV81: 139 | AW81: 0 | AX81: 0 | AY81: 0 | AZ81: 0
A82: W | B82: W27x539 | C82: W27x539 | D82: 4 | E82: 539 | F82: 159 | G82: 32.5 | H82: 0 | I82: 0 | J82: 15.3 | K82: 0 | L82: 0 | M82: 1.97 | N82: 3.54 | O82: 0 | P82: 0 | Q82: 0 | R82: 4.33 | S82: 4.4375 | T82: 0 | U82: 0 | V82: 0 | W82: 0 | X82: 0 | Y82: 2.15 | Z82: 0 | AA82: 12.1 | AB82: 0 | AC82: 0 | AD82: 0 | AE82: 7160 | AF82: 67.1 | AG82: 25600 | AH82: 1890 | AI82: 1570 | AJ82: 12.7 | AK82: 2110 | AL82: 437 | AM82: 277 | AN82: 3.65 | AO82: 0 | AP82: 496 | AQ82: 443000 | AR82: 0 | AS82: 111 | AT82: 1490 | AU82: 341 | AV82: 942 | AW82: 0 | AX82: 0 | AY82: 0 | AZ82: 0
A83: W | B83: W27x368 | C83: W27x368 | D83: 4 | E83: 368 | F83: 108 | G83: 30.4 | H83: 0 | I83: 0 | J83: 14.7 | K83: 0 | L83: 0 | M83: 1.38 | N83: 2.48 | O83: 0 | P83: 0 | Q83: 0 | R83: 3.27 | S83: 3.375 | T83: 0 | U83: 0 | V83: 0 | W83: 0 | X83: 0 | Y83: 2.96 | Z83: 0 | AA83: 17.3 | AB83: 0 | AC83: 0 | AD83: 0 | AE83: 5120 | AF83: 241 | AG83: 16200 | AH83: 1240 | AI83: 1060 | AJ83: 12.2 | AK83: 1310 | AL83: 279 | AM83: 179 | AN83: 3.48 | AO83: 0 | AP83: 170 | AQ83: 255000 | AR83: 0 | AS83: 102 | AT83: 930 | AU83: 230 | AV83: 619 | AW83: 0 | AX83: 0 | AY83: 0 | AZ83: 0
A84: W | B84: W27x336 | C84: W27x336 | D84: 4 | E84: 336 | F84: 98.9 | G84: 30 | H84: 0 | I84: 0 | J84: 14.6 | K84: 0 | L84: 0 | M84: 1.26 | N84: 2.28 | O84: 0 | P84: 0 | Q84: 0 | R84: 3.07 | S84: 3.1875 | T84: 0 | U84: 0 | V84: 0 | W84: 0 | X84: 0 | Y84: 3.19 | Z84: 0 | AA84: 18.9 | AB84: 0 | AC84: 0 | AD84: 0 | AE84: 4690 | AF84: 337 | AG84: 14600 | AH84: 1130 | AI84: 972 | AJ84: 12.1 | AK84: 1180 | AL84: 252 | AM84: 162 | AN84: 3.45 | AO84: 0 | AP84: 131 | AQ84: 227000 | AR84: 0 | AS84: 101 | AT84: 836 | AU84: 210 | AV84: 562 | AW84: 0 | AX84: 0 | AY84: 0 | AZ84: 0
A85: W | B85: W27x307 | C85: W27x307 | D85: 4 | E85: 307 | F85: 90.4 | G85: 29.6 | H85: 0 | I85: 0 | J85: 14.4 | K85: 0 | L85: 0 | M85: 1.16 | N85: 2.09 | O85: 0 | P85: 0 | Q85: 0 | R85: 2.88 | S85: 3 | T85: 0 | U85: 0 | V85: 0 | W85: 0 | X85: 0 | Y85: 3.46 | Z85: 0 | AA85: 20.6 | AB85: 0 | AC85: 0 | AD85: 0 | AE85: 4310 | AF85: 466 | AG85: 13100 | AH85: 1030 | AI85: 887 | AJ85: 12 | AK85: 1050 | AL85: 227 | AM85: 146 | AN85: 3.41 | AO85: 0 | AP85: 101 | AQ85: 199000 | AR85: 0 | AS85: 99.4 | AT85: 750 | AU85: 191 | AV85: 509 | AW85: 0 | AX85: 0 | AY85: 0 | AZ85: 0
A86: W | B86: W27x281 | C86: W27x281 | D86: 4 | E86: 281 | F86: 82.9 | G86: 29.3 | H86: 0 | I86: 0 | J86: 14.4 | K86: 0 | L86: 0 | M86: 1.06 | N86: 1.93 | O86: 0 | P86: 0 | Q86: 0 | R86: 2.72 | S86: 2.8125 | T86: 0 | U86: 0 | V86: 0 | W86: 0 | X86: 0 | Y86: 3.72 | Z86: 0 | AA86: 22.5 | AB86: 0 | AC86: 0 | AD86: 0 | AE86: 3990 | AF86: 626 | AG86: 11900 | AH86: 936 | AI86: 814 | AJ86: 12 | AK86: 953 | AL86: 206 | AM86: 133 | AN86: 3.39 | AO86: 0 | AP86: 79.5 | AQ86: 178000 | AR86: 0 | AS86: 98.2 | AT86: 680 | AU86: 175 | AV86: 465 | AW86: 0 | AX86: 0 | AY86: 0 | AZ86: 0
A87: W | B87: W27x258 | C87: W27x258 | D87: 3 | E87: 258 | F87: 76 | G87: 29 | H87: 0 | I87: 0 | J87: 14.3 | K87: 0 | L87: 0 | M87: 0.98 | N87: 1.77 | O87: 0 | P87: 0 | Q87: 0 | R87: 2.56 | S87: 2.6875 | T87: 0 | U87: 0 | V87: 0 | W87: 0 | X87: 0 | Y87: 4.03 | Z87: 0 | AA87: 24.4 | AB87: 0 | AC87: 0 | AD87: 0 | AE87: 3680 | AF87: 863 | AG87: 10800 | AH87: 852 | AI87: 745 | AJ87: 11.9 | AK87: 859 | AL87: 187 | AM87: 120 | AN87: 3.36 | AO87: 0 | AP87: 61.6 | AQ87: 159000 | AR87: 0 | AS87: 97.1 | AT87: 613 | AU87: 160 | AV87: 423 | AW87: 0 | AX87: 0 | AY87: 0 | AZ87: 0
A88: W | B88: W27x235 | C88: W27x235 | D88: 3 | E88: 235 | F88: 69.4 | G88: 28.7 | H88: 0 | I88: 0 | J88: 14.2 | K88: 0 | L88: 0 | M88: 0.91 | N88: 1.61 | O88: 0 | P88: 0 | Q88: 0 | R88: 2.4 | S88: 2.5 | T88: 0 | U88: 0 | V88: 0 | W88: 0 | X88: 0 | Y88: 4.41 | Z88: 0 | AA88: 26.2 | AB88: 0 | AC88: 0 | AD88: 0 | AE88: 3380 | AF88: 1210 | AG88: 9700 | AH88: 772 | AI88: 677 | AJ88: 11.8 | AK88: 769 | AL88: 168 | AM88: 108 | AN88: 3.33 | AO88: 0 | AP88: 47 | AQ88: 141000 | AR88: 0 | AS88: 96 | AT88: 548 | AU88: 145 | AV88: 383 | AW88: 0 | AX88: 0 | AY88: 0 | AZ88: 0
A89: W | B89: W27x217 | C89: W27x217 | D89: 3 | E89: 217 | F89: 64 | G89: 28.4 | H89: 0 | I89: 0 | J89: 14.1 | K89: 0 | L89: 0 | M89: 0.83 | N89: 1.5 | O89: 0 | P89: 0 | Q89: 0 | R89: 2.29 | S89: 2.375 | T89: 0 | U89: 0 | V89: 0 | W89: 0 | X89: 0 | Y89: 4.71 | Z89: 0 | AA89: 28.7 | AB89: 0 | AC89: 0 | AD89: 0 | AE89: 3130 | AF89: 1610 | AG89: 8910 | AH89: 711 | AI89: 627 | AJ89: 11.8 | AK89: 704 | AL89: 154 | AM89: 99.8 | AN89: 3.32 | AO89: 0 | AP89: 37.6 | AQ89: 128000 | AR89: 0 | AS89: 95 | AT89: 503 | AU89: 134 | AV89: 352 | AW89: 0 | AX89: 0 | AY89: 0 | AZ89: 0
A90: W | B90: W27x194 | C90: W27x194 | D90: 3 | E90: 194 | F90: 57.2 | G90: 28.1 | H90: 0 | I90: 0 | J90: 14 | K90: 0 | L90: 0 | M90: 0.75 | N90: 1.34 | O90: 0 | P90: 0 | Q90: 0 | R90: 2.13 | S90: 2.25 | T90: 0 | U90: 0 | V90: 0 | W90: 0 | X90: 0 | Y90: 5.24 | Z90: 0 | AA90: 31.8 | AB90: 0 | AC90: 0 | AD90: 63.6 | AE90: 2820 | AF90: 2430 | AG90: 7860 | AH90: 631 | AI90: 559 | AJ90: 11.7 | AK90: 619 | AL90: 136 | AM90: 88.1 | AN90: 3.29 | AO90: 0 | AP90: 27.1 | AQ90: 111000 | AR90: 0 | AS90: 93.9 | AT90: 442 | AU90: 119 | AV90: 312 | AW90: 0 | AX90: 0 | AY90: 0 | AZ90: 0
A91: W | B91: W27x178 | C91: W27x178 | D91: 2 | E91: 178 | F91: 52.5 | G91: 27.8 | H91: 0 | I91: 0 | J91: 14.1 | K91: 0 | L91: 0 | M91: 0.725 | N91: 1.19 | O91: 0 | P91: 0 | Q91: 0 | R91: 1.98 | S91: 2.0625 | T91: 0 | U91: 0 | V91: 0 | W91: 0 | X91: 0 | Y91: 5.92 | Z91: 0 | AA91: 32.9 | AB91: 0 | AC91: 0 | AD91: 59.5 | AE91: 2580 | AF91: 3570 | AG91: 7020 | AH91: 570 | AI91: 505 | AJ91: 11.6 | AK91: 555 | AL91: 122 | AM91: 78.8 | AN91: 3.25 | AO91: 0 | AP91: 20.1 | AQ91: 98300 | AR91: 0 | AS91: 93.7 | AT91: 393 | AU91: 106 | AV91: 282 | AW91: 0 | AX91: 0 | AY91: 0 | AZ91: 0
A92: W | B92: W27x161 | C92: W27x161 | D92: 2 | E92: 161 | F92: 47.6 | G92: 27.6 | H92: 0 | I92: 0 | J92: 14 | K92: 0 | L92: 0 | M92: 0.66 | N92: 1.08 | O92: 0 | P92: 0 | Q92: 0 | R92: 1.87 | S92: 2 | T92: 0 | U92: 0 | V92: 0 | W92: 0 | X92: 0 | Y92: 6.49 | Z92: 0 | AA92: 36.1 | AB92: 0 | AC92: 0 | AD92: 49.3 | AE92: 2340 | AF92: 5150 | AG92: 6310 | AH92: 515 | AI92: 458 | AJ92: 11.5 | AK92: 497 | AL92: 109 | AM92: 70.9 | AN92: 3.23 | AO92: 0 | AP92: 15.1 | AQ92: 87300 | AR92: 0 | AS92: 92.9 | AT92: 352 | AU92: 95.6 | AV92: 254 | AW92: 0 | AX92: 0 | AY92: 0 | AZ92: 0
A93: W | B93: W27x146 | C93: W27x146 | D93: 2 | E93: 146 | F93: 43.1 | G93: 27.4 | H93: 0 | I93: 0 | J93: 14 | K93: 0 | L93: 0 | M93: 0.605 | N93: 0.975 | O93: 0 | P93: 0 | Q93: 0 | R93: 1.76 | S93: 1.875 | T93: 0 | U93: 0 | V93: 0 | W93: 0 | X93: 0 | Y93: 7.16 | Z93: 0 | AA93: 39.4 | AB93: 0 | AC93: 0 | AD93: 41.4 | AE93: 2130 | AF93: 7460 | AG93: 5660 | AH93: 464 | AI93: 414 | AJ93: 11.5 | AK93: 443 | AL93: 97.7 | AM93: 63.5 | AN93: 3.2 | AO93: 0 | AP93: 11.3 | AQ93: 77200 | AR93: 0 | AS93: 92.2 | AT93: 314 | AU93: 86 | AV93: 229 | AW93: 0 | AX93: 0 | AY93: 0 | AZ93: 0
A94: W | B94: W27x129 | C94: W27x129 | D94: 2 | E94: 129 | F94: 37.8 | G94: 27.6 | H94: 0 | I94: 0 | J94: 10 | K94: 0 | L94: 0 | M94: 0.61 | N94: 1.1 | O94: 0 | P94: 0 | Q94: 0 | R94: 1.7 | S94: 2 | T94: 0 | U94: 0 | V94: 0 | W94: 0 | X94: 0 | Y94: 4.55 | Z94: 0 | AA94: 39.7 | AB94: 0 | AC94: 0 | AD94: 40.8 | AE94: 2380 | AF94: 5420 | AG94: 4760 | AH94: 395 | AI94: 345 | AJ94: 11.2 | AK94: 184 | AL94: 57.6 | AM94: 36.8 | AN94: 2.21 | AO94: 0 | AP94: 11.1 | AQ94: 32400 | AR94: 0 | AS94: 66.4 | AT94: 183 | AU94: 68.6 | AV94: 195 | AW94: 0 | AX94: 0 | AY94: 0 | AZ94: 0
A95: W | B95: W27x114 | C95: W27x114 | D95: 2 | E95: 114 | F95: 33.5 | G95: 27.3 | H95: 0 | I95: 0 | J95: 10.1 | K95: 0 | L95: 0 | M95: 0.57 | N95: 0.93 | O95: 0 | P95: 0 | Q95: 0 | R95: 1.53 | S95: 1.8125 | T95: 0 | U95: 0 | V95: 0 | W95: 0 | X95: 0 | Y95: 5.41 | Z95: 0 | AA95: 42.5 | AB95: 0 | AC95: 0 | AD95: 35.6 | AE95: 2100 | AF95: 9220 | AG95: 4080 | AH95: 343 | AI95: 299 | AJ95: 11 | AK95: 159 | AL95: 49.3 | AM95: 31.5 | AN95: 2.18 | AO95: 0 | AP95: 7.33 | AQ95: 27600 | AR95: 0 | AS95: 66.4 | AT95: 155 | AU95: 58.2 | AV95: 170 | AW95: 0 | AX95: 0 | AY95: 0 | AZ95: 0
A96: W | B96: W27x102 | C96: W27x102 | D96: 2 | E96: 102 | F96: 30 | G96: 27.1 | H96: 0 | I96: 0 | J96: 10 | K96: 0 | L96: 0 | M96: 0.515 | N96: 0.83 | O96: 0 | P96: 0 | Q96: 0 | R96: 1.43 | S96: 1.75 | T96: 0 | U96: 0 | V96: 0 | W96: 0 | X96: 0 | Y96: 6.03 | Z96: 0 | AA96: 47.1 | AB96: 0 | AC96: 0 | AD96: 29.1 | AE96: 1890 | AF96: 14100 | AG96: 3620 | AH96: 305 | AI96: 267 | AJ96: 11 | AK96: 139 | AL96: 43.4 | AM96: 27.8 | AN96: 2.15 | AO96: 0 | AP96: 5.28 | AQ96: 24000 | AR96: 0 | AS96: 65.7 | AT96: 137 | AU96: 51.8 | AV96: 151 | AW96: 0 | AX96: 0 | AY96: 0 | AZ96: 0
A97: W | B97: W27x94 | C97: W27x94 | D97: 2 | E97: 94 | F97: 27.7 | G97: 26.9 | H97: 0 | I97: 0 | J97: 9.99 | K97: 0 | L97: 0 | M97: 0.49 | N97: 0.745 | O97: 0 | P97: 0 | Q97: 0 | R97: 1.34 | S97: 1.625 | T97: 0 | U97: 0 | V97: 0 | W97: 0 | X97: 0 | Y97: 6.7 | Z97: 0 | AA97: 49.5 | AB97: 0 | AC97: 0 | AD97: 26.3 | AE97: 1740 | AF97: 19900 | AG97: 3270 | AH97: 278 | AI97: 243 | AJ97: 10.9 | AK97: 124 | AL97: 38.8 | AM97: 24.8 | AN97: 2.12 | AO97: 0 | AP97: 4.03 | AQ97: 21200 | AR97: 0 | AS97: 65.4 | AT97: 122 | AU97: 46.3 | AV97: 137 | AW97: 0 | AX97: 0 | AY97: 0 | AZ97: 0
A98: W | B98: W27x84 | C98: W27x84 | D98: 2 | E98: 84 | F98: 24.8 | G98: 26.7 | H98: 0 | I98: 0 | J98: 9.96 | K98: 0 | L98: 0 | M98: 0.46 | N98: 0.64 | O98: 0 | P98: 0 | Q98: 0 | R98: 1.24 | S98: 1.5625 | T98: 0 | U98: 0 | V98: 0 | W98: 0 | X98: 0 | Y98: 7.78 | Z98: 0 | AA98: 52.7 | AB98: 0 | AC98: 0 | AD98: 23.2 | AE98: 1570 | AF98: 31100 | AG98: 2850 | AH98: 244 | AI98: 213 | AJ98: 10.7 | AK98: 106 | AL98: 33.2 | AM98: 21.2 | AN98: 2.07 | AO98: 0 | AP98: 2.81 | AQ98: 18000 | AR98: 0 | AS98: 64.9 | AT98: 103 | AU98: 39.6 | AV98: 120 | AW98: 0 | AX98: 0 | AY98: 0 | AZ98: 0
A99: W | B99: W24x370 | C99: W24x370 | D99: 4 | E99: 370 | F99: 109 | G99: 28 | H99: 0 | I99: 0 | J99: 13.7 | K99: 0 | L99: 0 | M99: 1.52 | N99: 2.72 | O99: 0 | P99: 0 | Q99: 0 | R99: 3.22 | S99: 3.625 | T99: 0 | U99: 0 | V99: 0 | W99: 0 | X99: 0 | Y99: 2.51 | Z99: 0 | AA99: 14.2 | AB99: 0 | AC99: 0 | AD99: 0 | AE99: 6190 | AF99: 115 | AG99: 13400 | AH99: 1130 | AI99: 957 | AJ99: 11.1 | AK99: 1160 | AL99: 267 | AM99: 170 | AN99: 3.27 | AO99: 0 | AP99: 201 | AQ99: 185000 | AR99: 0 | AS99: 86.3 | AT99: 802 | AU99: 209 | AV99: 566 | AW99: 0 | AX99: 0 | AY99: 0 | AZ99: 0
A100: W | B100: W24x335 | C100: W24x335 | D100: 4 | E100: 335 | F100: 98.4 | G100: 27.5 | H100: 0 | I100: 0 | J100: 13.5 | K100: 0 | L100: 0 | M100: 1.38 | N100: 2.48 | O100: 0 | P100: 0 | Q100: 0 | R100: 2.98 | S100: 3.375 | T100: 0 | U100: 0 | V100: 0 | W100: 0 | X100: 0 | Y100: 2.73 | Z100: 0 | AA100: 15.6 | AB100: 0 | AC100: 0 | AD100: 0 | AE100: 5670 | AF100: 162 | AG100: 11900 | AH100: 1020 | AI100: 864 | AJ100: 11 | AK100: 1030 | AL100: 238 | AM100: 152 | AN100: 3.23 | AO100: 0 | AP100: 152 | AQ100: 161000 | AR100: 0 | AS100: 84.6 | AT100: 709 | AU100: 188 | AV100: 508 | AW100: 0 | AX100: 0 | AY100: 0 | AZ100: 0
A101: W | B101: W24x306 | C101: W24x306 | D101: 4 | E101: 306 | F101: 89.8 | G101: 27.1 | H101: 0 | I101: 0 | J101: 13.4 | K101: 0 | L101: 0 | M101: 1.26 | N101: 2.28 | O101: 0 | P101: 0 | Q101: 0 | R101: 2.78 | S101: 3.1875 | T101: 0 | U101: 0 | V101: 0 | W101: 0 | X101: 0 | Y101: 2.94 | Z101: 0 | AA101: 17.1 | AB101: 0 | AC101: 0 | AD101: 0 | AE101: 5200 | AF101: 224 | AG101: 10700 | AH101: 922 | AI101: 789 | AJ101: 10.9 | AK101: 919 | AL101: 214 | AM101: 137 | AN101: 3.2 | AO101: 0 | AP101: 117 | AQ101: 142000 | AR101: 0 | AS101: 83.3 | AT101: 636 | AU101: 172 | AV101: 460 | AW101: 0 | AX101: 0 | AY101: 0 | AZ101: 0
A102: W | B102: W24x279 | C102: W24x279 | D102: 4 | E102: 279 | F102: 82 | G102: 26.7 | H102: 0 | I102: 0 | J102: 13.3 | K102: 0 | L102: 0 | M102: 1.16 | N102: 2.09 | O102: 0 | P102: 0 | Q102: 0 | R102: 2.59 | S102: 3 | T102: 0 | U102: 0 | V102: 0 | W102: 0 | X102: 0 | Y102: 3.18 | Z102: 0 | AA102: 18.6 | AB102: 0 | AC102: 0 | AD102: 0 | AE102: 4800 | AF102: 305 | AG102: 9600 | AH102: 835 | AI102: 718 | AJ102: 10.8 | AK102: 823 | AL102: 193 | AM102: 124 | AN102: 3.17 | AO102: 0 | AP102: 90.5 | AQ102: 125000 | AR102: 0 | AS102: 82 | AT102: 570 | AU102: 156 | AV102: 416 | AW102: 0 | AX102: 0 | AY102: 0 | AZ102: 0
A103: W | B103: W24x250 | C103: W24x250 | D103: 4 | E103: 250 | F103: 73.5 | G103: 26.3 | H103: 0 | I103: 0 | J103: 13.2 | K103: 0 | L103: 0 | M103: 1.04 | N103: 1.89 | O103: 0 | P103: 0 | Q103: 0 | R103: 2.39 | S103: 2.8125 | T103: 0 | U103: 0 | V103: 0 | W103: 0 | X103: 0 | Y103: 3.49 | Z103: 0 | AA103: 20.7 | AB103: 0 | AC103: 0 | AD103: 0 | AE103: 4350 | AF103: 446 | AG103: 8490 | AH103: 744 | AI103: 644 | AJ103: 10.7 | AK103: 724 | AL103: 171 | AM103: 110 | AN103: 3.14 | AO103: 0 | AP103: 66.6 | AQ103: 108000 | AR103: 0 | AS103: 80.6 | AT103: 502 | AU103: 140 | AV103: 371 | AW103: 0 | AX103: 0 | AY103: 0 | AZ103: 0
A104: W | B104: W24x229 | C104: W24x229 | D104: 3 | E104: 229 | F104: 67.2 | G104: 26 | H104: 0 | I104: 0 | J104: 13.1 | K104: 0 | L104: 0 | M104: 0.96 | N104: 1.73 | O104: 0 | P104: 0 | Q104: 0 | R104: 2.23 | S104: 2.625 | T104: 0 | U104: 0 | V104: 0 | W104: 0 | X104: 0 | Y104: 3.79 | Z104: 0 | AA104: 22.5 | AB104: 0 | AC104: 0 | AD104: 0 | AE104: 4000 | AF104: 618 | AG104: 7650 | AH104: 675 | AI104: 588 | AJ104: 10.7 | AK104: 651 | AL104: 154 | AM104: 99.4 | AN104: 3.11 | AO104: 0 | AP104: 51.3 | AQ104: 96000 | AR104: 0 | AS104: 79.6 | AT104: 451 | AU104: 128 | AV104: 337 | AW104: 0 | AX104: 0 | AY104: 0 | AZ104: 0
A105: W | B105: W24x207 | C105: W24x207 | D105: 3 | E105: 207 | F105: 60.7 | G105: 25.7 | H105: 0 | I105: 0 | J105: 13 | K105: 0 | L105: 0 | M105: 0.87 | N105: 1.57 | O105: 0 | P105: 0 | Q105: 0 | R105: 2.07 | S105: 2.5 | T105: 0 | U105: 0 | V105: 0 | W105: 0 | X105: 0 | Y105: 4.14 | Z105: 0 | AA105: 24.8 | AB105: 0 | AC105: 0 | AD105: 0 | AE105: 3640 | AF105: 893 | AG105: 6820 | AH105: 606 | AI105: 531 | AJ105: 10.6 | AK105: 578 | AL105: 137 | AM105: 88.8 | AN105: 3.08 | AO105: 0 | AP105: 38.3 | AQ105: 84200 | AR105: 0 | AS105: 78.5 | AT105: 401 | AU105: 115 | AV105: 302 | AW105: 0 | AX105: 0 | AY105: 0 | AZ105: 0
A106: W | B106: W24x192 | C106: W24x192 | D106: 3 | E106: 192 | F106: 56.3 | G106: 25.5 | H106: 0 | I106: 0 | J106: 13 | K106: 0 | L106: 0 | M106: 0.81 | N106: 1.46 | O106: 0 | P106: 0 | Q106: 0 | R106: 1.96 | S106: 2.375 | T106: 0 | U106: 0 | V106: 0 | W106: 0 | X106: 0 | Y106: 4.43 | Z106: 0 | AA106: 26.6 | AB106: 0 | AC106: 0 | AD106: 0 | AE106: 3400 | AF106: 1170 | AG106: 6260 | AH106: 559 | AI106: 491 | AJ106: 10.5 | AK106: 530 | AL106: 126 | AM106: 81.8 | AN106: 3.07 | AO106: 0 | AP106: 30.8 | AQ106: 76400 | AR106: 0 | AS106: 77.7 | AT106: 367 | AU106: 106 | AV106: 278 | AW106: 0 | AX106: 0 | AY106: 0 | AZ106: 0
A107: W | B107: W24x176 | C107: W24x176 | D107: 3 | E107: 176 | F107: 51.7 | G107: 25.2 | H107: 0 | I107: 0 | J107: 12.9 | K107: 0 | L107: 0 | M107: 0.75 | N107: 1.34 | O107: 0 | P107: 0 | Q107: 0 | R107: 1.84 | S107: 2.25 | T107: 0 | U107: 0 | V107: 0 | W107: 0 | X107: 0 | Y107: 4.81 | Z107: 0 | AA107: 28.7 | AB107: 0 | AC107: 0 | AD107: 0 | AE107: 3130 | AF107: 1610 | AG107: 5680 | AH107: 511 | AI107: 450 | AJ107: 10.5 | AK107: 479 | AL107: 115 | AM107: 74.3 | AN107: 3.04 | AO107: 0 | AP107: 23.9 | AQ107: 68400 | AR107: 0 | AS107: 77 | AT107: 333 | AU107: 97.2 | AV107: 254 | AW107: 0 | AX107: 0 | AY107: 0 | AZ107: 0
A108: W | B108: W24x162 | C108: W24x162 | D108: 2 | E108: 162 | F108: 47.7 | G108: 25 | H108: 0 | I108: 0 | J108: 13 | K108: 0 | L108: 0 | M108: 0.705 | N108: 1.22 | O108: 0 | P108: 0 | Q108: 0 | R108: 1.72 | S108: 2.125 | T108: 0 | U108: 0 | V108: 0 | W108: 0 | X108: 0 | Y108: 5.31 | Z108: 0 | AA108: 30.6 | AB108: 0 | AC108: 0 | AD108: 0 | AE108: 2870 | AF108: 2260 | AG108: 5170 | AH108: 468 | AI108: 414 | AJ108: 10.4 | AK108: 443 | AL108: 105 | AM108: 68.4 | AN108: 3.05 | AO108: 0 | AP108: 18.5 | AQ108: 62600 | AR108: 0 | AS108: 77 | AT108: 304 | AU108: 88.8 | AV108: 233 | AW108: 0 | AX108: 0 | AY108: 0 | AZ108: 0
A109: W | B109: W24x146 | C109: W24x146 | D109: 2 | E109: 146 | F109: 43 | G109: 24.7 | H109: 0 | I109: 0 | J109: 12.9 | K109: 0 | L109: 0 | M109: 0.65 | N109: 1.09 | O109: 0 | P109: 0 | Q109: 0 | R109: 1.59 | S109: 2 | T109: 0 | U109: 0 | V109: 0 | W109: 0 | X109: 0 | Y109: 5.92 | Z109: 0 | AA109: 33.2 | AB109: 0 | AC109: 0 | AD109: 58.5 | AE109: 2590 | AF109: 3420 | AG109: 4580 | AH109: 418 | AI109: 371 | AJ109: 10.3 | AK109: 391 | AL109: 93.2 | AM109: 60.5 | AN109: 3.01 | AO109: 0 | AP109: 13.4 | AQ109: 54700 | AR109: 0 | AS109: 76.3 | AT109: 268 | AU109: 78.9 | AV109: 208 | AW109: 0 | AX109: 0 | AY109: 0 | AZ109: 0
A110: W | B110: W24x131 | C110: W24x131 | D110: 2 | E110: 131 | F110: 38.5 | G110: 24.5 | H110: 0 | I110: 0 | J110: 12.9 | K110: 0 | L110: 0 | M110: 0.605 | N110: 0.96 | O110: 0 | P110: 0 | Q110: 0 | R110: 1.46 | S110: 1.875 | T110: 0 | U110: 0 | V110: 0 | W110: 0 | X110: 0 | Y110: 6.7 | Z110: 0 | AA110: 35.6 | AB110: 0 | AC110: 0 | AD110: 50.7 | AE110: 2330 | AF110: 5290 | AG110: 4020 | AH110: 370 | AI110: 329 | AJ110: 10.2 | AK110: 340 | AL110: 81.5 | AM110: 53 | AN110: 2.97 | AO110: 0 | AP110: 9.5 | AQ110: 47000 | AR110: 0 | AS110: 75.6 | AT110: 233 | AU110: 69.1 | AV110: 184 | AW110: 0 | AX110: 0 | AY110: 0 | AZ110: 0
A111: W | B111: W24x117 | C111: W24x117 | D111: 2 | E111: 117 | F111: 34.4 | G111: 24.3 | H111: 0 | I111: 0 | J111: 12.8 | K111: 0 | L111: 0 | M111: 0.55 | N111: 0.85 | O111: 0 | P111: 0 | Q111: 0 | R111: 1.35 | S111: 1.75 | T111: 0 | U111: 0 | V111: 0 | W111: 0 | X111: 0 | Y111: 7.53 | Z111: 0 | AA111: 39.2 | AB111: 0 | AC111: 0 | AD111: 41.9 | AE111: 2090 | AF111: 8190 | AG111: 3540 | AH111: 327 | AI111: 291 | AJ111: 10.1 | AK111: 297 | AL111: 71.4 | AM111: 46.5 | AN111: 2.94 | AO111: 0 | AP111: 6.72 | AQ111: 40700 | AR111: 0 | AS111: 74.9 | AT111: 204 | AU111: 60.9 | AV111: 162 | AW111: 0 | AX111: 0 | AY111: 0 | AZ111: 0
A112: W | B112: W24x104 | C112: W24x104 | D112: 2 | E112: 104 | F112: 30.6 | G112: 24.1 | H112: 0 | I112: 0 | J112: 12.8 | K112: 0 | L112: 0 | M112: 0.5 | N112: 0.75 | O112: 0 | P112: 0 | Q112: 0 | R112: 1.25 | S112: 1.625 | T112: 0 | U112: 0 | V112: 0 | W112: 0 | X112: 0 | Y112: 8.5 | Z112: 0 | AA112: 43.1 | AB112: 0 | AC112: 0 | AD112: 34.6 | AE112: 1860 | AF112: 12900 | AG112: 3100 | AH112: 289 | AI112: 258 | AJ112: 10.1 | AK112: 259 | AL112: 62.4 | AM112: 40.7 | AN112: 2.91 | AO112: 0 | AP112: 4.72 | AQ112: 35200 | AR112: 0 | AS112: 74.3 | AT112: 178 | AU112: 53.5 | AV112: 143 | AW112: 0 | AX112: 0 | AY112: 0 | AZ112: 0
A113: W | B113: W24x103 | C113: W24x103 | D113: 2 | E113: 103 | F113: 30.3 | G113: 24.5 | H113: 0 | I113: 0 | J113: 9 | K113: 0 | L113: 0 | M113: 0.55 | N113: 0.98 | O113: 0 | P113: 0 | Q113: 0 | R113: 1.48 | S113: 1.875 | T113: 0 | U113: 0 | V113: 0 | W113: 0 | X113: 0 | Y113: 4.59 | Z113: 0 | AA113: 39.2 | AB113: 0 | AC113: 0 | AD113: 41.9 | AE113: 2390 | AF113: 5310 | AG113: 3000 | AH113: 280 | AI113: 245 | AJ113: 9.96 | AK113: 119 | AL113: 41.5 | AM113: 26.5 | AN113: 1.99 | AO113: 0 | AP113: 7.07 | AQ113: 16500 | AR113: 0 | AS113: 53 | AT113: 117 | AU113: 48.8 | AV113: 139 | AW113: 0 | AX113: 0 | AY113: 0 | AZ113: 0
A114: W | B114: W24x94 | C114: W24x94 | D114: 2 | E114: 94 | F114: 27.7 | G114: 24.3 | H114: 0 | I114: 0 | J114: 9.07 | K114: 0 | L114: 0 | M114: 0.515 | N114: 0.875 | O114: 0 | P114: 0 | Q114: 0 | R114: 1.38 | S114: 1.75 | T114: 0 | U114: 0 | V114: 0 | W114: 0 | X114: 0 | Y114: 5.18 | Z114: 0 | AA114: 41.9 | AB114: 0 | AC114: 0 | AD114: 36.7 | AE114: 2180 | AF114: 7800 | AG114: 2700 | AH114: 254 | AI114: 222 | AJ114: 9.87 | AK114: 109 | AL114: 37.5 | AM114: 24 | AN114: 1.98 | AO114: 0 | AP114: 5.26 | AQ114: 15000 | AR114: 0 | AS114: 53.1 | AT114: 105 | AU114: 43.8 | AV114: 126 | AW114: 0 | AX114: 0 | AY114: 0 | AZ114: 0
A115: W | B115: W24x84 | C115: W24x84 | D115: 2 | E115: 84 | F115: 24.7 | G115: 24.1 | H115: 0 | I115: 0 | J115: 9.02 | K115: 0 | L115: 0 | M115: 0.47 | N115: 0.77 | O115: 0 | P115: 0 | Q115: 0 | R115: 1.27 | S115: 1.6875 | T115: 0 | U115: 0 | V115: 0 | W115: 0 | X115: 0 | Y115: 5.86 | Z115: 0 | AA115: 45.9 | AB115: 0 | AC115: 0 | AD115: 30.6 | AE115: 1950 | AF115: 12200 | AG115: 2370 | AH115: 224 | AI115: 196 | AJ115: 9.79 | AK115: 94.4 | AL115: 32.6 | AM115: 20.9 | AN115: 1.95 | AO115: 0 | AP115: 3.7 | AQ115: 12800 | AR115: 0 | AS115: 52.6 | AT115: 91.3 | AU115: 38.4 | AV115: 111 | AW115: 0 | AX115: 0 | AY115: 0 | AZ115: 0
A116: W | B116: W24x76 | C116: W24x76 | D116: 2 | E116: 76 | F116: 22.4 | G116: 23.9 | H116: 0 | I116: 0 | J116: 8.99 | K116: 0 | L116: 0 | M116: 0.44 | N116: 0.68 | O116: 0 | P116: 0 | Q116: 0 | R116: 1.18 | S116: 1.5625 | T116: 0 | U116: 0 | V116: 0 | W116: 0 | X116: 0 | Y116: 6.61 | Z116: 0 | AA116: 49 | AB116: 0 | AC116: 0 | AD116: 26.8 | AE116: 1760 | AF116: 18600 | AG116: 2100 | AH116: 200 | AI116: 176 | AJ116: 9.69 | AK116: 82.5 | AL116: 28.6 | AM116: 18.4 | AN116: 1.92 | AO116: 0 | AP116: 2.68 | AQ116: 11100 | AR116: 0 | AS116: 52.2 | AT116: 79.8 | AU116: 33.8 | AV116: 99 | AW116: 0 | AX116: 0 | AY116: 0 | AZ116: 0
A117: W | B117: W24x68 | C117: W24x68 | D117: 2 | E117: 68 | F117: 20.1 | G117: 23.7 | H117: 0 | I117: 0 | J117: 8.97 | K117: 0 | L117: 0 | M117: 0.415 | N117: 0.585 | O117: 0 | P117: 0 | Q117: 0 | R117: 1.09 | S117: 1.5 | T117: 0 | U117: 0 | V117: 0 | W117: 0 | X117: 0 | Y117: 7.66 | Z117: 0 | AA117: 52 | AB117: 0 | AC117: 0 | AD117: 23.9 | AE117: 1590 | AF117: 29000 | AG117: 1830 | AH117: 177 | AI117: 154 | AJ117: 9.55 | AK117: 70.4 | AL117: 24.5 | AM117: 15.7 | AN117: 1.87 | AO117: 0 | AP117: 1.87 | AQ117: 9430 | AR117: 0 | AS117: 51.9 | AT117: 68 | AU117: 28.9 | AV117: 87.1 | AW117: 0 | AX117: 0 | AY117: 0 | AZ117: 0
A118: W | B118: W24x62 | C118: W24x62 | D118: 1 | E118: 62 | F118: 18.3 | G118: 23.7 | H118: 0 | I118: 0 | J118: 7.04 | K118: 0 | L118: 0 | M118: 0.43 | N118: 0.59 | O118: 0 | P118: 0 | Q118: 0 | R118: 1.19 | S118: 1.5 | T118: 0 | U118: 0 | V118: 0 | W118: 0 | X118: 0 | Y118: 5.97 | Z118: 0 | AA118: 49.7 | AB118: 0 | AC118: 0 | AD118: 26.1 | AE118: 1730 | AF118: 23800 | AG118: 1560 | AH118: 154 | AI118: 132 | AJ118: 9.24 | AK118: 34.5 | AL118: 15.8 | AM118: 9.8 | AN118: 1.37 | AO118: 0 | AP118: 1.77 | AQ118: 4620 | AR118: 0 | AS118: 40.7 | AT118: 42.3 | AU118: 22.6 | AV118: 75.4 | AW118: 0 | AX118: 0 | AY118: 0 | AZ118: 0
A119: W | B119: W24x55 | C119: W24x55 | D119: 1 | E119: 55 | F119: 16.3 | G119: 23.6 | H119: 0 | I119: 0 | J119: 7.01 | K119: 0 | L119: 0 | M119: 0.395 | N119: 0.505 | O119: 0 | P119: 0 | Q119: 0 | R119: 1.11 | S119: 1.4375 | T119: 0 | U119: 0 | V119: 0 | W119: 0 | X119: 0 | Y119: 6.94 | Z119: 0 | AA119: 54.1 | AB119: 0 | AC119: 0 | AD119: 22 | AE119: 1570 | AF119: 36500 | AG119: 1360 | AH119: 135 | AI119: 115 | AJ119: 9.13 | AK119: 29.1 | AL119: 13.4 | AM119: 8.3 | AN119: 1.34 | AO119: 0 | AP119: 1.24 | AQ119: 3870 | AR119: 0 | AS119: 40.4 | AT119: 35.7 | AU119: 19.2 | AV119: 65.9 | AW119: 0 | AX119: 0 | AY119: 0 | AZ119: 0
A120: W | B120: W21x201 | C120: W21x201 | D120: 3 | E120: 201 | F120: 59.2 | G120: 23 | H120: 0 | I120: 0 | J120: 12.6 | K120: 0 | L120: 0 | M120: 0.91 | N120: 1.63 | O120: 0 | P120: 0 | Q120: 0 | R120: 2.13 | S120: 2.5 | T120: 0 | U120: 0 | V120: 0 | W120: 0 | X120: 0 | Y120: 3.86 | Z120: 0 | AA120: 20.6 | AB120: 0 | AC120: 0 | AD120: 0 | AE120: 4270 | AF120: 464 | AG120: 5310 | AH120: 530 | AI120: 461 | AJ120: 9.47 | AK120: 542 | AL120: 133 | AM120: 86.1 | AN120: 3.02 | AO120: 0 | AP120: 40.9 | AQ120: 62100 | AR120: 0 | AS120: 67.3 | AT120: 345 | AU120: 102 | AV120: 264 | AW120: 0 | AX120: 0 | AY120: 0 | AZ120: 0
A121: W | B121: W21x182 | C121: W21x182 | D121: 3 | E121: 182 | F121: 53.6 | G121: 22.7 | H121: 0 | I121: 0 | J121: 12.5 | K121: 0 | L121: 0 | M121: 0.83 | N121: 1.48 | O121: 0 | P121: 0 | Q121: 0 | R121: 1.98 | S121: 2.375 | T121: 0 | U121: 0 | V121: 0 | W121: 0 | X121: 0 | Y121: 4.22 | Z121: 0 | AA121: 22.6 | AB121: 0 | AC121: 0 | AD121: 0 | AE121: 3890 | AF121: 664 | AG121: 4730 | AH121: 476 | AI121: 417 | AJ121: 9.4 | AK121: 483 | AL121: 119 | AM121: 77.2 | AN121: 3 | AO121: 0 | AP121: 30.7 | AQ121: 54500 | AR121: 0 | AS121: 66.4 | AT121: 307 | AU121: 91.7 | AV121: 237 | AW121: 0 | AX121: 0 | AY121: 0 | AZ121: 0
A122: W | B122: W21x166 | C122: W21x166 | D122: 3 | E122: 166 | F122: 48.8 | G122: 22.5 | H122: 0 | I122: 0 | J122: 12.4 | K122: 0 | L122: 0 | M122: 0.75 | N122: 1.36 | O122: 0 | P122: 0 | Q122: 0 | R122: 1.86 | S122: 2.25 | T122: 0 | U122: 0 | V122: 0 | W122: 0 | X122: 0 | Y122: 4.57 | Z122: 0 | AA122: 25 | AB122: 0 | AC122: 0 | AD122: 0 | AE122: 3580 | AF122: 922 | AG122: 4280 | AH122: 432 | AI122: 380 | AJ122: 9.36 | AK122: 435 | AL122: 108 | AM122: 70 | AN122: 2.99 | AO122: 0 | AP122: 23.6 | AQ122: 48500 | AR122: 0 | AS122: 65.6 | AT122: 277 | AU122: 83.8 | AV122: 215 | AW122: 0 | AX122: 0 | AY122: 0 | AZ122: 0
A123: W | B123: W21x147 | C123: W21x147 | D123: 2 | E123: 147 | F123: 43.2 | G123: 22.1 | H123: 0 | I123: 0 | J123: 12.5 | K123: 0 | L123: 0 | M123: 0.72 | N123: 1.15 | O123: 0 | P123: 0 | Q123: 0 | R123: 1.65 | S123: 2 | T123: 0 | U123: 0 | V123: 0 | W123: 0 | X123: 0 | Y123: 5.44 | Z123: 0 | AA123: 26.1 | AB123: 0 | AC123: 0 | AD123: 0 | AE123: 3140 | AF123: 1590 | AG123: 3630 | AH123: 373 | AI123: 329 | AJ123: 9.17 | AK123: 376 | AL123: 92.6 | AM123: 60.1 | AN123: 2.95 | AO123: 0 | AP123: 15.4 | AQ123: 41100 | AR123: 0 | AS123: 65.4 | AT123: 235 | AU123: 70.9 | AV123: 186 | AW123: 0 | AX123: 0 | AY123: 0 | AZ123: 0
A124: W | B124: W21x132 | C124: W21x132 | D124: 2 | E124: 132 | F124: 38.8 | G124: 21.8 | H124: 0 | I124: 0 | J124: 12.4 | K124: 0 | L124: 0 | M124: 0.65 | N124: 1.03 | O124: 0 | P124: 0 | Q124: 0 | R124: 1.54 | S124: 1.9375 | T124: 0 | U124: 0 | V124: 0 | W124: 0 | X124: 0 | Y124: 6.01 | Z124: 0 | AA124: 28.9 | AB124: 0 | AC124: 0 | AD124: 0 | AE124: 2840 | AF124: 2350 | AG124: 3220 | AH124: 333 | AI124: 295 | AJ124: 9.12 | AK124: 333 | AL124: 82.3 | AM124: 53.5 | AN124: 2.93 | AO124: 0 | AP124: 11.3 | AQ124: 36000 | AR124: 0 | AS124: 64.7 | AT124: 208 | AU124: 63.4 | AV124: 166 | AW124: 0 | AX124: 0 | AY124: 0 | AZ124: 0
A125: W | B125: W21x122 | C125: W21x122 | D125: 2 | E125: 122 | F125: 35.9 | G125: 21.7 | H125: 0 | I125: 0 | J125: 12.4 | K125: 0 | L125: 0 | M125: 0.6 | N125: 0.96 | O125: 0 | P125: 0 | Q125: 0 | R125: 1.46 | S125: 1.8125 | T125: 0 | U125: 0 | V125: 0 | W125: 0 | X125: 0 | Y125: 6.45 | Z125: 0 | AA125: 31.3 | AB125: 0 | AC125: 0 | AD125: 0 | AE125: 2630 | AF125: 3160 | AG125: 2960 | AH125: 307 | AI125: 273 | AJ125: 9.09 | AK125: 305 | AL125: 75.6 | AM125: 49.2 | AN125: 2.92 | AO125: 0 | AP125: 8.98 | AQ125: 32700 | AR125: 0 | AS125: 64.2 | AT125: 191 | AU125: 58.6 | AV125: 153 | AW125: 0 | AX125: 0 | AY125: 0 | AZ125: 0
A126: W | B126: W21x111 | C126: W21x111 | D126: 2 | E126: 111 | F126: 32.7 | G126: 21.5 | H126: 0 | I126: 0 | J126: 12.3 | K126: 0 | L126: 0 | M126: 0.55 | N126: 0.875 | O126: 0 | P126: 0 | Q126: 0 | R126: 1.38 | S126: 1.75 | T126: 0 | U126: 0 | V126: 0 | W126: 0 | X126: 0 | Y126: 7.05 | Z126: 0 | AA126: 34.1 | AB126: 0 | AC126: 0 | AD126: 55.3 | AE126: 2400 | AF126: 4510 | AG126: 2670 | AH126: 279 | AI126: 249 | AJ126: 9.05 | AK126: 274 | AL126: 68.2 | AM126: 44.5 | AN126: 2.9 | AO126: 0 | AP126: 6.83 | AQ126: 29200 | AR126: 0 | AS126: 63.7 | AT126: 172 | AU126: 53.2 | AV126: 138 | AW126: 0 | AX126: 0 | AY126: 0 | AZ126: 0
A127: W | B127: W21x101 | C127: W21x101 | D127: 2 | E127: 101 | F127: 29.8 | G127: 21.4 | H127: 0 | I127: 0 | J127: 12.3 | K127: 0 | L127: 0 | M127: 0.5 | N127: 0.8 | O127: 0 | P127: 0 | Q127: 0 | R127: 1.3 | S127: 1.6875 | T127: 0 | U127: 0 | V127: 0 | W127: 0 | X127: 0 | Y127: 7.68 | Z127: 0 | AA127: 37.5 | AB127: 0 | AC127: 0 | AD127: 45.7 | AE127: 2200 | AF127: 6400 | AG127: 2420 | AH127: 253 | AI127: 227 | AJ127: 9.02 | AK127: 248 | AL127: 61.7 | AM127: 40.3 | AN127: 2.89 | AO127: 0 | AP127: 5.21 | AQ127: 26200 | AR127: 0 | AS127: 63.2 | AT127: 155 | AU127: 48.5 | AV127: 125 | AW127: 0 | AX127: 0 | AY127: 0 | AZ127: 0
A128: W | B128: W21x93 | C128: W21x93 | D128: 2 | E128: 93 | F128: 27.3 | G128: 21.6 | H128: 0 | I128: 0 | J128: 8.42 | K128: 0 | L128: 0 | M128: 0.58 | N128: 0.93 | O128: 0 | P128: 0 | Q128: 0 | R128: 1.43 | S128: 1.625 | T128: 0 | U128: 0 | V128: 0 | W128: 0 | X128: 0 | Y128: 4.53 | Z128: 0 | AA128: 32.3 | AB128: 0 | AC128: 0 | AD128: 61.5 | AE128: 2680 | AF128: 3460 | AG128: 2070 | AH128: 221 | AI128: 192 | AJ128: 8.7 | AK128: 92.9 | AL128: 34.7 | AM128: 22.1 | AN128: 1.84 | AO128: 0 | AP128: 6.03 | AQ128: 9940 | AR128: 0 | AS128: 43.6 | AT128: 85.3 | AU128: 37.7 | AV128: 109 | AW128: 0 | AX128: 0 | AY128: 0 | AZ128: 0
A129: W | B129: W21x83 | C129: W21x83 | D129: 2 | E129: 83 | F129: 24.3 | G129: 21.4 | H129: 0 | I129: 0 | J129: 8.36 | K129: 0 | L129: 0 | M129: 0.515 | N129: 0.835 | O129: 0 | P129: 0 | Q129: 0 | R129: 1.34 | S129: 1.5 | T129: 0 | U129: 0 | V129: 0 | W129: 0 | X129: 0 | Y129: 5 | Z129: 0 | AA129: 36.4 | AB129: 0 | AC129: 0 | AD129: 48.5 | AE129: 2400 | AF129: 5250 | AG129: 1830 | AH129: 196 | AI129: 171 | AJ129: 8.67 | AK129: 81.4 | AL129: 30.5 | AM129: 19.5 | AN129: 1.83 | AO129: 0 | AP129: 4.34 | AQ129: 8630 | AR129: 0 | AS129: 43 | AT129: 75 | AU129: 33.7 | AV129: 97 | AW129: 0 | AX129: 0 | AY129: 0 | AZ129: 0
A130: W | B130: W21x73 | C130: W21x73 | D130: 2 | E130: 73 | F130: 21.5 | G130: 21.2 | H130: 0 | I130: 0 | J130: 8.3 | K130: 0 | L130: 0 | M130: 0.455 | N130: 0.74 | O130: 0 | P130: 0 | Q130: 0 | R130: 1.24 | S130: 1.4375 | T130: 0 | U130: 0 | V130: 0 | W130: 0 | X130: 0 | Y130: 5.6 | Z130: 0 | AA130: 41.2 | AB130: 0 | AC130: 0 | AD130: 37.9 | AE130: 2140 | AF130: 8380 | AG130: 1600 | AH130: 172 | AI130: 151 | AJ130: 8.64 | AK130: 70.6 | AL130: 26.6 | AM130: 17 | AN130: 1.81 | AO130: 0 | AP130: 3.02 | AQ130: 7420 | AR130: 0 | AS130: 42.5 | AT130: 65.2 | AU130: 29.7 | AV130: 85.1 | AW130: 0 | AX130: 0 | AY130: 0 | AZ130: 0
A131: W | B131: W21x68 | C131: W21x68 | D131: 2 | E131: 68 | F131: 20 | G131: 21.1 | H131: 0 | I131: 0 | J131: 8.27 | K131: 0 | L131: 0 | M131: 0.43 | N131: 0.685 | O131: 0 | P131: 0 | Q131: 0 | R131: 1.19 | S131: 1.375 | T131: 0 | U131: 0 | V131: 0 | W131: 0 | X131: 0 | Y131: 6.04 | Z131: 0 | AA131: 43.6 | AB131: 0 | AC131: 0 | AD131: 33.8 | AE131: 2000 | AF131: 10900 | AG131: 1480 | AH131: 160 | AI131: 140 | AJ131: 8.6 | AK131: 64.7 | AL131: 24.4 | AM131: 15.7 | AN131: 1.8 | AO131: 0 | AP131: 2.45 | AQ131: 6760 | AR131: 0 | AS131: 42.3 | AT131: 59.9 | AU131: 27.4 | AV131: 78.9 | AW131: 0 | AX131: 0 | AY131: 0 | AZ131: 0
A132: W | B132: W21x62 | C132: W21x62 | D132: 2 | E132: 62 | F132: 18.3 | G132: 21 | H132: 0 | I132: 0 | J132: 8.24 | K132: 0 | L132: 0 | M132: 0.4 | N132: 0.615 | O132: 0 | P132: 0 | Q132: 0 | R132: 1.12 | S132: 1.3125 | T132: 0 | U132: 0 | V132: 0 | W132: 0 | X132: 0 | Y132: 6.7 | Z132: 0 | AA132: 46.9 | AB132: 0 | AC132: 0 | AD132: 29.3 | AE132: 1820 | AF132: 15900 | AG132: 1330 | AH132: 144 | AI132: 127 | AJ132: 8.54 | AK132: 57.5 | AL132: 21.7 | AM132: 14 | AN132: 1.77 | AO132: 0 | AP132: 1.83 | AQ132: 5970 | AR132: 0 | AS132: 42 | AT132: 53.2 | AU132: 24.6 | AV132: 71.1 | AW132: 0 | AX132: 0 | AY132: 0 | AZ132: 0
A133: W | B133: W21x55 | C133: W21x55 | D133: 1 | E133: 55 | F133: 16.2 | G133: 20.8 | H133: 0 | I133: 0 | J133: 8.22 | K133: 0 | L133: 0 | M133: 0.375 | N133: 0.522 | O133: 0 | P133: 0 | Q133: 0 | R133: 1.02 | S133: 1.1875 | T133: 0 | U133: 0 | V133: 0 | W133: 0 | X133: 0 | Y133: 7.87 | Z133: 0 | AA133: 50 | AB133: 0 | AC133: 0 | AD133: 25.7 | AE133: 1630 | AF133: 25800 | AG133: 1140 | AH133: 126 | AI133: 110 | AJ133: 8.4 | AK133: 48.4 | AL133: 18.4 | AM133: 11.8 | AN133: 1.73 | AO133: 0 | AP133: 1.24 | AQ133: 4980 | AR133: 0 | AS133: 41.7 | AT133: 44.7 | AU133: 20.8 | AV133: 61.8 | AW133: 0 | AX133: 0 | AY133: 0 | AZ133: 0
A134: W | B134: W21x48 | C134: W21x48 | D134: 1 | E134: 48 | F134: 14.1 | G134: 20.6 | H134: 0 | I134: 0 | J134: 8.14 | K134: 0 | L134: 0 | M134: 0.35 | N134: 0.43 | O134: 0 | P134: 0 | Q134: 0 | R134: 0.93 | S134: 1.125 | T134: 0 | U134: 0 | V134: 0 | W134: 0 | X134: 0 | Y134: 9.47 | Z134: 0 | AA134: 53.6 | AB134: 0 | AC134: 0 | AD134: 22.4 | AE134: 1450 | AF134: 43600 | AG134: 959 | AH134: 107 | AI134: 93 | AJ134: 8.24 | AK134: 38.7 | AL134: 14.9 | AM134: 9.52 | AN134: 1.66 | AO134: 0 | AP134: 0.803 | AQ134: 3940 | AR134: 0 | AS134: 41.1 | AT134: 36 | AU134: 16.9 | AV134: 52.4 | AW134: 0 | AX134: 0 | AY134: 0 | AZ134: 0
A135: W | B135: W21x57 | C135: W21x57 | D135: 1 | E135: 57 | F135: 16.7 | G135: 21.1 | H135: 0 | I135: 0 | J135: 6.56 | K135: 0 | L135: 0 | M135: 0.405 | N135: 0.65 | O135: 0 | P135: 0 | Q135: 0 | R135: 1.15 | S135: 1.3125 | T135: 0 | U135: 0 | V135: 0 | W135: 0 | X135: 0 | Y135: 5.04 | Z135: 0 | AA135: 46.3 | AB135: 0 | AC135: 0 | AD135: 30 | AE135: 1960 | AF135: 13100 | AG135: 1170 | AH135: 129 | AI135: 111 | AJ135: 8.36 | AK135: 30.6 | AL135: 14.8 | AM135: 9.35 | AN135: 1.35 | AO135: 0 | AP135: 1.77 | AQ135: 3190 | AR135: 0 | AS135: 33.4 | AT135: 35.6 | AU135: 20.4 | AV135: 63.2 | AW135: 0 | AX135: 0 | AY135: 0 | AZ135: 0
A136: W | B136: W21x50 | C136: W21x50 | D136: 1 | E136: 50 | F136: 14.7 | G136: 20.8 | H136: 0 | I136: 0 | J136: 6.53 | K136: 0 | L136: 0 | M136: 0.38 | N136: 0.535 | O136: 0 | P136: 0 | Q136: 0 | R136: 1.04 | S136: 1.25 | T136: 0 | U136: 0 | V136: 0 | W136: 0 | X136: 0 | Y136: 6.1 | Z136: 0 | AA136: 49.4 | AB136: 0 | AC136: 0 | AD136: 26.4 | AE136: 1730 | AF136: 22600 | AG136: 984 | AH136: 110 | AI136: 94.5 | AJ136: 8.18 | AK136: 24.9 | AL136: 12.2 | AM136: 7.64 | AN136: 1.3 | AO136: 0 | AP136: 1.14 | AQ136: 2560 | AR136: 0 | AS136: 33.1 | AT136: 28.9 | AU136: 16.7 | AV136: 54 | AW136: 0 | AX136: 0 | AY136: 0 | AZ136: 0
A137: W | B137: W21x44 | C137: W21x44 | D137: 1 | E137: 44 | F137: 13 | G137: 20.7 | H137: 0 | I137: 0 | J137: 6.5 | K137: 0 | L137: 0 | M137: 0.35 | N137: 0.45 | O137: 0 | P137: 0 | Q137: 0 | R137: 0.95 | S137: 1.125 | T137: 0 | U137: 0 | V137: 0 | W137: 0 | X137: 0 | Y137: 7.22 | Z137: 0 | AA137: 53.6 | AB137: 0 | AC137: 0 | AD137: 22.4 | AE137: 1550 | AF137: 36600 | AG137: 843 | AH137: 95.4 | AI137: 81.6 | AJ137: 8.06 | AK137: 20.7 | AL137: 10.2 | AM137: 6.37 | AN137: 1.26 | AO137: 0 | AP137: 0.77 | AQ137: 2110 | AR137: 0 | AS137: 32.8 | AT137: 24 | AU137: 14 | AV137: 46.6 | AW137: 0 | AX137: 0 | AY137: 0 | AZ137: 0
A138: W | B138: W18x175 | C138: W18x175 | D138: 3 | E138: 175 | F138: 51.3 | G138: 20 | H138: 0 | I138: 0 | J138: 11.4 | K138: 0 | L138: 0 | M138: 0.89 | N138: 1.59 | O138: 0 | P138: 0 | Q138: 0 | R138: 1.99 | S138: 2.4375 | T138: 0 | U138: 0 | V138: 0 | W138: 0 | X138: 0 | Y138: 3.58 | Z138: 0 | AA138: 18 | AB138: 0 | AC138: 0 | AD138: 0 | AE138: 4850 | AF138: 281 | AG138: 3450 | AH138: 398 | AI138: 344 | AJ138: 8.2 | AK138: 391 | AL138: 106 | AM138: 68.8 | AN138: 2.76 | AO138: 0 | AP138: 33.8 | AQ138: 33300 | AR138: 0 | AS138: 52.5 | AT138: 237 | AU138: 76.9 | AV138: 198 | AW138: 0 | AX138: 0 | AY138: 0 | AZ138: 0
A139: W | B139: W18x158 | C139: W18x158 | D139: 3 | E139: 158 | F139: 46.3 | G139: 19.7 | H139: 0 | I139: 0 | J139: 11.3 | K139: 0 | L139: 0 | M139: 0.81 | N139: 1.44 | O139: 0 | P139: 0 | Q139: 0 | R139: 1.84 | S139: 2.375 | T139: 0 | U139: 0 | V139: 0 | W139: 0 | X139: 0 | Y139: 3.92 | Z139: 0 | AA139: 19.8 | AB139: 0 | AC139: 0 | AD139: 0 | AE139: 4410 | AF139: 403 | AG139: 3060 | AH139: 356 | AI139: 310 | AJ139: 8.12 | AK139: 347 | AL139: 94.8 | AM139: 61.4 | AN139: 2.74 | AO139: 0 | AP139: 25.2 | AQ139: 29000 | AR139: 0 | AS139: 51.6 | AT139: 210 | AU139: 69 | AV139: 177 | AW139: 0 | AX139: 0 | AY139: 0 | AZ139: 0
A140: W | B140: W18x143 | C140: W18x143 | D140: 2 | E140: 143 | F140: 42.1 | G140: 19.5 | H140: 0 | I140: 0 | J140: 11.2 | K140: 0 | L140: 0 | M140: 0.73 | N140: 1.32 | O140: 0 | P140: 0 | Q140: 0 | R140: 1.72 | S140: 2.1875 | T140: 0 | U140: 0 | V140: 0 | W140: 0 | X140: 0 | Y140: 4.25 | Z140: 0 | AA140: 22 | AB140: 0 | AC140: 0 | AD140: 0 | AE140: 4040 | AF140: 568 | AG140: 2750 | AH140: 322 | AI140: 282 | AJ140: 8.09 | AK140: 311 | AL140: 85.4 | AM140: 55.5 | AN140: 2.72 | AO140: 0 | AP140: 19.2 | AQ140: 25700 | AR140: 0 | AS140: 51 | AT140: 189 | AU140: 62.9 | AV140: 160 | AW140: 0 | AX140: 0 | AY140: 0 | AZ140: 0
A141: W | B141: W18x130 | C141: W18x130 | D141: 2 | E141: 130 | F141: 38.2 | G141: 19.3 | H141: 0 | I141: 0 | J141: 11.2 | K141: 0 | L141: 0 | M141: 0.67 | N141: 1.2 | O141: 0 | P141: 0 | Q141: 0 | R141: 1.6 | S141: 2.0625 | T141: 0 | U141: 0 | V141: 0 | W141: 0 | X141: 0 | Y141: 4.65 | Z141: 0 | AA141: 23.9 | AB141: 0 | AC141: 0 | AD141: 0 | AE141: 3680 | AF141: 810 | AG141: 2460 | AH141: 290 | AI141: 256 | AJ141: 8.03 | AK141: 278 | AL141: 76.7 | AM141: 49.9 | AN141: 2.7 | AO141: 0 | AP141: 14.5 | AQ141: 22600 | AR141: 0 | AS141: 50.4 | AT141: 169 | AU141: 56.8 | AV141: 145 | AW141: 0 | AX141: 0 | AY141: 0 | AZ141: 0
A142: W | B142: W18x119 | C142: W18x119 | D142: 2 | E142: 119 | F142: 35.1 | G142: 19 | H142: 0 | I142: 0 | J142: 11.3 | K142: 0 | L142: 0 | M142: 0.655 | N142: 1.06 | O142: 0 | P142: 0 | Q142: 0 | R142: 1.46 | S142: 1.9375 | T142: 0 | U142: 0 | V142: 0 | W142: 0 | X142: 0 | Y142: 5.31 | Z142: 0 | AA142: 24.5 | AB142: 0 | AC142: 0 | AD142: 0 | AE142: 3340 | AF142: 1210 | AG142: 2190 | AH142: 262 | AI142: 231 | AJ142: 7.9 | AK142: 253 | AL142: 69.1 | AM142: 44.9 | AN142: 2.69 | AO142: 0 | AP142: 10.6 | AQ142: 20300 | AR142: 0 | AS142: 50.4 | AT142: 151 | AU142: 50.4 | AV142: 130 | AW142: 0 | AX142: 0 | AY142: 0 | AZ142: 0
A143: W | B143: W18x106 | C143: W18x106 | D143: 2 | E143: 106 | F143: 31.1 | G143: 18.7 | H143: 0 | I143: 0 | J143: 11.2 | K143: 0 | L143: 0 | M143: 0.59 | N143: 0.94 | O143: 0 | P143: 0 | Q143: 0 | R143: 1.34 | S143: 1.8125 | T143: 0 | U143: 0 | V143: 0 | W143: 0 | X143: 0 | Y143: 5.96 | Z143: 0 | AA143: 27.2 | AB143: 0 | AC143: 0 | AD143: 0 | AE143: 2990 | AF143: 1880 | AG143: 1910 | AH143: 230 | AI143: 204 | AJ143: 7.84 | AK143: 220 | AL143: 60.5 | AM143: 39.4 | AN143: 2.66 | AO143: 0 | AP143: 7.48 | AQ143: 17400 | AR143: 0 | AS143: 49.8 | AT143: 131 | AU143: 44.4 | AV143: 115 | AW143: 0 | AX143: 0 | AY143: 0 | AZ143: 0
A144: W | B144: W18x97 | C144: W18x97 | D144: 2 | E144: 97 | F144: 28.5 | G144: 18.6 | H144: 0 | I144: 0 | J144: 11.1 | K144: 0 | L144: 0 | M144: 0.535 | N144: 0.87 | O144: 0 | P144: 0 | Q144: 0 | R144: 1.27 | S144: 1.75 | T144: 0 | U144: 0 | V144: 0 | W144: 0 | X144: 0 | Y144: 6.41 | Z144: 0 | AA144: 30 | AB144: 0 | AC144: 0 | AD144: 0 | AE144: 2750 | AF144: 2580 | AG144: 1750 | AH144: 211 | AI144: 188 | AJ144: 7.82 | AK144: 201 | AL144: 55.3 | AM144: 36.1 | AN144: 2.65 | AO144: 0 | AP144: 5.86 | AQ144: 15800 | AR144: 0 | AS144: 49.4 | AT144: 120 | AU144: 40.9 | AV144: 105 | AW144: 0 | AX144: 0 | AY144: 0 | AZ144: 0
A145: W | B145: W18x86 | C145: W18x86 | D145: 2 | E145: 86 | F145: 25.3 | G145: 18.4 | H145: 0 | I145: 0 | J145: 11.1 | K145: 0 | L145: 0 | M145: 0.48 | N145: 0.77 | O145: 0 | P145: 0 | Q145: 0 | R145: 1.17 | S145: 1.625 | T145: 0 | U145: 0 | V145: 0 | W145: 0 | X145: 0 | Y145: 7.2 | Z145: 0 | AA145: 33.4 | AB145: 0 | AC145: 0 | AD145: 57.6 | AE145: 2460 | AF145: 4060 | AG145: 1530 | AH145: 186 | AI145: 166 | AJ145: 7.77 | AK145: 175 | AL145: 48.4 | AM145: 31.6 | AN145: 2.63 | AO145: 0 | AP145: 4.1 | AQ145: 13600 | AR145: 0 | AS145: 48.9 | AT145: 104 | AU145: 36 | AV145: 92.3 | AW145: 0 | AX145: 0 | AY145: 0 | AZ145: 0
A146: W | B146: W18x76 | C146: W18x76 | D146: 2 | E146: 76 | F146: 22.3 | G146: 18.2 | H146: 0 | I146: 0 | J146: 11 | K146: 0 | L146: 0 | M146: 0.425 | N146: 0.68 | O146: 0 | P146: 0 | Q146: 0 | R146: 1.08 | S146: 1.5625 | T146: 0 | U146: 0 | V146: 0 | W146: 0 | X146: 0 | Y146: 8.11 | Z146: 0 | AA146: 37.8 | AB146: 0 | AC146: 0 | AD146: 45.2 | AE146: 2180 | AF146: 6520 | AG146: 1330 | AH146: 163 | AI146: 146 | AJ146: 7.73 | AK146: 152 | AL146: 42.2 | AM146: 27.6 | AN146: 2.61 | AO146: 0 | AP146: 2.83 | AQ146: 11700 | AR146: 0 | AS146: 48.4 | AT146: 90.7 | AU146: 31.6 | AV146: 80.9 | AW146: 0 | AX146: 0 | AY146: 0 | AZ146: 0
A147: W | B147: W18x71 | C147: W18x71 | D147: 1 | E147: 71 | F147: 20.8 | G147: 18.5 | H147: 0 | I147: 0 | J147: 7.64 | K147: 0 | L147: 0 | M147: 0.495 | N147: 0.81 | O147: 0 | P147: 0 | Q147: 0 | R147: 1.21 | S147: 1.5 | T147: 0 | U147: 0 | V147: 0 | W147: 0 | X147: 0 | Y147: 4.71 | Z147: 0 | AA147: 32.4 | AB147: 0 | AC147: 0 | AD147: 61.3 | AE147: 2690 | AF147: 3290 | AG147: 1170 | AH147: 146 | AI147: 127 | AJ147: 7.5 | AK147: 60.3 | AL147: 24.7 | AM147: 15.8 | AN147: 1.7 | AO147: 0 | AP147: 3.49 | AQ147: 4700 | AR147: 0 | AS147: 33.7 | AT147: 52.1 | AU147: 25.5 | AV147: 72.2 | AW147: 0 | AX147: 0 | AY147: 0 | AZ147: 0
A148: W | B148: W18x65 | C148: W18x65 | D148: 1 | E148: 65 | F148: 19.1 | G148: 18.4 | H148: 0 | I148: 0 | J148: 7.59 | K148: 0 | L148: 0 | M148: 0.45 | N148: 0.75 | O148: 0 | P148: 0 | Q148: 0 | R148: 1.15 | S148: 1.4375 | T148: 0 | U148: 0 | V148: 0 | W148: 0 | X148: 0 | Y148: 5.06 | Z148: 0 | AA148: 35.7 | AB148: 0 | AC148: 0 | AD148: 50.6 | AE148: 2470 | AF148: 4540 | AG148: 1070 | AH148: 133 | AI148: 117 | AJ148: 7.49 | AK148: 54.8 | AL148: 22.5 | AM148: 14.4 | AN148: 1.69 | AO148: 0 | AP148: 2.73 | AQ148: 4240 | AR148: 0 | AS148: 33.4 | AT148: 47.5 | AU148: 23.6 | AV148: 66.1 | AW148: 0 | AX148: 0 | AY148: 0 | AZ148: 0
A149: W | B149: W18x60 | C149: W18x60 | D149: 1 | E149: 60 | F149: 17.6 | G149: 18.2 | H149: 0 | I149: 0 | J149: 7.56 | K149: 0 | L149: 0 | M149: 0.415 | N149: 0.695 | O149: 0 | P149: 0 | Q149: 0 | R149: 1.1 | S149: 1.375 | T149: 0 | U149: 0 | V149: 0 | W149: 0 | X149: 0 | Y149: 5.44 | Z149: 0 | AA149: 38.7 | AB149: 0 | AC149: 0 | AD149: 43.1 | AE149: 2290 | AF149: 6080 | AG149: 984 | AH149: 123 | AI149: 108 | AJ149: 7.47 | AK149: 50.1 | AL149: 20.6 | AM149: 13.3 | AN149: 1.68 | AO149: 0 | AP149: 2.17 | AQ149: 3860 | AR149: 0 | AS149: 33.1 | AT149: 43.5 | AU149: 21.8 | AV149: 60.8 | AW149: 0 | AX149: 0 | AY149: 0 | AZ149: 0
A150: W | B150: W18x55 | C150: W18x55 | D150: 1 | E150: 55 | F150: 16.2 | G150: 18.1 | H150: 0 | I150: 0 | J150: 7.53 | K150: 0 | L150: 0 | M150: 0.39 | N150: 0.63 | O150: 0 | P150: 0 | Q150: 0 | R150: 1.03 | S150: 1.3125 | T150: 0 | U150: 0 | V150: 0 | W150: 0 | X150: 0 | Y150: 5.98 | Z150: 0 | AA150: 41.1 | AB150: 0 | AC150: 0 | AD150: 38 | AE150: 2110 | AF150: 8540 | AG150: 890 | AH150: 112 | AI150: 98.3 | AJ150: 7.41 | AK150: 44.9 | AL150: 18.5 | AM150: 11.9 | AN150: 1.67 | AO150: 0 | AP150: 1.66 | AQ150: 3430 | AR150: 0 | AS150: 32.9 | AT150: 39 | AU150: 19.7 | AV150: 55.3 | AW150: 0 | AX150: 0 | AY150: 0 | AZ150: 0
A151: W | B151: W18x50 | C151: W18x50 | D151: 1 | E151: 50 | F151: 14.7 | G151: 18 | H151: 0 | I151: 0 | J151: 7.5 | K151: 0 | L151: 0 | M151: 0.355 | N151: 0.57 | O151: 0 | P151: 0 | Q151: 0 | R151: 0.972 | S151: 1.25 | T151: 0 | U151: 0 | V151: 0 | W151: 0 | X151: 0 | Y151: 6.57 | Z151: 0 | AA151: 45.2 | AB151: 0 | AC151: 0 | AD151: 31.5 | AE151: 1920 | AF151: 12400 | AG151: 800 | AH151: 101 | AI151: 88.9 | AJ151: 7.38 | AK151: 40.1 | AL151: 16.6 | AM151: 10.7 | AN151: 1.65 | AO151: 0 | AP151: 1.24 | AQ151: 3040 | AR151: 0 | AS151: 32.6 | AT151: 34.9 | AU151: 17.7 | AV151: 49.8 | AW151: 0 | AX151: 0 | AY151: 0 | AZ151: 0
A152: W | B152: W18x46 | C152: W18x46 | D152: 1 | E152: 46 | F152: 13.5 | G152: 18.1 | H152: 0 | I152: 0 | J152: 6.06 | K152: 0 | L152: 0 | M152: 0.36 | N152: 0.605 | O152: 0 | P152: 0 | Q152: 0 | R152: 1.01 | S152: 1.25 | T152: 0 | U152: 0 | V152: 0 | W152: 0 | X152: 0 | Y152: 5.01 | Z152: 0 | AA152: 44.6 | AB152: 0 | AC152: 0 | AD152: 32.4 | AE152: 2060 | AF152: 10100 | AG152: 712 | AH152: 90.7 | AI152: 78.8 | AJ152: 7.25 | AK152: 22.5 | AL152: 11.7 | AM152: 7.43 | AN152: 1.29 | AO152: 0 | AP152: 1.22 | AQ152: 1710 | AR152: 0 | AS152: 26.4 | AT152: 24.2 | AU152: 15 | AV152: 44.8 | AW152: 0 | AX152: 0 | AY152: 0 | AZ152: 0
A153: W | B153: W18x40 | C153: W18x40 | D153: 1 | E153: 40 | F153: 11.8 | G153: 17.9 | H153: 0 | I153: 0 | J153: 6.02 | K153: 0 | L153: 0 | M153: 0.315 | N153: 0.525 | O153: 0 | P153: 0 | Q153: 0 | R153: 0.927 | S153: 1.1875 | T153: 0 | U153: 0 | V153: 0 | W153: 0 | X153: 0 | Y153: 5.73 | Z153: 0 | AA153: 50.9 | AB153: 0 | AC153: 0 | AD153: 24.8 | AE153: 1810 | AF153: 17200 | AG153: 612 | AH153: 78.4 | AI153: 68.4 | AJ153: 7.21 | AK153: 19.1 | AL153: 9.95 | AM153: 6.35 | AN153: 1.27 | AO153: 0 | AP153: 0.81 | AQ153: 1440 | AR153: 0 | AS153: 26.1 | AT153: 20.6 | AU153: 13 | AV153: 38.6 | AW153: 0 | AX153: 0 | AY153: 0 | AZ153: 0
A154: W | B154: W18x35 | C154: W18x35 | D154: 1 | E154: 35 | F154: 10.3 | G154: 17.7 | H154: 0 | I154: 0 | J154: 6 | K154: 0 | L154: 0 | M154: 0.3 | N154: 0.425 | O154: 0 | P154: 0 | Q154: 0 | R154: 0.827 | S154: 1.125 | T154: 0 | U154: 0 | V154: 0 | W154: 0 | X154: 0 | Y154: 7.06 | Z154: 0 | AA154: 53.5 | AB154: 0 | AC154: 0 | AD154: 22.5 | AE154: 1590 | AF154: 30800 | AG154: 510 | AH154: 66.5 | AI154: 57.6 | AJ154: 7.04 | AK154: 15.3 | AL154: 8.06 | AM154: 5.12 | AN154: 1.22 | AO154: 0 | AP154: 0.506 | AQ154: 1140 | AR154: 0 | AS154: 25.9 | AT154: 16.5 | AU154: 10.5 | AV154: 32.7 | AW154: 0 | AX154: 0 | AY154: 0 | AZ154: 0
A155: W | B155: W16x100 | C155: W16x100 | D155: 2 | E155: 100 | F155: 29.7 | G155: 17 | H155: 0 | I155: 0 | J155: 10.4 | K155: 0 | L155: 0 | M155: 0.585 | N155: 0.985 | O155: 0 | P155: 0 | Q155: 0 | R155: 1.69 | S155: 1.875 | T155: 0 | U155: 0 | V155: 0 | W155: 0 | X155: 0 | Y155: 5.29 | Z155: 0 | AA155: 23.2 | AB155: 0 | AC155: 0 | AD155: 0 | AE155: 3530 | AF155: 947 | AG155: 1500 | AH155: 200 | AI155: 177 | AJ155: 7.1 | AK155: 186 | AL155: 55 | AM155: 35.7 | AN155: 2.5 | AO155: 0 | AP155: 8.21 | AQ155: 11900 | AR155: 0 | AS155: 41.7 | AT155: 107 | AU155: 38.7 | AV155: 98.5 | AW155: 0 | AX155: 0 | AY155: 0 | AZ155: 0
A156: W | B156: W16x89 | C156: W16x89 | D156: 2 | E156: 89 | F156: 26.4 | G156: 16.8 | H156: 0 | I156: 0 | J156: 10.4 | K156: 0 | L156: 0 | M156: 0.525 | N156: 0.875 | O156: 0 | P156: 0 | Q156: 0 | R156: 1.58 | S156: 1.75 | T156: 0 | U156: 0 | V156: 0 | W156: 0 | X156: 0 | Y156: 5.92 | Z156: 0 | AA156: 25.9 | AB156: 0 | AC156: 0 | AD156: 0 | AE156: 3160 | AF156: 1460 | AG156: 1310 | AH156: 177 | AI156: 157 | AJ156: 7.05 | AK156: 163 | AL156: 48.2 | AM156: 31.4 | AN156: 2.48 | AO156: 0 | AP156: 5.83 | AQ156: 10300 | AR156: 0 | AS156: 41.1 | AT156: 93.3 | AU156: 34.2 | AV156: 86.8 | AW156: 0 | AX156: 0 | AY156: 0 | AZ156: 0
A157: W | B157: W16x77 | C157: W16x77 | D157: 2 | E157: 77 | F157: 22.9 | G157: 16.5 | H157: 0 | I157: 0 | J157: 10.3 | K157: 0 | L157: 0 | M157: 0.455 | N157: 0.76 | O157: 0 | P157: 0 | Q157: 0 | R157: 1.47 | S157: 1.625 | T157: 0 | U157: 0 | V157: 0 | W157: 0 | X157: 0 | Y157: 6.77 | Z157: 0 | AA157: 29.9 | AB157: 0 | AC157: 0 | AD157: 0 | AE157: 2770 | AF157: 2460 | AG157: 1120 | AH157: 152 | AI157: 136 | AJ157: 7 | AK157: 138 | AL157: 41.2 | AM157: 26.9 | AN157: 2.46 | AO157: 0 | AP157: 3.86 | AQ157: 8570 | AR157: 0 | AS157: 40.6 | AT157: 79.3 | AU157: 29.5 | AV157: 74.5 | AW157: 0 | AX157: 0 | AY157: 0 | AZ157: 0
A158: W | B158: W16x67 | C158: W16x67 | D158: 2 | E158: 67 | F158: 20 | G158: 16.3 | H158: 0 | I158: 0 | J158: 10.2 | K158: 0 | L158: 0 | M158: 0.395 | N158: 0.665 | O158: 0 | P158: 0 | Q158: 0 | R158: 1.37 | S158: 1.5625 | T158: 0 | U158: 0 | V158: 0 | W158: 0 | X158: 0 | Y158: 7.7 | Z158: 0 | AA158: 34.4 | AB158: 0 | AC158: 0 | AD158: 54.5 | AE158: 2440 | AF158: 4040 | AG158: 970 | AH158: 132 | AI158: 119 | AJ158: 6.97 | AK158: 119 | AL158: 35.6 | AM158: 23.2 | AN158: 2.44 | AO158: 0 | AP158: 2.62 | AQ158: 7300 | AR158: 0 | AS158: 40.1 | AT158: 68.2 | AU158: 25.6 | AV158: 64.4 | AW158: 0 | AX158: 0 | AY158: 0 | AZ158: 0
A159: W | B159: W16x57 | C159: W16x57 | D159: 1 | E159: 57 | F159: 16.8 | G159: 16.4 | H159: 0 | I159: 0 | J159: 7.12 | K159: 0 | L159: 0 | M159: 0.43 | N159: 0.715 | O159: 0 | P159: 0 | Q159: 0 | R159: 1.12 | S159: 1.375 | T159: 0 | U159: 0 | V159: 0 | W159: 0 | X159: 0 | Y159: 4.98 | Z159: 0 | AA159: 33 | AB159: 0 | AC159: 0 | AD159: 59.1 | AE159: 2650 | AF159: 3400 | AG159: 758 | AH159: 105 | AI159: 92.2 | AJ159: 6.72 | AK159: 43.1 | AL159: 18.9 | AM159: 12.1 | AN159: 1.6 | AO159: 0 | AP159: 2.22 | AQ159: 2660 | AR159: 0 | AS159: 28 | AT159: 35.6 | AU159: 18.8 | AV159: 52.1 | AW159: 0 | AX159: 0 | AY159: 0 | AZ159: 0
A160: W | B160: W16x50 | C160: W16x50 | D160: 1 | E160: 50 | F160: 14.7 | G160: 16.3 | H160: 0 | I160: 0 | J160: 7.07 | K160: 0 | L160: 0 | M160: 0.38 | N160: 0.63 | O160: 0 | P160: 0 | Q160: 0 | R160: 1.03 | S160: 1.3125 | T160: 0 | U160: 0 | V160: 0 | W160: 0 | X160: 0 | Y160: 5.61 | Z160: 0 | AA160: 37.4 | AB160: 0 | AC160: 0 | AD160: 46.1 | AE160: 2340 | AF160: 5530 | AG160: 659 | AH160: 92 | AI160: 81 | AJ160: 6.68 | AK160: 37.2 | AL160: 16.3 | AM160: 10.5 | AN160: 1.59 | AO160: 0 | AP160: 1.52 | AQ160: 2270 | AR160: 0 | AS160: 27.6 | AT160: 30.8 | AU160: 16.5 | AV160: 45.5 | AW160: 0 | AX160: 0 | AY160: 0 | AZ160: 0
A161: W | B161: W16x45 | C161: W16x45 | D161: 1 | E161: 45 | F161: 13.3 | G161: 16.1 | H161: 0 | I161: 0 | J161: 7.04 | K161: 0 | L161: 0 | M161: 0.345 | N161: 0.565 | O161: 0 | P161: 0 | Q161: 0 | R161: 0.967 | S161: 1.25 | T161: 0 | U161: 0 | V161: 0 | W161: 0 | X161: 0 | Y161: 6.23 | Z161: 0 | AA161: 41.1 | AB161: 0 | AC161: 0 | AD161: 38 | AE161: 2120 | AF161: 8280 | AG161: 586 | AH161: 82.3 | AI161: 72.7 | AJ161: 6.65 | AK161: 32.8 | AL161: 14.5 | AM161: 9.34 | AN161: 1.57 | AO161: 0 | AP161: 1.11 | AQ161: 1990 | AR161: 0 | AS161: 27.4 | AT161: 27.2 | AU161: 14.7 | AV161: 40.6 | AW161: 0 | AX161: 0 | AY161: 0 | AZ161: 0
A162: W | B162: W16x40 | C162: W16x40 | D162: 1 | E162: 40 | F162: 11.8 | G162: 16 | H162: 0 | I162: 0 | J162: 7 | K162: 0 | L162: 0 | M162: 0.305 | N162: 0.505 | O162: 0 | P162: 0 | Q162: 0 | R162: 0.907 | S162: 1.1875 | T162: 0 | U162: 0 | V162: 0 | W162: 0 | X162: 0 | Y162: 6.93 | Z162: 0 | AA162: 46.5 | AB162: 0 | AC162: 0 | AD162: 29.7 | AE162: 1890 | AF162: 12700 | AG162: 518 | AH162: 73 | AI162: 64.7 | AJ162: 6.63 | AK162: 28.9 | AL162: 12.7 | AM162: 8.25 | AN162: 1.57 | AO162: 0 | AP162: 0.794 | AQ162: 1740 | AR162: 0 | AS162: 27.1 | AT162: 23.9 | AU162: 13.1 | AV162: 36 | AW162: 0 | AX162: 0 | AY162: 0 | AZ162: 0
A163: W | B163: W16x36 | C163: W16x36 | D163: 1 | E163: 36 | F163: 10.6 | G163: 15.9 | H163: 0 | I163: 0 | J163: 6.99 | K163: 0 | L163: 0 | M163: 0.295 | N163: 0.43 | O163: 0 | P163: 0 | Q163: 0 | R163: 0.832 | S163: 1.125 | T163: 0 | U163: 0 | V163: 0 | W163: 0 | X163: 0 | Y163: 8.12 | Z163: 0 | AA163: 48.1 | AB163: 0 | AC163: 0 | AD163: 27.8 | AE163: 1700 | AF163: 20400 | AG163: 448 | AH163: 64 | AI163: 56.5 | AJ163: 6.51 | AK163: 24.5 | AL163: 10.8 | AM163: 7 | AN163: 1.52 | AO163: 0 | AP163: 0.545 | AQ163: 1460 | AR163: 0 | AS163: 26.9 | AT163: 20.2 | AU163: 11.1 | AV163: 31.5 | AW163: 0 | AX163: 0 | AY163: 0 | AZ163: 0
A164: W | B164: W16x31 | C164: W16x31 | D164: 1 | E164: 31 | F164: 9.13 | G164: 15.9 | H164: 0 | I164: 0 | J164: 5.53 | K164: 0 | L164: 0 | M164: 0.275 | N164: 0.44 | O164: 0 | P164: 0 | Q164: 0 | R164: 0.842 | S164: 1.125 | T164: 0 | U164: 0 | V164: 0 | W164: 0 | X164: 0 | Y164: 6.28 | Z164: 0 | AA164: 51.6 | AB164: 0 | AC164: 0 | AD164: 24.2 | AE164: 1740 | AF164: 19900 | AG164: 375 | AH164: 54 | AI164: 47.2 | AJ164: 6.41 | AK164: 12.4 | AL164: 7.03 | AM164: 4.49 | AN164: 1.17 | AO164: 0 | AP164: 0.461 | AQ164: 739 | AR164: 0 | AS164: 21.3 | AT164: 13 | AU164: 8.92 | AV164: 26.5 | AW164: 0 | AX164: 0 | AY164: 0 | AZ164: 0
A165: W | B165: W16x26 | C165: W16x26 | D165: 1 | E165: 26 | F165: 7.68 | G165: 15.7 | H165: 0 | I165: 0 | J165: 5.5 | K165: 0 | L165: 0 | M165: 0.25 | N165: 0.345 | O165: 0 | P165: 0 | Q165: 0 | R165: 0.747 | S165: 1.0625 | T165: 0 | U165: 0 | V165: 0 | W165: 0 | X165: 0 | Y165: 7.97 | Z165: 0 | AA165: 56.8 | AB165: 0 | AC165: 0 | AD165: 20 | AE165: 1480 | AF165: 40300 | AG165: 301 | AH165: 44.2 | AI165: 38.4 | AJ165: 6.26 | AK165: 9.59 | AL165: 5.48 | AM165: 3.49 | AN165: 1.12 | AO165: 0 | AP165: 0.262 | AQ165: 565 | AR165: 0 | AS165: 21.1 | AT165: 10 | AU165: 6.95 | AV165: 21.6 | AW165: 0 | AX165: 0 | AY165: 0 | AZ165: 0
A166: W | B166: W14x808 | C166: W14x808 | D166: 5 | E166: 808 | F166: 237 | G166: 22.8 | H166: 0 | I166: 0 | J166: 18.6 | K166: 0 | L166: 0 | M166: 3.74 | N166: 5.12 | O166: 0 | P166: 0 | Q166: 0 | R166: 5.72 | S166: 6.4375 | T166: 0 | U166: 0 | V166: 0 | W166: 0 | X166: 0 | Y166: 1.81 | Z166: 0 | AA166: 3.05 | AB166: 0 | AC166: 0 | AD166: 0 | AE166: 18900 | AF166: 1.45 | AG166: 16000 | AH166: 1830 | AI166: 1400 | AJ166: 8.2 | AK166: 5510 | AL166: 927 | AM166: 594 | AN166: 4.82 | AO166: 0 | AP166: 1840 | AQ166: 433000 | AR166: 0 | AS166: 82.2 | AT166: 1950 | AU166: 336 | AV166: 916 | AW166: 0 | AX166: 0 | AY166: 0 | AZ166: 0
A167: W | B167: W14x730 | C167: W14x730 | D167: 5 | E167: 730 | F167: 215 | G167: 22.4 | H167: 0 | I167: 0 | J167: 17.9 | K167: 0 | L167: 0 | M167: 3.07 | N167: 4.91 | O167: 0 | P167: 0 | Q167: 0 | R167: 5.51 | S167: 6.1875 | T167: 0 | U167: 0 | V167: 0 | W167: 0 | X167: 0 | Y167: 1.82 | Z167: 0 | AA167: 3.71 | AB167: 0 | AC167: 0 | AD167: 0 | AE167: 17500 | AF167: 1.9 | AG167: 14300 | AH167: 1660 | AI167: 1280 | AJ167: 8.17 | AK167: 4720 | AL167: 816 | AM167: 527 | AN167: 4.69 | AO167: 0 | AP167: 1450 | AQ167: 362000 | AR167: 0 | AS167: 78.3 | AT167: 1720 | AU167: 319 | AV167: 830 | AW167: 0 | AX167: 0 | AY167: 0 | AZ167: 0
A168: W | B168: W14x665 | C168: W14x665 | D168: 5 | E168: 665 | F168: 196 | G168: 21.6 | H168: 0 | I168: 0 | J168: 17.7 | K168: 0 | L168: 0 | M168: 2.83 | N168: 4.52 | O168: 0 | P168: 0 | Q168: 0 | R168: 5.12 | S168: 5.8125 | T168: 0 | U168: 0 | V168: 0 | W168: 0 | X168: 0 | Y168: 1.95 | Z168: 0 | AA168: 4.03 | AB168: 0 | AC168: 0 | AD168: 0 | AE168: 16300 | AF168: 2.46 | AG168: 12400 | AH168: 1480 | AI168: 1150 | AJ168: 7.98 | AK168: 4170 | AL168: 730 | AM168: 472 | AN168: 4.62 | AO168: 0 | AP168: 1120 | AQ168: 306000 | AR168: 0 | AS168: 75.5 | AT168: 1510 | AU168: 287 | AV168: 739 | AW168: 0 | AX168: 0 | AY168: 0 | AZ168: 0
A169: W | B169: W14x605 | C169: W14x605 | D169: 5 | E169: 605 | F169: 178 | G169: 20.9 | H169: 0 | I169: 0 | J169: 17.4 | K169: 0 | L169: 0 | M169: 2.6 | N169: 4.16 | O169: 0 | P169: 0 | Q169: 0 | R169: 4.76 | S169: 5.4375 | T169: 0 | U169: 0 | V169: 0 | W169: 0 | X169: 0 | Y169: 2.09 | Z169: 0 | AA169: 4.39 | AB169: 0 | AC169: 0 | AD169: 0 | AE169: 15100 | AF169: 3.21 | AG169: 10800 | AH169: 1320 | AI169: 1040 | AJ169: 7.8 | AK169: 3680 | AL169: 652 | AM169: 423 | AN169: 4.55 | AO169: 0 | AP169: 869 | AQ169: 258000 | AR169: 0 | AS169: 73 | AT169: 1320 | AU169: 258 | AV169: 659 | AW169: 0 | AX169: 0 | AY169: 0 | AZ169: 0
A170: W | B170: W14x550 | C170: W14x550 | D170: 4 | E170: 550 | F170: 162 | G170: 20.2 | H170: 0 | I170: 0 | J170: 17.2 | K170: 0 | L170: 0 | M170: 2.38 | N170: 3.82 | O170: 0 | P170: 0 | Q170: 0 | R170: 4.42 | S170: 5.125 | T170: 0 | U170: 0 | V170: 0 | W170: 0 | X170: 0 | Y170: 2.25 | Z170: 0 | AA170: 4.79 | AB170: 0 | AC170: 0 | AD170: 0 | AE170: 14200 | AF170: 4.16 | AG170: 9430 | AH170: 1180 | AI170: 931 | AJ170: 7.63 | AK170: 3250 | AL170: 583 | AM170: 378 | AN170: 4.49 | AO170: 0 | AP170: 669 | AQ170: 219000 | AR170: 0 | AS170: 70.6 | AT170: 1160 | AU170: 232 | AV170: 587 | AW170: 0 | AX170: 0 | AY170: 0 | AZ170: 0
A171: W | B171: W14x500 | C171: W14x500 | D171: 4 | E171: 500 | F171: 147 | G171: 19.6 | H171: 0 | I171: 0 | J171: 17 | K171: 0 | L171: 0 | M171: 2.19 | N171: 3.5 | O171: 0 | P171: 0 | Q171: 0 | R171: 4.1 | S171: 4.8125 | T171: 0 | U171: 0 | V171: 0 | W171: 0 | X171: 0 | Y171: 2.43 | Z171: 0 | AA171: 5.21 | AB171: 0 | AC171: 0 | AD171: 0 | AE171: 13100 | AF171: 5.49 | AG171: 8210 | AH171: 1050 | AI171: 838 | AJ171: 7.48 | AK171: 2880 | AL171: 522 | AM171: 339 | AN171: 4.43 | AO171: 0 | AP171: 514 | AQ171: 187000 | AR171: 0 | AS171: 68.5 | AT171: 1020 | AU171: 209 | AV171: 523 | AW171: 0 | AX171: 0 | AY171: 0 | AZ171: 0
A172: W | B172: W14x455 | C172: W14x455 | D172: 4 | E172: 455 | F172: 134 | G172: 19 | H172: 0 | I172: 0 | J172: 16.8 | K172: 0 | L172: 0 | M172: 2.02 | N172: 3.21 | O172: 0 | P172: 0 | Q172: 0 | R172: 3.81 | S172: 4.5 | T172: 0 | U172: 0 | V172: 0 | W172: 0 | X172: 0 | Y172: 2.62 | Z172: 0 | AA172: 5.66 | AB172: 0 | AC172: 0 | AD172: 0 | AE172: 12200 | AF172: 7.3 | AG172: 7190 | AH172: 936 | AI172: 756 | AJ172: 7.33 | AK172: 2560 | AL172: 468 | AM172: 304 | AN172: 4.38 | AO172: 0 | AP172: 395 | AQ172: 160000 | AR172: 0 | AS172: 66.5 | AT172: 899 | AU172: 188 | AV172: 467 | AW172: 0 | AX172: 0 | AY172: 0 | AZ172: 0
A173: W | B173: W14x426 | C173: W14x426 | D173: 4 | E173: 426 | F173: 125 | G173: 18.7 | H173: 0 | I173: 0 | J173: 16.7 | K173: 0 | L173: 0 | M173: 1.88 | N173: 3.04 | O173: 0 | P173: 0 | Q173: 0 | R173: 3.63 | S173: 4.3125 | T173: 0 | U173: 0 | V173: 0 | W173: 0 | X173: 0 | Y173: 2.75 | Z173: 0 | AA173: 6.08 | AB173: 0 | AC173: 0 | AD173: 0 | AE173: 11500 | AF173: 8.87 | AG173: 6600 | AH173: 869 | AI173: 706 | AJ173: 7.26 | AK173: 2360 | AL173: 434 | AM173: 283 | AN173: 4.34 | AO173: 0 | AP173: 331 | AQ173: 144000 | AR173: 0 | AS173: 65.3 | AT173: 827 | AU173: 176 | AV173: 433 | AW173: 0 | AX173: 0 | AY173: 0 | AZ173: 0
A174: W | B174: W14x398 | C174: W14x398 | D174: 4 | E174: 398 | F174: 117 | G174: 18.3 | H174: 0 | I174: 0 | J174: 16.6 | K174: 0 | L174: 0 | M174: 1.77 | N174: 2.85 | O174: 0 | P174: 0 | Q174: 0 | R174: 3.44 | S174: 4.125 | T174: 0 | U174: 0 | V174: 0 | W174: 0 | X174: 0 | Y174: 2.92 | Z174: 0 | AA174: 6.44 | AB174: 0 | AC174: 0 | AD174: 0 | AE174: 10900 | AF174: 11 | AG174: 6000 | AH174: 801 | AI174: 656 | AJ174: 7.16 | AK174: 2170 | AL174: 402 | AM174: 262 | AN174: 4.31 | AO174: 0 | AP174: 273 | AQ174: 129000 | AR174: 0 | AS174: 64.1 | AT174: 756 | AU174: 163 | AV174: 400 | AW174: 0 | AX174: 0 | AY174: 0 | AZ174: 0
A175: W | B175: W14x370 | C175: W14x370 | D175: 4 | E175: 370 | F175: 109 | G175: 17.9 | H175: 0 | I175: 0 | J175: 16.5 | K175: 0 | L175: 0 | M175: 1.66 | N175: 2.66 | O175: 0 | P175: 0 | Q175: 0 | R175: 3.26 | S175: 3.9375 | T175: 0 | U175: 0 | V175: 0 | W175: 0 | X175: 0 | Y175: 3.1 | Z175: 0 | AA175: 6.89 | AB175: 0 | AC175: 0 | AD175: 0 | AE175: 10300 | AF175: 13.9 | AG175: 5440 | AH175: 736 | AI175: 607 | AJ175: 7.07 | AK175: 1990 | AL175: 370 | AM175: 241 | AN175: 4.27 | AO175: 0 | AP175: 222 | AQ175: 116000 | AR175: 0 | AS175: 62.9 | AT175: 689 | AU175: 150 | AV175: 367 | AW175: 0 | AX175: 0 | AY175: 0 | AZ175: 0
A176: W | B176: W14x342 | C176: W14x342 | D176: 4 | E176: 342 | F176: 101 | G176: 17.5 | H176: 0 | I176: 0 | J176: 16.4 | K176: 0 | L176: 0 | M176: 1.54 | N176: 2.47 | O176: 0 | P176: 0 | Q176: 0 | R176: 3.07 | S176: 3.75 | T176: 0 | U176: 0 | V176: 0 | W176: 0 | X176: 0 | Y176: 3.31 | Z176: 0 | AA176: 7.41 | AB176: 0 | AC176: 0 | AD176: 0 | AE176: 9620 | AF176: 17.8 | AG176: 4900 | AH176: 672 | AI176: 558 | AJ176: 6.98 | AK176: 1810 | AL176: 338 | AM176: 221 | AN176: 4.24 | AO176: 0 | AP176: 178 | AQ176: 103000 | AR176: 0 | AS176: 61.6 | AT176: 623 | AU176: 138 | AV176: 335 | AW176: 0 | AX176: 0 | AY176: 0 | AZ176: 0
A177: W | B177: W14x311 | C177: W14x311 | D177: 4 | E177: 311 | F177: 91.4 | G177: 17.1 | H177: 0 | I177: 0 | J177: 16.2 | K177: 0 | L177: 0 | M177: 1.41 | N177: 2.26 | O177: 0 | P177: 0 | Q177: 0 | R177: 2.86 | S177: 3.5625 | T177: 0 | U177: 0 | V177: 0 | W177: 0 | X177: 0 | Y177: 3.59 | Z177: 0 | AA177: 8.09 | AB177: 0 | AC177: 0 | AD177: 0 | AE177: 8820 | AF177: 24.4 | AG177: 4330 | AH177: 603 | AI177: 506 | AJ177: 6.88 | AK177: 1610 | AL177: 304 | AM177: 199 | AN177: 4.2 | AO177: 0 | AP177: 136 | AQ177: 88900 | AR177: 0 | AS177: 60.3 | AT177: 553 | AU177: 124 | AV177: 301 | AW177: 0 | AX177: 0 | AY177: 0 | AZ177: 0
A178: W | B178: W14x283 | C178: W14x283 | D178: 4 | E178: 283 | F178: 83.3 | G178: 16.7 | H178: 0 | I178: 0 | J178: 16.1 | K178: 0 | L178: 0 | M178: 1.29 | N178: 2.07 | O178: 0 | P178: 0 | Q178: 0 | R178: 2.67 | S178: 3.375 | T178: 0 | U178: 0 | V178: 0 | W178: 0 | X178: 0 | Y178: 3.89 | Z178: 0 | AA178: 8.84 | AB178: 0 | AC178: 0 | AD178: 0 | AE178: 8120 | AF178: 33.4 | AG178: 3840 | AH178: 542 | AI178: 459 | AJ178: 6.79 | AK178: 1440 | AL178: 274 | AM178: 179 | AN178: 4.17 | AO178: 0 | AP178: 104 | AQ178: 77500 | AR178: 0 | AS178: 59.1 | AT178: 493 | AU178: 113 | AV178: 270 | AW178: 0 | AX178: 0 | AY178: 0 | AZ178: 0
A179: W | B179: W14x257 | C179: W14x257 | D179: 4 | E179: 257 | F179: 75.6 | G179: 16.4 | H179: 0 | I179: 0 | J179: 16 | K179: 0 | L179: 0 | M179: 1.18 | N179: 1.89 | O179: 0 | P179: 0 | Q179: 0 | R179: 2.49 | S179: 3.1875 | T179: 0 | U179: 0 | V179: 0 | W179: 0 | X179: 0 | Y179: 4.23 | Z179: 0 | AA179: 9.71 | AB179: 0 | AC179: 0 | AD179: 0 | AE179: 7460 | AF179: 46.1 | AG179: 3400 | AH179: 487 | AI179: 415 | AJ179: 6.71 | AK179: 1290 | AL179: 246 | AM179: 161 | AN179: 4.13 | AO179: 0 | AP179: 79.1 | AQ179: 67700 | AR179: 0 | AS179: 57.9 | AT179: 438 | AU179: 101 | AV179: 242 | AW179: 0 | AX179: 0 | AY179: 0 | AZ179: 0
A180: W | B180: W14x233 | C180: W14x233 | D180: 4 | E180: 233 | F180: 68.5 | G180: 16 | H180: 0 | I180: 0 | J180: 15.9 | K180: 0 | L180: 0 | M180: 1.07 | N180: 1.72 | O180: 0 | P180: 0 | Q180: 0 | R180: 2.32 | S180: 3 | T180: 0 | U180: 0 | V180: 0 | W180: 0 | X180: 0 | Y180: 4.62 | Z180: 0 | AA180: 10.7 | AB180: 0 | AC180: 0 | AD180: 0 | AE180: 6820 | AF180: 64.9 | AG180: 3010 | AH180: 436 | AI180: 375 | AJ180: 6.63 | AK180: 1150 | AL180: 221 | AM180: 145 | AN180: 4.1 | AO180: 0 | AP180: 59.5 | AQ180: 59000 | AR180: 0 | AS180: 56.9 | AT180: 389 | AU180: 91.3 | AV180: 217 | AW180: 0 | AX180: 0 | AY180: 0 | AZ180: 0
A181: W | B181: W14x211 | C181: W14x211 | D181: 3 | E181: 211 | F181: 62 | G181: 15.7 | H181: 0 | I181: 0 | J181: 15.8 | K181: 0 | L181: 0 | M181: 0.98 | N181: 1.56 | O181: 0 | P181: 0 | Q181: 0 | R181: 2.16 | S181: 2.875 | T181: 0 | U181: 0 | V181: 0 | W181: 0 | X181: 0 | Y181: 5.06 | Z181: 0 | AA181: 11.6 | AB181: 0 | AC181: 0 | AD181: 0 | AE181: 6230 | AF181: 91.8 | AG181: 2660 | AH181: 390 | AI181: 338 | AJ181: 6.55 | AK181: 1030 | AL181: 198 | AM181: 130 | AN181: 4.07 | AO181: 0 | AP181: 44.6 | AQ181: 51600 | AR181: 0 | AS181: 55.9 | AT181: 345 | AU181: 81.8 | AV181: 194 | AW181: 0 | AX181: 0 | AY181: 0 | AZ181: 0
A182: W | B182: W14x193 | C182: W14x193 | D182: 3 | E182: 193 | F182: 56.8 | G182: 15.5 | H182: 0 | I182: 0 | J182: 15.7 | K182: 0 | L182: 0 | M182: 0.89 | N182: 1.44 | O182: 0 | P182: 0 | Q182: 0 | R182: 2.04 | S182: 2.75 | T182: 0 | U182: 0 | V182: 0 | W182: 0 | X182: 0 | Y182: 5.45 | Z182: 0 | AA182: 12.8 | AB182: 0 | AC182: 0 | AD182: 0 | AE182: 5740 | AF182: 125 | AG182: 2400 | AH182: 355 | AI182: 310 | AJ182: 6.5 | AK182: 931 | AL182: 180 | AM182: 119 | AN182: 4.05 | AO182: 0 | AP182: 34.8 | AQ182: 45900 | AR182: 0 | AS182: 55.1 | AT182: 312 | AU182: 74.9 | AV182: 176 | AW182: 0 | AX182: 0 | AY182: 0 | AZ182: 0
A183: W | B183: W14x176 | C183: W14x176 | D183: 3 | E183: 176 | F183: 51.8 | G183: 15.2 | H183: 0 | I183: 0 | J183: 15.7 | K183: 0 | L183: 0 | M183: 0.83 | N183: 1.31 | O183: 0 | P183: 0 | Q183: 0 | R183: 1.91 | S183: 2.625 | T183: 0 | U183: 0 | V183: 0 | W183: 0 | X183: 0 | Y183: 5.97 | Z183: 0 | AA183: 13.7 | AB183: 0 | AC183: 0 | AD183: 0 | AE183: 5280 | AF183: 173 | AG183: 2140 | AH183: 320 | AI183: 281 | AJ183: 6.43 | AK183: 838 | AL183: 163 | AM183: 107 | AN183: 4.02 | AO183: 0 | AP183: 26.5 | AQ183: 40500 | AR183: 0 | AS183: 54.4 | AT183: 279 | AU183: 67.5 | AV183: 159 | AW183: 0 | AX183: 0 | AY183: 0 | AZ183: 0
A184: W | B184: W14x159 | C184: W14x159 | D184: 3 | E184: 159 | F184: 46.7 | G184: 15 | H184: 0 | I184: 0 | J184: 15.6 | K184: 0 | L184: 0 | M184: 0.745 | N184: 1.19 | O184: 0 | P184: 0 | Q184: 0 | R184: 1.79 | S184: 2.5 | T184: 0 | U184: 0 | V184: 0 | W184: 0 | X184: 0 | Y184: 6.54 | Z184: 0 | AA184: 15.3 | AB184: 0 | AC184: 0 | AD184: 0 | AE184: 4780 | AF184: 252 | AG184: 1900 | AH184: 287 | AI184: 254 | AJ184: 6.38 | AK184: 748 | AL184: 146 | AM184: 96.2 | AN184: 4 | AO184: 0 | AP184: 19.7 | AQ184: 35600 | AR184: 0 | AS184: 53.7 | AT184: 248 | AU184: 60.8 | AV184: 142 | AW184: 0 | AX184: 0 | AY184: 0 | AZ184: 0
A185: W | B185: W14x145 | C185: W14x145 | D185: 3 | E185: 145 | F185: 42.7 | G185: 14.8 | H185: 0 | I185: 0 | J185: 15.5 | K185: 0 | L185: 0 | M185: 0.68 | N185: 1.09 | O185: 0 | P185: 0 | Q185: 0 | R185: 1.69 | S185: 2.375 | T185: 0 | U185: 0 | V185: 0 | W185: 0 | X185: 0 | Y185: 7.11 | Z185: 0 | AA185: 16.8 | AB185: 0 | AC185: 0 | AD185: 0 | AE185: 4400 | AF185: 348 | AG185: 1710 | AH185: 260 | AI185: 232 | AJ185: 6.33 | AK185: 677 | AL185: 133 | AM185: 87.3 | AN185: 3.98 | AO185: 0 | AP185: 15.2 | AQ185: 31700 | AR185: 0 | AS185: 53 | AT185: 224 | AU185: 55.3 | AV185: 129 | AW185: 0 | AX185: 0 | AY185: 0 | AZ185: 0
A186: W | B186: W14x132 | C186: W14x132 | D186: 2 | E186: 132 | F186: 38.8 | G186: 14.7 | H186: 0 | I186: 0 | J186: 14.7 | K186: 0 | L186: 0 | M186: 0.645 | N186: 1.03 | O186: 0 | P186: 0 | Q186: 0 | R186: 1.63 | S186: 2.3125 | T186: 0 | U186: 0 | V186: 0 | W186: 0 | X186: 0 | Y186: 7.15 | Z186: 0 | AA186: 17.7 | AB186: 0 | AC186: 0 | AD186: 0 | AE186: 4180 | AF186: 428 | AG186: 1530 | AH186: 234 | AI186: 209 | AJ186: 6.28 | AK186: 548 | AL186: 113 | AM186: 74.5 | AN186: 3.76 | AO186: 0 | AP186: 12.3 | AQ186: 25500 | AR186: 0 | AS186: 50.2 | AT186: 190 | AU186: 49.4 | AV186: 116 | AW186: 0 | AX186: 0 | AY186: 0 | AZ186: 0
A187: W | B187: W14x120 | C187: W14x120 | D187: 2 | E187: 120 | F187: 35.3 | G187: 14.5 | H187: 0 | I187: 0 | J187: 14.7 | K187: 0 | L187: 0 | M187: 0.59 | N187: 0.94 | O187: 0 | P187: 0 | Q187: 0 | R187: 1.54 | S187: 2.25 | T187: 0 | U187: 0 | V187: 0 | W187: 0 | X187: 0 | Y187: 7.8 | Z187: 0 | AA187: 19.3 | AB187: 0 | AC187: 0 | AD187: 0 | AE187: 3830 | AF187: 601 | AG187: 1380 | AH187: 212 | AI187: 190 | AJ187: 6.24 | AK187: 495 | AL187: 102 | AM187: 67.5 | AN187: 3.74 | AO187: 0 | AP187: 9.37 | AQ187: 22700 | AR187: 0 | AS187: 49.7 | AT187: 171 | AU187: 44.8 | AV187: 105 | AW187: 0 | AX187: 0 | AY187: 0 | AZ187: 0
A188: W | B188: W14x109 | C188: W14x109 | D188: 2 | E188: 109 | F188: 32 | G188: 14.3 | H188: 0 | I188: 0 | J188: 14.6 | K188: 0 | L188: 0 | M188: 0.525 | N188: 0.86 | O188: 0 | P188: 0 | Q188: 0 | R188: 1.46 | S188: 2.1875 | T188: 0 | U188: 0 | V188: 0 | W188: 0 | X188: 0 | Y188: 8.49 | Z188: 0 | AA188: 21.7 | AB188: 0 | AC188: 0 | AD188: 0 | AE188: 3490 | AF188: 853 | AG188: 1240 | AH188: 192 | AI188: 173 | AJ188: 6.22 | AK188: 447 | AL188: 92.7 | AM188: 61.2 | AN188: 3.73 | AO188: 0 | AP188: 7.12 | AQ188: 20200 | AR188: 0 | AS188: 49.1 | AT188: 154 | AU188: 40.7 | AV188: 94.9 | AW188: 0 | AX188: 0 | AY188: 0 | AZ188: 0
A189: W | B189: W14x99 | C189: W14x99 | D189: 2 | E189: 99 | F189: 29.1 | G189: 14.2 | H189: 0 | I189: 0 | J189: 14.6 | K189: 0 | L189: 0 | M189: 0.485 | N189: 0.78 | O189: 0 | P189: 0 | Q189: 0 | R189: 1.38 | S189: 2.0625 | T189: 0 | U189: 0 | V189: 0 | W189: 0 | X189: 0 | Y189: 9.34 | Z189: 0 | AA189: 23.5 | AB189: 0 | AC189: 0 | AD189: 0 | AE189: 3190 | AF189: 1220 | AG189: 1110 | AH189: 173 | AI189: 157 | AJ189: 6.17 | AK189: 402 | AL189: 83.6 | AM189: 55.2 | AN189: 3.71 | AO189: 0 | AP189: 5.37 | AQ189: 18000 | AR189: 0 | AS189: 48.7 | AT189: 138 | AU189: 36.7 | AV189: 85.6 | AW189: 0 | AX189: 0 | AY189: 0 | AZ189: 0
A190: W | B190: W14x90 | C190: W14x90 | D190: 2 | E190: 90 | F190: 26.5 | G190: 14 | H190: 0 | I190: 0 | J190: 14.5 | K190: 0 | L190: 0 | M190: 0.44 | N190: 0.71 | O190: 0 | P190: 0 | Q190: 0 | R190: 1.31 | S190: 2 | T190: 0 | U190: 0 | V190: 0 | W190: 0 | X190: 0 | Y190: 10.2 | Z190: 0 | AA190: 25.9 | AB190: 0 | AC190: 0 | AD190: 0 | AE190: 2900 | AF190: 1750 | AG190: 999 | AH190: 157 | AI190: 143 | AJ190: 6.14 | AK190: 362 | AL190: 75.6 | AM190: 49.9 | AN190: 3.7 | AO190: 0 | AP190: 4.06 | AQ190: 16000 | AR190: 0 | AS190: 48.3 | AT190: 125 | AU190: 33.3 | AV190: 77.3 | AW190: 0 | AX190: 0 | AY190: 0 | AZ190: 0
A191: W | B191: W14x82 | C191: W14x82 | D191: 2 | E191: 82 | F191: 24 | G191: 14.3 | H191: 0 | I191: 0 | J191: 10.1 | K191: 0 | L191: 0 | M191: 0.51 | N191: 0.855 | O191: 0 | P191: 0 | Q191: 0 | R191: 1.45 | S191: 1.6875 | T191: 0 | U191: 0 | V191: 0 | W191: 0 | X191: 0 | Y191: 5.92 | Z191: 0 | AA191: 22.4 | AB191: 0 | AC191: 0 | AD191: 0 | AE191: 3590 | AF191: 849 | AG191: 881 | AH191: 139 | AI191: 123 | AJ191: 6.05 | AK191: 148 | AL191: 44.8 | AM191: 29.3 | AN191: 2.48 | AO191: 0 | AP191: 5.07 | AQ191: 6700 | AR191: 0 | AS191: 34.1 | AT191: 73.8 | AU191: 27.7 | AV191: 68.4 | AW191: 0 | AX191: 0 | AY191: 0 | AZ191: 0
A192: W | B192: W14x74 | C192: W14x74 | D192: 2 | E192: 74 | F192: 21.8 | G192: 14.2 | H192: 0 | I192: 0 | J192: 10.1 | K192: 0 | L192: 0 | M192: 0.45 | N192: 0.785 | O192: 0 | P192: 0 | Q192: 0 | R192: 1.38 | S192: 1.625 | T192: 0 | U192: 0 | V192: 0 | W192: 0 | X192: 0 | Y192: 6.41 | Z192: 0 | AA192: 25.4 | AB192: 0 | AC192: 0 | AD192: 0 | AE192: 3280 | AF192: 1200 | AG192: 795 | AH192: 126 | AI192: 112 | AJ192: 6.04 | AK192: 134 | AL192: 40.5 | AM192: 26.6 | AN192: 2.48 | AO192: 0 | AP192: 3.87 | AQ192: 6000 | AR192: 0 | AS192: 33.7 | AT192: 66.6 | AU192: 25.3 | AV192: 61.8 | AW192: 0 | AX192: 0 | AY192: 0 | AZ192: 0
A193: W | B193: W14x68 | C193: W14x68 | D193: 2 | E193: 68 | F193: 20 | G193: 14 | H193: 0 | I193: 0 | J193: 10 | K193: 0 | L193: 0 | M193: 0.415 | N193: 0.72 | O193: 0 | P193: 0 | Q193: 0 | R193: 1.31 | S193: 1.5625 | T193: 0 | U193: 0 | V193: 0 | W193: 0 | X193: 0 | Y193: 6.97 | Z193: 0 | AA193: 27.5 | AB193: 0 | AC193: 0 | AD193: 0 | AE193: 3020 | AF193: 1660 | AG193: 722 | AH193: 115 | AI193: 103 | AJ193: 6.01 | AK193: 121 | AL193: 36.9 | AM193: 24.2 | AN193: 2.46 | AO193: 0 | AP193: 3.01 | AQ193: 5370 | AR193: 0 | AS193: 33.4 | AT193: 60.4 | AU193: 23.1 | AV193: 56.4 | AW193: 0 | AX193: 0 | AY193: 0 | AZ193: 0
A194: W | B194: W14x61 | C194: W14x61 | D194: 2 | E194: 61 | F194: 17.9 | G194: 13.9 | H194: 0 | I194: 0 | J194: 9.99 | K194: 0 | L194: 0 | M194: 0.375 | N194: 0.645 | O194: 0 | P194: 0 | Q194: 0 | R194: 1.24 | S194: 1.5 | T194: 0 | U194: 0 | V194: 0 | W194: 0 | X194: 0 | Y194: 7.75 | Z194: 0 | AA194: 30.4 | AB194: 0 | AC194: 0 | AD194: 0 | AE194: 2720 | AF194: 2470 | AG194: 640 | AH194: 102 | AI194: 92.1 | AJ194: 5.98 | AK194: 107 | AL194: 32.8 | AM194: 21.5 | AN194: 2.45 | AO194: 0 | AP194: 2.19 | AQ194: 4690 | AR194: 0 | AS194: 33.1 | AT194: 53.3 | AU194: 20.5 | AV194: 50.1 | AW194: 0 | AX194: 0 | AY194: 0 | AZ194: 0
A195: W | B195: W14x53 | C195: W14x53 | D195: 1 | E195: 53 | F195: 15.6 | G195: 13.9 | H195: 0 | I195: 0 | J195: 8.06 | K195: 0 | L195: 0 | M195: 0.37 | N195: 0.66 | O195: 0 | P195: 0 | Q195: 0 | R195: 1.25 | S195: 1.5 | T195: 0 | U195: 0 | V195: 0 | W195: 0 | X195: 0 | Y195: 6.11 | Z195: 0 | AA195: 30.9 | AB195: 0 | AC195: 0 | AD195: 0 | AE195: 2830 | AF195: 2250 | AG195: 541 | AH195: 87.1 | AI195: 77.8 | AJ195: 5.89 | AK195: 57.7 | AL195: 22 | AM195: 14.3 | AN195: 1.92 | AO195: 0 | AP195: 1.94 | AQ195: 2540 | AR195: 0 | AS195: 26.7 | AT195: 35.5 | AU195: 16.8 | AV195: 42.6 | AW195: 0 | AX195: 0 | AY195: 0 | AZ195: 0
A196: W | B196: W14x48 | C196: W14x48 | D196: 1 | E196: 48 | F196: 14.1 | G196: 13.8 | H196: 0 | I196: 0 | J196: 8.03 | K196: 0 | L196: 0 | M196: 0.34 | N196: 0.595 | O196: 0 | P196: 0 | Q196: 0 | R196: 1.19 | S196: 1.4375 | T196: 0 | U196: 0 | V196: 0 | W196: 0 | X196: 0 | Y196: 6.75 | Z196: 0 | AA196: 33.6 | AB196: 0 | AC196: 0 | AD196: 57.1 | AE196: 2580 | AF196: 3250 | AG196: 484 | AH196: 78.4 | AI196: 70.2 | AJ196: 5.85 | AK196: 51.4 | AL196: 19.6 | AM196: 12.8 | AN196: 1.91 | AO196: 0 | AP196: 1.45 | AQ196: 2240 | AR196: 0 | AS196: 26.5 | AT196: 31.6 | AU196: 15.1 | AV196: 38.3 | AW196: 0 | AX196: 0 | AY196: 0 | AZ196: 0
A197: W | B197: W14x43 | C197: W14x43 | D197: 1 | E197: 43 | F197: 12.6 | G197: 13.7 | H197: 0 | I197: 0 | J197: 8 | K197: 0 | L197: 0 | M197: 0.305 | N197: 0.53 | O197: 0 | P197: 0 | Q197: 0 | R197: 1.12 | S197: 1.375 | T197: 0 | U197: 0 | V197: 0 | W197: 0 | X197: 0 | Y197: 7.54 | Z197: 0 | AA197: 37.4 | AB197: 0 | AC197: 0 | AD197: 45.9 | AE197: 2330 | AF197: 4880 | AG197: 428 | AH197: 69.6 | AI197: 62.6 | AJ197: 5.82 | AK197: 45.2 | AL197: 17.3 | AM197: 11.3 | AN197: 1.89 | AO197: 0 | AP197: 1.05 | AQ197: 1950 | AR197: 0 | AS197: 26.2 | AT197: 27.8 | AU197: 13.4 | AV197: 33.9 | AW197: 0 | AX197: 0 | AY197: 0 | AZ197: 0
A198: W | B198: W14x38 | C198: W14x38 | D198: 1 | E198: 38 | F198: 11.2 | G198: 14.1 | H198: 0 | I198: 0 | J198: 6.77 | K198: 0 | L198: 0 | M198: 0.31 | N198: 0.515 | O198: 0 | P198: 0 | Q198: 0 | R198: 0.915 | S198: 1.25 | T198: 0 | U198: 0 | V198: 0 | W198: 0 | X198: 0 | Y198: 6.57 | Z198: 0 | AA198: 39.6 | AB198: 0 | AC198: 0 | AD198: 41.1 | AE198: 2190 | AF198: 6890 | AG198: 385 | AH198: 61.5 | AI198: 54.6 | AJ198: 5.87 | AK198: 26.7 | AL198: 12.1 | AM198: 7.88 | AN198: 1.55 | AO198: 0 | AP198: 0.798 | AQ198: 1230 | AR198: 0 | AS198: 23 | AT198: 20 | AU198: 11.3 | AV198: 30.3 | AW198: 0 | AX198: 0 | AY198: 0 | AZ198: 0
A199: W | B199: W14x34 | C199: W14x34 | D199: 1 | E199: 34 | F199: 10 | G199: 14 | H199: 0 | I199: 0 | J199: 6.75 | K199: 0 | L199: 0 | M199: 0.285 | N199: 0.455 | O199: 0 | P199: 0 | Q199: 0 | R199: 0.855 | S199: 1.1875 | T199: 0 | U199: 0 | V199: 0 | W199: 0 | X199: 0 | Y199: 7.41 | Z199: 0 | AA199: 43.1 | AB199: 0 | AC199: 0 | AD199: 34.7 | AE199: 1970 | AF199: 10600 | AG199: 340 | AH199: 54.6 | AI199: 48.6 | AJ199: 5.83 | AK199: 23.3 | AL199: 10.6 | AM199: 6.91 | AN199: 1.53 | AO199: 0 | AP199: 0.569 | AQ199: 1070 | AR199: 0 | AS199: 22.8 | AT199: 17.5 | AU199: 9.94 | AV199: 26.8 | AW199: 0 | AX199: 0 | AY199: 0 | AZ199: 0
A200: W | B200: W14x30 | C200: W14x30 | D200: 1 | E200: 30 | F200: 8.85 | G200: 13.8 | H200: 0 | I200: 0 | J200: 6.73 | K200: 0 | L200: 0 | M200: 0.27 | N200: 0.385 | O200: 0 | P200: 0 | Q200: 0 | R200: 0.785 | S200: 1.125 | T200: 0 | U200: 0 | V200: 0 | W200: 0 | X200: 0 | Y200: 8.74 | Z200: 0 | AA200: 45.4 | AB200: 0 | AC200: 0 | AD200: 31.2 | AE200: 1750 | AF200: 17600 | AG200: 291 | AH200: 47.3 | AI200: 42 | AJ200: 5.73 | AK200: 19.6 | AL200: 8.99 | AM200: 5.82 | AN200: 1.49 | AO200: 0 | AP200: 0.38 | AQ200: 887 | AR200: 0 | AS200: 22.6 | AT200: 14.7 | AU200: 8.37 | AV200: 23.2 | AW200: 0 | AX200: 0 | AY200: 0 | AZ200: 0
A201: W | B201: W14x26 | C201: W14x26 | D201: 1 | E201: 26 | F201: 7.69 | G201: 13.9 | H201: 0 | I201: 0 | J201: 5.03 | K201: 0 | L201: 0 | M201: 0.255 | N201: 0.42 | O201: 0 | P201: 0 | Q201: 0 | R201: 0.82 | S201: 1.125 | T201: 0 | U201: 0 | V201: 0 | W201: 0 | X201: 0 | Y201: 5.98 | Z201: 0 | AA201: 48.1 | AB201: 0 | AC201: 0 | AD201: 27.8 | AE201: 1880 | AF201: 14100 | AG201: 245 | AH201: 40.2 | AI201: 35.3 | AJ201: 5.65 | AK201: 8.91 | AL201: 5.54 | AM201: 3.55 | AN201: 1.08 | AO201: 0 | AP201: 0.358 | AQ201: 405 | AR201: 0 | AS201: 16.9 | AT201: 8.94 | AU201: 6.76 | AV201: 19.7 | AW201: 0 | AX201: 0 | AY201: 0 | AZ201: 0
... 176 more rows

Sheet AISC 13 (hidden)
A1: AISC 13th Edition Table 1-1
A2: W-Shapes Dimensions and Properties | E2: d | F2: =HLOOKUP(E2,Wcolumns,2,FALSE) -> 5
A4: TYPE | B4: EDI_STD_NOMENCLATURE | C4: AISC_MANUAL_LABEL | D4: T_F | E4: W | F4: A | G4: d | H4: Ht | I4: OD | J4: bf | K4: b | L4: ID | M4: tw | N4: tf | O4: t | P4: tnom | Q4: tdes | R4: kdes | S4: kdet | T4: k1 | U4: x_bar | V4: y | W4: eo | X4: xp | Y4: yp | Z4: bf/2tf | AA4: b/t | AB4: h/tw | AC4: Ht/t | AD4: D/t | AE4: FY3P | AF4: X1 | AG4: X2 | AH4: Ix | AI4: Zx | AJ4: Sx | AK4: rx | AL4: Iy | AM4: Zy | AN4: Sy | AO4: ry | AP4: rz | AQ4: J | AR4: Cw | AS4: C | AT4: Wno | AU4: SW | AV4: Qf | AW4: Qw | AX4: ro | AY4: H | AZ4: tan(α) | BA4: Qs
C5: 1 | D5: =C5+1 -> 2 | E5: =D5+1 -> 3 | F5: =E5+1 -> 4 | G5: =F5+1 -> 5 | H5: 6 | I5: 7 | J5: 8 | K5: 9 | L5: 10 | M5: 11 | N5: 12 | O5: 13 | P5: 14 | Q5: 15 | R5: 16 | S5: 17 | T5: 18 | U5: 19 | V5: 20 | W5: 21 | X5: 22 | Y5: 23 | Z5: 24 | AA5: 25 | AB5: 26 | AC5: 27 | AD5: 28 | AE5: 29 | AF5: 30 | AG5: 31 | AH5: 32 | AI5: 33 | AJ5: 34 | AK5: 35 | AL5: 36 | AM5: 37 | AN5: 38 | AO5: 39 | AP5: 40 | AQ5: 41 | AR5: 42 | AS5: 43 | AT5: 44 | AU5: 45 | AV5: 46 | AW5: 47 | AX5: 48 | AY5: 49 | AZ5: 50 | BA5: 51
A6: W | B6: W44X335 | C6: W44X335 | D6: F | E6: 335 | F6: 98.3 | G6: 44 | H6: 0 | I6: 0 | J6: 16 | K6: 0 | L6: 0 | M6: 1.02 | N6: 1.77 | O6: 0 | P6: 0 | Q6: 0 | R6: 2.56 | S6: 2.625 | T6: 1.3125 | U6: 0 | V6: 0 | W6: 0 | X6: 0 | Y6: 0 | Z6: 4.51 | AA6: 0 | AB6: 38.1 | AC6: 0 | AD6: 0 | AE6: 44.3 | AF6: 2430 | AG6: 5110 | AH6: 31100 | AI6: 1620 | AJ6: 1410 | AK6: 17.8 | AL6: 1200 | AM6: 236 | AN6: 151 | AO6: 3.5 | AP6: 0 | AQ6: 74.4 | AR6: 536000 | AS6: 0 | AT6: 168 | AU6: 1190 | AV6: 279 | AW6: 805 | AX6: 0 | AY6: 0 | AZ6: 0 | BA6: 0
A7: W | B7: W44X290 | C7: W44X290 | D7: F | E7: 290 | F7: 85.8 | G7: 43.6 | H7: 0 | I7: 0 | J7: 15.8 | K7: 0 | L7: 0 | M7: 0.87 | N7: 1.58 | O7: 0 | P7: 0 | Q7: 0 | R7: 2.37 | S7: 2.4375 | T7: 1.25 | U7: 0 | V7: 0 | W7: 0 | X7: 0 | Y7: 0 | Z7: 5.01 | AA7: 0 | AB7: 44.7 | AC7: 0 | AD7: 0 | AE7: 32.2 | AF7: 2150 | AG7: 8170 | AH7: 27100 | AI7: 1420 | AJ7: 1240 | AK7: 17.8 | AL7: 1050 | AM7: 206 | AN7: 132 | AO7: 3.49 | AP7: 0 | AQ7: 51.5 | AR7: 464000 | AS7: 0 | AT7: 166 | AU7: 1040 | AV7: 248 | AW7: 704 | AX7: 0 | AY7: 0 | AZ7: 0 | BA7: 0
A8: W | B8: W44X262 | C8: W44X262 | D8: F | E8: 262 | F8: 77.2 | G8: 43.3 | H8: 0 | I8: 0 | J8: 15.8 | K8: 0 | L8: 0 | M8: 0.79 | N8: 1.42 | O8: 0 | P8: 0 | Q8: 0 | R8: 2.21 | S8: 2.25 | T8: 1.1875 | U8: 0 | V8: 0 | W8: 0 | X8: 0 | Y8: 0 | Z8: 5.55 | AA8: 0 | AB8: 49.2 | AC8: 0 | AD8: 0 | AE8: 26.6 | AF8: 1930 | AG8: 12300 | AH8: 24200 | AI8: 1270 | AJ8: 1120 | AK8: 17.7 | AL8: 927 | AM8: 183 | AN8: 118 | AO8: 3.46 | AP8: 0 | AQ8: 37.7 | AR8: 407000 | AS8: 0 | AT8: 165 | AU8: 922 | AV8: 222 | AW8: 630 | AX8: 0 | AY8: 0 | AZ8: 0 | BA8: 0
A9: W | B9: W44X230 | C9: W44X230 | D9: F | E9: 230 | F9: 67.7 | G9: 42.9 | H9: 0 | I9: 0 | J9: 15.8 | K9: 0 | L9: 0 | M9: 0.71 | N9: 1.22 | O9: 0 | P9: 0 | Q9: 0 | R9: 2.01 | S9: 2.0625 | T9: 1.1875 | U9: 0 | V9: 0 | W9: 0 | X9: 0 | Y9: 0 | Z9: 6.45 | AA9: 0 | AB9: 54.8 | AC9: 0 | AD9: 0 | AE9: 21.5 | AF9: 1690 | AG9: 21100 | AH9: 20800 | AI9: 1100 | AJ9: 971 | AK9: 17.5 | AL9: 796 | AM9: 157 | AN9: 101 | AO9: 3.43 | AP9: 0 | AQ9: 24.9 | AR9: 346000 | AS9: 0 | AT9: 164 | AU9: 789 | AV9: 191 | AW9: 546 | AX9: 0 | AY9: 0 | AZ9: 0 | BA9: 0
A10: W | B10: W40X593 | C10: W40X593 | D10: T | E10: 593 | F10: 174 | G10: 43 | H10: 0 | I10: 0 | J10: 16.7 | K10: 0 | L10: 0 | M10: 1.79 | N10: 3.23 | O10: 0 | P10: 0 | Q10: 0 | R10: 4.41 | S10: 4.5 | T10: 2.125 | U10: 0 | V10: 0 | W10: 0 | X10: 0 | Y10: 0 | Z10: 2.58 | AA10: 0 | AB10: 19.1 | AC10: 0 | AD10: 0 | AE10: 0 | AF10: 4760 | AG10: 348 | AH10: 50400 | AI10: 2760 | AJ10: 2340 | AK10: 17 | AL10: 2520 | AM10: 481 | AN10: 302 | AO10: 3.8 | AP10: 0 | AQ10: 445 | AR10: 996000 | AS10: 0 | AT10: 166 | AU10: 2240 | AV10: 478 | AW10: 1370 | AX10: 0 | AY10: 0 | AZ10: 0 | BA10: 0
A11: W | B11: W40X503 | C11: W40X503 | D11: T | E11: 503 | F11: 148 | G11: 42.1 | H11: 0 | I11: 0 | J11: 16.4 | K11: 0 | L11: 0 | M11: 1.54 | N11: 2.76 | O11: 0 | P11: 0 | Q11: 0 | R11: 3.94 | S11: 4 | T11: 2 | U11: 0 | V11: 0 | W11: 0 | X11: 0 | Y11: 0 | Z11: 2.97 | AA11: 0 | AB11: 22.2 | AC11: 0 | AD11: 0 | AE11: 0 | AF11: 4110 | AG11: 620 | AH11: 41700 | AI11: 2320 | AJ11: 1980 | AK11: 16.8 | AL11: 2050 | AM11: 395 | AN11: 250 | AO11: 3.72 | AP11: 0 | AQ11: 279 | AR11: 791000 | AS11: 0 | AT11: 161 | AU11: 1830 | AV11: 403 | AW11: 1150 | AX11: 0 | AY11: 0 | AZ11: 0 | BA11: 0
A12: W | B12: W40X431 | C12: W40X431 | D12: T | E12: 431 | F12: 127 | G12: 41.3 | H12: 0 | I12: 0 | J12: 16.2 | K12: 0 | L12: 0 | M12: 1.34 | N12: 2.36 | O12: 0 | P12: 0 | Q12: 0 | R12: 3.54 | S12: 3.625 | T12: 1.875 | U12: 0 | V12: 0 | W12: 0 | X12: 0 | Y12: 0 | Z12: 3.44 | AA12: 0 | AB12: 25.5 | AC12: 0 | AD12: 0 | AE12: 0 | AF12: 3550 | AG12: 1100 | AH12: 34800 | AI12: 1960 | AJ12: 1690 | AK12: 16.6 | AL12: 1690 | AM12: 328 | AN12: 208 | AO12: 3.65 | AP12: 0 | AQ12: 177 | AR12: 639000 | AS12: 0 | AT12: 158 | AU12: 1510 | AV12: 342 | AW12: 968 | AX12: 0 | AY12: 0 | AZ12: 0 | BA12: 0
A13: W | B13: W40X397 | C13: W40X397 | D13: T | E13: 397 | F13: 117 | G13: 41 | H13: 0 | I13: 0 | J13: 16.1 | K13: 0 | L13: 0 | M13: 1.22 | N13: 2.2 | O13: 0 | P13: 0 | Q13: 0 | R13: 3.38 | S13: 3.5 | T13: 1.8125 | U13: 0 | V13: 0 | W13: 0 | X13: 0 | Y13: 0 | Z13: 3.66 | AA13: 0 | AB13: 28 | AC13: 0 | AD13: 0 | AE13: 0 | AF13: 3310 | AG13: 1440 | AH13: 32000 | AI13: 1800 | AJ13: 1560 | AK13: 16.6 | AL13: 1540 | AM13: 300 | AN13: 191 | AO13: 3.64 | AP13: 0 | AQ13: 142 | AR13: 578000 | AS13: 0 | AT13: 156 | AU13: 1380 | AV13: 318 | AW13: 891 | AX13: 0 | AY13: 0 | AZ13: 0 | BA13: 0
A14: W | B14: W40X372 | C14: W40X372 | D14: T | E14: 372 | F14: 109 | G14: 40.6 | H14: 0 | I14: 0 | J14: 16.1 | K14: 0 | L14: 0 | M14: 1.16 | N14: 2.05 | O14: 0 | P14: 0 | Q14: 0 | R14: 3.23 | S14: 3.3125 | T14: 1.8125 | U14: 0 | V14: 0 | W14: 0 | X14: 0 | Y14: 0 | Z14: 3.92 | AA14: 0 | AB14: 29.5 | AC14: 0 | AD14: 0 | AE14: 0 | AF14: 3080 | AG14: 1880 | AH14: 29600 | AI14: 1680 | AJ14: 1460 | AK14: 16.5 | AL14: 1420 | AM14: 278 | AN14: 177 | AO14: 3.6 | AP14: 0 | AQ14: 116 | AR14: 528000 | AS14: 0 | AT14: 155 | AU14: 1270 | AV14: 295 | AW14: 829 | AX14: 0 | AY14: 0 | AZ14: 0 | BA14: 0
A15: W | B15: W40X362 | C15: W40X362 | D15: T | E15: 362 | F15: 107 | G15: 40.6 | H15: 0 | I15: 0 | J15: 16 | K15: 0 | L15: 0 | M15: 1.12 | N15: 2.01 | O15: 0 | P15: 0 | Q15: 0 | R15: 3.19 | S15: 3.25 | T15: 1.75 | U15: 0 | V15: 0 | W15: 0 | X15: 0 | Y15: 0 | Z15: 3.99 | AA15: 0 | AB15: 30.5 | AC15: 0 | AD15: 0 | AE15: 0 | AF15: 3040 | AG15: 2010 | AH15: 28900 | AI15: 1640 | AJ15: 1420 | AK15: 16.5 | AL15: 1380 | AM15: 270 | AN15: 173 | AO15: 3.6 | AP15: 0 | AQ15: 109 | AR15: 512000 | AS15: 0 | AT15: 154 | AU15: 1240 | AV15: 289 | AW15: 807 | AX15: 0 | AY15: 0 | AZ15: 0 | BA15: 0
A16: W | B16: W40X324 | C16: W40X324 | D16: F | E16: 324 | F16: 95.3 | G16: 40.2 | H16: 0 | I16: 0 | J16: 15.9 | K16: 0 | L16: 0 | M16: 1 | N16: 1.81 | O16: 0 | P16: 0 | Q16: 0 | R16: 2.99 | S16: 3.0625 | T16: 1.6875 | U16: 0 | V16: 0 | W16: 0 | X16: 0 | Y16: 0 | Z16: 4.4 | AA16: 0 | AB16: 34.2 | AC16: 0 | AD16: 0 | AE16: 55.1 | AF16: 2720 | AG16: 3050 | AH16: 25600 | AI16: 1460 | AJ16: 1280 | AK16: 16.4 | AL16: 1220 | AM16: 239 | AN16: 153 | AO16: 3.58 | AP16: 0 | AQ16: 79.4 | AR16: 449000 | AS16: 0 | AT16: 153 | AU16: 1100 | AV16: 259 | AW16: 719 | AX16: 0 | AY16: 0 | AZ16: 0 | BA16: 0
A17: W | B17: W40X297 | C17: W40X297 | D17: F | E17: 297 | F17: 87.4 | G17: 39.8 | H17: 0 | I17: 0 | J17: 15.8 | K17: 0 | L17: 0 | M17: 0.93 | N17: 1.65 | O17: 0 | P17: 0 | Q17: 0 | R17: 2.83 | S17: 2.9375 | T17: 1.6875 | U17: 0 | V17: 0 | W17: 0 | X17: 0 | Y17: 0 | Z17: 4.8 | AA17: 0 | AB17: 36.8 | AC17: 0 | AD17: 0 | AE17: 47.7 | AF17: 2500 | AG17: 4250 | AH17: 23200 | AI17: 1330 | AJ17: 1170 | AK17: 16.3 | AL17: 1090 | AM17: 215 | AN17: 138 | AO17: 3.54 | AP17: 0 | AQ17: 61.2 | AR17: 397000 | AS17: 0 | AT17: 151 | AU17: 986 | AV17: 235 | AW17: 654 | AX17: 0 | AY17: 0 | AZ17: 0 | BA17: 0
A18: W | B18: W40X277 | C18: W40X277 | D18: F | E18: 277 | F18: 81.4 | G18: 39.7 | H18: 0 | I18: 0 | J18: 15.8 | K18: 0 | L18: 0 | M18: 0.83 | N18: 1.58 | O18: 0 | P18: 0 | Q18: 0 | R18: 2.76 | S18: 2.875 | T18: 1.625 | U18: 0 | V18: 0 | W18: 0 | X18: 0 | Y18: 0 | Z18: 5.03 | AA18: 0 | AB18: 41.2 | AC18: 0 | AD18: 0 | AE18: 38 | AF18: 2360 | AG18: 5280 | AH18: 21900 | AI18: 1250 | AJ18: 1100 | AK18: 16.4 | AL18: 1040 | AM18: 204 | AN18: 132 | AO18: 3.58 | AP18: 0 | AQ18: 51.5 | AR18: 378000 | AS18: 0 | AT18: 151 | AU18: 940 | AV18: 225 | AW18: 614 | AX18: 0 | AY18: 0 | AZ18: 0 | BA18: 0
A19: W | B19: W40X249 | C19: W40X249 | D19: F | E19: 249 | F19: 73.3 | G19: 39.4 | H19: 0 | I19: 0 | J19: 15.8 | K19: 0 | L19: 0 | M19: 0.75 | N19: 1.42 | O19: 0 | P19: 0 | Q19: 0 | R19: 2.6 | S19: 2.6875 | T19: 1.5625 | U19: 0 | V19: 0 | W19: 0 | X19: 0 | Y19: 0 | Z19: 5.55 | AA19: 0 | AB19: 45.6 | AC19: 0 | AD19: 0 | AE19: 31 | AF19: 2130 | AG19: 7800 | AH19: 19600 | AI19: 1120 | AJ19: 993 | AK19: 16.3 | AL19: 926 | AM19: 182 | AN19: 118 | AO19: 3.55 | AP19: 0 | AQ19: 38.1 | AR19: 334000 | AS19: 0 | AT19: 149 | AU19: 836 | AV19: 202 | AW19: 550 | AX19: 0 | AY19: 0 | AZ19: 0 | BA19: 0
A20: W | B20: W40X215 | C20: W40X215 | D20: F | E20: 215 | F20: 63.4 | G20: 39 | H20: 0 | I20: 0 | J20: 15.8 | K20: 0 | L20: 0 | M20: 0.65 | N20: 1.22 | O20: 0 | P20: 0 | Q20: 0 | R20: 2.4 | S20: 2.5 | T20: 1.5625 | U20: 0 | V20: 0 | W20: 0 | X20: 0 | Y20: 0 | Z20: 6.45 | AA20: 0 | AB20: 52.6 | AC20: 0 | AD20: 0 | AE20: 23.3 | AF20: 1850 | AG20: 13600 | AH20: 16700 | AI20: 964 | AJ20: 859 | AK20: 16.2 | AL20: 796 | AM20: 156 | AN20: 101 | AO20: 3.54 | AP20: 0 | AQ20: 24.8 | AR20: 284000 | AS20: 0 | AT20: 149 | AU20: 714 | AV20: 174 | AW20: 471 | AX20: 0 | AY20: 0 | AZ20: 0 | BA20: 0
A21: W | B21: W40X199 | C21: W40X199 | D21: F | E21: 199 | F21: 58.5 | G21: 38.7 | H21: 0 | I21: 0 | J21: 15.8 | K21: 0 | L21: 0 | M21: 0.65 | N21: 1.07 | O21: 0 | P21: 0 | Q21: 0 | R21: 2.25 | S21: 2.3125 | T21: 1.5625 | U21: 0 | V21: 0 | W21: 0 | X21: 0 | Y21: 0 | Z21: 7.39 | AA21: 0 | AB21: 52.6 | AC21: 0 | AD21: 0 | AE21: 23.3 | AF21: 1700 | AG21: 20000 | AH21: 14900 | AI21: 869 | AJ21: 770 | AK21: 16 | AL21: 695 | AM21: 137 | AN21: 88.2 | AO21: 3.45 | AP21: 0 | AQ21: 18.3 | AR21: 246000 | AS21: 0 | AT21: 148 | AU21: 621 | AV21: 151 | AW21: 424 | AX21: 0 | AY21: 0 | AZ21: 0 | BA21: 0
A22: W | B22: W40X392 | C22: W40X392 | D22: T | E22: 392 | F22: 115 | G22: 41.6 | H22: 0 | I22: 0 | J22: 12.4 | K22: 0 | L22: 0 | M22: 1.42 | N22: 2.52 | O22: 0 | P22: 0 | Q22: 0 | R22: 3.7 | S22: 3.8125 | T22: 1.9375 | U22: 0 | V22: 0 | W22: 0 | X22: 0 | Y22: 0 | Z22: 2.45 | AA22: 0 | AB22: 24.1 | AC22: 0 | AD22: 0 | AE22: 0 | AF22: 3910 | AG22: 852 | AH22: 29900 | AI22: 1710 | AJ22: 1440 | AK22: 16.1 | AL22: 803 | AM22: 212 | AN22: 130 | AO22: 2.64 | AP22: 0 | AQ22: 172 | AR22: 306000 | AS22: 0 | AT22: 121 | AU22: 940 | AV22: 269 | AW22: 845 | AX22: 0 | AY22: 0 | AZ22: 0 | BA22: 0
A23: W | B23: W40X331 | C23: W40X331 | D23: F | E23: 331 | F23: 97.5 | G23: 40.8 | H23: 0 | I23: 0 | J23: 12.2 | K23: 0 | L23: 0 | M23: 1.22 | N23: 2.13 | O23: 0 | P23: 0 | Q23: 0 | R23: 3.31 | S23: 3.375 | T23: 1.8125 | U23: 0 | V23: 0 | W23: 0 | X23: 0 | Y23: 0 | Z23: 2.86 | AA23: 0 | AB23: 28 | AC23: 0 | AD23: 0 | AE23: 0 | AF23: 3360 | AG23: 1550 | AH23: 24700 | AI23: 1430 | AJ23: 1210 | AK23: 15.9 | AL23: 644 | AM23: 172 | AN23: 106 | AO23: 2.57 | AP23: 0 | AQ23: 106 | AR23: 241000 | AS23: 0 | AT23: 118 | AU23: 760 | AV23: 225 | AW23: 704 | AX23: 0 | AY23: 0 | AZ23: 0 | BA23: 0
A24: W | B24: W40X327 | C24: W40X327 | D24: F | E24: 327 | F24: 96 | G24: 40.8 | H24: 0 | I24: 0 | J24: 12.1 | K24: 0 | L24: 0 | M24: 1.18 | N24: 2.13 | O24: 0 | P24: 0 | Q24: 0 | R24: 3.31 | S24: 3.375 | T24: 1.8125 | U24: 0 | V24: 0 | W24: 0 | X24: 0 | Y24: 0 | Z24: 2.85 | AA24: 0 | AB24: 29 | AC24: 0 | AD24: 0 | AE24: 0 | AF24: 3320 | AG24: 1620 | AH24: 24500 | AI24: 1410 | AJ24: 1200 | AK24: 16 | AL24: 640 | AM24: 170 | AN24: 105 | AO24: 2.58 | AP24: 0 | AQ24: 103 | AR24: 239000 | AS24: 0 | AT24: 117 | AU24: 757 | AV24: 225 | AW24: 696 | AX24: 0 | AY24: 0 | AZ24: 0 | BA24: 0
A25: W | B25: W40X278 | C25: W40X278 | D25: F | E25: 278 | F25: 81.8 | G25: 40.2 | H25: 0 | I25: 0 | J25: 12 | K25: 0 | L25: 0 | M25: 1.02 | N25: 1.81 | O25: 0 | P25: 0 | Q25: 0 | R25: 2.99 | S25: 3.0625 | T25: 1.75 | U25: 0 | V25: 0 | W25: 0 | X25: 0 | Y25: 0 | Z25: 3.31 | AA25: 0 | AB25: 33.5 | AC25: 0 | AD25: 0 | AE25: 57.3 | AF25: 2860 | AG25: 2910 | AH25: 20500 | AI25: 1190 | AJ25: 1020 | AK25: 15.8 | AL25: 521 | AM25: 140 | AN25: 87.1 | AO25: 2.52 | AP25: 0 | AQ25: 64.7 | AR25: 192000 | AS25: 0 | AT25: 115 | AU25: 622 | AV25: 190 | AW25: 586 | AX25: 0 | AY25: 0 | AZ25: 0 | BA25: 0
A26: W | B26: W40X264 | C26: W40X264 | D26: F | E26: 264 | F26: 77.6 | G26: 40 | H26: 0 | I26: 0 | J26: 11.9 | K26: 0 | L26: 0 | M26: 0.96 | N26: 1.73 | O26: 0 | P26: 0 | Q26: 0 | R26: 2.91 | S26: 3 | T26: 1.6875 | U26: 0 | V26: 0 | W26: 0 | X26: 0 | Y26: 0 | Z26: 3.45 | AA26: 0 | AB26: 35.6 | AC26: 0 | AD26: 0 | AE26: 50.8 | AF26: 2720 | AG26: 3500 | AH26: 19400 | AI26: 1130 | AJ26: 971 | AK26: 15.8 | AL26: 493 | AM26: 132 | AN26: 82.6 | AO26: 2.52 | AP26: 0 | AQ26: 56.1 | AR26: 181000 | AS26: 0 | AT26: 114 | AU26: 589 | AV26: 182 | AW26: 555 | AX26: 0 | AY26: 0 | AZ26: 0 | BA26: 0
A27: W | B27: W40X235 | C27: W40X235 | D27: F | E27: 235 | F27: 69 | G27: 39.7 | H27: 0 | I27: 0 | J27: 11.9 | K27: 0 | L27: 0 | M27: 0.83 | N27: 1.58 | O27: 0 | P27: 0 | Q27: 0 | R27: 2.76 | S27: 2.875 | T27: 1.625 | U27: 0 | V27: 0 | W27: 0 | X27: 0 | Y27: 0 | Z27: 3.77 | AA27: 0 | AB27: 41.2 | AC27: 0 | AD27: 0 | AE27: 38 | AF27: 2440 | AG27: 5200 | AH27: 17400 | AI27: 1010 | AJ27: 875 | AK27: 15.9 | AL27: 444 | AM27: 118 | AN27: 74.6 | AO27: 2.54 | AP27: 0 | AQ27: 41.3 | AR27: 161000 | AS27: 0 | AT27: 113 | AU27: 530 | AV27: 166 | AW27: 495 | AX27: 0 | AY27: 0 | AZ27: 0 | BA27: 0
A28: W | B28: W40X211 | C28: W40X211 | D28: F | E28: 211 | F28: 62 | G28: 39.4 | H28: 0 | I28: 0 | J28: 11.8 | K28: 0 | L28: 0 | M28: 0.75 | N28: 1.42 | O28: 0 | P28: 0 | Q28: 0 | R28: 2.6 | S28: 2.6875 | T28: 1.5625 | U28: 0 | V28: 0 | W28: 0 | X28: 0 | Y28: 0 | Z28: 4.17 | AA28: 0 | AB28: 45.6 | AC28: 0 | AD28: 0 | AE28: 31 | AF28: 2210 | AG28: 7680 | AH28: 15500 | AI28: 906 | AJ28: 786 | AK28: 15.8 | AL28: 390 | AM28: 105 | AN28: 66.1 | AO28: 2.51 | AP28: 0 | AQ28: 30.4 | AR28: 140000 | AS28: 0 | AT28: 112 | AU28: 468 | AV28: 148 | AW28: 442 | AX28: 0 | AY28: 0 | AZ28: 0 | BA28: 0
A29: W | B29: W40X183 | C29: W40X183 | D29: F | E29: 183 | F29: 53.8 | G29: 39 | H29: 0 | I29: 0 | J29: 11.8 | K29: 0 | L29: 0 | M29: 0.65 | N29: 1.22 | O29: 0 | P29: 0 | Q29: 0 | R29: 2.4 | S29: 2.5 | T29: 1.5625 | U29: 0 | V29: 0 | W29: 0 | X29: 0 | Y29: 0 | Z29: 4.84 | AA29: 0 | AB29: 52.6 | AC29: 0 | AD29: 0 | AE29: 23.3 | AF29: 1920 | AG29: 13300 | AH29: 13300 | AI29: 783 | AJ29: 683 | AK29: 15.7 | AL29: 336 | AM29: 89.6 | AN29: 56.9 | AO29: 2.5 | AP29: 0 | AQ29: 20 | AR29: 120000 | AS29: 0 | AT29: 111 | AU29: 402 | AV29: 129 | AW29: 381 | AX29: 0 | AY29: 0 | AZ29: 0 | BA29: 0
A30: W | B30: W40X167 | C30: W40X167 | D30: F | E30: 167 | F30: 49.2 | G30: 38.6 | H30: 0 | I30: 0 | J30: 11.8 | K30: 0 | L30: 0 | M30: 0.65 | N30: 1.02 | O30: 0 | P30: 0 | Q30: 0 | R30: 2.21 | S30: 2.3125 | T30: 1.5625 | U30: 0 | V30: 0 | W30: 0 | X30: 0 | Y30: 0 | Z30: 5.76 | AA30: 0 | AB30: 52.6 | AC30: 0 | AD30: 0 | AE30: 23.3 | AF30: 1750 | AG30: 20700 | AH30: 11600 | AI30: 693 | AJ30: 600 | AK30: 15.3 | AL30: 283 | AM30: 76 | AN30: 47.9 | AO30: 2.4 | AP30: 0 | AQ30: 14 | AR30: 99800 | AS30: 0 | AT30: 111 | AU30: 336 | AV30: 107 | AW30: 336 | AX30: 0 | AY30: 0 | AZ30: 0 | BA30: 0
A31: W | B31: W40X149 | C31: W40X149 | D31: F | E31: 149 | F31: 43.8 | G31: 38.2 | H31: 0 | I31: 0 | J31: 11.8 | K31: 0 | L31: 0 | M31: 0.63 | N31: 0.83 | O31: 0 | P31: 0 | Q31: 0 | R31: 2.01 | S31: 2.125 | T31: 1.5 | U31: 0 | V31: 0 | W31: 0 | X31: 0 | Y31: 0 | Z31: 7.11 | AA31: 0 | AB31: 54.3 | AC31: 0 | AD31: 0 | AE31: 21.9 | AF31: 1580 | AG31: 33400 | AH31: 9800 | AI31: 598 | AJ31: 513 | AK31: 15 | AL31: 229 | AM31: 62.2 | AN31: 38.8 | AO31: 2.29 | AP31: 0 | AQ31: 9.36 | AR31: 80000 | AS31: 0 | AT31: 110 | AU31: 270 | AV31: 86.7 | AW31: 288 | AX31: 0 | AY31: 0 | AZ31: 0 | BA31: 0
A32: W | B32: W36X798 | C32: W36X798 | D32: T | E32: 798 | F32: 235 | G32: 42 | H32: 0 | I32: 0 | J32: 18 | K32: 0 | L32: 0 | M32: 2.38 | N32: 4.29 | O32: 0 | P32: 0 | Q32: 0 | R32: 5.24 | S32: 5.5625 | T32: 2.375 | U32: 0 | V32: 0 | W32: 0 | X32: 0 | Y32: 0 | Z32: 2.1 | AA32: 0 | AB32: 13.2 | AC32: 0 | AD32: 0 | AE32: 0 | AF32: 6670 | AG32: 91.2 | AH32: 62600 | AI32: 3580 | AJ32: 2980 | AK32: 16.3 | AL32: 4200 | AM32: 743 | AN32: 467 | AO32: 4.23 | AP32: 0 | AQ32: 1050 | AR32: 1490000 | AS32: 0 | AT32: 169 | AU32: 3270 | AV32: 631 | AW32: 1790 | AX32: 0 | AY32: 0 | AZ32: 0 | BA32: 0
A33: W | B33: W36X650 | C33: W36X650 | D33: T | E33: 650 | F33: 191 | G33: 40.5 | H33: 0 | I33: 0 | J33: 17.6 | K33: 0 | L33: 0 | M33: 1.97 | N33: 3.54 | O33: 0 | P33: 0 | Q33: 0 | R33: 4.49 | S33: 4.8125 | T33: 2.1875 | U33: 0 | V33: 0 | W33: 0 | X33: 0 | Y33: 0 | Z33: 2.48 | AA33: 0 | AB33: 16 | AC33: 0 | AD33: 0 | AE33: 0 | AF33: 5560 | AG33: 182 | AH33: 48900 | AI33: 2860 | AJ33: 2420 | AK33: 16 | AL33: 3230 | AM33: 580 | AN33: 367 | AO33: 4.11 | AP33: 0 | AQ33: 591 | AR33: 1100000 | AS33: 0 | AT33: 162 | AU33: 2520 | AV33: 510 | AW33: 1420 | AX33: 0 | AY33: 0 | AZ33: 0 | BA33: 0
A34: W | B34: W36X527 | C34: W36X527 | D34: T | E34: 527 | F34: 155 | G34: 39.2 | H34: 0 | I34: 0 | J34: 17.2 | K34: 0 | L34: 0 | M34: 1.61 | N34: 2.91 | O34: 0 | P34: 0 | Q34: 0 | R34: 3.86 | S34: 4.1875 | T34: 2 | U34: 0 | V34: 0 | W34: 0 | X34: 0 | Y34: 0 | Z34: 2.96 | AA34: 0 | AB34: 19.6 | AC34: 0 | AD34: 0 | AE34: 0 | AF34: 4620 | AG34: 374 | AH34: 38300 | AI34: 2280 | AJ34: 1950 | AK34: 15.7 | AL34: 2490 | AM34: 454 | AN34: 289 | AO34: 4.01 | AP34: 0 | AQ34: 327 | AR34: 820000 | AS34: 0 | AT34: 156 | AU34: 1960 | AV34: 412 | AW34: 1130 | AX34: 0 | AY34: 0 | AZ34: 0 | BA34: 0
A35: W | B35: W36X439 | C35: W36X439 | D35: T | E35: 439 | F35: 129 | G35: 38.3 | H35: 0 | I35: 0 | J35: 17 | K35: 0 | L35: 0 | M35: 1.36 | N35: 2.44 | O35: 0 | P35: 0 | Q35: 0 | R35: 3.39 | S35: 3.6875 | T35: 1.875 | U35: 0 | V35: 0 | W35: 0 | X35: 0 | Y35: 0 | Z35: 3.48 | AA35: 0 | AB35: 23.1 | AC35: 0 | AD35: 0 | AE35: 0 | AF35: 3900 | AG35: 721 | AH35: 31000 | AI35: 1870 | AJ35: 1620 | AK35: 15.5 | AL35: 1990 | AM35: 367 | AN35: 235 | AO35: 3.93 | AP35: 0 | AQ35: 193 | AR35: 638000 | AS35: 0 | AT35: 152 | AU35: 1570 | AV35: 341 | AW35: 931 | AX35: 0 | AY35: 0 | AZ35: 0 | BA35: 0
A36: W | B36: W36X393 | C36: W36X393 | D36: T | E36: 393 | F36: 116 | G36: 37.8 | H36: 0 | I36: 0 | J36: 16.8 | K36: 0 | L36: 0 | M36: 1.22 | N36: 2.2 | O36: 0 | P36: 0 | Q36: 0 | R36: 3.15 | S36: 3.4375 | T36: 1.8125 | U36: 0 | V36: 0 | W36: 0 | X36: 0 | Y36: 0 | Z36: 3.82 | AA36: 0 | AB36: 25.8 | AC36: 0 | AD36: 0 | AE36: 0 | AF36: 3530 | AG36: 1070 | AH36: 27500 | AI36: 1670 | AJ36: 1450 | AK36: 15.4 | AL36: 1750 | AM36: 325 | AN36: 208 | AO36: 3.9 | AP36: 0 | AQ36: 141 | AR36: 554000 | AS36: 0 | AT36: 150 | AU36: 1390 | AV36: 306 | AW36: 829 | AX36: 0 | AY36: 0 | AZ36: 0 | BA36: 0
A37: W | B37: W36X359 | C37: W36X359 | D37: T | E37: 359 | F37: 105 | G37: 37.4 | H37: 0 | I37: 0 | J37: 16.7 | K37: 0 | L37: 0 | M37: 1.12 | N37: 2.01 | O37: 0 | P37: 0 | Q37: 0 | R37: 2.96 | S37: 3.25 | T37: 1.75 | U37: 0 | V37: 0 | W37: 0 | X37: 0 | Y37: 0 | Z37: 4.16 | AA37: 0 | AB37: 28.1 | AC37: 0 | AD37: 0 | AE37: 0 | AF37: 3230 | AG37: 1490 | AH37: 24800 | AI37: 1510 | AJ37: 1320 | AK37: 15.3 | AL37: 1570 | AM37: 292 | AN37: 188 | AO37: 3.86 | AP37: 0 | AQ37: 108 | AR37: 492000 | AS37: 0 | AT37: 148 | AU37: 1240 | AV37: 278 | AW37: 751 | AX37: 0 | AY37: 0 | AZ37: 0 | BA37: 0
A38: W | B38: W36X328 | C38: W36X328 | D38: T | E38: 328 | F38: 96.4 | G38: 37.1 | H38: 0 | I38: 0 | J38: 16.6 | K38: 0 | L38: 0 | M38: 1.02 | N38: 1.85 | O38: 0 | P38: 0 | Q38: 0 | R38: 2.8 | S38: 3.125 | T38: 1.75 | U38: 0 | V38: 0 | W38: 0 | X38: 0 | Y38: 0 | Z38: 4.49 | AA38: 0 | AB38: 30.9 | AC38: 0 | AD38: 0 | AE38: 0 | AF38: 2980 | AG38: 2050 | AH38: 22500 | AI38: 1380 | AJ38: 1210 | AK38: 15.3 | AL38: 1420 | AM38: 265 | AN38: 171 | AO38: 3.84 | AP38: 0 | AQ38: 84.1 | AR38: 441000 | AS38: 0 | AT38: 147 | AU38: 1130 | AV38: 254 | AW38: 684 | AX38: 0 | AY38: 0 | AZ38: 0 | BA38: 0
A39: W | B39: W36X300 | C39: W36X300 | D39: F | E39: 300 | F39: 88.3 | G39: 36.7 | H39: 0 | I39: 0 | J39: 16.7 | K39: 0 | L39: 0 | M39: 0.945 | N39: 1.68 | O39: 0 | P39: 0 | Q39: 0 | R39: 2.63 | S39: 2.9375 | T39: 1.6875 | U39: 0 | V39: 0 | W39: 0 | X39: 0 | Y39: 0 | Z39: 4.96 | AA39: 0 | AB39: 33.3 | AC39: 0 | AD39: 0 | AE39: 58 | AF39: 2720 | AG39: 2930 | AH39: 20300 | AI39: 1260 | AJ39: 1110 | AK39: 15.2 | AL39: 1300 | AM39: 241 | AN39: 156 | AO39: 3.83 | AP39: 0 | AQ39: 64.2 | AR39: 399000 | AS39: 0 | AT39: 146 | AU39: 1020 | AV39: 231 | AW39: 622 | AX39: 0 | AY39: 0 | AZ39: 0 | BA39: 0
A40: W | B40: W36X280 | C40: W36X280 | D40: F | E40: 280 | F40: 82.4 | G40: 36.5 | H40: 0 | I40: 0 | J40: 16.6 | K40: 0 | L40: 0 | M40: 0.885 | N40: 1.57 | O40: 0 | P40: 0 | Q40: 0 | R40: 2.52 | S40: 2.8125 | T40: 1.625 | U40: 0 | V40: 0 | W40: 0 | X40: 0 | Y40: 0 | Z40: 5.29 | AA40: 0 | AB40: 35.6 | AC40: 0 | AD40: 0 | AE40: 50.9 | AF40: 2560 | AG40: 3730 | AH40: 18900 | AI40: 1170 | AJ40: 1030 | AK40: 15.1 | AL40: 1200 | AM40: 223 | AN40: 144 | AO40: 3.81 | AP40: 0 | AQ40: 52.6 | AR40: 366000 | AS40: 0 | AT40: 145 | AU40: 944 | AV40: 216 | AW40: 579 | AX40: 0 | AY40: 0 | AZ40: 0 | BA40: 0
A41: W | B41: W36X260 | C41: W36X260 | D41: F | E41: 260 | F41: 76.5 | G41: 36.3 | H41: 0 | I41: 0 | J41: 16.6 | K41: 0 | L41: 0 | M41: 0.84 | N41: 1.44 | O41: 0 | P41: 0 | Q41: 0 | R41: 2.39 | S41: 2.6875 | T41: 1.625 | U41: 0 | V41: 0 | W41: 0 | X41: 0 | Y41: 0 | Z41: 5.75 | AA41: 0 | AB41: 37.5 | AC41: 0 | AD41: 0 | AE41: 45.8 | AF41: 2370 | AG41: 5100 | AH41: 17300 | AI41: 1080 | AJ41: 953 | AK41: 15 | AL41: 1090 | AM41: 204 | AN41: 132 | AO41: 3.78 | AP41: 0 | AQ41: 41.5 | AR41: 330000 | AS41: 0 | AT41: 144 | AU41: 858 | AV41: 197 | AW41: 532 | AX41: 0 | AY41: 0 | AZ41: 0 | BA41: 0
A42: W | B42: W36X245 | C42: W36X245 | D42: F | E42: 245 | F42: 72.1 | G42: 36.1 | H42: 0 | I42: 0 | J42: 16.5 | K42: 0 | L42: 0 | M42: 0.8 | N42: 1.35 | O42: 0 | P42: 0 | Q42: 0 | R42: 2.3 | S42: 2.625 | T42: 1.625 | U42: 0 | V42: 0 | W42: 0 | X42: 0 | Y42: 0 | Z42: 6.11 | AA42: 0 | AB42: 39.4 | AC42: 0 | AD42: 0 | AE42: 41.6 | AF42: 2230 | AG42: 6430 | AH42: 16100 | AI42: 1010 | AJ42: 895 | AK42: 15 | AL42: 1010 | AM42: 190 | AN42: 123 | AO42: 3.75 | AP42: 0 | AQ42: 34.6 | AR42: 305000 | AS42: 0 | AT42: 143 | AU42: 799 | AV42: 184 | AW42: 498 | AX42: 0 | AY42: 0 | AZ42: 0 | BA42: 0
A43: W | B43: W36X230 | C43: W36X230 | D43: F | E43: 230 | F43: 67.6 | G43: 35.9 | H43: 0 | I43: 0 | J43: 16.5 | K43: 0 | L43: 0 | M43: 0.76 | N43: 1.26 | O43: 0 | P43: 0 | Q43: 0 | R43: 2.21 | S43: 2.5 | T43: 1.5625 | U43: 0 | V43: 0 | W43: 0 | X43: 0 | Y43: 0 | Z43: 6.54 | AA43: 0 | AB43: 41.4 | AC43: 0 | AD43: 0 | AE43: 37.5 | AF43: 2100 | AG43: 8190 | AH43: 15000 | AI43: 943 | AJ43: 837 | AK43: 14.9 | AL43: 940 | AM43: 176 | AN43: 114 | AO43: 3.73 | AP43: 0 | AQ43: 28.6 | AR43: 282000 | AS43: 0 | AT43: 143 | AU43: 740 | AV43: 171 | AW43: 465 | AX43: 0 | AY43: 0 | AZ43: 0 | BA43: 0
A44: W | B44: W36X256 | C44: W36X256 | D44: F | E44: 256 | F44: 75.4 | G44: 37.4 | H44: 0 | I44: 0 | J44: 12.2 | K44: 0 | L44: 0 | M44: 0.96 | N44: 1.73 | O44: 0 | P44: 0 | Q44: 0 | R44: 2.48 | S44: 2.625 | T44: 1.3125 | U44: 0 | V44: 0 | W44: 0 | X44: 0 | Y44: 0 | Z44: 3.53 | AA44: 0 | AB44: 33.8 | AC44: 0 | AD44: 0 | AE44: 56.3 | AF44: 2830 | AG44: 2910 | AH44: 16800 | AI44: 1040 | AJ44: 895 | AK44: 14.9 | AL44: 528 | AM44: 137 | AN44: 86.5 | AO44: 2.65 | AP44: 0 | AQ44: 52.9 | AR44: 168000 | AS44: 0 | AT44: 109 | AU44: 576 | AV44: 174 | AW44: 516 | AX44: 0 | AY44: 0 | AZ44: 0 | BA44: 0
A45: W | B45: W36X232 | C45: W36X232 | D45: F | E45: 232 | F45: 68.1 | G45: 37.1 | H45: 0 | I45: 0 | J45: 12.1 | K45: 0 | L45: 0 | M45: 0.87 | N45: 1.57 | O45: 0 | P45: 0 | Q45: 0 | R45: 2.32 | S45: 2.4375 | T45: 1.25 | U45: 0 | V45: 0 | W45: 0 | X45: 0 | Y45: 0 | Z45: 3.86 | AA45: 0 | AB45: 37.3 | AC45: 0 | AD45: 0 | AE45: 46.2 | AF45: 2570 | AG45: 4200 | AH45: 15000 | AI45: 936 | AJ45: 809 | AK45: 14.8 | AL45: 468 | AM45: 122 | AN45: 77.2 | AO45: 2.62 | AP45: 0 | AQ45: 39.6 | AR45: 148000 | AS45: 0 | AT45: 108 | AU45: 512 | AV45: 157 | AW45: 464 | AX45: 0 | AY45: 0 | AZ45: 0 | BA45: 0
A46: W | B46: W36X210 | C46: W36X210 | D46: F | E46: 210 | F46: 61.8 | G46: 36.7 | H46: 0 | I46: 0 | J46: 12.2 | K46: 0 | L46: 0 | M46: 0.83 | N46: 1.36 | O46: 0 | P46: 0 | Q46: 0 | R46: 2.11 | S46: 2.3125 | T46: 1.25 | U46: 0 | V46: 0 | W46: 0 | X46: 0 | Y46: 0 | Z46: 4.48 | AA46: 0 | AB46: 39.1 | AC46: 0 | AD46: 0 | AE46: 42.1 | AF46: 2320 | AG46: 6560 | AH46: 13200 | AI46: 833 | AJ46: 719 | AK46: 14.6 | AL46: 411 | AM46: 107 | AN46: 67.5 | AO46: 2.58 | AP46: 0 | AQ46: 28 | AR46: 128000 | AS46: 0 | AT46: 108 | AU46: 446 | AV46: 136 | AW46: 412 | AX46: 0 | AY46: 0 | AZ46: 0 | BA46: 0
A47: W | B47: W36X194 | C47: W36X194 | D47: F | E47: 194 | F47: 57 | G47: 36.5 | H47: 0 | I47: 0 | J47: 12.1 | K47: 0 | L47: 0 | M47: 0.765 | N47: 1.26 | O47: 0 | P47: 0 | Q47: 0 | R47: 2.01 | S47: 2.1875 | T47: 1.1875 | U47: 0 | V47: 0 | W47: 0 | X47: 0 | Y47: 0 | Z47: 4.81 | AA47: 0 | AB47: 42.4 | AC47: 0 | AD47: 0 | AE47: 35.7 | AF47: 2140 | AG47: 8850 | AH47: 12100 | AI47: 767 | AJ47: 664 | AK47: 14.6 | AL47: 375 | AM47: 97.7 | AN47: 61.9 | AO47: 2.56 | AP47: 0 | AQ47: 22.2 | AR47: 116000 | AS47: 0 | AT47: 107 | AU47: 407 | AV47: 126 | AW47: 379 | AX47: 0 | AY47: 0 | AZ47: 0 | BA47: 0
A48: W | B48: W36X182 | C48: W36X182 | D48: F | E48: 182 | F48: 53.6 | G48: 36.3 | H48: 0 | I48: 0 | J48: 12.1 | K48: 0 | L48: 0 | M48: 0.725 | N48: 1.18 | O48: 0 | P48: 0 | Q48: 0 | R48: 1.93 | S48: 2.125 | T48: 1.1875 | U48: 0 | V48: 0 | W48: 0 | X48: 0 | Y48: 0 | Z48: 5.12 | AA48: 0 | AB48: 44.8 | AC48: 0 | AD48: 0 | AE48: 32.1 | AF48: 2020 | AG48: 11200 | AH48: 11300 | AI48: 718 | AJ48: 623 | AK48: 14.5 | AL48: 347 | AM48: 90.7 | AN48: 57.6 | AO48: 2.55 | AP48: 0 | AQ48: 18.5 | AR48: 107000 | AS48: 0 | AT48: 106 | AU48: 378 | AV48: 118 | AW48: 355 | AX48: 0 | AY48: 0 | AZ48: 0 | BA48: 0
A49: W | B49: W36X170 | C49: W36X170 | D49: F | E49: 170 | F49: 50.1 | G49: 36.2 | H49: 0 | I49: 0 | J49: 12 | K49: 0 | L49: 0 | M49: 0.68 | N49: 1.1 | O49: 0 | P49: 0 | Q49: 0 | R49: 1.85 | S49: 2 | T49: 1.1875 | U49: 0 | V49: 0 | W49: 0 | X49: 0 | Y49: 0 | Z49: 5.47 | AA49: 0 | AB49: 47.7 | AC49: 0 | AD49: 0 | AE49: 28.2 | AF49: 1900 | AG49: 14500 | AH49: 10500 | AI49: 668 | AJ49: 581 | AK49: 14.5 | AL49: 320 | AM49: 83.8 | AN49: 53.2 | AO49: 2.53 | AP49: 0 | AQ49: 15.1 | AR49: 98400 | AS49: 0 | AT49: 105 | AU49: 349 | AV49: 109 | AW49: 330 | AX49: 0 | AY49: 0 | AZ49: 0 | BA49: 0
A50: W | B50: W36X160 | C50: W36X160 | D50: F | E50: 160 | F50: 47 | G50: 36 | H50: 0 | I50: 0 | J50: 12 | K50: 0 | L50: 0 | M50: 0.65 | N50: 1.02 | O50: 0 | P50: 0 | Q50: 0 | R50: 1.77 | S50: 1.9375 | T50: 1.125 | U50: 0 | V50: 0 | W50: 0 | X50: 0 | Y50: 0 | Z50: 5.88 | AA50: 0 | AB50: 49.9 | AC50: 0 | AD50: 0 | AE50: 25.8 | AF50: 1780 | AG50: 18600 | AH50: 9760 | AI50: 624 | AJ50: 542 | AK50: 14.4 | AL50: 295 | AM50: 77.3 | AN50: 49.1 | AO50: 2.5 | AP50: 0 | AQ50: 12.4 | AR50: 90300 | AS50: 0 | AT50: 105 | AU50: 321 | AV50: 101 | AW50: 308 | AX50: 0 | AY50: 0 | AZ50: 0 | BA50: 0
A51: W | B51: W36X150 | C51: W36X150 | D51: F | E51: 150 | F51: 44.2 | G51: 35.9 | H51: 0 | I51: 0 | J51: 12 | K51: 0 | L51: 0 | M51: 0.625 | N51: 0.94 | O51: 0 | P51: 0 | Q51: 0 | R51: 1.69 | S51: 1.875 | T51: 1.125 | U51: 0 | V51: 0 | W51: 0 | X51: 0 | Y51: 0 | Z51: 6.37 | AA51: 0 | AB51: 51.9 | AC51: 0 | AD51: 0 | AE51: 23.9 | AF51: 1680 | AG51: 24200 | AH51: 9040 | AI51: 581 | AJ51: 504 | AK51: 14.3 | AL51: 270 | AM51: 70.9 | AN51: 45.1 | AO51: 2.47 | AP51: 0 | AQ51: 10.1 | AR51: 82300 | AS51: 0 | AT51: 105 | AU51: 294 | AV51: 93.1 | AW51: 287 | AX51: 0 | AY51: 0 | AZ51: 0 | BA51: 0
A52: W | B52: W36X135 | C52: W36X135 | D52: F | E52: 135 | F52: 39.7 | G52: 35.6 | H52: 0 | I52: 0 | J52: 12 | K52: 0 | L52: 0 | M52: 0.6 | N52: 0.79 | O52: 0 | P52: 0 | Q52: 0 | R52: 1.54 | S52: 1.6875 | T52: 1.125 | U52: 0 | V52: 0 | W52: 0 | X52: 0 | Y52: 0 | Z52: 7.56 | AA52: 0 | AB52: 54.1 | AC52: 0 | AD52: 0 | AE52: 22 | AF52: 1520 | AG52: 37900 | AH52: 7800 | AI52: 509 | AJ52: 439 | AK52: 14 | AL52: 225 | AM52: 59.7 | AN52: 37.7 | AO52: 2.38 | AP52: 0 | AQ52: 7 | AR52: 68000 | AS52: 0 | AT52: 104 | AU52: 245 | AV52: 77.9 | AW52: 251 | AX52: 0 | AY52: 0 | AZ52: 0 | BA52: 0
A53: W | B53: W33X387 | C53: W33X387 | D53: T | E53: 387 | F53: 114 | G53: 36 | H53: 0 | I53: 0 | J53: 16.2 | K53: 0 | L53: 0 | M53: 1.26 | N53: 2.28 | O53: 0 | P53: 0 | Q53: 0 | R53: 3.07 | S53: 3.1875 | T53: 1.4375 | U53: 0 | V53: 0 | W53: 0 | X53: 0 | Y53: 0 | Z53: 3.55 | AA53: 0 | AB53: 23.7 | AC53: 0 | AD53: 0 | AE53: 0 | AF53: 3850 | AG53: 752 | AH53: 24300 | AI53: 1560 | AJ53: 1350 | AK53: 14.6 | AL53: 1620 | AM53: 312 | AN53: 200 | AO53: 3.77 | AP53: 0 | AQ53: 148 | AR53: 459000 | AS53: 0 | AT53: 136 | AU53: 1260 | AV53: 287 | AW53: 777 | AX53: 0 | AY53: 0 | AZ53: 0 | BA53: 0
A54: W | B54: W33X354 | C54: W33X354 | D54: T | E54: 354 | F54: 104 | G54: 35.6 | H54: 0 | I54: 0 | J54: 16.1 | K54: 0 | L54: 0 | M54: 1.16 | N54: 2.09 | O54: 0 | P54: 0 | Q54: 0 | R54: 2.88 | S54: 2.9375 | T54: 1.375 | U54: 0 | V54: 0 | W54: 0 | X54: 0 | Y54: 0 | Z54: 3.85 | AA54: 0 | AB54: 25.7 | AC54: 0 | AD54: 0 | AE54: 0 | AF54: 3530 | AG54: 1040 | AH54: 22000 | AI54: 1420 | AJ54: 1240 | AK54: 14.5 | AL54: 1460 | AM54: 282 | AN54: 181 | AO54: 3.74 | AP54: 0 | AQ54: 115 | AR54: 409000 | AS54: 0 | AT54: 135 | AU54: 1130 | AV54: 261 | AW54: 706 | AX54: 0 | AY54: 0 | AZ54: 0 | BA54: 0
A55: W | B55: W33X318 | C55: W33X318 | D55: T | E55: 318 | F55: 93.6 | G55: 35.2 | H55: 0 | I55: 0 | J55: 16 | K55: 0 | L55: 0 | M55: 1.04 | N55: 1.89 | O55: 0 | P55: 0 | Q55: 0 | R55: 2.68 | S55: 2.75 | T55: 1.3125 | U55: 0 | V55: 0 | W55: 0 | X55: 0 | Y55: 0 | Z55: 4.23 | AA55: 0 | AB55: 28.7 | AC55: 0 | AD55: 0 | AE55: 0 | AF55: 3210 | AG55: 1530 | AH55: 19500 | AI55: 1270 | AJ55: 1110 | AK55: 14.5 | AL55: 1290 | AM55: 250 | AN55: 161 | AO55: 3.71 | AP55: 0 | AQ55: 84.4 | AR55: 357000 | AS55: 0 | AT55: 133 | AU55: 1000 | AV55: 235 | AW55: 631 | AX55: 0 | AY55: 0 | AZ55: 0 | BA55: 0
A56: W | B56: W33X291 | C56: W33X291 | D56: F | E56: 291 | F56: 85.7 | G56: 34.8 | H56: 0 | I56: 0 | J56: 15.9 | K56: 0 | L56: 0 | M56: 0.96 | N56: 1.73 | O56: 0 | P56: 0 | Q56: 0 | R56: 2.52 | S56: 2.625 | T56: 1.3125 | U56: 0 | V56: 0 | W56: 0 | X56: 0 | Y56: 0 | Z56: 4.6 | AA56: 0 | AB56: 31 | AC56: 0 | AD56: 0 | AE56: 0 | AF56: 2930 | AG56: 2150 | AH56: 17700 | AI56: 1160 | AJ56: 1020 | AK56: 14.4 | AL56: 1160 | AM56: 226 | AN56: 146 | AO56: 3.68 | AP56: 0 | AQ56: 65.1 | AR56: 318000 | AS56: 0 | AT56: 132 | AU56: 906 | AV56: 214 | AW56: 574 | AX56: 0 | AY56: 0 | AZ56: 0 | BA56: 0
A57: W | B57: W33X263 | C57: W33X263 | D57: F | E57: 263 | F57: 77.5 | G57: 34.5 | H57: 0 | I57: 0 | J57: 15.8 | K57: 0 | L57: 0 | M57: 0.87 | N57: 1.57 | O57: 0 | P57: 0 | Q57: 0 | R57: 2.36 | S57: 2.4375 | T57: 1.25 | U57: 0 | V57: 0 | W57: 0 | X57: 0 | Y57: 0 | Z57: 5.03 | AA57: 0 | AB57: 34.3 | AC57: 0 | AD57: 0 | AE57: 54.8 | AF57: 2680 | AG57: 3080 | AH57: 15900 | AI57: 1040 | AJ57: 919 | AK57: 14.3 | AL57: 1040 | AM57: 202 | AN57: 131 | AO57: 3.66 | AP57: 0 | AQ57: 48.7 | AR57: 282000 | AS57: 0 | AT57: 130 | AU57: 808 | AV57: 193 | AW57: 516 | AX57: 0 | AY57: 0 | AZ57: 0 | BA57: 0
A58: W | B58: W33X241 | C58: W33X241 | D58: F | E58: 241 | F58: 71 | G58: 34.2 | H58: 0 | I58: 0 | J58: 15.9 | K58: 0 | L58: 0 | M58: 0.83 | N58: 1.4 | O58: 0 | P58: 0 | Q58: 0 | R58: 2.19 | S58: 2.25 | T58: 1.25 | U58: 0 | V58: 0 | W58: 0 | X58: 0 | Y58: 0 | Z58: 5.66 | AA58: 0 | AB58: 35.9 | AC58: 0 | AD58: 0 | AE58: 49.9 | AF58: 2440 | AG58: 4510 | AH58: 14200 | AI58: 940 | AJ58: 831 | AK58: 14.1 | AL58: 933 | AM58: 182 | AN58: 118 | AO58: 3.62 | AP58: 0 | AQ58: 36.2 | AR58: 251000 | AS58: 0 | AT58: 130 | AU58: 721 | AV58: 172 | AW58: 466 | AX58: 0 | AY58: 0 | AZ58: 0 | BA58: 0
A59: W | B59: W33X221 | C59: W33X221 | D59: F | E59: 221 | F59: 65.2 | G59: 33.9 | H59: 0 | I59: 0 | J59: 15.8 | K59: 0 | L59: 0 | M59: 0.775 | N59: 1.27 | O59: 0 | P59: 0 | Q59: 0 | R59: 2.06 | S59: 2.125 | T59: 1.1875 | U59: 0 | V59: 0 | W59: 0 | X59: 0 | Y59: 0 | Z59: 6.2 | AA59: 0 | AB59: 38.5 | AC59: 0 | AD59: 0 | AE59: 43.5 | AF59: 2250 | AG59: 6340 | AH59: 12900 | AI59: 857 | AJ59: 759 | AK59: 14.1 | AL59: 840 | AM59: 164 | AN59: 106 | AO59: 3.59 | AP59: 0 | AQ59: 27.8 | AR59: 224000 | AS59: 0 | AT59: 129 | AU59: 650 | AV59: 156 | AW59: 424 | AX59: 0 | AY59: 0 | AZ59: 0 | BA59: 0
A60: W | B60: W33X201 | C60: W33X201 | D60: F | E60: 201 | F60: 59.2 | G60: 33.7 | H60: 0 | I60: 0 | J60: 15.7 | K60: 0 | L60: 0 | M60: 0.715 | N60: 1.15 | O60: 0 | P60: 0 | Q60: 0 | R60: 1.94 | S60: 2 | T60: 1.1875 | U60: 0 | V60: 0 | W60: 0 | X60: 0 | Y60: 0 | Z60: 6.85 | AA60: 0 | AB60: 41.7 | AC60: 0 | AD60: 0 | AE60: 37 | AF60: 2050 | AG60: 9180 | AH60: 11600 | AI60: 773 | AJ60: 686 | AK60: 14 | AL60: 749 | AM60: 147 | AN60: 95.2 | AO60: 3.56 | AP60: 0 | AQ60: 20.8 | AR60: 198000 | AS60: 0 | AT60: 128 | AU60: 580 | AV60: 141 | AW60: 383 | AX60: 0 | AY60: 0 | AZ60: 0 | BA60: 0
A61: W | B61: W33X169 | C61: W33X169 | D61: F | E61: 169 | F61: 49.5 | G61: 33.8 | H61: 0 | I61: 0 | J61: 11.5 | K61: 0 | L61: 0 | M61: 0.67 | N61: 1.22 | O61: 0 | P61: 0 | Q61: 0 | R61: 1.92 | S61: 2.125 | T61: 1.1875 | U61: 0 | V61: 0 | W61: 0 | X61: 0 | Y61: 0 | Z61: 4.71 | AA61: 0 | AB61: 44.7 | AC61: 0 | AD61: 0 | AE61: 32.2 | AF61: 2160 | AG61: 8150 | AH61: 9290 | AI61: 629 | AJ61: 549 | AK61: 13.7 | AL61: 310 | AM61: 84.4 | AN61: 53.9 | AO61: 2.5 | AP61: 0 | AQ61: 17.7 | AR61: 82400 | AS61: 0 | AT61: 93.7 | AU61: 329 | AV61: 108 | AW61: 311 | AX61: 0 | AY61: 0 | AZ61: 0 | BA61: 0
A62: W | B62: W33X152 | C62: W33X152 | D62: F | E62: 152 | F62: 44.8 | G62: 33.5 | H62: 0 | I62: 0 | J62: 11.6 | K62: 0 | L62: 0 | M62: 0.635 | N62: 1.06 | O62: 0 | P62: 0 | Q62: 0 | R62: 1.76 | S62: 1.9375 | T62: 1.125 | U62: 0 | V62: 0 | W62: 0 | X62: 0 | Y62: 0 | Z62: 5.48 | AA62: 0 | AB62: 47.2 | AC62: 0 | AD62: 0 | AE62: 28.9 | AF62: 1940 | AG62: 12900 | AH62: 8160 | AI62: 559 | AJ62: 487 | AK62: 13.5 | AL62: 273 | AM62: 73.9 | AN62: 47.2 | AO62: 2.47 | AP62: 0 | AQ62: 12.4 | AR62: 71800 | AS62: 0 | AT62: 93.8 | AU62: 286 | AV62: 93.5 | AW62: 276 | AX62: 0 | AY62: 0 | AZ62: 0 | BA62: 0
A63: W | B63: W33X141 | C63: W33X141 | D63: F | E63: 141 | F63: 41.6 | G63: 33.3 | H63: 0 | I63: 0 | J63: 11.5 | K63: 0 | L63: 0 | M63: 0.605 | N63: 0.96 | O63: 0 | P63: 0 | Q63: 0 | R63: 1.66 | S63: 1.8125 | T63: 1.125 | U63: 0 | V63: 0 | W63: 0 | X63: 0 | Y63: 0 | Z63: 6.01 | AA63: 0 | AB63: 49.6 | AC63: 0 | AD63: 0 | AE63: 26.2 | AF63: 1800 | AG63: 17800 | AH63: 7450 | AI63: 514 | AJ63: 448 | AK63: 13.4 | AL63: 246 | AM63: 66.9 | AN63: 42.7 | AO63: 2.43 | AP63: 0 | AQ63: 9.7 | AR63: 64300 | AS63: 0 | AT63: 93.3 | AU63: 258 | AV63: 84.8 | AW63: 254 | AX63: 0 | AY63: 0 | AZ63: 0 | BA63: 0
A64: W | B64: W33X130 | C64: W33X130 | D64: F | E64: 130 | F64: 38.3 | G64: 33.1 | H64: 0 | I64: 0 | J64: 11.5 | K64: 0 | L64: 0 | M64: 0.58 | N64: 0.855 | O64: 0 | P64: 0 | Q64: 0 | R64: 1.56 | S64: 1.75 | T64: 1.125 | U64: 0 | V64: 0 | W64: 0 | X64: 0 | Y64: 0 | Z64: 6.73 | AA64: 0 | AB64: 51.7 | AC64: 0 | AD64: 0 | AE64: 24.1 | AF64: 1660 | AG64: 25100 | AH64: 6710 | AI64: 467 | AJ64: 406 | AK64: 13.2 | AL64: 218 | AM64: 59.5 | AN64: 37.9 | AO64: 2.39 | AP64: 0 | AQ64: 7.37 | AR64: 56600 | AS64: 0 | AT64: 92.8 | AU64: 228 | AV64: 75.3 | AW64: 230 | AX64: 0 | AY64: 0 | AZ64: 0 | BA64: 0
A65: W | B65: W33X118 | C65: W33X118 | D65: F | E65: 118 | F65: 34.7 | G65: 32.9 | H65: 0 | I65: 0 | J65: 11.5 | K65: 0 | L65: 0 | M65: 0.55 | N65: 0.74 | O65: 0 | P65: 0 | Q65: 0 | R65: 1.44 | S65: 1.625 | T65: 1.125 | U65: 0 | V65: 0 | W65: 0 | X65: 0 | Y65: 0 | Z65: 7.76 | AA65: 0 | AB65: 54.5 | AC65: 0 | AD65: 0 | AE65: 21.7 | AF65: 1510 | AG65: 37700 | AH65: 5900 | AI65: 415 | AJ65: 359 | AK65: 13 | AL65: 187 | AM65: 51.3 | AN65: 32.6 | AO65: 2.32 | AP65: 0 | AQ65: 5.3 | AR65: 48200 | AS65: 0 | AT65: 92.2 | AU65: 196 | AV65: 64.9 | AW65: 204 | AX65: 0 | AY65: 0 | AZ65: 0 | BA65: 0
A66: W | B66: W30X391 | C66: W30X391 | D66: T | E66: 391 | F66: 115 | G66: 33.2 | H66: 0 | I66: 0 | J66: 15.6 | K66: 0 | L66: 0 | M66: 1.36 | N66: 2.44 | O66: 0 | P66: 0 | Q66: 0 | R66: 3.23 | S66: 3.375 | T66: 1.5 | U66: 0 | V66: 0 | W66: 0 | X66: 0 | Y66: 0 | Z66: 3.19 | AA66: 0 | AB66: 19.7 | AC66: 0 | AD66: 0 | AE66: 0 | AF66: 4520 | AG66: 394 | AH66: 20700 | AI66: 1450 | AJ66: 1250 | AK66: 13.4 | AL66: 1550 | AM66: 310 | AN66: 198 | AO66: 3.67 | AP66: 0 | AQ66: 173 | AR66: 366000 | AS66: 0 | AT66: 120 | AU66: 1140 | AV66: 267 | AW66: 721 | AX66: 0 | AY66: 0 | AZ66: 0 | BA66: 0
A67: W | B67: W30X357 | C67: W30X357 | D67: T | E67: 357 | F67: 105 | G67: 32.8 | H67: 0 | I67: 0 | J67: 15.5 | K67: 0 | L67: 0 | M67: 1.24 | N67: 2.24 | O67: 0 | P67: 0 | Q67: 0 | R67: 3.03 | S67: 3.125 | T67: 1.4375 | U67: 0 | V67: 0 | W67: 0 | X67: 0 | Y67: 0 | Z67: 3.45 | AA67: 0 | AB67: 21.6 | AC67: 0 | AD67: 0 | AE67: 0 | AF67: 4170 | AG67: 539 | AH67: 18700 | AI67: 1320 | AJ67: 1140 | AK67: 13.3 | AL67: 1390 | AM67: 279 | AN67: 179 | AO67: 3.64 | AP67: 0 | AQ67: 134 | AR67: 325000 | AS67: 0 | AT67: 118 | AU67: 1020 | AV67: 244 | AW67: 654 | AX67: 0 | AY67: 0 | AZ67: 0 | BA67: 0
A68: W | B68: W30X326 | C68: W30X326 | D68: T | E68: 326 | F68: 95.8 | G68: 32.4 | H68: 0 | I68: 0 | J68: 15.4 | K68: 0 | L68: 0 | M68: 1.14 | N68: 2.05 | O68: 0 | P68: 0 | Q68: 0 | R68: 2.84 | S68: 2.9375 | T68: 1.375 | U68: 0 | V68: 0 | W68: 0 | X68: 0 | Y68: 0 | Z68: 3.75 | AA68: 0 | AB68: 23.4 | AC68: 0 | AD68: 0 | AE68: 0 | AF68: 3820 | AG68: 749 | AH68: 16800 | AI68: 1190 | AJ68: 1040 | AK68: 13.2 | AL68: 1240 | AM68: 252 | AN68: 162 | AO68: 3.6 | AP68: 0 | AQ68: 103 | AR68: 286000 | AS68: 0 | AT68: 117 | AU68: 919 | AV68: 221 | AW68: 592 | AX68: 0 | AY68: 0 | AZ68: 0 | BA68: 0
A69: W | B69: W30X292 | C69: W30X292 | D69: T | E69: 292 | F69: 85.9 | G69: 32 | H69: 0 | I69: 0 | J69: 15.3 | K69: 0 | L69: 0 | M69: 1.02 | N69: 1.85 | O69: 0 | P69: 0 | Q69: 0 | R69: 2.64 | S69: 2.75 | T69: 1.3125 | U69: 0 | V69: 0 | W69: 0 | X69: 0 | Y69: 0 | Z69: 4.12 | AA69: 0 | AB69: 26.2 | AC69: 0 | AD69: 0 | AE69: 0 | AF69: 3460 | AG69: 1110 | AH69: 14900 | AI69: 1060 | AJ69: 930 | AK69: 13.2 | AL69: 1100 | AM69: 223 | AN69: 144 | AO69: 3.58 | AP69: 0 | AQ69: 75.2 | AR69: 250000 | AS69: 0 | AT69: 115 | AU69: 812 | AV69: 199 | AW69: 528 | AX69: 0 | AY69: 0 | AZ69: 0 | BA69: 0
A70: W | B70: W30X261 | C70: W30X261 | D70: F | E70: 261 | F70: 76.9 | G70: 31.6 | H70: 0 | I70: 0 | J70: 15.2 | K70: 0 | L70: 0 | M70: 0.93 | N70: 1.65 | O70: 0 | P70: 0 | Q70: 0 | R70: 2.44 | S70: 2.5625 | T70: 1.3125 | U70: 0 | V70: 0 | W70: 0 | X70: 0 | Y70: 0 | Z70: 4.59 | AA70: 0 | AB70: 28.7 | AC70: 0 | AD70: 0 | AE70: 0 | AF70: 3110 | AG70: 1680 | AH70: 13100 | AI70: 943 | AJ70: 829 | AK70: 13.1 | AL70: 959 | AM70: 196 | AN70: 127 | AO70: 3.53 | AP70: 0 | AQ70: 54.1 | AR70: 215000 | AS70: 0 | AT70: 114 | AU70: 710 | AV70: 176 | AW70: 468 | AX70: 0 | AY70: 0 | AZ70: 0 | BA70: 0
A71: W | B71: W30X235 | C71: W30X235 | D71: F | E71: 235 | F71: 69.2 | G71: 31.3 | H71: 0 | I71: 0 | J71: 15.1 | K71: 0 | L71: 0 | M71: 0.83 | N71: 1.5 | O71: 0 | P71: 0 | Q71: 0 | R71: 2.29 | S71: 2.375 | T71: 1.25 | U71: 0 | V71: 0 | W71: 0 | X71: 0 | Y71: 0 | Z71: 5.02 | AA71: 0 | AB71: 32.2 | AC71: 0 | AD71: 0 | AE71: 62.1 | AF71: 2830 | AG71: 2440 | AH71: 11700 | AI71: 847 | AJ71: 748 | AK71: 13 | AL71: 855 | AM71: 175 | AN71: 114 | AO71: 3.51 | AP71: 0 | AQ71: 40.3 | AR71: 190000 | AS71: 0 | AT71: 112 | AU71: 633 | AV71: 159 | AW71: 420 | AX71: 0 | AY71: 0 | AZ71: 0 | BA71: 0
A72: W | B72: W30X211 | C72: W30X211 | D72: F | E72: 211 | F72: 62.2 | G72: 30.9 | H72: 0 | I72: 0 | J72: 15.1 | K72: 0 | L72: 0 | M72: 0.775 | N72: 1.32 | O72: 0 | P72: 0 | Q72: 0 | R72: 2.1 | S72: 2.25 | T72: 1.1875 | U72: 0 | V72: 0 | W72: 0 | X72: 0 | Y72: 0 | Z72: 5.74 | AA72: 0 | AB72: 34.5 | AC72: 0 | AD72: 0 | AE72: 54.1 | AF72: 2530 | AG72: 3840 | AH72: 10300 | AI72: 751 | AJ72: 665 | AK72: 12.9 | AL72: 757 | AM72: 155 | AN72: 100 | AO72: 3.49 | AP72: 0 | AQ72: 28.4 | AR72: 166000 | AS72: 0 | AT72: 112 | AU72: 556 | AV72: 140 | AW72: 372 | AX72: 0 | AY72: 0 | AZ72: 0 | BA72: 0
A73: W | B73: W30X191 | C73: W30X191 | D73: F | E73: 191 | F73: 56.3 | G73: 30.7 | H73: 0 | I73: 0 | J73: 15 | K73: 0 | L73: 0 | M73: 0.71 | N73: 1.19 | O73: 0 | P73: 0 | Q73: 0 | R73: 1.97 | S73: 2.0625 | T73: 1.1875 | U73: 0 | V73: 0 | W73: 0 | X73: 0 | Y73: 0 | Z73: 6.35 | AA73: 0 | AB73: 37.7 | AC73: 0 | AD73: 0 | AE73: 45.4 | AF73: 2290 | AG73: 5660 | AH73: 9200 | AI73: 675 | AJ73: 600 | AK73: 12.8 | AL73: 673 | AM73: 138 | AN73: 89.5 | AO73: 3.46 | AP73: 0 | AQ73: 21 | AR73: 146000 | AS73: 0 | AT73: 111 | AU73: 494 | AV73: 125 | AW73: 334 | AX73: 0 | AY73: 0 | AZ73: 0 | BA73: 0
A74: W | B74: W30X173 | C74: W30X173 | D74: F | E74: 173 | F74: 51 | G74: 30.4 | H74: 0 | I74: 0 | J74: 15 | K74: 0 | L74: 0 | M74: 0.655 | N74: 1.07 | O74: 0 | P74: 0 | Q74: 0 | R74: 1.85 | S74: 2 | T74: 1.125 | U74: 0 | V74: 0 | W74: 0 | X74: 0 | Y74: 0 | Z74: 7.04 | AA74: 0 | AB74: 40.8 | AC74: 0 | AD74: 0 | AE74: 38.6 | AF74: 2090 | AG74: 8270 | AH74: 8230 | AI74: 607 | AJ74: 541 | AK74: 12.7 | AL74: 598 | AM74: 123 | AN74: 79.8 | AO74: 3.42 | AP74: 0 | AQ74: 15.6 | AR74: 129000 | AS74: 0 | AT74: 110 | AU74: 439 | AV74: 112 | AW74: 300 | AX74: 0 | AY74: 0 | AZ74: 0 | BA74: 0
A75: W | B75: W30X148 | C75: W30X148 | D75: F | E75: 148 | F75: 43.5 | G75: 30.7 | H75: 0 | I75: 0 | J75: 10.5 | K75: 0 | L75: 0 | M75: 0.65 | N75: 1.18 | O75: 0 | P75: 0 | Q75: 0 | R75: 1.83 | S75: 2.0625 | T75: 1.125 | U75: 0 | V75: 0 | W75: 0 | X75: 0 | Y75: 0 | Z75: 4.44 | AA75: 0 | AB75: 41.6 | AC75: 0 | AD75: 0 | AE75: 37.3 | AF75: 2310 | AG75: 6270 | AH75: 6680 | AI75: 500 | AJ75: 436 | AK75: 12.4 | AL75: 227 | AM75: 68 | AN75: 43.3 | AO75: 2.28 | AP75: 0 | AQ75: 14.5 | AR75: 49400 | AS75: 0 | AT75: 77.3 | AU75: 239 | AV75: 85.5 | AW75: 247 | AX75: 0 | AY75: 0 | AZ75: 0 | BA75: 0
A76: W | B76: W30X132 | C76: W30X132 | D76: F | E76: 132 | F76: 38.9 | G76: 30.3 | H76: 0 | I76: 0 | J76: 10.5 | K76: 0 | L76: 0 | M76: 0.615 | N76: 1 | O76: 0 | P76: 0 | Q76: 0 | R76: 1.65 | S76: 1.875 | T76: 1.125 | U76: 0 | V76: 0 | W76: 0 | X76: 0 | Y76: 0 | Z76: 5.27 | AA76: 0 | AB76: 43.9 | AC76: 0 | AD76: 0 | AE76: 33.4 | AF76: 2050 | AG76: 10500 | AH76: 5770 | AI76: 437 | AJ76: 380 | AK76: 12.2 | AL76: 196 | AM76: 58.4 | AN76: 37.2 | AO76: 2.25 | AP76: 0 | AQ76: 9.72 | AR76: 42100 | AS76: 0 | AT76: 77.3 | AU76: 204 | AV76: 72.8 | AW76: 216 | AX76: 0 | AY76: 0 | AZ76: 0 | BA76: 0
A77: W | B77: W30X124 | C77: W30X124 | D77: F | E77: 124 | F77: 36.5 | G77: 30.2 | H77: 0 | I77: 0 | J77: 10.5 | K77: 0 | L77: 0 | M77: 0.585 | N77: 0.93 | O77: 0 | P77: 0 | Q77: 0 | R77: 1.58 | S77: 1.8125 | T77: 1.125 | U77: 0 | V77: 0 | W77: 0 | X77: 0 | Y77: 0 | Z77: 5.65 | AA77: 0 | AB77: 46.2 | AC77: 0 | AD77: 0 | AE77: 30.2 | AF77: 1930 | AG77: 13500 | AH77: 5360 | AI77: 408 | AJ77: 355 | AK77: 12.1 | AL77: 181 | AM77: 54 | AN77: 34.4 | AO77: 2.23 | AP77: 0 | AQ77: 7.99 | AR77: 38700 | AS77: 0 | AT77: 76.9 | AU77: 188 | AV77: 67.5 | AW77: 202 | AX77: 0 | AY77: 0 | AZ77: 0 | BA77: 0
A78: W | B78: W30X116 | C78: W30X116 | D78: F | E78: 116 | F78: 34.2 | G78: 30 | H78: 0 | I78: 0 | J78: 10.5 | K78: 0 | L78: 0 | M78: 0.565 | N78: 0.85 | O78: 0 | P78: 0 | Q78: 0 | R78: 1.5 | S78: 1.75 | T78: 1.125 | U78: 0 | V78: 0 | W78: 0 | X78: 0 | Y78: 0 | Z78: 6.17 | AA78: 0 | AB78: 47.8 | AC78: 0 | AD78: 0 | AE78: 28.2 | AF78: 1800 | AG78: 17700 | AH78: 4930 | AI78: 378 | AJ78: 329 | AK78: 12 | AL78: 164 | AM78: 49.2 | AN78: 31.3 | AO78: 2.19 | AP78: 0 | AQ78: 6.43 | AR78: 34900 | AS78: 0 | AT78: 76.5 | AU78: 171 | AV78: 61.5 | AW78: 187 | AX78: 0 | AY78: 0 | AZ78: 0 | BA78: 0
A79: W | B79: W30X108 | C79: W30X108 | D79: F | E79: 108 | F79: 31.7 | G79: 29.8 | H79: 0 | I79: 0 | J79: 10.5 | K79: 0 | L79: 0 | M79: 0.545 | N79: 0.76 | O79: 0 | P79: 0 | Q79: 0 | R79: 1.41 | S79: 1.6875 | T79: 1.125 | U79: 0 | V79: 0 | W79: 0 | X79: 0 | Y79: 0 | Z79: 6.89 | AA79: 0 | AB79: 49.6 | AC79: 0 | AD79: 0 | AE79: 26.2 | AF79: 1680 | AG79: 24200 | AH79: 4470 | AI79: 346 | AJ79: 299 | AK79: 11.9 | AL79: 146 | AM79: 43.9 | AN79: 27.9 | AO79: 2.15 | AP79: 0 | AQ79: 4.99 | AR79: 30800 | AS79: 0 | AT79: 76.1 | AU79: 152 | AV79: 54.8 | AW79: 170 | AX79: 0 | AY79: 0 | AZ79: 0 | BA79: 0
